Workbook

Sheet Control
A1: Sheets | B1: Text File Names | C1: Description | E1: Notes: 50 sheets maximum
A2: 2WFines | B2: Project_2WFines.txt | C2: Remaining mass in the Cell 2W fine tailings | E2: Referenced text files must be in same root folder as this spreadsheet
A3: 2WCoarse | B3: Project_2WCoarse.txt | C3: Remaining mass in the Cell 2W coarse tailings
A4: 2WBank | B4: Project_2WBank.txt | C4: Remaining mass in the Cell 2W coarse banks
A5: 2EFines | B5: Project_2EFines.txt | C5: Remaining mass in the Cell 2E fine tailings
A6: 2ECoarse | B6: Project_2ECoarse.txt | C6: Remaining mass in the Cell 2E coarse tailings
A7: 2EBank | B7: Project_2EBank.txt | C7: Remaining mass in the Cell 2E coarse banks
A8: 1EFines | B8: Project_1EFines.txt | C8: Remaining mass in the Cell 1E fine tailings
A9: 1ECoarse | B9: Project_1ECoarse.txt | C9: Remaining mass in the Cell 1E coarse tailings

Sheet PlotControl
A2: Model Name: | B2: Plant Site Version 6.0
A4: Plot: | B4: Annual Average | C4: =B2 & " Model " & IF(B4="Annual Max", "Annual Maximum", B4) & " of 'Mass Remaining' Statistics " & B6 & " in the " & B8 -> Plant Site Version 6.0 Model Annual Average of 'Mass Remaining' Statistics SO4 in the Cell 2W Fines | V4: Directory to save PDFs to: | W4: P:\Mpls\23 MN\69\2369862\WorkFiles\APA\Support Docs\Surface WQ\Workfiles\Models\GoldSim\Tailings Basin\2012 MODEL\Base Model\Output_Data\LTVSMC_Tailings\Unsat_Depletion\plots
V5: Starting figure caption | W5: Figure A-1-0001
A6: Constituent to Plot (dropdown): | B6: SO4 | C6: =MATCH(B6,$A$25:$A$52,0) -> 24
V7: Note: This loops through the plots, constituent, and location drop down menus.
A8: Location to Plot (dropdown): | B8: Cell 2W Fines | C8: =MATCH(B8,$A$15:$A$22,0) -> 1
A10: Initial Time for Monthly Plot (yr): | B10: 0
B11: =B10+20 -> 20
A12: Standard | B12: =VLOOKUP($B$6,$A$25:$B$52,2,FALSE) -> 0
A14: Locations
A15: Cell 2W Fines
A16: Cell 2W Coarse
A17: Cell 2W Banks
A18: Cell 2E Fines
A19: Cell 2E Coarse
A20: Cell 2E Banks
A21: Cell 1E Fines
A22: Cell 1E Coarse
I23: Annual Project Results
A24: Constituent | H24: Time | I24: P10 | J24: P50 | K24: P90
A25: Ag | H25: 0 | I25: =VLOOKUP($H25,P_All!$A$5:$Y$205,3*($C$8-1)+2) -> 113445 | J25: =VLOOKUP($H25,P_All!$A$5:$Y$205,3*($C$8-1)+3) -> 113483.3333 | K25: =VLOOKUP($H25,P_All!$A$5:$Y$205,3*($C$8-1)+4) -> 113523.3333
A26: Al | H26: 1 | I26: =VLOOKUP($H26,P_All!$A$5:$Y$205,3*($C$8-1)+2) -> 113010 | J26: =VLOOKUP($H26,P_All!$A$5:$Y$205,3*($C$8-1)+3) -> 113115 | K26: =VLOOKUP($H26,P_All!$A$5:$Y$205,3*($C$8-1)+4) -> 113247.5
A27: Alkalinity | H27: 2 | I27: =VLOOKUP($H27,P_All!$A$5:$Y$205,3*($C$8-1)+2) -> 112577.5 | J27: =VLOOKUP($H27,P_All!$A$5:$Y$205,3*($C$8-1)+3) -> 112753.3333 | K27: =VLOOKUP($H27,P_All!$A$5:$Y$205,3*($C$8-1)+4) -> 112967.5
A28: As | H28: 3 | I28: =VLOOKUP($H28,P_All!$A$5:$Y$205,3*($C$8-1)+2) -> 112148.3333 | J28: =VLOOKUP($H28,P_All!$A$5:$Y$205,3*($C$8-1)+3) -> 112385 | K28: =VLOOKUP($H28,P_All!$A$5:$Y$205,3*($C$8-1)+4) -> 112688.3333
A29: B | H29: 4 | I29: =VLOOKUP($H29,P_All!$A$5:$Y$205,3*($C$8-1)+2) -> 111718.3333 | J29: =VLOOKUP($H29,P_All!$A$5:$Y$205,3*($C$8-1)+3) -> 112022.5 | K29: =VLOOKUP($H29,P_All!$A$5:$Y$205,3*($C$8-1)+4) -> 112420
A30: Ba | H30: 5 | I30: =VLOOKUP($H30,P_All!$A$5:$Y$205,3*($C$8-1)+2) -> 111296.6667 | J30: =VLOOKUP($H30,P_All!$A$5:$Y$205,3*($C$8-1)+3) -> 111651.6667 | K30: =VLOOKUP($H30,P_All!$A$5:$Y$205,3*($C$8-1)+4) -> 112150
A31: Be | H31: 6 | I31: =VLOOKUP($H31,P_All!$A$5:$Y$205,3*($C$8-1)+2) -> 110870.8333 | J31: =VLOOKUP($H31,P_All!$A$5:$Y$205,3*($C$8-1)+3) -> 111272.5 | K31: =VLOOKUP($H31,P_All!$A$5:$Y$205,3*($C$8-1)+4) -> 111874.1667
A32: Ca | H32: 7 | I32: =VLOOKUP($H32,P_All!$A$5:$Y$205,3*($C$8-1)+2) -> 110440 | J32: =VLOOKUP($H32,P_All!$A$5:$Y$205,3*($C$8-1)+3) -> 110905.8333 | K32: =VLOOKUP($H32,P_All!$A$5:$Y$205,3*($C$8-1)+4) -> 111596.6667
A33: Cd | H33: 8 | I33: =VLOOKUP($H33,P_All!$A$5:$Y$205,3*($C$8-1)+2) -> 110010 | J33: =VLOOKUP($H33,P_All!$A$5:$Y$205,3*($C$8-1)+3) -> 110542.5 | K33: =VLOOKUP($H33,P_All!$A$5:$Y$205,3*($C$8-1)+4) -> 111328.3333
A34: Cl | H34: 9 | I34: =VLOOKUP($H34,P_All!$A$5:$Y$205,3*($C$8-1)+2) -> 109580.8333 | J34: =VLOOKUP($H34,P_All!$A$5:$Y$205,3*($C$8-1)+3) -> 110166.6667 | K34: =VLOOKUP($H34,P_All!$A$5:$Y$205,3*($C$8-1)+4) -> 111049.1667
A35: Co | H35: 10 | I35: =VLOOKUP($H35,P_All!$A$5:$Y$205,3*($C$8-1)+2) -> 109169.1667 | J35: =VLOOKUP($H35,P_All!$A$5:$Y$205,3*($C$8-1)+3) -> 109785.8333 | K35: =VLOOKUP($H35,P_All!$A$5:$Y$205,3*($C$8-1)+4) -> 110777.5
A36: Cr | H36: 11 | I36: =VLOOKUP($H36,P_All!$A$5:$Y$205,3*($C$8-1)+2) -> 108744.1667 | J36: =VLOOKUP($H36,P_All!$A$5:$Y$205,3*($C$8-1)+3) -> 109420 | K36: =VLOOKUP($H36,P_All!$A$5:$Y$205,3*($C$8-1)+4) -> 110505.8333
A37: Cu | H37: 12 | I37: =VLOOKUP($H37,P_All!$A$5:$Y$205,3*($C$8-1)+2) -> 108315 | J37: =VLOOKUP($H37,P_All!$A$5:$Y$205,3*($C$8-1)+3) -> 109061.6667 | K37: =VLOOKUP($H37,P_All!$A$5:$Y$205,3*($C$8-1)+4) -> 110244.1667
A38: F | H38: 13 | I38: =VLOOKUP($H38,P_All!$A$5:$Y$205,3*($C$8-1)+2) -> 107875.8333 | J38: =VLOOKUP($H38,P_All!$A$5:$Y$205,3*($C$8-1)+3) -> 108690 | K38: =VLOOKUP($H38,P_All!$A$5:$Y$205,3*($C$8-1)+4) -> 109967.5
A39: Fe | H39: 14 | I39: =VLOOKUP($H39,P_All!$A$5:$Y$205,3*($C$8-1)+2) -> 107461.6667 | J39: =VLOOKUP($H39,P_All!$A$5:$Y$205,3*($C$8-1)+3) -> 108331.6667 | K39: =VLOOKUP($H39,P_All!$A$5:$Y$205,3*($C$8-1)+4) -> 109689.1667
A40: K | H40: 15 | I40: =VLOOKUP($H40,P_All!$A$5:$Y$205,3*($C$8-1)+2) -> 107042.5 | J40: =VLOOKUP($H40,P_All!$A$5:$Y$205,3*($C$8-1)+3) -> 107971.6667 | K40: =VLOOKUP($H40,P_All!$A$5:$Y$205,3*($C$8-1)+4) -> 109409.1667
A41: Mg | H41: 16 | I41: =VLOOKUP($H41,P_All!$A$5:$Y$205,3*($C$8-1)+2) -> 106607.5 | J41: =VLOOKUP($H41,P_All!$A$5:$Y$205,3*($C$8-1)+3) -> 107601.6667 | K41: =VLOOKUP($H41,P_All!$A$5:$Y$205,3*($C$8-1)+4) -> 109145
A42: Mn | H42: 17 | I42: =VLOOKUP($H42,P_All!$A$5:$Y$205,3*($C$8-1)+2) -> 106180 | J42: =VLOOKUP($H42,P_All!$A$5:$Y$205,3*($C$8-1)+3) -> 107226.6667 | K42: =VLOOKUP($H42,P_All!$A$5:$Y$205,3*($C$8-1)+4) -> 108864.1667
A43: Na | H43: 18 | I43: =VLOOKUP($H43,P_All!$A$5:$Y$205,3*($C$8-1)+2) -> 105740.8333 | J43: =VLOOKUP($H43,P_All!$A$5:$Y$205,3*($C$8-1)+3) -> 106882.5 | K43: =VLOOKUP($H43,P_All!$A$5:$Y$205,3*($C$8-1)+4) -> 108592.5
A44: Ni | H44: 19 | I44: =VLOOKUP($H44,P_All!$A$5:$Y$205,3*($C$8-1)+2) -> 105305.8333 | J44: =VLOOKUP($H44,P_All!$A$5:$Y$205,3*($C$8-1)+3) -> 106516.6667 | K44: =VLOOKUP($H44,P_All!$A$5:$Y$205,3*($C$8-1)+4) -> 108319.1667
A45: Pb | H45: 20 | I45: =VLOOKUP($H45,P_All!$A$5:$Y$205,3*($C$8-1)+2) -> 104868.3333 | J45: =VLOOKUP($H45,P_All!$A$5:$Y$205,3*($C$8-1)+3) -> 106146.6667 | K45: =VLOOKUP($H45,P_All!$A$5:$Y$205,3*($C$8-1)+4) -> 108060
A46: Sb | H46: 21 | I46: =VLOOKUP($H46,P_All!$A$5:$Y$205,3*($C$8-1)+2) -> 104442.5 | J46: =VLOOKUP($H46,P_All!$A$5:$Y$205,3*($C$8-1)+3) -> 105782.5 | K46: =VLOOKUP($H46,P_All!$A$5:$Y$205,3*($C$8-1)+4) -> 107799.1667
A47: Se | H47: 22 | I47: =VLOOKUP($H47,P_All!$A$5:$Y$205,3*($C$8-1)+2) -> 104025 | J47: =VLOOKUP($H47,P_All!$A$5:$Y$205,3*($C$8-1)+3) -> 105407.5 | K47: =VLOOKUP($H47,P_All!$A$5:$Y$205,3*($C$8-1)+4) -> 107532.5
A48: SO4 | H48: 23 | I48: =VLOOKUP($H48,P_All!$A$5:$Y$205,3*($C$8-1)+2) -> 103596.6667 | J48: =VLOOKUP($H48,P_All!$A$5:$Y$205,3*($C$8-1)+3) -> 105031.6667 | K48: =VLOOKUP($H48,P_All!$A$5:$Y$205,3*($C$8-1)+4) -> 107247.5
A49: Tl | H49: 24 | I49: =VLOOKUP($H49,P_All!$A$5:$Y$205,3*($C$8-1)+2) -> 103153.3333 | J49: =VLOOKUP($H49,P_All!$A$5:$Y$205,3*($C$8-1)+3) -> 104652.5 | K49: =VLOOKUP($H49,P_All!$A$5:$Y$205,3*($C$8-1)+4) -> 106977.5
A50: V | H50: 25 | I50: =VLOOKUP($H50,P_All!$A$5:$Y$205,3*($C$8-1)+2) -> 102709.1667 | J50: =VLOOKUP($H50,P_All!$A$5:$Y$205,3*($C$8-1)+3) -> 104270.8333 | K50: =VLOOKUP($H50,P_All!$A$5:$Y$205,3*($C$8-1)+4) -> 106706.6667
A51: Zn | H51: 26 | I51: =VLOOKUP($H51,P_All!$A$5:$Y$205,3*($C$8-1)+2) -> 102291.6667 | J51: =VLOOKUP($H51,P_All!$A$5:$Y$205,3*($C$8-1)+3) -> 103900 | K51: =VLOOKUP($H51,P_All!$A$5:$Y$205,3*($C$8-1)+4) -> 106432.5
H52: 27 | I52: =VLOOKUP($H52,P_All!$A$5:$Y$205,3*($C$8-1)+2) -> 101874.1667 | J52: =VLOOKUP($H52,P_All!$A$5:$Y$205,3*($C$8-1)+3) -> 103516.6667 | K52: =VLOOKUP($H52,P_All!$A$5:$Y$205,3*($C$8-1)+4) -> 106170
A53: Plots | H53: 28 | I53: =VLOOKUP($H53,P_All!$A$5:$Y$205,3*($C$8-1)+2) -> 101440 | J53: =VLOOKUP($H53,P_All!$A$5:$Y$205,3*($C$8-1)+3) -> 103163.3333 | K53: =VLOOKUP($H53,P_All!$A$5:$Y$205,3*($C$8-1)+4) -> 105908.3333
A54: Annual Average | H54: 29 | I54: =VLOOKUP($H54,P_All!$A$5:$Y$205,3*($C$8-1)+2) -> 101005 | J54: =VLOOKUP($H54,P_All!$A$5:$Y$205,3*($C$8-1)+3) -> 102780 | K54: =VLOOKUP($H54,P_All!$A$5:$Y$205,3*($C$8-1)+4) -> 105641.6667
A55: Annual Max | H55: 30 | I55: =VLOOKUP($H55,P_All!$A$5:$Y$205,3*($C$8-1)+2) -> 100571.6667 | J55: =VLOOKUP($H55,P_All!$A$5:$Y$205,3*($C$8-1)+3) -> 102395 | K55: =VLOOKUP($H55,P_All!$A$5:$Y$205,3*($C$8-1)+4) -> 105367.5
H56: 31 | I56: =VLOOKUP($H56,P_All!$A$5:$Y$205,3*($C$8-1)+2) -> 100143.75 | J56: =VLOOKUP($H56,P_All!$A$5:$Y$205,3*($C$8-1)+3) -> 102034.1667 | K56: =VLOOKUP($H56,P_All!$A$5:$Y$205,3*($C$8-1)+4) -> 105090
H57: 32 | I57: =VLOOKUP($H57,P_All!$A$5:$Y$205,3*($C$8-1)+2) -> 99714.75 | J57: =VLOOKUP($H57,P_All!$A$5:$Y$205,3*($C$8-1)+3) -> 101656.6667 | K57: =VLOOKUP($H57,P_All!$A$5:$Y$205,3*($C$8-1)+4) -> 104812.5
H58: 33 | I58: =VLOOKUP($H58,P_All!$A$5:$Y$205,3*($C$8-1)+2) -> 99305.33333 | J58: =VLOOKUP($H58,P_All!$A$5:$Y$205,3*($C$8-1)+3) -> 101289.1667 | K58: =VLOOKUP($H58,P_All!$A$5:$Y$205,3*($C$8-1)+4) -> 104535
H59: 34 | I59: =VLOOKUP($H59,P_All!$A$5:$Y$205,3*($C$8-1)+2) -> 98886.5 | J59: =VLOOKUP($H59,P_All!$A$5:$Y$205,3*($C$8-1)+3) -> 100916.6667 | K59: =VLOOKUP($H59,P_All!$A$5:$Y$205,3*($C$8-1)+4) -> 104245.8333
H60: 35 | I60: =VLOOKUP($H60,P_All!$A$5:$Y$205,3*($C$8-1)+2) -> 98453.58333 | J60: =VLOOKUP($H60,P_All!$A$5:$Y$205,3*($C$8-1)+3) -> 100550 | K60: =VLOOKUP($H60,P_All!$A$5:$Y$205,3*($C$8-1)+4) -> 103995.8333
H61: 36 | I61: =VLOOKUP($H61,P_All!$A$5:$Y$205,3*($C$8-1)+2) -> 98036.33333 | J61: =VLOOKUP($H61,P_All!$A$5:$Y$205,3*($C$8-1)+3) -> 100172.9167 | K61: =VLOOKUP($H61,P_All!$A$5:$Y$205,3*($C$8-1)+4) -> 103728.3333
H62: 37 | I62: =VLOOKUP($H62,P_All!$A$5:$Y$205,3*($C$8-1)+2) -> 97603.91667 | J62: =VLOOKUP($H62,P_All!$A$5:$Y$205,3*($C$8-1)+3) -> 99776.91667 | K62: =VLOOKUP($H62,P_All!$A$5:$Y$205,3*($C$8-1)+4) -> 103459.1667
H63: 38 | I63: =VLOOKUP($H63,P_All!$A$5:$Y$205,3*($C$8-1)+2) -> 97167.75 | J63: =VLOOKUP($H63,P_All!$A$5:$Y$205,3*($C$8-1)+3) -> 99410.25 | K63: =VLOOKUP($H63,P_All!$A$5:$Y$205,3*($C$8-1)+4) -> 103180
H64: 39 | I64: =VLOOKUP($H64,P_All!$A$5:$Y$205,3*($C$8-1)+2) -> 96733.5 | J64: =VLOOKUP($H64,P_All!$A$5:$Y$205,3*($C$8-1)+3) -> 99055.58333 | K64: =VLOOKUP($H64,P_All!$A$5:$Y$205,3*($C$8-1)+4) -> 102904.1667
H65: 40 | I65: =VLOOKUP($H65,P_All!$A$5:$Y$205,3*($C$8-1)+2) -> 96309 | J65: =VLOOKUP($H65,P_All!$A$5:$Y$205,3*($C$8-1)+3) -> 98680.08333 | K65: =VLOOKUP($H65,P_All!$A$5:$Y$205,3*($C$8-1)+4) -> 102635.8333
H66: 41 | I66: =VLOOKUP($H66,P_All!$A$5:$Y$205,3*($C$8-1)+2) -> 95900.08333 | J66: =VLOOKUP($H66,P_All!$A$5:$Y$205,3*($C$8-1)+3) -> 98317.91667 | K66: =VLOOKUP($H66,P_All!$A$5:$Y$205,3*($C$8-1)+4) -> 102350.8333
H67: 42 | I67: =VLOOKUP($H67,P_All!$A$5:$Y$205,3*($C$8-1)+2) -> 95453.91667 | J67: =VLOOKUP($H67,P_All!$A$5:$Y$205,3*($C$8-1)+3) -> 97949.91667 | K67: =VLOOKUP($H67,P_All!$A$5:$Y$205,3*($C$8-1)+4) -> 102076.6667
H68: 43 | I68: =VLOOKUP($H68,P_All!$A$5:$Y$205,3*($C$8-1)+2) -> 95023.66667 | J68: =VLOOKUP($H68,P_All!$A$5:$Y$205,3*($C$8-1)+3) -> 97597.08333 | K68: =VLOOKUP($H68,P_All!$A$5:$Y$205,3*($C$8-1)+4) -> 101783.3333
H69: 44 | I69: =VLOOKUP($H69,P_All!$A$5:$Y$205,3*($C$8-1)+2) -> 94570.25 | J69: =VLOOKUP($H69,P_All!$A$5:$Y$205,3*($C$8-1)+3) -> 97240 | K69: =VLOOKUP($H69,P_All!$A$5:$Y$205,3*($C$8-1)+4) -> 101501.6667
H70: 45 | I70: =VLOOKUP($H70,P_All!$A$5:$Y$205,3*($C$8-1)+2) -> 94132.83333 | J70: =VLOOKUP($H70,P_All!$A$5:$Y$205,3*($C$8-1)+3) -> 96861.66667 | K70: =VLOOKUP($H70,P_All!$A$5:$Y$205,3*($C$8-1)+4) -> 101220
H71: 46 | I71: =VLOOKUP($H71,P_All!$A$5:$Y$205,3*($C$8-1)+2) -> 93712.33333 | J71: =VLOOKUP($H71,P_All!$A$5:$Y$205,3*($C$8-1)+3) -> 96488 | K71: =VLOOKUP($H71,P_All!$A$5:$Y$205,3*($C$8-1)+4) -> 100945
H72: 47 | I72: =VLOOKUP($H72,P_All!$A$5:$Y$205,3*($C$8-1)+2) -> 93288 | J72: =VLOOKUP($H72,P_All!$A$5:$Y$205,3*($C$8-1)+3) -> 96134.16667 | K72: =VLOOKUP($H72,P_All!$A$5:$Y$205,3*($C$8-1)+4) -> 100677.5
H73: 48 | I73: =VLOOKUP($H73,P_All!$A$5:$Y$205,3*($C$8-1)+2) -> 92819.08333 | J73: =VLOOKUP($H73,P_All!$A$5:$Y$205,3*($C$8-1)+3) -> 95775.83333 | K73: =VLOOKUP($H73,P_All!$A$5:$Y$205,3*($C$8-1)+4) -> 100405
H74: 49 | I74: =VLOOKUP($H74,P_All!$A$5:$Y$205,3*($C$8-1)+2) -> 92376.5 | J74: =VLOOKUP($H74,P_All!$A$5:$Y$205,3*($C$8-1)+3) -> 95398.75 | K74: =VLOOKUP($H74,P_All!$A$5:$Y$205,3*($C$8-1)+4) -> 100146.6667
H75: 50 | I75: =VLOOKUP($H75,P_All!$A$5:$Y$205,3*($C$8-1)+2) -> 91929.66667 | J75: =VLOOKUP($H75,P_All!$A$5:$Y$205,3*($C$8-1)+3) -> 95044.16667 | K75: =VLOOKUP($H75,P_All!$A$5:$Y$205,3*($C$8-1)+4) -> 99868.91667
H76: 51 | I76: =VLOOKUP($H76,P_All!$A$5:$Y$205,3*($C$8-1)+2) -> 91519.66667 | J76: =VLOOKUP($H76,P_All!$A$5:$Y$205,3*($C$8-1)+3) -> 94687.25 | K76: =VLOOKUP($H76,P_All!$A$5:$Y$205,3*($C$8-1)+4) -> 99583.5
H77: 52 | I77: =VLOOKUP($H77,P_All!$A$5:$Y$205,3*($C$8-1)+2) -> 91115.75 | J77: =VLOOKUP($H77,P_All!$A$5:$Y$205,3*($C$8-1)+3) -> 94306.83333 | K77: =VLOOKUP($H77,P_All!$A$5:$Y$205,3*($C$8-1)+4) -> 99321.5
H78: 53 | I78: =VLOOKUP($H78,P_All!$A$5:$Y$205,3*($C$8-1)+2) -> 90683.5 | J78: =VLOOKUP($H78,P_All!$A$5:$Y$205,3*($C$8-1)+3) -> 93929.83333 | K78: =VLOOKUP($H78,P_All!$A$5:$Y$205,3*($C$8-1)+4) -> 99044.5
H79: 54 | I79: =VLOOKUP($H79,P_All!$A$5:$Y$205,3*($C$8-1)+2) -> 90213.58333 | J79: =VLOOKUP($H79,P_All!$A$5:$Y$205,3*($C$8-1)+3) -> 93552.58333 | K79: =VLOOKUP($H79,P_All!$A$5:$Y$205,3*($C$8-1)+4) -> 98771.66667
H80: 55 | I80: =VLOOKUP($H80,P_All!$A$5:$Y$205,3*($C$8-1)+2) -> 89781.16667 | J80: =VLOOKUP($H80,P_All!$A$5:$Y$205,3*($C$8-1)+3) -> 93186.08333 | K80: =VLOOKUP($H80,P_All!$A$5:$Y$205,3*($C$8-1)+4) -> 98500
H81: 56 | I81: =VLOOKUP($H81,P_All!$A$5:$Y$205,3*($C$8-1)+2) -> 89342 | J81: =VLOOKUP($H81,P_All!$A$5:$Y$205,3*($C$8-1)+3) -> 92819.91667 | K81: =VLOOKUP($H81,P_All!$A$5:$Y$205,3*($C$8-1)+4) -> 98217.58333
H82: 57 | I82: =VLOOKUP($H82,P_All!$A$5:$Y$205,3*($C$8-1)+2) -> 88921.58333 | J82: =VLOOKUP($H82,P_All!$A$5:$Y$205,3*($C$8-1)+3) -> 92457.41667 | K82: =VLOOKUP($H82,P_All!$A$5:$Y$205,3*($C$8-1)+4) -> 97916.33333
H83: 58 | I83: =VLOOKUP($H83,P_All!$A$5:$Y$205,3*($C$8-1)+2) -> 88519.41667 | J83: =VLOOKUP($H83,P_All!$A$5:$Y$205,3*($C$8-1)+3) -> 92076.66667 | K83: =VLOOKUP($H83,P_All!$A$5:$Y$205,3*($C$8-1)+4) -> 97636.66667
H84: 59 | I84: =VLOOKUP($H84,P_All!$A$5:$Y$205,3*($C$8-1)+2) -> 88091.5 | J84: =VLOOKUP($H84,P_All!$A$5:$Y$205,3*($C$8-1)+3) -> 91713.66667 | K84: =VLOOKUP($H84,P_All!$A$5:$Y$205,3*($C$8-1)+4) -> 97386.33333
H85: 60 | I85: =VLOOKUP($H85,P_All!$A$5:$Y$205,3*($C$8-1)+2) -> 87650.75 | J85: =VLOOKUP($H85,P_All!$A$5:$Y$205,3*($C$8-1)+3) -> 91326.66667 | K85: =VLOOKUP($H85,P_All!$A$5:$Y$205,3*($C$8-1)+4) -> 97113.33333
H86: 61 | I86: =VLOOKUP($H86,P_All!$A$5:$Y$205,3*($C$8-1)+2) -> 87211.83333 | J86: =VLOOKUP($H86,P_All!$A$5:$Y$205,3*($C$8-1)+3) -> 90942.58333 | K86: =VLOOKUP($H86,P_All!$A$5:$Y$205,3*($C$8-1)+4) -> 96839.91667
H87: 62 | I87: =VLOOKUP($H87,P_All!$A$5:$Y$205,3*($C$8-1)+2) -> 86774.75 | J87: =VLOOKUP($H87,P_All!$A$5:$Y$205,3*($C$8-1)+3) -> 90586.33333 | K87: =VLOOKUP($H87,P_All!$A$5:$Y$205,3*($C$8-1)+4) -> 96562.41667
H88: 63 | I88: =VLOOKUP($H88,P_All!$A$5:$Y$205,3*($C$8-1)+2) -> 86326.58333 | J88: =VLOOKUP($H88,P_All!$A$5:$Y$205,3*($C$8-1)+3) -> 90214 | K88: =VLOOKUP($H88,P_All!$A$5:$Y$205,3*($C$8-1)+4) -> 96297.33333
H89: 64 | I89: =VLOOKUP($H89,P_All!$A$5:$Y$205,3*($C$8-1)+2) -> 85868.08333 | J89: =VLOOKUP($H89,P_All!$A$5:$Y$205,3*($C$8-1)+3) -> 89835.08333 | K89: =VLOOKUP($H89,P_All!$A$5:$Y$205,3*($C$8-1)+4) -> 96030.08333
H90: 65 | I90: =VLOOKUP($H90,P_All!$A$5:$Y$205,3*($C$8-1)+2) -> 85443.91667 | J90: =VLOOKUP($H90,P_All!$A$5:$Y$205,3*($C$8-1)+3) -> 89468 | K90: =VLOOKUP($H90,P_All!$A$5:$Y$205,3*($C$8-1)+4) -> 95751.66667
H91: 66 | I91: =VLOOKUP($H91,P_All!$A$5:$Y$205,3*($C$8-1)+2) -> 85019.41667 | J91: =VLOOKUP($H91,P_All!$A$5:$Y$205,3*($C$8-1)+3) -> 89096.91667 | K91: =VLOOKUP($H91,P_All!$A$5:$Y$205,3*($C$8-1)+4) -> 95485.25
H92: 67 | I92: =VLOOKUP($H92,P_All!$A$5:$Y$205,3*($C$8-1)+2) -> 84600.58333 | J92: =VLOOKUP($H92,P_All!$A$5:$Y$205,3*($C$8-1)+3) -> 88737.91667 | K92: =VLOOKUP($H92,P_All!$A$5:$Y$205,3*($C$8-1)+4) -> 95212.33333
H93: 68 | I93: =VLOOKUP($H93,P_All!$A$5:$Y$205,3*($C$8-1)+2) -> 84177.66667 | J93: =VLOOKUP($H93,P_All!$A$5:$Y$205,3*($C$8-1)+3) -> 88387.75 | K93: =VLOOKUP($H93,P_All!$A$5:$Y$205,3*($C$8-1)+4) -> 94930.58333
H94: 69 | I94: =VLOOKUP($H94,P_All!$A$5:$Y$205,3*($C$8-1)+2) -> 83725.66667 | J94: =VLOOKUP($H94,P_All!$A$5:$Y$205,3*($C$8-1)+3) -> 88005.5 | K94: =VLOOKUP($H94,P_All!$A$5:$Y$205,3*($C$8-1)+4) -> 94660.33333
H95: 70 | I95: =VLOOKUP($H95,P_All!$A$5:$Y$205,3*($C$8-1)+2) -> 83286.25 | J95: =VLOOKUP($H95,P_All!$A$5:$Y$205,3*($C$8-1)+3) -> 87625.33333 | K95: =VLOOKUP($H95,P_All!$A$5:$Y$205,3*($C$8-1)+4) -> 94371.83333
H96: 71 | I96: =VLOOKUP($H96,P_All!$A$5:$Y$205,3*($C$8-1)+2) -> 82888.41667 | J96: =VLOOKUP($H96,P_All!$A$5:$Y$205,3*($C$8-1)+3) -> 87262.08333 | K96: =VLOOKUP($H96,P_All!$A$5:$Y$205,3*($C$8-1)+4) -> 94090.91667
H97: 72 | I97: =VLOOKUP($H97,P_All!$A$5:$Y$205,3*($C$8-1)+2) -> 82454 | J97: =VLOOKUP($H97,P_All!$A$5:$Y$205,3*($C$8-1)+3) -> 86912.91667 | K97: =VLOOKUP($H97,P_All!$A$5:$Y$205,3*($C$8-1)+4) -> 93811.41667
H98: 73 | I98: =VLOOKUP($H98,P_All!$A$5:$Y$205,3*($C$8-1)+2) -> 82056.5 | J98: =VLOOKUP($H98,P_All!$A$5:$Y$205,3*($C$8-1)+3) -> 86558.75 | K98: =VLOOKUP($H98,P_All!$A$5:$Y$205,3*($C$8-1)+4) -> 93517.75
H99: 74 | I99: =VLOOKUP($H99,P_All!$A$5:$Y$205,3*($C$8-1)+2) -> 81648.5 | J99: =VLOOKUP($H99,P_All!$A$5:$Y$205,3*($C$8-1)+3) -> 86185 | K99: =VLOOKUP($H99,P_All!$A$5:$Y$205,3*($C$8-1)+4) -> 93243
H100: 75 | I100: =VLOOKUP($H100,P_All!$A$5:$Y$205,3*($C$8-1)+2) -> 81191.75 | J100: =VLOOKUP($H100,P_All!$A$5:$Y$205,3*($C$8-1)+3) -> 85812.16667 | K100: =VLOOKUP($H100,P_All!$A$5:$Y$205,3*($C$8-1)+4) -> 92965.25
H101: 76 | I101: =VLOOKUP($H101,P_All!$A$5:$Y$205,3*($C$8-1)+2) -> 80759.08333 | J101: =VLOOKUP($H101,P_All!$A$5:$Y$205,3*($C$8-1)+3) -> 85466.83333 | K101: =VLOOKUP($H101,P_All!$A$5:$Y$205,3*($C$8-1)+4) -> 92681.33333
H102: 77 | I102: =VLOOKUP($H102,P_All!$A$5:$Y$205,3*($C$8-1)+2) -> 80326.33333 | J102: =VLOOKUP($H102,P_All!$A$5:$Y$205,3*($C$8-1)+3) -> 85076.66667 | K102: =VLOOKUP($H102,P_All!$A$5:$Y$205,3*($C$8-1)+4) -> 92408.58333
H103: 78 | I103: =VLOOKUP($H103,P_All!$A$5:$Y$205,3*($C$8-1)+2) -> 79883.5 | J103: =VLOOKUP($H103,P_All!$A$5:$Y$205,3*($C$8-1)+3) -> 84685 | K103: =VLOOKUP($H103,P_All!$A$5:$Y$205,3*($C$8-1)+4) -> 92141.33333
H104: 79 | I104: =VLOOKUP($H104,P_All!$A$5:$Y$205,3*($C$8-1)+2) -> 79454.83333 | J104: =VLOOKUP($H104,P_All!$A$5:$Y$205,3*($C$8-1)+3) -> 84331 | K104: =VLOOKUP($H104,P_All!$A$5:$Y$205,3*($C$8-1)+4) -> 91864.08333
H105: 80 | I105: =VLOOKUP($H105,P_All!$A$5:$Y$205,3*($C$8-1)+2) -> 79036.08333 | J105: =VLOOKUP($H105,P_All!$A$5:$Y$205,3*($C$8-1)+3) -> 83957.16667 | K105: =VLOOKUP($H105,P_All!$A$5:$Y$205,3*($C$8-1)+4) -> 91592.41667
H106: 81 | I106: =VLOOKUP($H106,P_All!$A$5:$Y$205,3*($C$8-1)+2) -> 78588.66667 | J106: =VLOOKUP($H106,P_All!$A$5:$Y$205,3*($C$8-1)+3) -> 83591.75 | K106: =VLOOKUP($H106,P_All!$A$5:$Y$205,3*($C$8-1)+4) -> 91334.66667
H107: 82 | I107: =VLOOKUP($H107,P_All!$A$5:$Y$205,3*($C$8-1)+2) -> 78159.08333 | J107: =VLOOKUP($H107,P_All!$A$5:$Y$205,3*($C$8-1)+3) -> 83224.33333 | K107: =VLOOKUP($H107,P_All!$A$5:$Y$205,3*($C$8-1)+4) -> 91075
H108: 83 | I108: =VLOOKUP($H108,P_All!$A$5:$Y$205,3*($C$8-1)+2) -> 77729.91667 | J108: =VLOOKUP($H108,P_All!$A$5:$Y$205,3*($C$8-1)+3) -> 82871.16667 | K108: =VLOOKUP($H108,P_All!$A$5:$Y$205,3*($C$8-1)+4) -> 90806.25
H109: 84 | I109: =VLOOKUP($H109,P_All!$A$5:$Y$205,3*($C$8-1)+2) -> 77304.5 | J109: =VLOOKUP($H109,P_All!$A$5:$Y$205,3*($C$8-1)+3) -> 82510.41667 | K109: =VLOOKUP($H109,P_All!$A$5:$Y$205,3*($C$8-1)+4) -> 90521
H110: 85 | I110: =VLOOKUP($H110,P_All!$A$5:$Y$205,3*($C$8-1)+2) -> 76894.91667 | J110: =VLOOKUP($H110,P_All!$A$5:$Y$205,3*($C$8-1)+3) -> 82138.75 | K110: =VLOOKUP($H110,P_All!$A$5:$Y$205,3*($C$8-1)+4) -> 90242.5
H111: 86 | I111: =VLOOKUP($H111,P_All!$A$5:$Y$205,3*($C$8-1)+2) -> 76468.08333 | J111: =VLOOKUP($H111,P_All!$A$5:$Y$205,3*($C$8-1)+3) -> 81768.5 | K111: =VLOOKUP($H111,P_All!$A$5:$Y$205,3*($C$8-1)+4) -> 89979.66667
H112: 87 | I112: =VLOOKUP($H112,P_All!$A$5:$Y$205,3*($C$8-1)+2) -> 76023.58333 | J112: =VLOOKUP($H112,P_All!$A$5:$Y$205,3*($C$8-1)+3) -> 81415.66667 | K112: =VLOOKUP($H112,P_All!$A$5:$Y$205,3*($C$8-1)+4) -> 89733.75
H113: 88 | I113: =VLOOKUP($H113,P_All!$A$5:$Y$205,3*($C$8-1)+2) -> 75598.16667 | J113: =VLOOKUP($H113,P_All!$A$5:$Y$205,3*($C$8-1)+3) -> 81054.75 | K113: =VLOOKUP($H113,P_All!$A$5:$Y$205,3*($C$8-1)+4) -> 89445.75
H114: 89 | I114: =VLOOKUP($H114,P_All!$A$5:$Y$205,3*($C$8-1)+2) -> 75170.66667 | J114: =VLOOKUP($H114,P_All!$A$5:$Y$205,3*($C$8-1)+3) -> 80669.33333 | K114: =VLOOKUP($H114,P_All!$A$5:$Y$205,3*($C$8-1)+4) -> 89166.5
H115: 90 | I115: =VLOOKUP($H115,P_All!$A$5:$Y$205,3*($C$8-1)+2) -> 74750.58333 | J115: =VLOOKUP($H115,P_All!$A$5:$Y$205,3*($C$8-1)+3) -> 80294.83333 | K115: =VLOOKUP($H115,P_All!$A$5:$Y$205,3*($C$8-1)+4) -> 88884
H116: 91 | I116: =VLOOKUP($H116,P_All!$A$5:$Y$205,3*($C$8-1)+2) -> 74309.83333 | J116: =VLOOKUP($H116,P_All!$A$5:$Y$205,3*($C$8-1)+3) -> 79924 | K116: =VLOOKUP($H116,P_All!$A$5:$Y$205,3*($C$8-1)+4) -> 88608.08333
H117: 92 | I117: =VLOOKUP($H117,P_All!$A$5:$Y$205,3*($C$8-1)+2) -> 73864.66667 | J117: =VLOOKUP($H117,P_All!$A$5:$Y$205,3*($C$8-1)+3) -> 79562.75 | K117: =VLOOKUP($H117,P_All!$A$5:$Y$205,3*($C$8-1)+4) -> 88329.91667
H118: 93 | I118: =VLOOKUP($H118,P_All!$A$5:$Y$205,3*($C$8-1)+2) -> 73404.83333 | J118: =VLOOKUP($H118,P_All!$A$5:$Y$205,3*($C$8-1)+3) -> 79199.5 | K118: =VLOOKUP($H118,P_All!$A$5:$Y$205,3*($C$8-1)+4) -> 88064
H119: 94 | I119: =VLOOKUP($H119,P_All!$A$5:$Y$205,3*($C$8-1)+2) -> 72993.08333 | J119: =VLOOKUP($H119,P_All!$A$5:$Y$205,3*($C$8-1)+3) -> 78859.33333 | K119: =VLOOKUP($H119,P_All!$A$5:$Y$205,3*($C$8-1)+4) -> 87800.66667
H120: 95 | I120: =VLOOKUP($H120,P_All!$A$5:$Y$205,3*($C$8-1)+2) -> 72583.16667 | J120: =VLOOKUP($H120,P_All!$A$5:$Y$205,3*($C$8-1)+3) -> 78507.33333 | K120: =VLOOKUP($H120,P_All!$A$5:$Y$205,3*($C$8-1)+4) -> 87527.83333
H121: 96 | I121: =VLOOKUP($H121,P_All!$A$5:$Y$205,3*($C$8-1)+2) -> 72116.58333 | J121: =VLOOKUP($H121,P_All!$A$5:$Y$205,3*($C$8-1)+3) -> 78136.91667 | K121: =VLOOKUP($H121,P_All!$A$5:$Y$205,3*($C$8-1)+4) -> 87243.83333
H122: 97 | I122: =VLOOKUP($H122,P_All!$A$5:$Y$205,3*($C$8-1)+2) -> 71664.58333 | J122: =VLOOKUP($H122,P_All!$A$5:$Y$205,3*($C$8-1)+3) -> 77758.25 | K122: =VLOOKUP($H122,P_All!$A$5:$Y$205,3*($C$8-1)+4) -> 86975.91667
H123: 98 | I123: =VLOOKUP($H123,P_All!$A$5:$Y$205,3*($C$8-1)+2) -> 71242.25 | J123: =VLOOKUP($H123,P_All!$A$5:$Y$205,3*($C$8-1)+3) -> 77353.75 | K123: =VLOOKUP($H123,P_All!$A$5:$Y$205,3*($C$8-1)+4) -> 86696.83333
H124: 99 | I124: =VLOOKUP($H124,P_All!$A$5:$Y$205,3*($C$8-1)+2) -> 70842.75 | J124: =VLOOKUP($H124,P_All!$A$5:$Y$205,3*($C$8-1)+3) -> 76989.16667 | K124: =VLOOKUP($H124,P_All!$A$5:$Y$205,3*($C$8-1)+4) -> 86406
H125: 100 | I125: =VLOOKUP($H125,P_All!$A$5:$Y$205,3*($C$8-1)+2) -> 70416.5 | J125: =VLOOKUP($H125,P_All!$A$5:$Y$205,3*($C$8-1)+3) -> 76642.16667 | K125: =VLOOKUP($H125,P_All!$A$5:$Y$205,3*($C$8-1)+4) -> 86116.5
H126: 101 | I126: =VLOOKUP($H126,P_All!$A$5:$Y$205,3*($C$8-1)+2) -> 69974.16667 | J126: =VLOOKUP($H126,P_All!$A$5:$Y$205,3*($C$8-1)+3) -> 76270.41667 | K126: =VLOOKUP($H126,P_All!$A$5:$Y$205,3*($C$8-1)+4) -> 85848
H127: 102 | I127: =VLOOKUP($H127,P_All!$A$5:$Y$205,3*($C$8-1)+2) -> 69528.41667 | J127: =VLOOKUP($H127,P_All!$A$5:$Y$205,3*($C$8-1)+3) -> 75893.33333 | K127: =VLOOKUP($H127,P_All!$A$5:$Y$205,3*($C$8-1)+4) -> 85569
H128: 103 | I128: =VLOOKUP($H128,P_All!$A$5:$Y$205,3*($C$8-1)+2) -> 69090.08333 | J128: =VLOOKUP($H128,P_All!$A$5:$Y$205,3*($C$8-1)+3) -> 75531.08333 | K128: =VLOOKUP($H128,P_All!$A$5:$Y$205,3*($C$8-1)+4) -> 85292.75
H129: 104 | I129: =VLOOKUP($H129,P_All!$A$5:$Y$205,3*($C$8-1)+2) -> 68679.33333 | J129: =VLOOKUP($H129,P_All!$A$5:$Y$205,3*($C$8-1)+3) -> 75184.58333 | K129: =VLOOKUP($H129,P_All!$A$5:$Y$205,3*($C$8-1)+4) -> 85010.83333
H130: 105 | I130: =VLOOKUP($H130,P_All!$A$5:$Y$205,3*($C$8-1)+2) -> 68255.5 | J130: =VLOOKUP($H130,P_All!$A$5:$Y$205,3*($C$8-1)+3) -> 74803.58333 | K130: =VLOOKUP($H130,P_All!$A$5:$Y$205,3*($C$8-1)+4) -> 84729.91667
H131: 106 | I131: =VLOOKUP($H131,P_All!$A$5:$Y$205,3*($C$8-1)+2) -> 67828 | J131: =VLOOKUP($H131,P_All!$A$5:$Y$205,3*($C$8-1)+3) -> 74445.83333 | K131: =VLOOKUP($H131,P_All!$A$5:$Y$205,3*($C$8-1)+4) -> 84461.25
H132: 107 | I132: =VLOOKUP($H132,P_All!$A$5:$Y$205,3*($C$8-1)+2) -> 67399.25 | J132: =VLOOKUP($H132,P_All!$A$5:$Y$205,3*($C$8-1)+3) -> 74061.83333 | K132: =VLOOKUP($H132,P_All!$A$5:$Y$205,3*($C$8-1)+4) -> 84194.5
H133: 108 | I133: =VLOOKUP($H133,P_All!$A$5:$Y$205,3*($C$8-1)+2) -> 66939.16667 | J133: =VLOOKUP($H133,P_All!$A$5:$Y$205,3*($C$8-1)+3) -> 73695.58333 | K133: =VLOOKUP($H133,P_All!$A$5:$Y$205,3*($C$8-1)+4) -> 83913
H134: 109 | I134: =VLOOKUP($H134,P_All!$A$5:$Y$205,3*($C$8-1)+2) -> 66485.16667 | J134: =VLOOKUP($H134,P_All!$A$5:$Y$205,3*($C$8-1)+3) -> 73313.58333 | K134: =VLOOKUP($H134,P_All!$A$5:$Y$205,3*($C$8-1)+4) -> 83624.5
H135: 110 | I135: =VLOOKUP($H135,P_All!$A$5:$Y$205,3*($C$8-1)+2) -> 66075.16667 | J135: =VLOOKUP($H135,P_All!$A$5:$Y$205,3*($C$8-1)+3) -> 72988.16667 | K135: =VLOOKUP($H135,P_All!$A$5:$Y$205,3*($C$8-1)+4) -> 83351.58333
H136: 111 | I136: =VLOOKUP($H136,P_All!$A$5:$Y$205,3*($C$8-1)+2) -> 65644.58333 | J136: =VLOOKUP($H136,P_All!$A$5:$Y$205,3*($C$8-1)+3) -> 72629.08333 | K136: =VLOOKUP($H136,P_All!$A$5:$Y$205,3*($C$8-1)+4) -> 83082.16667
H137: 112 | I137: =VLOOKUP($H137,P_All!$A$5:$Y$205,3*($C$8-1)+2) -> 65186.75 | J137: =VLOOKUP($H137,P_All!$A$5:$Y$205,3*($C$8-1)+3) -> 72244.5 | K137: =VLOOKUP($H137,P_All!$A$5:$Y$205,3*($C$8-1)+4) -> 82792.16667
H138: 113 | I138: =VLOOKUP($H138,P_All!$A$5:$Y$205,3*($C$8-1)+2) -> 64747.58333 | J138: =VLOOKUP($H138,P_All!$A$5:$Y$205,3*($C$8-1)+3) -> 71871.91667 | K138: =VLOOKUP($H138,P_All!$A$5:$Y$205,3*($C$8-1)+4) -> 82518.16667
H139: 114 | I139: =VLOOKUP($H139,P_All!$A$5:$Y$205,3*($C$8-1)+2) -> 64316.58333 | J139: =VLOOKUP($H139,P_All!$A$5:$Y$205,3*($C$8-1)+3) -> 71508.08333 | K139: =VLOOKUP($H139,P_All!$A$5:$Y$205,3*($C$8-1)+4) -> 82262.25
H140: 115 | I140: =VLOOKUP($H140,P_All!$A$5:$Y$205,3*($C$8-1)+2) -> 63903.83333 | J140: =VLOOKUP($H140,P_All!$A$5:$Y$205,3*($C$8-1)+3) -> 71150.66667 | K140: =VLOOKUP($H140,P_All!$A$5:$Y$205,3*($C$8-1)+4) -> 82005.33333
H141: 116 | I141: =VLOOKUP($H141,P_All!$A$5:$Y$205,3*($C$8-1)+2) -> 63472.91667 | J141: =VLOOKUP($H141,P_All!$A$5:$Y$205,3*($C$8-1)+3) -> 70761.41667 | K141: =VLOOKUP($H141,P_All!$A$5:$Y$205,3*($C$8-1)+4) -> 81742.5
H142: 117 | I142: =VLOOKUP($H142,P_All!$A$5:$Y$205,3*($C$8-1)+2) -> 63002.16667 | J142: =VLOOKUP($H142,P_All!$A$5:$Y$205,3*($C$8-1)+3) -> 70382.25 | K142: =VLOOKUP($H142,P_All!$A$5:$Y$205,3*($C$8-1)+4) -> 81484.75
H143: 118 | I143: =VLOOKUP($H143,P_All!$A$5:$Y$205,3*($C$8-1)+2) -> 62565 | J143: =VLOOKUP($H143,P_All!$A$5:$Y$205,3*($C$8-1)+3) -> 70015.5 | K143: =VLOOKUP($H143,P_All!$A$5:$Y$205,3*($C$8-1)+4) -> 81230.33333
H144: 119 | I144: =VLOOKUP($H144,P_All!$A$5:$Y$205,3*($C$8-1)+2) -> 62161.91667 | J144: =VLOOKUP($H144,P_All!$A$5:$Y$205,3*($C$8-1)+3) -> 69651.58333 | K144: =VLOOKUP($H144,P_All!$A$5:$Y$205,3*($C$8-1)+4) -> 80957.41667
H145: 120 | I145: =VLOOKUP($H145,P_All!$A$5:$Y$205,3*($C$8-1)+2) -> 61746.66667 | J145: =VLOOKUP($H145,P_All!$A$5:$Y$205,3*($C$8-1)+3) -> 69274.33333 | K145: =VLOOKUP($H145,P_All!$A$5:$Y$205,3*($C$8-1)+4) -> 80677
H146: 121 | I146: =VLOOKUP($H146,P_All!$A$5:$Y$205,3*($C$8-1)+2) -> 61295.75 | J146: =VLOOKUP($H146,P_All!$A$5:$Y$205,3*($C$8-1)+3) -> 68899.83333 | K146: =VLOOKUP($H146,P_All!$A$5:$Y$205,3*($C$8-1)+4) -> 80388.91667
H147: 122 | I147: =VLOOKUP($H147,P_All!$A$5:$Y$205,3*($C$8-1)+2) -> 60854.25 | J147: =VLOOKUP($H147,P_All!$A$5:$Y$205,3*($C$8-1)+3) -> 68520 | K147: =VLOOKUP($H147,P_All!$A$5:$Y$205,3*($C$8-1)+4) -> 80101.08333
H148: 123 | I148: =VLOOKUP($H148,P_All!$A$5:$Y$205,3*($C$8-1)+2) -> 60412 | J148: =VLOOKUP($H148,P_All!$A$5:$Y$205,3*($C$8-1)+3) -> 68158.16667 | K148: =VLOOKUP($H148,P_All!$A$5:$Y$205,3*($C$8-1)+4) -> 79816.16667
H149: 124 | I149: =VLOOKUP($H149,P_All!$A$5:$Y$205,3*($C$8-1)+2) -> 59956.5 | J149: =VLOOKUP($H149,P_All!$A$5:$Y$205,3*($C$8-1)+3) -> 67780.83333 | K149: =VLOOKUP($H149,P_All!$A$5:$Y$205,3*($C$8-1)+4) -> 79545.58333
H150: 125 | I150: =VLOOKUP($H150,P_All!$A$5:$Y$205,3*($C$8-1)+2) -> 59492.33333 | J150: =VLOOKUP($H150,P_All!$A$5:$Y$205,3*($C$8-1)+3) -> 67407 | K150: =VLOOKUP($H150,P_All!$A$5:$Y$205,3*($C$8-1)+4) -> 79291.16667
H151: 126 | I151: =VLOOKUP($H151,P_All!$A$5:$Y$205,3*($C$8-1)+2) -> 59050.41667 | J151: =VLOOKUP($H151,P_All!$A$5:$Y$205,3*($C$8-1)+3) -> 67041.58333 | K151: =VLOOKUP($H151,P_All!$A$5:$Y$205,3*($C$8-1)+4) -> 79030.58333
H152: 127 | I152: =VLOOKUP($H152,P_All!$A$5:$Y$205,3*($C$8-1)+2) -> 58614.83333 | J152: =VLOOKUP($H152,P_All!$A$5:$Y$205,3*($C$8-1)+3) -> 66685.83333 | K152: =VLOOKUP($H152,P_All!$A$5:$Y$205,3*($C$8-1)+4) -> 78763.08333
H153: 128 | I153: =VLOOKUP($H153,P_All!$A$5:$Y$205,3*($C$8-1)+2) -> 58188.25 | J153: =VLOOKUP($H153,P_All!$A$5:$Y$205,3*($C$8-1)+3) -> 66307.83333 | K153: =VLOOKUP($H153,P_All!$A$5:$Y$205,3*($C$8-1)+4) -> 78495.33333
H154: 129 | I154: =VLOOKUP($H154,P_All!$A$5:$Y$205,3*($C$8-1)+2) -> 57759.66667 | J154: =VLOOKUP($H154,P_All!$A$5:$Y$205,3*($C$8-1)+3) -> 65910.91667 | K154: =VLOOKUP($H154,P_All!$A$5:$Y$205,3*($C$8-1)+4) -> 78202.5
H155: 130 | I155: =VLOOKUP($H155,P_All!$A$5:$Y$205,3*($C$8-1)+2) -> 57332.66667 | J155: =VLOOKUP($H155,P_All!$A$5:$Y$205,3*($C$8-1)+3) -> 65550.25 | K155: =VLOOKUP($H155,P_All!$A$5:$Y$205,3*($C$8-1)+4) -> 77941.66667
H156: 131 | I156: =VLOOKUP($H156,P_All!$A$5:$Y$205,3*($C$8-1)+2) -> 56905.08333 | J156: =VLOOKUP($H156,P_All!$A$5:$Y$205,3*($C$8-1)+3) -> 65185 | K156: =VLOOKUP($H156,P_All!$A$5:$Y$205,3*($C$8-1)+4) -> 77687.41667
H157: 132 | I157: =VLOOKUP($H157,P_All!$A$5:$Y$205,3*($C$8-1)+2) -> 56486.58333 | J157: =VLOOKUP($H157,P_All!$A$5:$Y$205,3*($C$8-1)+3) -> 64839.16667 | K157: =VLOOKUP($H157,P_All!$A$5:$Y$205,3*($C$8-1)+4) -> 77410.83333
H158: 133 | I158: =VLOOKUP($H158,P_All!$A$5:$Y$205,3*($C$8-1)+2) -> 56087.5 | J158: =VLOOKUP($H158,P_All!$A$5:$Y$205,3*($C$8-1)+3) -> 64480.33333 | K158: =VLOOKUP($H158,P_All!$A$5:$Y$205,3*($C$8-1)+4) -> 77139
H159: 134 | I159: =VLOOKUP($H159,P_All!$A$5:$Y$205,3*($C$8-1)+2) -> 55682.5 | J159: =VLOOKUP($H159,P_All!$A$5:$Y$205,3*($C$8-1)+3) -> 64109.75 | K159: =VLOOKUP($H159,P_All!$A$5:$Y$205,3*($C$8-1)+4) -> 76875.5
H160: 135 | I160: =VLOOKUP($H160,P_All!$A$5:$Y$205,3*($C$8-1)+2) -> 55256.91667 | J160: =VLOOKUP($H160,P_All!$A$5:$Y$205,3*($C$8-1)+3) -> 63738.75 | K160: =VLOOKUP($H160,P_All!$A$5:$Y$205,3*($C$8-1)+4) -> 76612.75
H161: 136 | I161: =VLOOKUP($H161,P_All!$A$5:$Y$205,3*($C$8-1)+2) -> 54829 | J161: =VLOOKUP($H161,P_All!$A$5:$Y$205,3*($C$8-1)+3) -> 63363.41667 | K161: =VLOOKUP($H161,P_All!$A$5:$Y$205,3*($C$8-1)+4) -> 76347.66667
H162: 137 | I162: =VLOOKUP($H162,P_All!$A$5:$Y$205,3*($C$8-1)+2) -> 54395.16667 | J162: =VLOOKUP($H162,P_All!$A$5:$Y$205,3*($C$8-1)+3) -> 62958.5 | K162: =VLOOKUP($H162,P_All!$A$5:$Y$205,3*($C$8-1)+4) -> 76083.75
H163: 138 | I163: =VLOOKUP($H163,P_All!$A$5:$Y$205,3*($C$8-1)+2) -> 53965.75 | J163: =VLOOKUP($H163,P_All!$A$5:$Y$205,3*($C$8-1)+3) -> 62591.41667 | K163: =VLOOKUP($H163,P_All!$A$5:$Y$205,3*($C$8-1)+4) -> 75818.33333
H164: 139 | I164: =VLOOKUP($H164,P_All!$A$5:$Y$205,3*($C$8-1)+2) -> 53514.16667 | J164: =VLOOKUP($H164,P_All!$A$5:$Y$205,3*($C$8-1)+3) -> 62209.58333 | K164: =VLOOKUP($H164,P_All!$A$5:$Y$205,3*($C$8-1)+4) -> 75539
H165: 140 | I165: =VLOOKUP($H165,P_All!$A$5:$Y$205,3*($C$8-1)+2) -> 53064.75 | J165: =VLOOKUP($H165,P_All!$A$5:$Y$205,3*($C$8-1)+3) -> 61843.16667 | K165: =VLOOKUP($H165,P_All!$A$5:$Y$205,3*($C$8-1)+4) -> 75252.16667
H166: 141 | I166: =VLOOKUP($H166,P_All!$A$5:$Y$205,3*($C$8-1)+2) -> 52645.25 | J166: =VLOOKUP($H166,P_All!$A$5:$Y$205,3*($C$8-1)+3) -> 61505.41667 | K166: =VLOOKUP($H166,P_All!$A$5:$Y$205,3*($C$8-1)+4) -> 74993.58333
H167: 142 | I167: =VLOOKUP($H167,P_All!$A$5:$Y$205,3*($C$8-1)+2) -> 52217 | J167: =VLOOKUP($H167,P_All!$A$5:$Y$205,3*($C$8-1)+3) -> 61152.25 | K167: =VLOOKUP($H167,P_All!$A$5:$Y$205,3*($C$8-1)+4) -> 74745.75
H168: 143 | I168: =VLOOKUP($H168,P_All!$A$5:$Y$205,3*($C$8-1)+2) -> 51795.83333 | J168: =VLOOKUP($H168,P_All!$A$5:$Y$205,3*($C$8-1)+3) -> 60784.83333 | K168: =VLOOKUP($H168,P_All!$A$5:$Y$205,3*($C$8-1)+4) -> 74474.16667
H169: 144 | I169: =VLOOKUP($H169,P_All!$A$5:$Y$205,3*($C$8-1)+2) -> 51374.41667 | J169: =VLOOKUP($H169,P_All!$A$5:$Y$205,3*($C$8-1)+3) -> 60422.08333 | K169: =VLOOKUP($H169,P_All!$A$5:$Y$205,3*($C$8-1)+4) -> 74182.83333
H170: 145 | I170: =VLOOKUP($H170,P_All!$A$5:$Y$205,3*($C$8-1)+2) -> 50935.08333 | J170: =VLOOKUP($H170,P_All!$A$5:$Y$205,3*($C$8-1)+3) -> 60054.5 | K170: =VLOOKUP($H170,P_All!$A$5:$Y$205,3*($C$8-1)+4) -> 73900.91667
H171: 146 | I171: =VLOOKUP($H171,P_All!$A$5:$Y$205,3*($C$8-1)+2) -> 50500.75 | J171: =VLOOKUP($H171,P_All!$A$5:$Y$205,3*($C$8-1)+3) -> 59678.08333 | K171: =VLOOKUP($H171,P_All!$A$5:$Y$205,3*($C$8-1)+4) -> 73631.91667
H172: 147 | I172: =VLOOKUP($H172,P_All!$A$5:$Y$205,3*($C$8-1)+2) -> 50075.5 | J172: =VLOOKUP($H172,P_All!$A$5:$Y$205,3*($C$8-1)+3) -> 59319.25 | K172: =VLOOKUP($H172,P_All!$A$5:$Y$205,3*($C$8-1)+4) -> 73363.75
H173: 148 | I173: =VLOOKUP($H173,P_All!$A$5:$Y$205,3*($C$8-1)+2) -> 49638.5 | J173: =VLOOKUP($H173,P_All!$A$5:$Y$205,3*($C$8-1)+3) -> 58950.25 | K173: =VLOOKUP($H173,P_All!$A$5:$Y$205,3*($C$8-1)+4) -> 73077.25
H174: 149 | I174: =VLOOKUP($H174,P_All!$A$5:$Y$205,3*($C$8-1)+2) -> 49231.5 | J174: =VLOOKUP($H174,P_All!$A$5:$Y$205,3*($C$8-1)+3) -> 58575.25 | K174: =VLOOKUP($H174,P_All!$A$5:$Y$205,3*($C$8-1)+4) -> 72784.83333
H175: 150 | I175: =VLOOKUP($H175,P_All!$A$5:$Y$205,3*($C$8-1)+2) -> 48815.75 | J175: =VLOOKUP($H175,P_All!$A$5:$Y$205,3*($C$8-1)+3) -> 58197.66667 | K175: =VLOOKUP($H175,P_All!$A$5:$Y$205,3*($C$8-1)+4) -> 72511.66667
H176: 151 | I176: =VLOOKUP($H176,P_All!$A$5:$Y$205,3*($C$8-1)+2) -> 48369.58333 | J176: =VLOOKUP($H176,P_All!$A$5:$Y$205,3*($C$8-1)+3) -> 57845.58333 | K176: =VLOOKUP($H176,P_All!$A$5:$Y$205,3*($C$8-1)+4) -> 72255.41667
H177: 152 | I177: =VLOOKUP($H177,P_All!$A$5:$Y$205,3*($C$8-1)+2) -> 47923.75 | J177: =VLOOKUP($H177,P_All!$A$5:$Y$205,3*($C$8-1)+3) -> 57480.58333 | K177: =VLOOKUP($H177,P_All!$A$5:$Y$205,3*($C$8-1)+4) -> 71989.41667
H178: 153 | I178: =VLOOKUP($H178,P_All!$A$5:$Y$205,3*($C$8-1)+2) -> 47495.5 | J178: =VLOOKUP($H178,P_All!$A$5:$Y$205,3*($C$8-1)+3) -> 57110 | K178: =VLOOKUP($H178,P_All!$A$5:$Y$205,3*($C$8-1)+4) -> 71716.66667
H179: 154 | I179: =VLOOKUP($H179,P_All!$A$5:$Y$205,3*($C$8-1)+2) -> 47086.16667 | J179: =VLOOKUP($H179,P_All!$A$5:$Y$205,3*($C$8-1)+3) -> 56769.83333 | K179: =VLOOKUP($H179,P_All!$A$5:$Y$205,3*($C$8-1)+4) -> 71433.08333
H180: 155 | I180: =VLOOKUP($H180,P_All!$A$5:$Y$205,3*($C$8-1)+2) -> 46668.41667 | J180: =VLOOKUP($H180,P_All!$A$5:$Y$205,3*($C$8-1)+3) -> 56410.08333 | K180: =VLOOKUP($H180,P_All!$A$5:$Y$205,3*($C$8-1)+4) -> 71155.41667
H181: 156 | I181: =VLOOKUP($H181,P_All!$A$5:$Y$205,3*($C$8-1)+2) -> 46197.83333 | J181: =VLOOKUP($H181,P_All!$A$5:$Y$205,3*($C$8-1)+3) -> 56063.25 | K181: =VLOOKUP($H181,P_All!$A$5:$Y$205,3*($C$8-1)+4) -> 70883.91667
H182: 157 | I182: =VLOOKUP($H182,P_All!$A$5:$Y$205,3*($C$8-1)+2) -> 45736.33333 | J182: =VLOOKUP($H182,P_All!$A$5:$Y$205,3*($C$8-1)+3) -> 55710.33333 | K182: =VLOOKUP($H182,P_All!$A$5:$Y$205,3*($C$8-1)+4) -> 70629.75
H183: 158 | I183: =VLOOKUP($H183,P_All!$A$5:$Y$205,3*($C$8-1)+2) -> 45297.58333 | J183: =VLOOKUP($H183,P_All!$A$5:$Y$205,3*($C$8-1)+3) -> 55360.25 | K183: =VLOOKUP($H183,P_All!$A$5:$Y$205,3*($C$8-1)+4) -> 70374.66667
H184: 159 | I184: =VLOOKUP($H184,P_All!$A$5:$Y$205,3*($C$8-1)+2) -> 44849.5 | J184: =VLOOKUP($H184,P_All!$A$5:$Y$205,3*($C$8-1)+3) -> 54996.5 | K184: =VLOOKUP($H184,P_All!$A$5:$Y$205,3*($C$8-1)+4) -> 70116.41667
H185: 160 | I185: =VLOOKUP($H185,P_All!$A$5:$Y$205,3*($C$8-1)+2) -> 44431.58333 | J185: =VLOOKUP($H185,P_All!$A$5:$Y$205,3*($C$8-1)+3) -> 54598.08333 | K185: =VLOOKUP($H185,P_All!$A$5:$Y$205,3*($C$8-1)+4) -> 69841.83333
H186: 161 | I186: =VLOOKUP($H186,P_All!$A$5:$Y$205,3*($C$8-1)+2) -> 43997.5 | J186: =VLOOKUP($H186,P_All!$A$5:$Y$205,3*($C$8-1)+3) -> 54183.91667 | K186: =VLOOKUP($H186,P_All!$A$5:$Y$205,3*($C$8-1)+4) -> 69564.83333
H187: 162 | I187: =VLOOKUP($H187,P_All!$A$5:$Y$205,3*($C$8-1)+2) -> 43587.25 | J187: =VLOOKUP($H187,P_All!$A$5:$Y$205,3*($C$8-1)+3) -> 53836.5 | K187: =VLOOKUP($H187,P_All!$A$5:$Y$205,3*($C$8-1)+4) -> 69288.66667
H188: 163 | I188: =VLOOKUP($H188,P_All!$A$5:$Y$205,3*($C$8-1)+2) -> 43177.66667 | J188: =VLOOKUP($H188,P_All!$A$5:$Y$205,3*($C$8-1)+3) -> 53484.66667 | K188: =VLOOKUP($H188,P_All!$A$5:$Y$205,3*($C$8-1)+4) -> 69011.5
H189: 164 | I189: =VLOOKUP($H189,P_All!$A$5:$Y$205,3*($C$8-1)+2) -> 42737.5 | J189: =VLOOKUP($H189,P_All!$A$5:$Y$205,3*($C$8-1)+3) -> 53114.66667 | K189: =VLOOKUP($H189,P_All!$A$5:$Y$205,3*($C$8-1)+4) -> 68735.58333
H190: 165 | I190: =VLOOKUP($H190,P_All!$A$5:$Y$205,3*($C$8-1)+2) -> 42285.75 | J190: =VLOOKUP($H190,P_All!$A$5:$Y$205,3*($C$8-1)+3) -> 52712.41667 | K190: =VLOOKUP($H190,P_All!$A$5:$Y$205,3*($C$8-1)+4) -> 68440.33333
H191: 166 | I191: =VLOOKUP($H191,P_All!$A$5:$Y$205,3*($C$8-1)+2) -> 41859.66667 | J191: =VLOOKUP($H191,P_All!$A$5:$Y$205,3*($C$8-1)+3) -> 52333.16667 | K191: =VLOOKUP($H191,P_All!$A$5:$Y$205,3*($C$8-1)+4) -> 68132.75
H192: 167 | I192: =VLOOKUP($H192,P_All!$A$5:$Y$205,3*($C$8-1)+2) -> 41443.33333 | J192: =VLOOKUP($H192,P_All!$A$5:$Y$205,3*($C$8-1)+3) -> 51958.83333 | K192: =VLOOKUP($H192,P_All!$A$5:$Y$205,3*($C$8-1)+4) -> 67849.83333
H193: 168 | I193: =VLOOKUP($H193,P_All!$A$5:$Y$205,3*($C$8-1)+2) -> 41023.5 | J193: =VLOOKUP($H193,P_All!$A$5:$Y$205,3*($C$8-1)+3) -> 51581.41667 | K193: =VLOOKUP($H193,P_All!$A$5:$Y$205,3*($C$8-1)+4) -> 67568
H194: 169 | I194: =VLOOKUP($H194,P_All!$A$5:$Y$205,3*($C$8-1)+2) -> 40590.41667 | J194: =VLOOKUP($H194,P_All!$A$5:$Y$205,3*($C$8-1)+3) -> 51243.41667 | K194: =VLOOKUP($H194,P_All!$A$5:$Y$205,3*($C$8-1)+4) -> 67303.33333
H195: 170 | I195: =VLOOKUP($H195,P_All!$A$5:$Y$205,3*($C$8-1)+2) -> 40161.75 | J195: =VLOOKUP($H195,P_All!$A$5:$Y$205,3*($C$8-1)+3) -> 50898.75 | K195: =VLOOKUP($H195,P_All!$A$5:$Y$205,3*($C$8-1)+4) -> 67026.66667
H196: 171 | I196: =VLOOKUP($H196,P_All!$A$5:$Y$205,3*($C$8-1)+2) -> 39720.75 | J196: =VLOOKUP($H196,P_All!$A$5:$Y$205,3*($C$8-1)+3) -> 50539.5 | K196: =VLOOKUP($H196,P_All!$A$5:$Y$205,3*($C$8-1)+4) -> 66748.33333
H197: 172 | I197: =VLOOKUP($H197,P_All!$A$5:$Y$205,3*($C$8-1)+2) -> 39297.83333 | J197: =VLOOKUP($H197,P_All!$A$5:$Y$205,3*($C$8-1)+3) -> 50191.16667 | K197: =VLOOKUP($H197,P_All!$A$5:$Y$205,3*($C$8-1)+4) -> 66477
H198: 173 | I198: =VLOOKUP($H198,P_All!$A$5:$Y$205,3*($C$8-1)+2) -> 38855.75 | J198: =VLOOKUP($H198,P_All!$A$5:$Y$205,3*($C$8-1)+3) -> 49849.83333 | K198: =VLOOKUP($H198,P_All!$A$5:$Y$205,3*($C$8-1)+4) -> 66211.58333
H199: 174 | I199: =VLOOKUP($H199,P_All!$A$5:$Y$205,3*($C$8-1)+2) -> 38418.58333 | J199: =VLOOKUP($H199,P_All!$A$5:$Y$205,3*($C$8-1)+3) -> 49488.41667 | K199: =VLOOKUP($H199,P_All!$A$5:$Y$205,3*($C$8-1)+4) -> 65931.91667
H200: 175 | I200: =VLOOKUP($H200,P_All!$A$5:$Y$205,3*($C$8-1)+2) -> 37981.25 | J200: =VLOOKUP($H200,P_All!$A$5:$Y$205,3*($C$8-1)+3) -> 49101.58333 | K200: =VLOOKUP($H200,P_All!$A$5:$Y$205,3*($C$8-1)+4) -> 65650.58333
H201: 176 | I201: =VLOOKUP($H201,P_All!$A$5:$Y$205,3*($C$8-1)+2) -> 37526.16667 | J201: =VLOOKUP($H201,P_All!$A$5:$Y$205,3*($C$8-1)+3) -> 48689.16667 | K201: =VLOOKUP($H201,P_All!$A$5:$Y$205,3*($C$8-1)+4) -> 65379.16667
H202: 177 | I202: =VLOOKUP($H202,P_All!$A$5:$Y$205,3*($C$8-1)+2) -> 37100.41667 | J202: =VLOOKUP($H202,P_All!$A$5:$Y$205,3*($C$8-1)+3) -> 48318.91667 | K202: =VLOOKUP($H202,P_All!$A$5:$Y$205,3*($C$8-1)+4) -> 65110.41667
H203: 178 | I203: =VLOOKUP($H203,P_All!$A$5:$Y$205,3*($C$8-1)+2) -> 36681.33333 | J203: =VLOOKUP($H203,P_All!$A$5:$Y$205,3*($C$8-1)+3) -> 47969.41667 | K203: =VLOOKUP($H203,P_All!$A$5:$Y$205,3*($C$8-1)+4) -> 64831.41667
H204: 179 | I204: =VLOOKUP($H204,P_All!$A$5:$Y$205,3*($C$8-1)+2) -> 36192.5 | J204: =VLOOKUP($H204,P_All!$A$5:$Y$205,3*($C$8-1)+3) -> 47608.16667 | K204: =VLOOKUP($H204,P_All!$A$5:$Y$205,3*($C$8-1)+4) -> 64543
... 20 more rows

Sheet P_All
B1: Values shown for constituent selected on PlotControl tab
B2: =PlotControl!$A$15 -> Cell 2W Fines | E2: =PlotControl!$A$16 -> Cell 2W Coarse | H2: =PlotControl!$A$17 -> Cell 2W Banks | K2: =PlotControl!$A$18 -> Cell 2E Fines | N2: =PlotControl!$A$19 -> Cell 2E Coarse | Q2: =PlotControl!$A$20 -> Cell 2E Banks | T2: =PlotControl!$A$21 -> Cell 1E Fines | W2: =PlotControl!$A$22 -> Cell 1E Coarse
B3: Annual Project Results | E3: Annual Project Results | H3: Annual Project Results | K3: Annual Project Results | N3: Annual Project Results | Q3: Annual Project Results | T3: Annual Project Results | W3: Annual Project Results
A4: Time | B4: P10 | C4: P50 | D4: P90 | E4: P10 | F4: P50 | G4: P90 | H4: P10 | I4: P50 | J4: P90 | K4: P10 | L4: P50 | M4: P90 | N4: P10 | O4: P50 | P4: P90 | Q4: P10 | R4: P50 | S4: P90 | T4: P10 | U4: P50 | V4: P90 | W4: P10 | X4: P50 | Y4: P90
A5: 0 | B5: =IF(PlotControl!$B$4 = "Annual Max",MAX(OFFSET('2WFines'!$C$10,12*$A5,4*(PlotControl!$C$6-1),12,1)),AVERAGE(OFFSET('2WFines'!$C$10,12*$A5,4*(PlotControl!$C$6-1),12,1))) -> 113445 | C5: =IF(PlotControl!$B$4 = "Annual Max",MAX(OFFSET('2WFines'!$D$10,12*$A5,4*(PlotControl!$C$6-1),12,1)),AVERAGE(OFFSET('2WFines'!$D$10,12*$A5,4*(PlotControl!$C$6-1),12,1))) -> 113483.3333 | D5: =IF(PlotControl!$B$4 = "Annual Max",MAX(OFFSET('2WFines'!$E$10,12*$A5,4*(PlotControl!$C$6-1),12,1)),AVERAGE(OFFSET('2WFines'!$E$10,12*$A5,4*(PlotControl!$C$6-1),12,1))) -> 113523.3333 | E5: =IF(PlotControl!$B$4 = "Annual Max",MAX(OFFSET('2WCoarse'!$C$10,12*$A5,4*(PlotControl!$C$6-1),12,1)),AVERAGE(OFFSET('2WCoarse'!$C$10,12*$A5,4*(PlotControl!$C$6-1),12,1))) -> 65967.75 | F5: =IF(PlotControl!$B$4 = "Annual Max",MAX(OFFSET('2WCoarse'!$D$10,12*$A5,4*(PlotControl!$C$6-1),12,1)),AVERAGE(OFFSET('2WCoarse'!$D$10,12*$A5,4*(PlotControl!$C$6-1),12,1))) -> 66000.33333 | G5: =IF(PlotControl!$B$4 = "Annual Max",MAX(OFFSET('2WCoarse'!$E$10,12*$A5,4*(PlotControl!$C$6-1),12,1)),AVERAGE(OFFSET('2WCoarse'!$E$10,12*$A5,4*(PlotControl!$C$6-1),12,1))) -> 66028.83333 | H5: =IF(PlotControl!$B$4 = "Annual Max",MAX(OFFSET('2WBank'!$C$10,12*$A5,4*(PlotControl!$C$6-1),12,1)),AVERAGE(OFFSET('2WBank'!$C$10,12*$A5,4*(PlotControl!$C$6-1),12,1))) -> 96579.5 | I5: =IF(PlotControl!$B$4 = "Annual Max",MAX(OFFSET('2WBank'!$D$10,12*$A5,4*(PlotControl!$C$6-1),12,1)),AVERAGE(OFFSET('2WBank'!$D$10,12*$A5,4*(PlotControl!$C$6-1),12,1))) -> 96635.91667 | J5: =IF(PlotControl!$B$4 = "Annual Max",MAX(OFFSET('2WBank'!$E$10,12*$A5,4*(PlotControl!$C$6-1),12,1)),AVERAGE(OFFSET('2WBank'!$E$10,12*$A5,4*(PlotControl!$C$6-1),12,1))) -> 96686.16667 | K5: =IF(PlotControl!$B$4 = "Annual Max",MAX(OFFSET('2EFines'!$C$10,12*$A5,4*(PlotControl!$C$6-1),12,1)),AVERAGE(OFFSET('2EFines'!$C$10,12*$A5,4*(PlotControl!$C$6-1),12,1))) -> 11220.91667 | L5: =IF(PlotControl!$B$4 = "Annual Max",MAX(OFFSET('2EFines'!$D$10,12*$A5,4*(PlotControl!$C$6-1),12,1)),AVERAGE(OFFSET('2EFines'!$D$10,12*$A5,4*(PlotControl!$C$6-1),12,1))) -> 11226.41667 | M5: =IF(PlotControl!$B$4 = "Annual Max",MAX(OFFSET('2EFines'!$E$10,12*$A5,4*(PlotControl!$C$6-1),12,1)),AVERAGE(OFFSET('2EFines'!$E$10,12*$A5,4*(PlotControl!$C$6-1),12,1))) -> 11232.83333 | N5: =IF(PlotControl!$B$4 = "Annual Max",MAX(OFFSET('2ECoarse'!$C$10,12*$A5,4*(PlotControl!$C$6-1),12,1)),AVERAGE(OFFSET('2ECoarse'!$C$10,12*$A5,4*(PlotControl!$C$6-1),12,1))) -> 11220.75 | O5: =IF(PlotControl!$B$4 = "Annual Max",MAX(OFFSET('2ECoarse'!$D$10,12*$A5,4*(PlotControl!$C$6-1),12,1)),AVERAGE(OFFSET('2ECoarse'!$D$10,12*$A5,4*(PlotControl!$C$6-1),12,1))) -> 11221.75 | P5: =IF(PlotControl!$B$4 = "Annual Max",MAX(OFFSET('2ECoarse'!$E$10,12*$A5,4*(PlotControl!$C$6-1),12,1)),AVERAGE(OFFSET('2ECoarse'!$E$10,12*$A5,4*(PlotControl!$C$6-1),12,1))) -> 11222.75 | Q5: =IF(PlotControl!$B$4 = "Annual Max",MAX(OFFSET('2EBank'!$C$10,12*$A5,4*(PlotControl!$C$6-1),12,1)),AVERAGE(OFFSET('2EBank'!$C$10,12*$A5,4*(PlotControl!$C$6-1),12,1))) -> 7672.341667 | R5: =IF(PlotControl!$B$4 = "Annual Max",MAX(OFFSET('2EBank'!$D$10,12*$A5,4*(PlotControl!$C$6-1),12,1)),AVERAGE(OFFSET('2EBank'!$D$10,12*$A5,4*(PlotControl!$C$6-1),12,1))) -> 7676.366667 | S5: =IF(PlotControl!$B$4 = "Annual Max",MAX(OFFSET('2EBank'!$E$10,12*$A5,4*(PlotControl!$C$6-1),12,1)),AVERAGE(OFFSET('2EBank'!$E$10,12*$A5,4*(PlotControl!$C$6-1),12,1))) -> 7679.925 | T5: =IF(PlotControl!$B$4 = "Annual Max",MAX(OFFSET('1EFines'!$C$10,12*$A5,4*(PlotControl!$C$6-1),12,1)),AVERAGE(OFFSET('1EFines'!$C$10,12*$A5,4*(PlotControl!$C$6-1),12,1))) -> 14171.33333 | U5: =IF(PlotControl!$B$4 = "Annual Max",MAX(OFFSET('1EFines'!$D$10,12*$A5,4*(PlotControl!$C$6-1),12,1)),AVERAGE(OFFSET('1EFines'!$D$10,12*$A5,4*(PlotControl!$C$6-1),12,1))) -> 14179.33333 | V5: =IF(PlotControl!$B$4 = "Annual Max",MAX(OFFSET('1EFines'!$E$10,12*$A5,4*(PlotControl!$C$6-1),12,1)),AVERAGE(OFFSET('1EFines'!$E$10,12*$A5,4*(PlotControl!$C$6-1),12,1))) -> 14186.58333 | W5: =IF(PlotControl!$B$4 = "Annual Max",MAX(OFFSET('1ECoarse'!$C$10,12*$A5,4*(PlotControl!$C$6-1),12,1)),AVERAGE(OFFSET('1ECoarse'!$C$10,12*$A5,4*(PlotControl!$C$6-1),12,1))) -> 67278.83333 | X5: =IF(PlotControl!$B$4 = "Annual Max",MAX(OFFSET('1ECoarse'!$D$10,12*$A5,4*(PlotControl!$C$6-1),12,1)),AVERAGE(OFFSET('1ECoarse'!$D$10,12*$A5,4*(PlotControl!$C$6-1),12,1))) -> 67298.33333 | Y5: =IF(PlotControl!$B$4 = "Annual Max",MAX(OFFSET('1ECoarse'!$E$10,12*$A5,4*(PlotControl!$C$6-1),12,1)),AVERAGE(OFFSET('1ECoarse'!$E$10,12*$A5,4*(PlotControl!$C$6-1),12,1))) -> 67315.75
A6: 1 | B6: =IF(PlotControl!$B$4 = "Annual Max",MAX(OFFSET('2WFines'!$C$10,12*$A6,4*(PlotControl!$C$6-1),12,1)),AVERAGE(OFFSET('2WFines'!$C$10,12*$A6,4*(PlotControl!$C$6-1),12,1))) -> 113010 | C6: =IF(PlotControl!$B$4 = "Annual Max",MAX(OFFSET('2WFines'!$D$10,12*$A6,4*(PlotControl!$C$6-1),12,1)),AVERAGE(OFFSET('2WFines'!$D$10,12*$A6,4*(PlotControl!$C$6-1),12,1))) -> 113115 | D6: =IF(PlotControl!$B$4 = "Annual Max",MAX(OFFSET('2WFines'!$E$10,12*$A6,4*(PlotControl!$C$6-1),12,1)),AVERAGE(OFFSET('2WFines'!$E$10,12*$A6,4*(PlotControl!$C$6-1),12,1))) -> 113247.5 | E6: =IF(PlotControl!$B$4 = "Annual Max",MAX(OFFSET('2WCoarse'!$C$10,12*$A6,4*(PlotControl!$C$6-1),12,1)),AVERAGE(OFFSET('2WCoarse'!$C$10,12*$A6,4*(PlotControl!$C$6-1),12,1))) -> 65742.41667 | F6: =IF(PlotControl!$B$4 = "Annual Max",MAX(OFFSET('2WCoarse'!$D$10,12*$A6,4*(PlotControl!$C$6-1),12,1)),AVERAGE(OFFSET('2WCoarse'!$D$10,12*$A6,4*(PlotControl!$C$6-1),12,1))) -> 65839 | G6: =IF(PlotControl!$B$4 = "Annual Max",MAX(OFFSET('2WCoarse'!$E$10,12*$A6,4*(PlotControl!$C$6-1),12,1)),AVERAGE(OFFSET('2WCoarse'!$E$10,12*$A6,4*(PlotControl!$C$6-1),12,1))) -> 65938.25 | H6: =IF(PlotControl!$B$4 = "Annual Max",MAX(OFFSET('2WBank'!$C$10,12*$A6,4*(PlotControl!$C$6-1),12,1)),AVERAGE(OFFSET('2WBank'!$C$10,12*$A6,4*(PlotControl!$C$6-1),12,1))) -> 96194.16667 | I6: =IF(PlotControl!$B$4 = "Annual Max",MAX(OFFSET('2WBank'!$D$10,12*$A6,4*(PlotControl!$C$6-1),12,1)),AVERAGE(OFFSET('2WBank'!$D$10,12*$A6,4*(PlotControl!$C$6-1),12,1))) -> 96360.33333 | J6: =IF(PlotControl!$B$4 = "Annual Max",MAX(OFFSET('2WBank'!$E$10,12*$A6,4*(PlotControl!$C$6-1),12,1)),AVERAGE(OFFSET('2WBank'!$E$10,12*$A6,4*(PlotControl!$C$6-1),12,1))) -> 96531.16667 | K6: =IF(PlotControl!$B$4 = "Annual Max",MAX(OFFSET('2EFines'!$C$10,12*$A6,4*(PlotControl!$C$6-1),12,1)),AVERAGE(OFFSET('2EFines'!$C$10,12*$A6,4*(PlotControl!$C$6-1),12,1))) -> 11219 | L6: =IF(PlotControl!$B$4 = "Annual Max",MAX(OFFSET('2EFines'!$D$10,12*$A6,4*(PlotControl!$C$6-1),12,1)),AVERAGE(OFFSET('2EFines'!$D$10,12*$A6,4*(PlotControl!$C$6-1),12,1))) -> 11225 | M6: =IF(PlotControl!$B$4 = "Annual Max",MAX(OFFSET('2EFines'!$E$10,12*$A6,4*(PlotControl!$C$6-1),12,1)),AVERAGE(OFFSET('2EFines'!$E$10,12*$A6,4*(PlotControl!$C$6-1),12,1))) -> 11232 | N6: =IF(PlotControl!$B$4 = "Annual Max",MAX(OFFSET('2ECoarse'!$C$10,12*$A6,4*(PlotControl!$C$6-1),12,1)),AVERAGE(OFFSET('2ECoarse'!$C$10,12*$A6,4*(PlotControl!$C$6-1),12,1))) -> 11218.91667 | O6: =IF(PlotControl!$B$4 = "Annual Max",MAX(OFFSET('2ECoarse'!$D$10,12*$A6,4*(PlotControl!$C$6-1),12,1)),AVERAGE(OFFSET('2ECoarse'!$D$10,12*$A6,4*(PlotControl!$C$6-1),12,1))) -> 11220.5 | P6: =IF(PlotControl!$B$4 = "Annual Max",MAX(OFFSET('2ECoarse'!$E$10,12*$A6,4*(PlotControl!$C$6-1),12,1)),AVERAGE(OFFSET('2ECoarse'!$E$10,12*$A6,4*(PlotControl!$C$6-1),12,1))) -> 11222 | Q6: =IF(PlotControl!$B$4 = "Annual Max",MAX(OFFSET('2EBank'!$C$10,12*$A6,4*(PlotControl!$C$6-1),12,1)),AVERAGE(OFFSET('2EBank'!$C$10,12*$A6,4*(PlotControl!$C$6-1),12,1))) -> 7647.925 | R6: =IF(PlotControl!$B$4 = "Annual Max",MAX(OFFSET('2EBank'!$D$10,12*$A6,4*(PlotControl!$C$6-1),12,1)),AVERAGE(OFFSET('2EBank'!$D$10,12*$A6,4*(PlotControl!$C$6-1),12,1))) -> 7658.925 | S6: =IF(PlotControl!$B$4 = "Annual Max",MAX(OFFSET('2EBank'!$E$10,12*$A6,4*(PlotControl!$C$6-1),12,1)),AVERAGE(OFFSET('2EBank'!$E$10,12*$A6,4*(PlotControl!$C$6-1),12,1))) -> 7670.091667 | T6: =IF(PlotControl!$B$4 = "Annual Max",MAX(OFFSET('1EFines'!$C$10,12*$A6,4*(PlotControl!$C$6-1),12,1)),AVERAGE(OFFSET('1EFines'!$C$10,12*$A6,4*(PlotControl!$C$6-1),12,1))) -> 14116.25 | U6: =IF(PlotControl!$B$4 = "Annual Max",MAX(OFFSET('1EFines'!$D$10,12*$A6,4*(PlotControl!$C$6-1),12,1)),AVERAGE(OFFSET('1EFines'!$D$10,12*$A6,4*(PlotControl!$C$6-1),12,1))) -> 14140.25 | V6: =IF(PlotControl!$B$4 = "Annual Max",MAX(OFFSET('1EFines'!$E$10,12*$A6,4*(PlotControl!$C$6-1),12,1)),AVERAGE(OFFSET('1EFines'!$E$10,12*$A6,4*(PlotControl!$C$6-1),12,1))) -> 14164.66667 | W6: =IF(PlotControl!$B$4 = "Annual Max",MAX(OFFSET('1ECoarse'!$C$10,12*$A6,4*(PlotControl!$C$6-1),12,1)),AVERAGE(OFFSET('1ECoarse'!$C$10,12*$A6,4*(PlotControl!$C$6-1),12,1))) -> 67153.33333 | X6: =IF(PlotControl!$B$4 = "Annual Max",MAX(OFFSET('1ECoarse'!$D$10,12*$A6,4*(PlotControl!$C$6-1),12,1)),AVERAGE(OFFSET('1ECoarse'!$D$10,12*$A6,4*(PlotControl!$C$6-1),12,1))) -> 67208.91667 | Y6: =IF(PlotControl!$B$4 = "Annual Max",MAX(OFFSET('1ECoarse'!$E$10,12*$A6,4*(PlotControl!$C$6-1),12,1)),AVERAGE(OFFSET('1ECoarse'!$E$10,12*$A6,4*(PlotControl!$C$6-1),12,1))) -> 67265.33333
A7: 2 | B7: =IF(PlotControl!$B$4 = "Annual Max",MAX(OFFSET('2WFines'!$C$10,12*$A7,4*(PlotControl!$C$6-1),12,1)),AVERAGE(OFFSET('2WFines'!$C$10,12*$A7,4*(PlotControl!$C$6-1),12,1))) -> 112577.5 | C7: =IF(PlotControl!$B$4 = "Annual Max",MAX(OFFSET('2WFines'!$D$10,12*$A7,4*(PlotControl!$C$6-1),12,1)),AVERAGE(OFFSET('2WFines'!$D$10,12*$A7,4*(PlotControl!$C$6-1),12,1))) -> 112753.3333 | D7: =IF(PlotControl!$B$4 = "Annual Max",MAX(OFFSET('2WFines'!$E$10,12*$A7,4*(PlotControl!$C$6-1),12,1)),AVERAGE(OFFSET('2WFines'!$E$10,12*$A7,4*(PlotControl!$C$6-1),12,1))) -> 112967.5 | E7: =IF(PlotControl!$B$4 = "Annual Max",MAX(OFFSET('2WCoarse'!$C$10,12*$A7,4*(PlotControl!$C$6-1),12,1)),AVERAGE(OFFSET('2WCoarse'!$C$10,12*$A7,4*(PlotControl!$C$6-1),12,1))) -> 65522.25 | F7: =IF(PlotControl!$B$4 = "Annual Max",MAX(OFFSET('2WCoarse'!$D$10,12*$A7,4*(PlotControl!$C$6-1),12,1)),AVERAGE(OFFSET('2WCoarse'!$D$10,12*$A7,4*(PlotControl!$C$6-1),12,1))) -> 65677.83333 | G7: =IF(PlotControl!$B$4 = "Annual Max",MAX(OFFSET('2WCoarse'!$E$10,12*$A7,4*(PlotControl!$C$6-1),12,1)),AVERAGE(OFFSET('2WCoarse'!$E$10,12*$A7,4*(PlotControl!$C$6-1),12,1))) -> 65847.41667 | H7: =IF(PlotControl!$B$4 = "Annual Max",MAX(OFFSET('2WBank'!$C$10,12*$A7,4*(PlotControl!$C$6-1),12,1)),AVERAGE(OFFSET('2WBank'!$C$10,12*$A7,4*(PlotControl!$C$6-1),12,1))) -> 95819.5 | I7: =IF(PlotControl!$B$4 = "Annual Max",MAX(OFFSET('2WBank'!$D$10,12*$A7,4*(PlotControl!$C$6-1),12,1)),AVERAGE(OFFSET('2WBank'!$D$10,12*$A7,4*(PlotControl!$C$6-1),12,1))) -> 96086.58333 | J7: =IF(PlotControl!$B$4 = "Annual Max",MAX(OFFSET('2WBank'!$E$10,12*$A7,4*(PlotControl!$C$6-1),12,1)),AVERAGE(OFFSET('2WBank'!$E$10,12*$A7,4*(PlotControl!$C$6-1),12,1))) -> 96376.5 | K7: =IF(PlotControl!$B$4 = "Annual Max",MAX(OFFSET('2EFines'!$C$10,12*$A7,4*(PlotControl!$C$6-1),12,1)),AVERAGE(OFFSET('2EFines'!$C$10,12*$A7,4*(PlotControl!$C$6-1),12,1))) -> 11219 | L7: =IF(PlotControl!$B$4 = "Annual Max",MAX(OFFSET('2EFines'!$D$10,12*$A7,4*(PlotControl!$C$6-1),12,1)),AVERAGE(OFFSET('2EFines'!$D$10,12*$A7,4*(PlotControl!$C$6-1),12,1))) -> 11225 | M7: =IF(PlotControl!$B$4 = "Annual Max",MAX(OFFSET('2EFines'!$E$10,12*$A7,4*(PlotControl!$C$6-1),12,1)),AVERAGE(OFFSET('2EFines'!$E$10,12*$A7,4*(PlotControl!$C$6-1),12,1))) -> 11232 | N7: =IF(PlotControl!$B$4 = "Annual Max",MAX(OFFSET('2ECoarse'!$C$10,12*$A7,4*(PlotControl!$C$6-1),12,1)),AVERAGE(OFFSET('2ECoarse'!$C$10,12*$A7,4*(PlotControl!$C$6-1),12,1))) -> 11218 | O7: =IF(PlotControl!$B$4 = "Annual Max",MAX(OFFSET('2ECoarse'!$D$10,12*$A7,4*(PlotControl!$C$6-1),12,1)),AVERAGE(OFFSET('2ECoarse'!$D$10,12*$A7,4*(PlotControl!$C$6-1),12,1))) -> 11219.83333 | P7: =IF(PlotControl!$B$4 = "Annual Max",MAX(OFFSET('2ECoarse'!$E$10,12*$A7,4*(PlotControl!$C$6-1),12,1)),AVERAGE(OFFSET('2ECoarse'!$E$10,12*$A7,4*(PlotControl!$C$6-1),12,1))) -> 11221.66667 | Q7: =IF(PlotControl!$B$4 = "Annual Max",MAX(OFFSET('2EBank'!$C$10,12*$A7,4*(PlotControl!$C$6-1),12,1)),AVERAGE(OFFSET('2EBank'!$C$10,12*$A7,4*(PlotControl!$C$6-1),12,1))) -> 7625.141667 | R7: =IF(PlotControl!$B$4 = "Annual Max",MAX(OFFSET('2EBank'!$D$10,12*$A7,4*(PlotControl!$C$6-1),12,1)),AVERAGE(OFFSET('2EBank'!$D$10,12*$A7,4*(PlotControl!$C$6-1),12,1))) -> 7642.175 | S7: =IF(PlotControl!$B$4 = "Annual Max",MAX(OFFSET('2EBank'!$E$10,12*$A7,4*(PlotControl!$C$6-1),12,1)),AVERAGE(OFFSET('2EBank'!$E$10,12*$A7,4*(PlotControl!$C$6-1),12,1))) -> 7660.683333 | T7: =IF(PlotControl!$B$4 = "Annual Max",MAX(OFFSET('1EFines'!$C$10,12*$A7,4*(PlotControl!$C$6-1),12,1)),AVERAGE(OFFSET('1EFines'!$C$10,12*$A7,4*(PlotControl!$C$6-1),12,1))) -> 14064 | U7: =IF(PlotControl!$B$4 = "Annual Max",MAX(OFFSET('1EFines'!$D$10,12*$A7,4*(PlotControl!$C$6-1),12,1)),AVERAGE(OFFSET('1EFines'!$D$10,12*$A7,4*(PlotControl!$C$6-1),12,1))) -> 14101.83333 | V7: =IF(PlotControl!$B$4 = "Annual Max",MAX(OFFSET('1EFines'!$E$10,12*$A7,4*(PlotControl!$C$6-1),12,1)),AVERAGE(OFFSET('1EFines'!$E$10,12*$A7,4*(PlotControl!$C$6-1),12,1))) -> 14143.08333 | W7: =IF(PlotControl!$B$4 = "Annual Max",MAX(OFFSET('1ECoarse'!$C$10,12*$A7,4*(PlotControl!$C$6-1),12,1)),AVERAGE(OFFSET('1ECoarse'!$C$10,12*$A7,4*(PlotControl!$C$6-1),12,1))) -> 67038.33333 | X7: =IF(PlotControl!$B$4 = "Annual Max",MAX(OFFSET('1ECoarse'!$D$10,12*$A7,4*(PlotControl!$C$6-1),12,1)),AVERAGE(OFFSET('1ECoarse'!$D$10,12*$A7,4*(PlotControl!$C$6-1),12,1))) -> 67124.41667 | Y7: =IF(PlotControl!$B$4 = "Annual Max",MAX(OFFSET('1ECoarse'!$E$10,12*$A7,4*(PlotControl!$C$6-1),12,1)),AVERAGE(OFFSET('1ECoarse'!$E$10,12*$A7,4*(PlotControl!$C$6-1),12,1))) -> 67218.08333
A8: 3 | B8: =IF(PlotControl!$B$4 = "Annual Max",MAX(OFFSET('2WFines'!$C$10,12*$A8,4*(PlotControl!$C$6-1),12,1)),AVERAGE(OFFSET('2WFines'!$C$10,12*$A8,4*(PlotControl!$C$6-1),12,1))) -> 112148.3333 | C8: =IF(PlotControl!$B$4 = "Annual Max",MAX(OFFSET('2WFines'!$D$10,12*$A8,4*(PlotControl!$C$6-1),12,1)),AVERAGE(OFFSET('2WFines'!$D$10,12*$A8,4*(PlotControl!$C$6-1),12,1))) -> 112385 | D8: =IF(PlotControl!$B$4 = "Annual Max",MAX(OFFSET('2WFines'!$E$10,12*$A8,4*(PlotControl!$C$6-1),12,1)),AVERAGE(OFFSET('2WFines'!$E$10,12*$A8,4*(PlotControl!$C$6-1),12,1))) -> 112688.3333 | E8: =IF(PlotControl!$B$4 = "Annual Max",MAX(OFFSET('2WCoarse'!$C$10,12*$A8,4*(PlotControl!$C$6-1),12,1)),AVERAGE(OFFSET('2WCoarse'!$C$10,12*$A8,4*(PlotControl!$C$6-1),12,1))) -> 65306.83333 | F8: =IF(PlotControl!$B$4 = "Annual Max",MAX(OFFSET('2WCoarse'!$D$10,12*$A8,4*(PlotControl!$C$6-1),12,1)),AVERAGE(OFFSET('2WCoarse'!$D$10,12*$A8,4*(PlotControl!$C$6-1),12,1))) -> 65515.08333 | G8: =IF(PlotControl!$B$4 = "Annual Max",MAX(OFFSET('2WCoarse'!$E$10,12*$A8,4*(PlotControl!$C$6-1),12,1)),AVERAGE(OFFSET('2WCoarse'!$E$10,12*$A8,4*(PlotControl!$C$6-1),12,1))) -> 65754.25 | H8: =IF(PlotControl!$B$4 = "Annual Max",MAX(OFFSET('2WBank'!$C$10,12*$A8,4*(PlotControl!$C$6-1),12,1)),AVERAGE(OFFSET('2WBank'!$C$10,12*$A8,4*(PlotControl!$C$6-1),12,1))) -> 95454.25 | I8: =IF(PlotControl!$B$4 = "Annual Max",MAX(OFFSET('2WBank'!$D$10,12*$A8,4*(PlotControl!$C$6-1),12,1)),AVERAGE(OFFSET('2WBank'!$D$10,12*$A8,4*(PlotControl!$C$6-1),12,1))) -> 95810.16667 | J8: =IF(PlotControl!$B$4 = "Annual Max",MAX(OFFSET('2WBank'!$E$10,12*$A8,4*(PlotControl!$C$6-1),12,1)),AVERAGE(OFFSET('2WBank'!$E$10,12*$A8,4*(PlotControl!$C$6-1),12,1))) -> 96218.66667 | K8: =IF(PlotControl!$B$4 = "Annual Max",MAX(OFFSET('2EFines'!$C$10,12*$A8,4*(PlotControl!$C$6-1),12,1)),AVERAGE(OFFSET('2EFines'!$C$10,12*$A8,4*(PlotControl!$C$6-1),12,1))) -> 11219 | L8: =IF(PlotControl!$B$4 = "Annual Max",MAX(OFFSET('2EFines'!$D$10,12*$A8,4*(PlotControl!$C$6-1),12,1)),AVERAGE(OFFSET('2EFines'!$D$10,12*$A8,4*(PlotControl!$C$6-1),12,1))) -> 11225 | M8: =IF(PlotControl!$B$4 = "Annual Max",MAX(OFFSET('2EFines'!$E$10,12*$A8,4*(PlotControl!$C$6-1),12,1)),AVERAGE(OFFSET('2EFines'!$E$10,12*$A8,4*(PlotControl!$C$6-1),12,1))) -> 11232 | N8: =IF(PlotControl!$B$4 = "Annual Max",MAX(OFFSET('2ECoarse'!$C$10,12*$A8,4*(PlotControl!$C$6-1),12,1)),AVERAGE(OFFSET('2ECoarse'!$C$10,12*$A8,4*(PlotControl!$C$6-1),12,1))) -> 11217 | O8: =IF(PlotControl!$B$4 = "Annual Max",MAX(OFFSET('2ECoarse'!$D$10,12*$A8,4*(PlotControl!$C$6-1),12,1)),AVERAGE(OFFSET('2ECoarse'!$D$10,12*$A8,4*(PlotControl!$C$6-1),12,1))) -> 11219 | P8: =IF(PlotControl!$B$4 = "Annual Max",MAX(OFFSET('2ECoarse'!$E$10,12*$A8,4*(PlotControl!$C$6-1),12,1)),AVERAGE(OFFSET('2ECoarse'!$E$10,12*$A8,4*(PlotControl!$C$6-1),12,1))) -> 11221 | Q8: =IF(PlotControl!$B$4 = "Annual Max",MAX(OFFSET('2EBank'!$C$10,12*$A8,4*(PlotControl!$C$6-1),12,1)),AVERAGE(OFFSET('2EBank'!$C$10,12*$A8,4*(PlotControl!$C$6-1),12,1))) -> 7602.325 | R8: =IF(PlotControl!$B$4 = "Annual Max",MAX(OFFSET('2EBank'!$D$10,12*$A8,4*(PlotControl!$C$6-1),12,1)),AVERAGE(OFFSET('2EBank'!$D$10,12*$A8,4*(PlotControl!$C$6-1),12,1))) -> 7624.958333 | S8: =IF(PlotControl!$B$4 = "Annual Max",MAX(OFFSET('2EBank'!$E$10,12*$A8,4*(PlotControl!$C$6-1),12,1)),AVERAGE(OFFSET('2EBank'!$E$10,12*$A8,4*(PlotControl!$C$6-1),12,1))) -> 7650.841667 | T8: =IF(PlotControl!$B$4 = "Annual Max",MAX(OFFSET('1EFines'!$C$10,12*$A8,4*(PlotControl!$C$6-1),12,1)),AVERAGE(OFFSET('1EFines'!$C$10,12*$A8,4*(PlotControl!$C$6-1),12,1))) -> 14013.66667 | U8: =IF(PlotControl!$B$4 = "Annual Max",MAX(OFFSET('1EFines'!$D$10,12*$A8,4*(PlotControl!$C$6-1),12,1)),AVERAGE(OFFSET('1EFines'!$D$10,12*$A8,4*(PlotControl!$C$6-1),12,1))) -> 14064.08333 | V8: =IF(PlotControl!$B$4 = "Annual Max",MAX(OFFSET('1EFines'!$E$10,12*$A8,4*(PlotControl!$C$6-1),12,1)),AVERAGE(OFFSET('1EFines'!$E$10,12*$A8,4*(PlotControl!$C$6-1),12,1))) -> 14121.25 | W8: =IF(PlotControl!$B$4 = "Annual Max",MAX(OFFSET('1ECoarse'!$C$10,12*$A8,4*(PlotControl!$C$6-1),12,1)),AVERAGE(OFFSET('1ECoarse'!$C$10,12*$A8,4*(PlotControl!$C$6-1),12,1))) -> 66929.41667 | X8: =IF(PlotControl!$B$4 = "Annual Max",MAX(OFFSET('1ECoarse'!$D$10,12*$A8,4*(PlotControl!$C$6-1),12,1)),AVERAGE(OFFSET('1ECoarse'!$D$10,12*$A8,4*(PlotControl!$C$6-1),12,1))) -> 67042.5 | Y8: =IF(PlotControl!$B$4 = "Annual Max",MAX(OFFSET('1ECoarse'!$E$10,12*$A8,4*(PlotControl!$C$6-1),12,1)),AVERAGE(OFFSET('1ECoarse'!$E$10,12*$A8,4*(PlotControl!$C$6-1),12,1))) -> 67171.08333
A9: 4 | B9: =IF(PlotControl!$B$4 = "Annual Max",MAX(OFFSET('2WFines'!$C$10,12*$A9,4*(PlotControl!$C$6-1),12,1)),AVERAGE(OFFSET('2WFines'!$C$10,12*$A9,4*(PlotControl!$C$6-1),12,1))) -> 111718.3333 | C9: =IF(PlotControl!$B$4 = "Annual Max",MAX(OFFSET('2WFines'!$D$10,12*$A9,4*(PlotControl!$C$6-1),12,1)),AVERAGE(OFFSET('2WFines'!$D$10,12*$A9,4*(PlotControl!$C$6-1),12,1))) -> 112022.5 | D9: =IF(PlotControl!$B$4 = "Annual Max",MAX(OFFSET('2WFines'!$E$10,12*$A9,4*(PlotControl!$C$6-1),12,1)),AVERAGE(OFFSET('2WFines'!$E$10,12*$A9,4*(PlotControl!$C$6-1),12,1))) -> 112420 | E9: =IF(PlotControl!$B$4 = "Annual Max",MAX(OFFSET('2WCoarse'!$C$10,12*$A9,4*(PlotControl!$C$6-1),12,1)),AVERAGE(OFFSET('2WCoarse'!$C$10,12*$A9,4*(PlotControl!$C$6-1),12,1))) -> 65101.66667 | F9: =IF(PlotControl!$B$4 = "Annual Max",MAX(OFFSET('2WCoarse'!$D$10,12*$A9,4*(PlotControl!$C$6-1),12,1)),AVERAGE(OFFSET('2WCoarse'!$D$10,12*$A9,4*(PlotControl!$C$6-1),12,1))) -> 65354.08333 | G9: =IF(PlotControl!$B$4 = "Annual Max",MAX(OFFSET('2WCoarse'!$E$10,12*$A9,4*(PlotControl!$C$6-1),12,1)),AVERAGE(OFFSET('2WCoarse'!$E$10,12*$A9,4*(PlotControl!$C$6-1),12,1))) -> 65664.5 | H9: =IF(PlotControl!$B$4 = "Annual Max",MAX(OFFSET('2WBank'!$C$10,12*$A9,4*(PlotControl!$C$6-1),12,1)),AVERAGE(OFFSET('2WBank'!$C$10,12*$A9,4*(PlotControl!$C$6-1),12,1))) -> 95107.16667 | I9: =IF(PlotControl!$B$4 = "Annual Max",MAX(OFFSET('2WBank'!$D$10,12*$A9,4*(PlotControl!$C$6-1),12,1)),AVERAGE(OFFSET('2WBank'!$D$10,12*$A9,4*(PlotControl!$C$6-1),12,1))) -> 95537.91667 | J9: =IF(PlotControl!$B$4 = "Annual Max",MAX(OFFSET('2WBank'!$E$10,12*$A9,4*(PlotControl!$C$6-1),12,1)),AVERAGE(OFFSET('2WBank'!$E$10,12*$A9,4*(PlotControl!$C$6-1),12,1))) -> 96066.33333 | K9: =IF(PlotControl!$B$4 = "Annual Max",MAX(OFFSET('2EFines'!$C$10,12*$A9,4*(PlotControl!$C$6-1),12,1)),AVERAGE(OFFSET('2EFines'!$C$10,12*$A9,4*(PlotControl!$C$6-1),12,1))) -> 11219 | L9: =IF(PlotControl!$B$4 = "Annual Max",MAX(OFFSET('2EFines'!$D$10,12*$A9,4*(PlotControl!$C$6-1),12,1)),AVERAGE(OFFSET('2EFines'!$D$10,12*$A9,4*(PlotControl!$C$6-1),12,1))) -> 11225 | M9: =IF(PlotControl!$B$4 = "Annual Max",MAX(OFFSET('2EFines'!$E$10,12*$A9,4*(PlotControl!$C$6-1),12,1)),AVERAGE(OFFSET('2EFines'!$E$10,12*$A9,4*(PlotControl!$C$6-1),12,1))) -> 11232 | N9: =IF(PlotControl!$B$4 = "Annual Max",MAX(OFFSET('2ECoarse'!$C$10,12*$A9,4*(PlotControl!$C$6-1),12,1)),AVERAGE(OFFSET('2ECoarse'!$C$10,12*$A9,4*(PlotControl!$C$6-1),12,1))) -> 11217 | O9: =IF(PlotControl!$B$4 = "Annual Max",MAX(OFFSET('2ECoarse'!$D$10,12*$A9,4*(PlotControl!$C$6-1),12,1)),AVERAGE(OFFSET('2ECoarse'!$D$10,12*$A9,4*(PlotControl!$C$6-1),12,1))) -> 11219 | P9: =IF(PlotControl!$B$4 = "Annual Max",MAX(OFFSET('2ECoarse'!$E$10,12*$A9,4*(PlotControl!$C$6-1),12,1)),AVERAGE(OFFSET('2ECoarse'!$E$10,12*$A9,4*(PlotControl!$C$6-1),12,1))) -> 11221 | Q9: =IF(PlotControl!$B$4 = "Annual Max",MAX(OFFSET('2EBank'!$C$10,12*$A9,4*(PlotControl!$C$6-1),12,1)),AVERAGE(OFFSET('2EBank'!$C$10,12*$A9,4*(PlotControl!$C$6-1),12,1))) -> 7579.891667 | R9: =IF(PlotControl!$B$4 = "Annual Max",MAX(OFFSET('2EBank'!$D$10,12*$A9,4*(PlotControl!$C$6-1),12,1)),AVERAGE(OFFSET('2EBank'!$D$10,12*$A9,4*(PlotControl!$C$6-1),12,1))) -> 7607.5 | S9: =IF(PlotControl!$B$4 = "Annual Max",MAX(OFFSET('2EBank'!$E$10,12*$A9,4*(PlotControl!$C$6-1),12,1)),AVERAGE(OFFSET('2EBank'!$E$10,12*$A9,4*(PlotControl!$C$6-1),12,1))) -> 7641.058333 | T9: =IF(PlotControl!$B$4 = "Annual Max",MAX(OFFSET('1EFines'!$C$10,12*$A9,4*(PlotControl!$C$6-1),12,1)),AVERAGE(OFFSET('1EFines'!$C$10,12*$A9,4*(PlotControl!$C$6-1),12,1))) -> 13967.08333 | U9: =IF(PlotControl!$B$4 = "Annual Max",MAX(OFFSET('1EFines'!$D$10,12*$A9,4*(PlotControl!$C$6-1),12,1)),AVERAGE(OFFSET('1EFines'!$D$10,12*$A9,4*(PlotControl!$C$6-1),12,1))) -> 14027.25 | V9: =IF(PlotControl!$B$4 = "Annual Max",MAX(OFFSET('1EFines'!$E$10,12*$A9,4*(PlotControl!$C$6-1),12,1)),AVERAGE(OFFSET('1EFines'!$E$10,12*$A9,4*(PlotControl!$C$6-1),12,1))) -> 14100.75 | W9: =IF(PlotControl!$B$4 = "Annual Max",MAX(OFFSET('1ECoarse'!$C$10,12*$A9,4*(PlotControl!$C$6-1),12,1)),AVERAGE(OFFSET('1ECoarse'!$C$10,12*$A9,4*(PlotControl!$C$6-1),12,1))) -> 66828.33333 | X9: =IF(PlotControl!$B$4 = "Annual Max",MAX(OFFSET('1ECoarse'!$D$10,12*$A9,4*(PlotControl!$C$6-1),12,1)),AVERAGE(OFFSET('1ECoarse'!$D$10,12*$A9,4*(PlotControl!$C$6-1),12,1))) -> 66963.41667 | Y9: =IF(PlotControl!$B$4 = "Annual Max",MAX(OFFSET('1ECoarse'!$E$10,12*$A9,4*(PlotControl!$C$6-1),12,1)),AVERAGE(OFFSET('1ECoarse'!$E$10,12*$A9,4*(PlotControl!$C$6-1),12,1))) -> 67126.83333
A10: 5 | B10: =IF(PlotControl!$B$4 = "Annual Max",MAX(OFFSET('2WFines'!$C$10,12*$A10,4*(PlotControl!$C$6-1),12,1)),AVERAGE(OFFSET('2WFines'!$C$10,12*$A10,4*(PlotControl!$C$6-1),12,1))) -> 111296.6667 | C10: =IF(PlotControl!$B$4 = "Annual Max",MAX(OFFSET('2WFines'!$D$10,12*$A10,4*(PlotControl!$C$6-1),12,1)),AVERAGE(OFFSET('2WFines'!$D$10,12*$A10,4*(PlotControl!$C$6-1),12,1))) -> 111651.6667 | D10: =IF(PlotControl!$B$4 = "Annual Max",MAX(OFFSET('2WFines'!$E$10,12*$A10,4*(PlotControl!$C$6-1),12,1)),AVERAGE(OFFSET('2WFines'!$E$10,12*$A10,4*(PlotControl!$C$6-1),12,1))) -> 112150 | E10: =IF(PlotControl!$B$4 = "Annual Max",MAX(OFFSET('2WCoarse'!$C$10,12*$A10,4*(PlotControl!$C$6-1),12,1)),AVERAGE(OFFSET('2WCoarse'!$C$10,12*$A10,4*(PlotControl!$C$6-1),12,1))) -> 64891.58333 | F10: =IF(PlotControl!$B$4 = "Annual Max",MAX(OFFSET('2WCoarse'!$D$10,12*$A10,4*(PlotControl!$C$6-1),12,1)),AVERAGE(OFFSET('2WCoarse'!$D$10,12*$A10,4*(PlotControl!$C$6-1),12,1))) -> 65198.83333 | G10: =IF(PlotControl!$B$4 = "Annual Max",MAX(OFFSET('2WCoarse'!$E$10,12*$A10,4*(PlotControl!$C$6-1),12,1)),AVERAGE(OFFSET('2WCoarse'!$E$10,12*$A10,4*(PlotControl!$C$6-1),12,1))) -> 65581.41667 | H10: =IF(PlotControl!$B$4 = "Annual Max",MAX(OFFSET('2WBank'!$C$10,12*$A10,4*(PlotControl!$C$6-1),12,1)),AVERAGE(OFFSET('2WBank'!$C$10,12*$A10,4*(PlotControl!$C$6-1),12,1))) -> 94752.5 | I10: =IF(PlotControl!$B$4 = "Annual Max",MAX(OFFSET('2WBank'!$D$10,12*$A10,4*(PlotControl!$C$6-1),12,1)),AVERAGE(OFFSET('2WBank'!$D$10,12*$A10,4*(PlotControl!$C$6-1),12,1))) -> 95274.91667 | J10: =IF(PlotControl!$B$4 = "Annual Max",MAX(OFFSET('2WBank'!$E$10,12*$A10,4*(PlotControl!$C$6-1),12,1)),AVERAGE(OFFSET('2WBank'!$E$10,12*$A10,4*(PlotControl!$C$6-1),12,1))) -> 95926.66667 | K10: =IF(PlotControl!$B$4 = "Annual Max",MAX(OFFSET('2EFines'!$C$10,12*$A10,4*(PlotControl!$C$6-1),12,1)),AVERAGE(OFFSET('2EFines'!$C$10,12*$A10,4*(PlotControl!$C$6-1),12,1))) -> 11219 | L10: =IF(PlotControl!$B$4 = "Annual Max",MAX(OFFSET('2EFines'!$D$10,12*$A10,4*(PlotControl!$C$6-1),12,1)),AVERAGE(OFFSET('2EFines'!$D$10,12*$A10,4*(PlotControl!$C$6-1),12,1))) -> 11225 | M10: =IF(PlotControl!$B$4 = "Annual Max",MAX(OFFSET('2EFines'!$E$10,12*$A10,4*(PlotControl!$C$6-1),12,1)),AVERAGE(OFFSET('2EFines'!$E$10,12*$A10,4*(PlotControl!$C$6-1),12,1))) -> 11232 | N10: =IF(PlotControl!$B$4 = "Annual Max",MAX(OFFSET('2ECoarse'!$C$10,12*$A10,4*(PlotControl!$C$6-1),12,1)),AVERAGE(OFFSET('2ECoarse'!$C$10,12*$A10,4*(PlotControl!$C$6-1),12,1))) -> 11217 | O10: =IF(PlotControl!$B$4 = "Annual Max",MAX(OFFSET('2ECoarse'!$D$10,12*$A10,4*(PlotControl!$C$6-1),12,1)),AVERAGE(OFFSET('2ECoarse'!$D$10,12*$A10,4*(PlotControl!$C$6-1),12,1))) -> 11219 | P10: =IF(PlotControl!$B$4 = "Annual Max",MAX(OFFSET('2ECoarse'!$E$10,12*$A10,4*(PlotControl!$C$6-1),12,1)),AVERAGE(OFFSET('2ECoarse'!$E$10,12*$A10,4*(PlotControl!$C$6-1),12,1))) -> 11221 | Q10: =IF(PlotControl!$B$4 = "Annual Max",MAX(OFFSET('2EBank'!$C$10,12*$A10,4*(PlotControl!$C$6-1),12,1)),AVERAGE(OFFSET('2EBank'!$C$10,12*$A10,4*(PlotControl!$C$6-1),12,1))) -> 7556.8 | R10: =IF(PlotControl!$B$4 = "Annual Max",MAX(OFFSET('2EBank'!$D$10,12*$A10,4*(PlotControl!$C$6-1),12,1)),AVERAGE(OFFSET('2EBank'!$D$10,12*$A10,4*(PlotControl!$C$6-1),12,1))) -> 7590.183333 | S10: =IF(PlotControl!$B$4 = "Annual Max",MAX(OFFSET('2EBank'!$E$10,12*$A10,4*(PlotControl!$C$6-1),12,1)),AVERAGE(OFFSET('2EBank'!$E$10,12*$A10,4*(PlotControl!$C$6-1),12,1))) -> 7631.933333 | T10: =IF(PlotControl!$B$4 = "Annual Max",MAX(OFFSET('1EFines'!$C$10,12*$A10,4*(PlotControl!$C$6-1),12,1)),AVERAGE(OFFSET('1EFines'!$C$10,12*$A10,4*(PlotControl!$C$6-1),12,1))) -> 13920.16667 | U10: =IF(PlotControl!$B$4 = "Annual Max",MAX(OFFSET('1EFines'!$D$10,12*$A10,4*(PlotControl!$C$6-1),12,1)),AVERAGE(OFFSET('1EFines'!$D$10,12*$A10,4*(PlotControl!$C$6-1),12,1))) -> 13992.08333 | V10: =IF(PlotControl!$B$4 = "Annual Max",MAX(OFFSET('1EFines'!$E$10,12*$A10,4*(PlotControl!$C$6-1),12,1)),AVERAGE(OFFSET('1EFines'!$E$10,12*$A10,4*(PlotControl!$C$6-1),12,1))) -> 14081.91667 | W10: =IF(PlotControl!$B$4 = "Annual Max",MAX(OFFSET('1ECoarse'!$C$10,12*$A10,4*(PlotControl!$C$6-1),12,1)),AVERAGE(OFFSET('1ECoarse'!$C$10,12*$A10,4*(PlotControl!$C$6-1),12,1))) -> 66730.75 | X10: =IF(PlotControl!$B$4 = "Annual Max",MAX(OFFSET('1ECoarse'!$D$10,12*$A10,4*(PlotControl!$C$6-1),12,1)),AVERAGE(OFFSET('1ECoarse'!$D$10,12*$A10,4*(PlotControl!$C$6-1),12,1))) -> 66890.08333 | Y10: =IF(PlotControl!$B$4 = "Annual Max",MAX(OFFSET('1ECoarse'!$E$10,12*$A10,4*(PlotControl!$C$6-1),12,1)),AVERAGE(OFFSET('1ECoarse'!$E$10,12*$A10,4*(PlotControl!$C$6-1),12,1))) -> 67087.25
A11: 6 | B11: =IF(PlotControl!$B$4 = "Annual Max",MAX(OFFSET('2WFines'!$C$10,12*$A11,4*(PlotControl!$C$6-1),12,1)),AVERAGE(OFFSET('2WFines'!$C$10,12*$A11,4*(PlotControl!$C$6-1),12,1))) -> 110870.8333 | C11: =IF(PlotControl!$B$4 = "Annual Max",MAX(OFFSET('2WFines'!$D$10,12*$A11,4*(PlotControl!$C$6-1),12,1)),AVERAGE(OFFSET('2WFines'!$D$10,12*$A11,4*(PlotControl!$C$6-1),12,1))) -> 111272.5 | D11: =IF(PlotControl!$B$4 = "Annual Max",MAX(OFFSET('2WFines'!$E$10,12*$A11,4*(PlotControl!$C$6-1),12,1)),AVERAGE(OFFSET('2WFines'!$E$10,12*$A11,4*(PlotControl!$C$6-1),12,1))) -> 111874.1667 | E11: =IF(PlotControl!$B$4 = "Annual Max",MAX(OFFSET('2WCoarse'!$C$10,12*$A11,4*(PlotControl!$C$6-1),12,1)),AVERAGE(OFFSET('2WCoarse'!$C$10,12*$A11,4*(PlotControl!$C$6-1),12,1))) -> 64684.25 | F11: =IF(PlotControl!$B$4 = "Annual Max",MAX(OFFSET('2WCoarse'!$D$10,12*$A11,4*(PlotControl!$C$6-1),12,1)),AVERAGE(OFFSET('2WCoarse'!$D$10,12*$A11,4*(PlotControl!$C$6-1),12,1))) -> 65039.08333 | G11: =IF(PlotControl!$B$4 = "Annual Max",MAX(OFFSET('2WCoarse'!$E$10,12*$A11,4*(PlotControl!$C$6-1),12,1)),AVERAGE(OFFSET('2WCoarse'!$E$10,12*$A11,4*(PlotControl!$C$6-1),12,1))) -> 65498.5 | H11: =IF(PlotControl!$B$4 = "Annual Max",MAX(OFFSET('2WBank'!$C$10,12*$A11,4*(PlotControl!$C$6-1),12,1)),AVERAGE(OFFSET('2WBank'!$C$10,12*$A11,4*(PlotControl!$C$6-1),12,1))) -> 94402.91667 | I11: =IF(PlotControl!$B$4 = "Annual Max",MAX(OFFSET('2WBank'!$D$10,12*$A11,4*(PlotControl!$C$6-1),12,1)),AVERAGE(OFFSET('2WBank'!$D$10,12*$A11,4*(PlotControl!$C$6-1),12,1))) -> 95005.75 | J11: =IF(PlotControl!$B$4 = "Annual Max",MAX(OFFSET('2WBank'!$E$10,12*$A11,4*(PlotControl!$C$6-1),12,1)),AVERAGE(OFFSET('2WBank'!$E$10,12*$A11,4*(PlotControl!$C$6-1),12,1))) -> 95786.83333 | K11: =IF(PlotControl!$B$4 = "Annual Max",MAX(OFFSET('2EFines'!$C$10,12*$A11,4*(PlotControl!$C$6-1),12,1)),AVERAGE(OFFSET('2EFines'!$C$10,12*$A11,4*(PlotControl!$C$6-1),12,1))) -> 11219 | L11: =IF(PlotControl!$B$4 = "Annual Max",MAX(OFFSET('2EFines'!$D$10,12*$A11,4*(PlotControl!$C$6-1),12,1)),AVERAGE(OFFSET('2EFines'!$D$10,12*$A11,4*(PlotControl!$C$6-1),12,1))) -> 11225 | M11: =IF(PlotControl!$B$4 = "Annual Max",MAX(OFFSET('2EFines'!$E$10,12*$A11,4*(PlotControl!$C$6-1),12,1)),AVERAGE(OFFSET('2EFines'!$E$10,12*$A11,4*(PlotControl!$C$6-1),12,1))) -> 11232 | N11: =IF(PlotControl!$B$4 = "Annual Max",MAX(OFFSET('2ECoarse'!$C$10,12*$A11,4*(PlotControl!$C$6-1),12,1)),AVERAGE(OFFSET('2ECoarse'!$C$10,12*$A11,4*(PlotControl!$C$6-1),12,1))) -> 11217 | O11: =IF(PlotControl!$B$4 = "Annual Max",MAX(OFFSET('2ECoarse'!$D$10,12*$A11,4*(PlotControl!$C$6-1),12,1)),AVERAGE(OFFSET('2ECoarse'!$D$10,12*$A11,4*(PlotControl!$C$6-1),12,1))) -> 11219 | P11: =IF(PlotControl!$B$4 = "Annual Max",MAX(OFFSET('2ECoarse'!$E$10,12*$A11,4*(PlotControl!$C$6-1),12,1)),AVERAGE(OFFSET('2ECoarse'!$E$10,12*$A11,4*(PlotControl!$C$6-1),12,1))) -> 11221 | Q11: =IF(PlotControl!$B$4 = "Annual Max",MAX(OFFSET('2EBank'!$C$10,12*$A11,4*(PlotControl!$C$6-1),12,1)),AVERAGE(OFFSET('2EBank'!$C$10,12*$A11,4*(PlotControl!$C$6-1),12,1))) -> 7533.4 | R11: =IF(PlotControl!$B$4 = "Annual Max",MAX(OFFSET('2EBank'!$D$10,12*$A11,4*(PlotControl!$C$6-1),12,1)),AVERAGE(OFFSET('2EBank'!$D$10,12*$A11,4*(PlotControl!$C$6-1),12,1))) -> 7572.175 | S11: =IF(PlotControl!$B$4 = "Annual Max",MAX(OFFSET('2EBank'!$E$10,12*$A11,4*(PlotControl!$C$6-1),12,1)),AVERAGE(OFFSET('2EBank'!$E$10,12*$A11,4*(PlotControl!$C$6-1),12,1))) -> 7622.475 | T11: =IF(PlotControl!$B$4 = "Annual Max",MAX(OFFSET('1EFines'!$C$10,12*$A11,4*(PlotControl!$C$6-1),12,1)),AVERAGE(OFFSET('1EFines'!$C$10,12*$A11,4*(PlotControl!$C$6-1),12,1))) -> 13874.33333 | U11: =IF(PlotControl!$B$4 = "Annual Max",MAX(OFFSET('1EFines'!$D$10,12*$A11,4*(PlotControl!$C$6-1),12,1)),AVERAGE(OFFSET('1EFines'!$D$10,12*$A11,4*(PlotControl!$C$6-1),12,1))) -> 13957.25 | V11: =IF(PlotControl!$B$4 = "Annual Max",MAX(OFFSET('1EFines'!$E$10,12*$A11,4*(PlotControl!$C$6-1),12,1)),AVERAGE(OFFSET('1EFines'!$E$10,12*$A11,4*(PlotControl!$C$6-1),12,1))) -> 14063.83333 | W11: =IF(PlotControl!$B$4 = "Annual Max",MAX(OFFSET('1ECoarse'!$C$10,12*$A11,4*(PlotControl!$C$6-1),12,1)),AVERAGE(OFFSET('1ECoarse'!$C$10,12*$A11,4*(PlotControl!$C$6-1),12,1))) -> 66635.83333 | X11: =IF(PlotControl!$B$4 = "Annual Max",MAX(OFFSET('1ECoarse'!$D$10,12*$A11,4*(PlotControl!$C$6-1),12,1)),AVERAGE(OFFSET('1ECoarse'!$D$10,12*$A11,4*(PlotControl!$C$6-1),12,1))) -> 66817.75 | Y11: =IF(PlotControl!$B$4 = "Annual Max",MAX(OFFSET('1ECoarse'!$E$10,12*$A11,4*(PlotControl!$C$6-1),12,1)),AVERAGE(OFFSET('1ECoarse'!$E$10,12*$A11,4*(PlotControl!$C$6-1),12,1))) -> 67050
A12: 7 | B12: =IF(PlotControl!$B$4 = "Annual Max",MAX(OFFSET('2WFines'!$C$10,12*$A12,4*(PlotControl!$C$6-1),12,1)),AVERAGE(OFFSET('2WFines'!$C$10,12*$A12,4*(PlotControl!$C$6-1),12,1))) -> 110440 | C12: =IF(PlotControl!$B$4 = "Annual Max",MAX(OFFSET('2WFines'!$D$10,12*$A12,4*(PlotControl!$C$6-1),12,1)),AVERAGE(OFFSET('2WFines'!$D$10,12*$A12,4*(PlotControl!$C$6-1),12,1))) -> 110905.8333 | D12: =IF(PlotControl!$B$4 = "Annual Max",MAX(OFFSET('2WFines'!$E$10,12*$A12,4*(PlotControl!$C$6-1),12,1)),AVERAGE(OFFSET('2WFines'!$E$10,12*$A12,4*(PlotControl!$C$6-1),12,1))) -> 111596.6667 | E12: =IF(PlotControl!$B$4 = "Annual Max",MAX(OFFSET('2WCoarse'!$C$10,12*$A12,4*(PlotControl!$C$6-1),12,1)),AVERAGE(OFFSET('2WCoarse'!$C$10,12*$A12,4*(PlotControl!$C$6-1),12,1))) -> 64479.58333 | F12: =IF(PlotControl!$B$4 = "Annual Max",MAX(OFFSET('2WCoarse'!$D$10,12*$A12,4*(PlotControl!$C$6-1),12,1)),AVERAGE(OFFSET('2WCoarse'!$D$10,12*$A12,4*(PlotControl!$C$6-1),12,1))) -> 64890.75 | G12: =IF(PlotControl!$B$4 = "Annual Max",MAX(OFFSET('2WCoarse'!$E$10,12*$A12,4*(PlotControl!$C$6-1),12,1)),AVERAGE(OFFSET('2WCoarse'!$E$10,12*$A12,4*(PlotControl!$C$6-1),12,1))) -> 65407.66667 | H12: =IF(PlotControl!$B$4 = "Annual Max",MAX(OFFSET('2WBank'!$C$10,12*$A12,4*(PlotControl!$C$6-1),12,1)),AVERAGE(OFFSET('2WBank'!$C$10,12*$A12,4*(PlotControl!$C$6-1),12,1))) -> 94063 | I12: =IF(PlotControl!$B$4 = "Annual Max",MAX(OFFSET('2WBank'!$D$10,12*$A12,4*(PlotControl!$C$6-1),12,1)),AVERAGE(OFFSET('2WBank'!$D$10,12*$A12,4*(PlotControl!$C$6-1),12,1))) -> 94759.66667 | J12: =IF(PlotControl!$B$4 = "Annual Max",MAX(OFFSET('2WBank'!$E$10,12*$A12,4*(PlotControl!$C$6-1),12,1)),AVERAGE(OFFSET('2WBank'!$E$10,12*$A12,4*(PlotControl!$C$6-1),12,1))) -> 95635.41667 | K12: =IF(PlotControl!$B$4 = "Annual Max",MAX(OFFSET('2EFines'!$C$10,12*$A12,4*(PlotControl!$C$6-1),12,1)),AVERAGE(OFFSET('2EFines'!$C$10,12*$A12,4*(PlotControl!$C$6-1),12,1))) -> 11219 | L12: =IF(PlotControl!$B$4 = "Annual Max",MAX(OFFSET('2EFines'!$D$10,12*$A12,4*(PlotControl!$C$6-1),12,1)),AVERAGE(OFFSET('2EFines'!$D$10,12*$A12,4*(PlotControl!$C$6-1),12,1))) -> 11225 | M12: =IF(PlotControl!$B$4 = "Annual Max",MAX(OFFSET('2EFines'!$E$10,12*$A12,4*(PlotControl!$C$6-1),12,1)),AVERAGE(OFFSET('2EFines'!$E$10,12*$A12,4*(PlotControl!$C$6-1),12,1))) -> 11232 | N12: =IF(PlotControl!$B$4 = "Annual Max",MAX(OFFSET('2ECoarse'!$C$10,12*$A12,4*(PlotControl!$C$6-1),12,1)),AVERAGE(OFFSET('2ECoarse'!$C$10,12*$A12,4*(PlotControl!$C$6-1),12,1))) -> 11217 | O12: =IF(PlotControl!$B$4 = "Annual Max",MAX(OFFSET('2ECoarse'!$D$10,12*$A12,4*(PlotControl!$C$6-1),12,1)),AVERAGE(OFFSET('2ECoarse'!$D$10,12*$A12,4*(PlotControl!$C$6-1),12,1))) -> 11219 | P12: =IF(PlotControl!$B$4 = "Annual Max",MAX(OFFSET('2ECoarse'!$E$10,12*$A12,4*(PlotControl!$C$6-1),12,1)),AVERAGE(OFFSET('2ECoarse'!$E$10,12*$A12,4*(PlotControl!$C$6-1),12,1))) -> 11221 | Q12: =IF(PlotControl!$B$4 = "Annual Max",MAX(OFFSET('2EBank'!$C$10,12*$A12,4*(PlotControl!$C$6-1),12,1)),AVERAGE(OFFSET('2EBank'!$C$10,12*$A12,4*(PlotControl!$C$6-1),12,1))) -> 7509.125 | R12: =IF(PlotControl!$B$4 = "Annual Max",MAX(OFFSET('2EBank'!$D$10,12*$A12,4*(PlotControl!$C$6-1),12,1)),AVERAGE(OFFSET('2EBank'!$D$10,12*$A12,4*(PlotControl!$C$6-1),12,1))) -> 7554.491667 | S12: =IF(PlotControl!$B$4 = "Annual Max",MAX(OFFSET('2EBank'!$E$10,12*$A12,4*(PlotControl!$C$6-1),12,1)),AVERAGE(OFFSET('2EBank'!$E$10,12*$A12,4*(PlotControl!$C$6-1),12,1))) -> 7611.616667 | T12: =IF(PlotControl!$B$4 = "Annual Max",MAX(OFFSET('1EFines'!$C$10,12*$A12,4*(PlotControl!$C$6-1),12,1)),AVERAGE(OFFSET('1EFines'!$C$10,12*$A12,4*(PlotControl!$C$6-1),12,1))) -> 13846.33333 | U12: =IF(PlotControl!$B$4 = "Annual Max",MAX(OFFSET('1EFines'!$D$10,12*$A12,4*(PlotControl!$C$6-1),12,1)),AVERAGE(OFFSET('1EFines'!$D$10,12*$A12,4*(PlotControl!$C$6-1),12,1))) -> 13937.25 | V12: =IF(PlotControl!$B$4 = "Annual Max",MAX(OFFSET('1EFines'!$E$10,12*$A12,4*(PlotControl!$C$6-1),12,1)),AVERAGE(OFFSET('1EFines'!$E$10,12*$A12,4*(PlotControl!$C$6-1),12,1))) -> 14052.08333 | W12: =IF(PlotControl!$B$4 = "Annual Max",MAX(OFFSET('1ECoarse'!$C$10,12*$A12,4*(PlotControl!$C$6-1),12,1)),AVERAGE(OFFSET('1ECoarse'!$C$10,12*$A12,4*(PlotControl!$C$6-1),12,1))) -> 66577.08333 | X12: =IF(PlotControl!$B$4 = "Annual Max",MAX(OFFSET('1ECoarse'!$D$10,12*$A12,4*(PlotControl!$C$6-1),12,1)),AVERAGE(OFFSET('1ECoarse'!$D$10,12*$A12,4*(PlotControl!$C$6-1),12,1))) -> 66776.41667 | Y12: =IF(PlotControl!$B$4 = "Annual Max",MAX(OFFSET('1ECoarse'!$E$10,12*$A12,4*(PlotControl!$C$6-1),12,1)),AVERAGE(OFFSET('1ECoarse'!$E$10,12*$A12,4*(PlotControl!$C$6-1),12,1))) -> 67024.41667
A13: 8 | B13: =IF(PlotControl!$B$4 = "Annual Max",MAX(OFFSET('2WFines'!$C$10,12*$A13,4*(PlotControl!$C$6-1),12,1)),AVERAGE(OFFSET('2WFines'!$C$10,12*$A13,4*(PlotControl!$C$6-1),12,1))) -> 110010 | C13: =IF(PlotControl!$B$4 = "Annual Max",MAX(OFFSET('2WFines'!$D$10,12*$A13,4*(PlotControl!$C$6-1),12,1)),AVERAGE(OFFSET('2WFines'!$D$10,12*$A13,4*(PlotControl!$C$6-1),12,1))) -> 110542.5 | D13: =IF(PlotControl!$B$4 = "Annual Max",MAX(OFFSET('2WFines'!$E$10,12*$A13,4*(PlotControl!$C$6-1),12,1)),AVERAGE(OFFSET('2WFines'!$E$10,12*$A13,4*(PlotControl!$C$6-1),12,1))) -> 111328.3333 | E13: =IF(PlotControl!$B$4 = "Annual Max",MAX(OFFSET('2WCoarse'!$C$10,12*$A13,4*(PlotControl!$C$6-1),12,1)),AVERAGE(OFFSET('2WCoarse'!$C$10,12*$A13,4*(PlotControl!$C$6-1),12,1))) -> 64266.25 | F13: =IF(PlotControl!$B$4 = "Annual Max",MAX(OFFSET('2WCoarse'!$D$10,12*$A13,4*(PlotControl!$C$6-1),12,1)),AVERAGE(OFFSET('2WCoarse'!$D$10,12*$A13,4*(PlotControl!$C$6-1),12,1))) -> 64730.41667 | G13: =IF(PlotControl!$B$4 = "Annual Max",MAX(OFFSET('2WCoarse'!$E$10,12*$A13,4*(PlotControl!$C$6-1),12,1)),AVERAGE(OFFSET('2WCoarse'!$E$10,12*$A13,4*(PlotControl!$C$6-1),12,1))) -> 65321.08333 | H13: =IF(PlotControl!$B$4 = "Annual Max",MAX(OFFSET('2WBank'!$C$10,12*$A13,4*(PlotControl!$C$6-1),12,1)),AVERAGE(OFFSET('2WBank'!$C$10,12*$A13,4*(PlotControl!$C$6-1),12,1))) -> 93716 | I13: =IF(PlotControl!$B$4 = "Annual Max",MAX(OFFSET('2WBank'!$D$10,12*$A13,4*(PlotControl!$C$6-1),12,1)),AVERAGE(OFFSET('2WBank'!$D$10,12*$A13,4*(PlotControl!$C$6-1),12,1))) -> 94499.41667 | J13: =IF(PlotControl!$B$4 = "Annual Max",MAX(OFFSET('2WBank'!$E$10,12*$A13,4*(PlotControl!$C$6-1),12,1)),AVERAGE(OFFSET('2WBank'!$E$10,12*$A13,4*(PlotControl!$C$6-1),12,1))) -> 95494.66667 | K13: =IF(PlotControl!$B$4 = "Annual Max",MAX(OFFSET('2EFines'!$C$10,12*$A13,4*(PlotControl!$C$6-1),12,1)),AVERAGE(OFFSET('2EFines'!$C$10,12*$A13,4*(PlotControl!$C$6-1),12,1))) -> 11219 | L13: =IF(PlotControl!$B$4 = "Annual Max",MAX(OFFSET('2EFines'!$D$10,12*$A13,4*(PlotControl!$C$6-1),12,1)),AVERAGE(OFFSET('2EFines'!$D$10,12*$A13,4*(PlotControl!$C$6-1),12,1))) -> 11225 | M13: =IF(PlotControl!$B$4 = "Annual Max",MAX(OFFSET('2EFines'!$E$10,12*$A13,4*(PlotControl!$C$6-1),12,1)),AVERAGE(OFFSET('2EFines'!$E$10,12*$A13,4*(PlotControl!$C$6-1),12,1))) -> 11232 | N13: =IF(PlotControl!$B$4 = "Annual Max",MAX(OFFSET('2ECoarse'!$C$10,12*$A13,4*(PlotControl!$C$6-1),12,1)),AVERAGE(OFFSET('2ECoarse'!$C$10,12*$A13,4*(PlotControl!$C$6-1),12,1))) -> 11217 | O13: =IF(PlotControl!$B$4 = "Annual Max",MAX(OFFSET('2ECoarse'!$D$10,12*$A13,4*(PlotControl!$C$6-1),12,1)),AVERAGE(OFFSET('2ECoarse'!$D$10,12*$A13,4*(PlotControl!$C$6-1),12,1))) -> 11219 | P13: =IF(PlotControl!$B$4 = "Annual Max",MAX(OFFSET('2ECoarse'!$E$10,12*$A13,4*(PlotControl!$C$6-1),12,1)),AVERAGE(OFFSET('2ECoarse'!$E$10,12*$A13,4*(PlotControl!$C$6-1),12,1))) -> 11221 | Q13: =IF(PlotControl!$B$4 = "Annual Max",MAX(OFFSET('2EBank'!$C$10,12*$A13,4*(PlotControl!$C$6-1),12,1)),AVERAGE(OFFSET('2EBank'!$C$10,12*$A13,4*(PlotControl!$C$6-1),12,1))) -> 7481.825 | R13: =IF(PlotControl!$B$4 = "Annual Max",MAX(OFFSET('2EBank'!$D$10,12*$A13,4*(PlotControl!$C$6-1),12,1)),AVERAGE(OFFSET('2EBank'!$D$10,12*$A13,4*(PlotControl!$C$6-1),12,1))) -> 7534.15 | S13: =IF(PlotControl!$B$4 = "Annual Max",MAX(OFFSET('2EBank'!$E$10,12*$A13,4*(PlotControl!$C$6-1),12,1)),AVERAGE(OFFSET('2EBank'!$E$10,12*$A13,4*(PlotControl!$C$6-1),12,1))) -> 7600.45 | T13: =IF(PlotControl!$B$4 = "Annual Max",MAX(OFFSET('1EFines'!$C$10,12*$A13,4*(PlotControl!$C$6-1),12,1)),AVERAGE(OFFSET('1EFines'!$C$10,12*$A13,4*(PlotControl!$C$6-1),12,1))) -> 13846 | U13: =IF(PlotControl!$B$4 = "Annual Max",MAX(OFFSET('1EFines'!$D$10,12*$A13,4*(PlotControl!$C$6-1),12,1)),AVERAGE(OFFSET('1EFines'!$D$10,12*$A13,4*(PlotControl!$C$6-1),12,1))) -> 13937 | V13: =IF(PlotControl!$B$4 = "Annual Max",MAX(OFFSET('1EFines'!$E$10,12*$A13,4*(PlotControl!$C$6-1),12,1)),AVERAGE(OFFSET('1EFines'!$E$10,12*$A13,4*(PlotControl!$C$6-1),12,1))) -> 14052 | W13: =IF(PlotControl!$B$4 = "Annual Max",MAX(OFFSET('1ECoarse'!$C$10,12*$A13,4*(PlotControl!$C$6-1),12,1)),AVERAGE(OFFSET('1ECoarse'!$C$10,12*$A13,4*(PlotControl!$C$6-1),12,1))) -> 66574.66667 | X13: =IF(PlotControl!$B$4 = "Annual Max",MAX(OFFSET('1ECoarse'!$D$10,12*$A13,4*(PlotControl!$C$6-1),12,1)),AVERAGE(OFFSET('1ECoarse'!$D$10,12*$A13,4*(PlotControl!$C$6-1),12,1))) -> 66774.66667 | Y13: =IF(PlotControl!$B$4 = "Annual Max",MAX(OFFSET('1ECoarse'!$E$10,12*$A13,4*(PlotControl!$C$6-1),12,1)),AVERAGE(OFFSET('1ECoarse'!$E$10,12*$A13,4*(PlotControl!$C$6-1),12,1))) -> 67023.25
A14: 9 | B14: =IF(PlotControl!$B$4 = "Annual Max",MAX(OFFSET('2WFines'!$C$10,12*$A14,4*(PlotControl!$C$6-1),12,1)),AVERAGE(OFFSET('2WFines'!$C$10,12*$A14,4*(PlotControl!$C$6-1),12,1))) -> 109580.8333 | C14: =IF(PlotControl!$B$4 = "Annual Max",MAX(OFFSET('2WFines'!$D$10,12*$A14,4*(PlotControl!$C$6-1),12,1)),AVERAGE(OFFSET('2WFines'!$D$10,12*$A14,4*(PlotControl!$C$6-1),12,1))) -> 110166.6667 | D14: =IF(PlotControl!$B$4 = "Annual Max",MAX(OFFSET('2WFines'!$E$10,12*$A14,4*(PlotControl!$C$6-1),12,1)),AVERAGE(OFFSET('2WFines'!$E$10,12*$A14,4*(PlotControl!$C$6-1),12,1))) -> 111049.1667 | E14: =IF(PlotControl!$B$4 = "Annual Max",MAX(OFFSET('2WCoarse'!$C$10,12*$A14,4*(PlotControl!$C$6-1),12,1)),AVERAGE(OFFSET('2WCoarse'!$C$10,12*$A14,4*(PlotControl!$C$6-1),12,1))) -> 64060 | F14: =IF(PlotControl!$B$4 = "Annual Max",MAX(OFFSET('2WCoarse'!$D$10,12*$A14,4*(PlotControl!$C$6-1),12,1)),AVERAGE(OFFSET('2WCoarse'!$D$10,12*$A14,4*(PlotControl!$C$6-1),12,1))) -> 64564.75 | G14: =IF(PlotControl!$B$4 = "Annual Max",MAX(OFFSET('2WCoarse'!$E$10,12*$A14,4*(PlotControl!$C$6-1),12,1)),AVERAGE(OFFSET('2WCoarse'!$E$10,12*$A14,4*(PlotControl!$C$6-1),12,1))) -> 65246.5 | H14: =IF(PlotControl!$B$4 = "Annual Max",MAX(OFFSET('2WBank'!$C$10,12*$A14,4*(PlotControl!$C$6-1),12,1)),AVERAGE(OFFSET('2WBank'!$C$10,12*$A14,4*(PlotControl!$C$6-1),12,1))) -> 93383.58333 | I14: =IF(PlotControl!$B$4 = "Annual Max",MAX(OFFSET('2WBank'!$D$10,12*$A14,4*(PlotControl!$C$6-1),12,1)),AVERAGE(OFFSET('2WBank'!$D$10,12*$A14,4*(PlotControl!$C$6-1),12,1))) -> 94233.75 | J14: =IF(PlotControl!$B$4 = "Annual Max",MAX(OFFSET('2WBank'!$E$10,12*$A14,4*(PlotControl!$C$6-1),12,1)),AVERAGE(OFFSET('2WBank'!$E$10,12*$A14,4*(PlotControl!$C$6-1),12,1))) -> 95374.66667 | K14: =IF(PlotControl!$B$4 = "Annual Max",MAX(OFFSET('2EFines'!$C$10,12*$A14,4*(PlotControl!$C$6-1),12,1)),AVERAGE(OFFSET('2EFines'!$C$10,12*$A14,4*(PlotControl!$C$6-1),12,1))) -> 11219 | L14: =IF(PlotControl!$B$4 = "Annual Max",MAX(OFFSET('2EFines'!$D$10,12*$A14,4*(PlotControl!$C$6-1),12,1)),AVERAGE(OFFSET('2EFines'!$D$10,12*$A14,4*(PlotControl!$C$6-1),12,1))) -> 11225 | M14: =IF(PlotControl!$B$4 = "Annual Max",MAX(OFFSET('2EFines'!$E$10,12*$A14,4*(PlotControl!$C$6-1),12,1)),AVERAGE(OFFSET('2EFines'!$E$10,12*$A14,4*(PlotControl!$C$6-1),12,1))) -> 11232 | N14: =IF(PlotControl!$B$4 = "Annual Max",MAX(OFFSET('2ECoarse'!$C$10,12*$A14,4*(PlotControl!$C$6-1),12,1)),AVERAGE(OFFSET('2ECoarse'!$C$10,12*$A14,4*(PlotControl!$C$6-1),12,1))) -> 11217 | O14: =IF(PlotControl!$B$4 = "Annual Max",MAX(OFFSET('2ECoarse'!$D$10,12*$A14,4*(PlotControl!$C$6-1),12,1)),AVERAGE(OFFSET('2ECoarse'!$D$10,12*$A14,4*(PlotControl!$C$6-1),12,1))) -> 11219 | P14: =IF(PlotControl!$B$4 = "Annual Max",MAX(OFFSET('2ECoarse'!$E$10,12*$A14,4*(PlotControl!$C$6-1),12,1)),AVERAGE(OFFSET('2ECoarse'!$E$10,12*$A14,4*(PlotControl!$C$6-1),12,1))) -> 11221 | Q14: =IF(PlotControl!$B$4 = "Annual Max",MAX(OFFSET('2EBank'!$C$10,12*$A14,4*(PlotControl!$C$6-1),12,1)),AVERAGE(OFFSET('2EBank'!$C$10,12*$A14,4*(PlotControl!$C$6-1),12,1))) -> 7453.958333 | R14: =IF(PlotControl!$B$4 = "Annual Max",MAX(OFFSET('2EBank'!$D$10,12*$A14,4*(PlotControl!$C$6-1),12,1)),AVERAGE(OFFSET('2EBank'!$D$10,12*$A14,4*(PlotControl!$C$6-1),12,1))) -> 7511.575 | S14: =IF(PlotControl!$B$4 = "Annual Max",MAX(OFFSET('2EBank'!$E$10,12*$A14,4*(PlotControl!$C$6-1),12,1)),AVERAGE(OFFSET('2EBank'!$E$10,12*$A14,4*(PlotControl!$C$6-1),12,1))) -> 7590.225 | T14: =IF(PlotControl!$B$4 = "Annual Max",MAX(OFFSET('1EFines'!$C$10,12*$A14,4*(PlotControl!$C$6-1),12,1)),AVERAGE(OFFSET('1EFines'!$C$10,12*$A14,4*(PlotControl!$C$6-1),12,1))) -> 13846 | U14: =IF(PlotControl!$B$4 = "Annual Max",MAX(OFFSET('1EFines'!$D$10,12*$A14,4*(PlotControl!$C$6-1),12,1)),AVERAGE(OFFSET('1EFines'!$D$10,12*$A14,4*(PlotControl!$C$6-1),12,1))) -> 13937 | V14: =IF(PlotControl!$B$4 = "Annual Max",MAX(OFFSET('1EFines'!$E$10,12*$A14,4*(PlotControl!$C$6-1),12,1)),AVERAGE(OFFSET('1EFines'!$E$10,12*$A14,4*(PlotControl!$C$6-1),12,1))) -> 14052 | W14: =IF(PlotControl!$B$4 = "Annual Max",MAX(OFFSET('1ECoarse'!$C$10,12*$A14,4*(PlotControl!$C$6-1),12,1)),AVERAGE(OFFSET('1ECoarse'!$C$10,12*$A14,4*(PlotControl!$C$6-1),12,1))) -> 66573.41667 | X14: =IF(PlotControl!$B$4 = "Annual Max",MAX(OFFSET('1ECoarse'!$D$10,12*$A14,4*(PlotControl!$C$6-1),12,1)),AVERAGE(OFFSET('1ECoarse'!$D$10,12*$A14,4*(PlotControl!$C$6-1),12,1))) -> 66773.41667 | Y14: =IF(PlotControl!$B$4 = "Annual Max",MAX(OFFSET('1ECoarse'!$E$10,12*$A14,4*(PlotControl!$C$6-1),12,1)),AVERAGE(OFFSET('1ECoarse'!$E$10,12*$A14,4*(PlotControl!$C$6-1),12,1))) -> 67022.83333
A15: 10 | B15: =IF(PlotControl!$B$4 = "Annual Max",MAX(OFFSET('2WFines'!$C$10,12*$A15,4*(PlotControl!$C$6-1),12,1)),AVERAGE(OFFSET('2WFines'!$C$10,12*$A15,4*(PlotControl!$C$6-1),12,1))) -> 109169.1667 | C15: =IF(PlotControl!$B$4 = "Annual Max",MAX(OFFSET('2WFines'!$D$10,12*$A15,4*(PlotControl!$C$6-1),12,1)),AVERAGE(OFFSET('2WFines'!$D$10,12*$A15,4*(PlotControl!$C$6-1),12,1))) -> 109785.8333 | D15: =IF(PlotControl!$B$4 = "Annual Max",MAX(OFFSET('2WFines'!$E$10,12*$A15,4*(PlotControl!$C$6-1),12,1)),AVERAGE(OFFSET('2WFines'!$E$10,12*$A15,4*(PlotControl!$C$6-1),12,1))) -> 110777.5 | E15: =IF(PlotControl!$B$4 = "Annual Max",MAX(OFFSET('2WCoarse'!$C$10,12*$A15,4*(PlotControl!$C$6-1),12,1)),AVERAGE(OFFSET('2WCoarse'!$C$10,12*$A15,4*(PlotControl!$C$6-1),12,1))) -> 63847.5 | F15: =IF(PlotControl!$B$4 = "Annual Max",MAX(OFFSET('2WCoarse'!$D$10,12*$A15,4*(PlotControl!$C$6-1),12,1)),AVERAGE(OFFSET('2WCoarse'!$D$10,12*$A15,4*(PlotControl!$C$6-1),12,1))) -> 64398.5 | G15: =IF(PlotControl!$B$4 = "Annual Max",MAX(OFFSET('2WCoarse'!$E$10,12*$A15,4*(PlotControl!$C$6-1),12,1)),AVERAGE(OFFSET('2WCoarse'!$E$10,12*$A15,4*(PlotControl!$C$6-1),12,1))) -> 65161.33333 | H15: =IF(PlotControl!$B$4 = "Annual Max",MAX(OFFSET('2WBank'!$C$10,12*$A15,4*(PlotControl!$C$6-1),12,1)),AVERAGE(OFFSET('2WBank'!$C$10,12*$A15,4*(PlotControl!$C$6-1),12,1))) -> 93045.16667 | I15: =IF(PlotControl!$B$4 = "Annual Max",MAX(OFFSET('2WBank'!$D$10,12*$A15,4*(PlotControl!$C$6-1),12,1)),AVERAGE(OFFSET('2WBank'!$D$10,12*$A15,4*(PlotControl!$C$6-1),12,1))) -> 93967.66667 | J15: =IF(PlotControl!$B$4 = "Annual Max",MAX(OFFSET('2WBank'!$E$10,12*$A15,4*(PlotControl!$C$6-1),12,1)),AVERAGE(OFFSET('2WBank'!$E$10,12*$A15,4*(PlotControl!$C$6-1),12,1))) -> 95240.25 | K15: =IF(PlotControl!$B$4 = "Annual Max",MAX(OFFSET('2EFines'!$C$10,12*$A15,4*(PlotControl!$C$6-1),12,1)),AVERAGE(OFFSET('2EFines'!$C$10,12*$A15,4*(PlotControl!$C$6-1),12,1))) -> 11219 | L15: =IF(PlotControl!$B$4 = "Annual Max",MAX(OFFSET('2EFines'!$D$10,12*$A15,4*(PlotControl!$C$6-1),12,1)),AVERAGE(OFFSET('2EFines'!$D$10,12*$A15,4*(PlotControl!$C$6-1),12,1))) -> 11225 | M15: =IF(PlotControl!$B$4 = "Annual Max",MAX(OFFSET('2EFines'!$E$10,12*$A15,4*(PlotControl!$C$6-1),12,1)),AVERAGE(OFFSET('2EFines'!$E$10,12*$A15,4*(PlotControl!$C$6-1),12,1))) -> 11232 | N15: =IF(PlotControl!$B$4 = "Annual Max",MAX(OFFSET('2ECoarse'!$C$10,12*$A15,4*(PlotControl!$C$6-1),12,1)),AVERAGE(OFFSET('2ECoarse'!$C$10,12*$A15,4*(PlotControl!$C$6-1),12,1))) -> 11217 | O15: =IF(PlotControl!$B$4 = "Annual Max",MAX(OFFSET('2ECoarse'!$D$10,12*$A15,4*(PlotControl!$C$6-1),12,1)),AVERAGE(OFFSET('2ECoarse'!$D$10,12*$A15,4*(PlotControl!$C$6-1),12,1))) -> 11219 | P15: =IF(PlotControl!$B$4 = "Annual Max",MAX(OFFSET('2ECoarse'!$E$10,12*$A15,4*(PlotControl!$C$6-1),12,1)),AVERAGE(OFFSET('2ECoarse'!$E$10,12*$A15,4*(PlotControl!$C$6-1),12,1))) -> 11221 | Q15: =IF(PlotControl!$B$4 = "Annual Max",MAX(OFFSET('2EBank'!$C$10,12*$A15,4*(PlotControl!$C$6-1),12,1)),AVERAGE(OFFSET('2EBank'!$C$10,12*$A15,4*(PlotControl!$C$6-1),12,1))) -> 7424.358333 | R15: =IF(PlotControl!$B$4 = "Annual Max",MAX(OFFSET('2EBank'!$D$10,12*$A15,4*(PlotControl!$C$6-1),12,1)),AVERAGE(OFFSET('2EBank'!$D$10,12*$A15,4*(PlotControl!$C$6-1),12,1))) -> 7488.808333 | S15: =IF(PlotControl!$B$4 = "Annual Max",MAX(OFFSET('2EBank'!$E$10,12*$A15,4*(PlotControl!$C$6-1),12,1)),AVERAGE(OFFSET('2EBank'!$E$10,12*$A15,4*(PlotControl!$C$6-1),12,1))) -> 7578.183333 | T15: =IF(PlotControl!$B$4 = "Annual Max",MAX(OFFSET('1EFines'!$C$10,12*$A15,4*(PlotControl!$C$6-1),12,1)),AVERAGE(OFFSET('1EFines'!$C$10,12*$A15,4*(PlotControl!$C$6-1),12,1))) -> 13846 | U15: =IF(PlotControl!$B$4 = "Annual Max",MAX(OFFSET('1EFines'!$D$10,12*$A15,4*(PlotControl!$C$6-1),12,1)),AVERAGE(OFFSET('1EFines'!$D$10,12*$A15,4*(PlotControl!$C$6-1),12,1))) -> 13937 | V15: =IF(PlotControl!$B$4 = "Annual Max",MAX(OFFSET('1EFines'!$E$10,12*$A15,4*(PlotControl!$C$6-1),12,1)),AVERAGE(OFFSET('1EFines'!$E$10,12*$A15,4*(PlotControl!$C$6-1),12,1))) -> 14052 | W15: =IF(PlotControl!$B$4 = "Annual Max",MAX(OFFSET('1ECoarse'!$C$10,12*$A15,4*(PlotControl!$C$6-1),12,1)),AVERAGE(OFFSET('1ECoarse'!$C$10,12*$A15,4*(PlotControl!$C$6-1),12,1))) -> 66571.83333 | X15: =IF(PlotControl!$B$4 = "Annual Max",MAX(OFFSET('1ECoarse'!$D$10,12*$A15,4*(PlotControl!$C$6-1),12,1)),AVERAGE(OFFSET('1ECoarse'!$D$10,12*$A15,4*(PlotControl!$C$6-1),12,1))) -> 66772.25 | Y15: =IF(PlotControl!$B$4 = "Annual Max",MAX(OFFSET('1ECoarse'!$E$10,12*$A15,4*(PlotControl!$C$6-1),12,1)),AVERAGE(OFFSET('1ECoarse'!$E$10,12*$A15,4*(PlotControl!$C$6-1),12,1))) -> 67022
A16: 11 | B16: =IF(PlotControl!$B$4 = "Annual Max",MAX(OFFSET('2WFines'!$C$10,12*$A16,4*(PlotControl!$C$6-1),12,1)),AVERAGE(OFFSET('2WFines'!$C$10,12*$A16,4*(PlotControl!$C$6-1),12,1))) -> 108744.1667 | C16: =IF(PlotControl!$B$4 = "Annual Max",MAX(OFFSET('2WFines'!$D$10,12*$A16,4*(PlotControl!$C$6-1),12,1)),AVERAGE(OFFSET('2WFines'!$D$10,12*$A16,4*(PlotControl!$C$6-1),12,1))) -> 109420 | D16: =IF(PlotControl!$B$4 = "Annual Max",MAX(OFFSET('2WFines'!$E$10,12*$A16,4*(PlotControl!$C$6-1),12,1)),AVERAGE(OFFSET('2WFines'!$E$10,12*$A16,4*(PlotControl!$C$6-1),12,1))) -> 110505.8333 | E16: =IF(PlotControl!$B$4 = "Annual Max",MAX(OFFSET('2WCoarse'!$C$10,12*$A16,4*(PlotControl!$C$6-1),12,1)),AVERAGE(OFFSET('2WCoarse'!$C$10,12*$A16,4*(PlotControl!$C$6-1),12,1))) -> 63643.33333 | F16: =IF(PlotControl!$B$4 = "Annual Max",MAX(OFFSET('2WCoarse'!$D$10,12*$A16,4*(PlotControl!$C$6-1),12,1)),AVERAGE(OFFSET('2WCoarse'!$D$10,12*$A16,4*(PlotControl!$C$6-1),12,1))) -> 64249.41667 | G16: =IF(PlotControl!$B$4 = "Annual Max",MAX(OFFSET('2WCoarse'!$E$10,12*$A16,4*(PlotControl!$C$6-1),12,1)),AVERAGE(OFFSET('2WCoarse'!$E$10,12*$A16,4*(PlotControl!$C$6-1),12,1))) -> 65076.08333 | H16: =IF(PlotControl!$B$4 = "Annual Max",MAX(OFFSET('2WBank'!$C$10,12*$A16,4*(PlotControl!$C$6-1),12,1)),AVERAGE(OFFSET('2WBank'!$C$10,12*$A16,4*(PlotControl!$C$6-1),12,1))) -> 92721.25 | I16: =IF(PlotControl!$B$4 = "Annual Max",MAX(OFFSET('2WBank'!$D$10,12*$A16,4*(PlotControl!$C$6-1),12,1)),AVERAGE(OFFSET('2WBank'!$D$10,12*$A16,4*(PlotControl!$C$6-1),12,1))) -> 93726.16667 | J16: =IF(PlotControl!$B$4 = "Annual Max",MAX(OFFSET('2WBank'!$E$10,12*$A16,4*(PlotControl!$C$6-1),12,1)),AVERAGE(OFFSET('2WBank'!$E$10,12*$A16,4*(PlotControl!$C$6-1),12,1))) -> 95102.91667 | K16: =IF(PlotControl!$B$4 = "Annual Max",MAX(OFFSET('2EFines'!$C$10,12*$A16,4*(PlotControl!$C$6-1),12,1)),AVERAGE(OFFSET('2EFines'!$C$10,12*$A16,4*(PlotControl!$C$6-1),12,1))) -> 11219 | L16: =IF(PlotControl!$B$4 = "Annual Max",MAX(OFFSET('2EFines'!$D$10,12*$A16,4*(PlotControl!$C$6-1),12,1)),AVERAGE(OFFSET('2EFines'!$D$10,12*$A16,4*(PlotControl!$C$6-1),12,1))) -> 11225 | M16: =IF(PlotControl!$B$4 = "Annual Max",MAX(OFFSET('2EFines'!$E$10,12*$A16,4*(PlotControl!$C$6-1),12,1)),AVERAGE(OFFSET('2EFines'!$E$10,12*$A16,4*(PlotControl!$C$6-1),12,1))) -> 11232 | N16: =IF(PlotControl!$B$4 = "Annual Max",MAX(OFFSET('2ECoarse'!$C$10,12*$A16,4*(PlotControl!$C$6-1),12,1)),AVERAGE(OFFSET('2ECoarse'!$C$10,12*$A16,4*(PlotControl!$C$6-1),12,1))) -> 11217 | O16: =IF(PlotControl!$B$4 = "Annual Max",MAX(OFFSET('2ECoarse'!$D$10,12*$A16,4*(PlotControl!$C$6-1),12,1)),AVERAGE(OFFSET('2ECoarse'!$D$10,12*$A16,4*(PlotControl!$C$6-1),12,1))) -> 11219 | P16: =IF(PlotControl!$B$4 = "Annual Max",MAX(OFFSET('2ECoarse'!$E$10,12*$A16,4*(PlotControl!$C$6-1),12,1)),AVERAGE(OFFSET('2ECoarse'!$E$10,12*$A16,4*(PlotControl!$C$6-1),12,1))) -> 11221 | Q16: =IF(PlotControl!$B$4 = "Annual Max",MAX(OFFSET('2EBank'!$C$10,12*$A16,4*(PlotControl!$C$6-1),12,1)),AVERAGE(OFFSET('2EBank'!$C$10,12*$A16,4*(PlotControl!$C$6-1),12,1))) -> 7395.4 | R16: =IF(PlotControl!$B$4 = "Annual Max",MAX(OFFSET('2EBank'!$D$10,12*$A16,4*(PlotControl!$C$6-1),12,1)),AVERAGE(OFFSET('2EBank'!$D$10,12*$A16,4*(PlotControl!$C$6-1),12,1))) -> 7468.758333 | S16: =IF(PlotControl!$B$4 = "Annual Max",MAX(OFFSET('2EBank'!$E$10,12*$A16,4*(PlotControl!$C$6-1),12,1)),AVERAGE(OFFSET('2EBank'!$E$10,12*$A16,4*(PlotControl!$C$6-1),12,1))) -> 7566.691667 | T16: =IF(PlotControl!$B$4 = "Annual Max",MAX(OFFSET('1EFines'!$C$10,12*$A16,4*(PlotControl!$C$6-1),12,1)),AVERAGE(OFFSET('1EFines'!$C$10,12*$A16,4*(PlotControl!$C$6-1),12,1))) -> 13846 | U16: =IF(PlotControl!$B$4 = "Annual Max",MAX(OFFSET('1EFines'!$D$10,12*$A16,4*(PlotControl!$C$6-1),12,1)),AVERAGE(OFFSET('1EFines'!$D$10,12*$A16,4*(PlotControl!$C$6-1),12,1))) -> 13937 | V16: =IF(PlotControl!$B$4 = "Annual Max",MAX(OFFSET('1EFines'!$E$10,12*$A16,4*(PlotControl!$C$6-1),12,1)),AVERAGE(OFFSET('1EFines'!$E$10,12*$A16,4*(PlotControl!$C$6-1),12,1))) -> 14052 | W16: =IF(PlotControl!$B$4 = "Annual Max",MAX(OFFSET('1ECoarse'!$C$10,12*$A16,4*(PlotControl!$C$6-1),12,1)),AVERAGE(OFFSET('1ECoarse'!$C$10,12*$A16,4*(PlotControl!$C$6-1),12,1))) -> 66570.33333 | X16: =IF(PlotControl!$B$4 = "Annual Max",MAX(OFFSET('1ECoarse'!$D$10,12*$A16,4*(PlotControl!$C$6-1),12,1)),AVERAGE(OFFSET('1ECoarse'!$D$10,12*$A16,4*(PlotControl!$C$6-1),12,1))) -> 66771.16667 | Y16: =IF(PlotControl!$B$4 = "Annual Max",MAX(OFFSET('1ECoarse'!$E$10,12*$A16,4*(PlotControl!$C$6-1),12,1)),AVERAGE(OFFSET('1ECoarse'!$E$10,12*$A16,4*(PlotControl!$C$6-1),12,1))) -> 67021.41667
A17: 12 | B17: =IF(PlotControl!$B$4 = "Annual Max",MAX(OFFSET('2WFines'!$C$10,12*$A17,4*(PlotControl!$C$6-1),12,1)),AVERAGE(OFFSET('2WFines'!$C$10,12*$A17,4*(PlotControl!$C$6-1),12,1))) -> 108315 | C17: =IF(PlotControl!$B$4 = "Annual Max",MAX(OFFSET('2WFines'!$D$10,12*$A17,4*(PlotControl!$C$6-1),12,1)),AVERAGE(OFFSET('2WFines'!$D$10,12*$A17,4*(PlotControl!$C$6-1),12,1))) -> 109061.6667 | D17: =IF(PlotControl!$B$4 = "Annual Max",MAX(OFFSET('2WFines'!$E$10,12*$A17,4*(PlotControl!$C$6-1),12,1)),AVERAGE(OFFSET('2WFines'!$E$10,12*$A17,4*(PlotControl!$C$6-1),12,1))) -> 110244.1667 | E17: =IF(PlotControl!$B$4 = "Annual Max",MAX(OFFSET('2WCoarse'!$C$10,12*$A17,4*(PlotControl!$C$6-1),12,1)),AVERAGE(OFFSET('2WCoarse'!$C$10,12*$A17,4*(PlotControl!$C$6-1),12,1))) -> 63444.33333 | F17: =IF(PlotControl!$B$4 = "Annual Max",MAX(OFFSET('2WCoarse'!$D$10,12*$A17,4*(PlotControl!$C$6-1),12,1)),AVERAGE(OFFSET('2WCoarse'!$D$10,12*$A17,4*(PlotControl!$C$6-1),12,1))) -> 64104 | G17: =IF(PlotControl!$B$4 = "Annual Max",MAX(OFFSET('2WCoarse'!$E$10,12*$A17,4*(PlotControl!$C$6-1),12,1)),AVERAGE(OFFSET('2WCoarse'!$E$10,12*$A17,4*(PlotControl!$C$6-1),12,1))) -> 64989.41667 | H17: =IF(PlotControl!$B$4 = "Annual Max",MAX(OFFSET('2WBank'!$C$10,12*$A17,4*(PlotControl!$C$6-1),12,1)),AVERAGE(OFFSET('2WBank'!$C$10,12*$A17,4*(PlotControl!$C$6-1),12,1))) -> 92401.91667 | I17: =IF(PlotControl!$B$4 = "Annual Max",MAX(OFFSET('2WBank'!$D$10,12*$A17,4*(PlotControl!$C$6-1),12,1)),AVERAGE(OFFSET('2WBank'!$D$10,12*$A17,4*(PlotControl!$C$6-1),12,1))) -> 93493.33333 | J17: =IF(PlotControl!$B$4 = "Annual Max",MAX(OFFSET('2WBank'!$E$10,12*$A17,4*(PlotControl!$C$6-1),12,1)),AVERAGE(OFFSET('2WBank'!$E$10,12*$A17,4*(PlotControl!$C$6-1),12,1))) -> 94964.16667 | K17: =IF(PlotControl!$B$4 = "Annual Max",MAX(OFFSET('2EFines'!$C$10,12*$A17,4*(PlotControl!$C$6-1),12,1)),AVERAGE(OFFSET('2EFines'!$C$10,12*$A17,4*(PlotControl!$C$6-1),12,1))) -> 11219 | L17: =IF(PlotControl!$B$4 = "Annual Max",MAX(OFFSET('2EFines'!$D$10,12*$A17,4*(PlotControl!$C$6-1),12,1)),AVERAGE(OFFSET('2EFines'!$D$10,12*$A17,4*(PlotControl!$C$6-1),12,1))) -> 11225 | M17: =IF(PlotControl!$B$4 = "Annual Max",MAX(OFFSET('2EFines'!$E$10,12*$A17,4*(PlotControl!$C$6-1),12,1)),AVERAGE(OFFSET('2EFines'!$E$10,12*$A17,4*(PlotControl!$C$6-1),12,1))) -> 11232 | N17: =IF(PlotControl!$B$4 = "Annual Max",MAX(OFFSET('2ECoarse'!$C$10,12*$A17,4*(PlotControl!$C$6-1),12,1)),AVERAGE(OFFSET('2ECoarse'!$C$10,12*$A17,4*(PlotControl!$C$6-1),12,1))) -> 11217 | O17: =IF(PlotControl!$B$4 = "Annual Max",MAX(OFFSET('2ECoarse'!$D$10,12*$A17,4*(PlotControl!$C$6-1),12,1)),AVERAGE(OFFSET('2ECoarse'!$D$10,12*$A17,4*(PlotControl!$C$6-1),12,1))) -> 11219 | P17: =IF(PlotControl!$B$4 = "Annual Max",MAX(OFFSET('2ECoarse'!$E$10,12*$A17,4*(PlotControl!$C$6-1),12,1)),AVERAGE(OFFSET('2ECoarse'!$E$10,12*$A17,4*(PlotControl!$C$6-1),12,1))) -> 11221 | Q17: =IF(PlotControl!$B$4 = "Annual Max",MAX(OFFSET('2EBank'!$C$10,12*$A17,4*(PlotControl!$C$6-1),12,1)),AVERAGE(OFFSET('2EBank'!$C$10,12*$A17,4*(PlotControl!$C$6-1),12,1))) -> 7367.258333 | R17: =IF(PlotControl!$B$4 = "Annual Max",MAX(OFFSET('2EBank'!$D$10,12*$A17,4*(PlotControl!$C$6-1),12,1)),AVERAGE(OFFSET('2EBank'!$D$10,12*$A17,4*(PlotControl!$C$6-1),12,1))) -> 7447.75 | S17: =IF(PlotControl!$B$4 = "Annual Max",MAX(OFFSET('2EBank'!$E$10,12*$A17,4*(PlotControl!$C$6-1),12,1)),AVERAGE(OFFSET('2EBank'!$E$10,12*$A17,4*(PlotControl!$C$6-1),12,1))) -> 7554.933333 | T17: =IF(PlotControl!$B$4 = "Annual Max",MAX(OFFSET('1EFines'!$C$10,12*$A17,4*(PlotControl!$C$6-1),12,1)),AVERAGE(OFFSET('1EFines'!$C$10,12*$A17,4*(PlotControl!$C$6-1),12,1))) -> 13846 | U17: =IF(PlotControl!$B$4 = "Annual Max",MAX(OFFSET('1EFines'!$D$10,12*$A17,4*(PlotControl!$C$6-1),12,1)),AVERAGE(OFFSET('1EFines'!$D$10,12*$A17,4*(PlotControl!$C$6-1),12,1))) -> 13937 | V17: =IF(PlotControl!$B$4 = "Annual Max",MAX(OFFSET('1EFines'!$E$10,12*$A17,4*(PlotControl!$C$6-1),12,1)),AVERAGE(OFFSET('1EFines'!$E$10,12*$A17,4*(PlotControl!$C$6-1),12,1))) -> 14052 | W17: =IF(PlotControl!$B$4 = "Annual Max",MAX(OFFSET('1ECoarse'!$C$10,12*$A17,4*(PlotControl!$C$6-1),12,1)),AVERAGE(OFFSET('1ECoarse'!$C$10,12*$A17,4*(PlotControl!$C$6-1),12,1))) -> 66568.66667 | X17: =IF(PlotControl!$B$4 = "Annual Max",MAX(OFFSET('1ECoarse'!$D$10,12*$A17,4*(PlotControl!$C$6-1),12,1)),AVERAGE(OFFSET('1ECoarse'!$D$10,12*$A17,4*(PlotControl!$C$6-1),12,1))) -> 66770 | Y17: =IF(PlotControl!$B$4 = "Annual Max",MAX(OFFSET('1ECoarse'!$E$10,12*$A17,4*(PlotControl!$C$6-1),12,1)),AVERAGE(OFFSET('1ECoarse'!$E$10,12*$A17,4*(PlotControl!$C$6-1),12,1))) -> 67021
A18: 13 | B18: =IF(PlotControl!$B$4 = "Annual Max",MAX(OFFSET('2WFines'!$C$10,12*$A18,4*(PlotControl!$C$6-1),12,1)),AVERAGE(OFFSET('2WFines'!$C$10,12*$A18,4*(PlotControl!$C$6-1),12,1))) -> 107875.8333 | C18: =IF(PlotControl!$B$4 = "Annual Max",MAX(OFFSET('2WFines'!$D$10,12*$A18,4*(PlotControl!$C$6-1),12,1)),AVERAGE(OFFSET('2WFines'!$D$10,12*$A18,4*(PlotControl!$C$6-1),12,1))) -> 108690 | D18: =IF(PlotControl!$B$4 = "Annual Max",MAX(OFFSET('2WFines'!$E$10,12*$A18,4*(PlotControl!$C$6-1),12,1)),AVERAGE(OFFSET('2WFines'!$E$10,12*$A18,4*(PlotControl!$C$6-1),12,1))) -> 109967.5 | E18: =IF(PlotControl!$B$4 = "Annual Max",MAX(OFFSET('2WCoarse'!$C$10,12*$A18,4*(PlotControl!$C$6-1),12,1)),AVERAGE(OFFSET('2WCoarse'!$C$10,12*$A18,4*(PlotControl!$C$6-1),12,1))) -> 63239.08333 | F18: =IF(PlotControl!$B$4 = "Annual Max",MAX(OFFSET('2WCoarse'!$D$10,12*$A18,4*(PlotControl!$C$6-1),12,1)),AVERAGE(OFFSET('2WCoarse'!$D$10,12*$A18,4*(PlotControl!$C$6-1),12,1))) -> 63954.58333 | G18: =IF(PlotControl!$B$4 = "Annual Max",MAX(OFFSET('2WCoarse'!$E$10,12*$A18,4*(PlotControl!$C$6-1),12,1)),AVERAGE(OFFSET('2WCoarse'!$E$10,12*$A18,4*(PlotControl!$C$6-1),12,1))) -> 64911.58333 | H18: =IF(PlotControl!$B$4 = "Annual Max",MAX(OFFSET('2WBank'!$C$10,12*$A18,4*(PlotControl!$C$6-1),12,1)),AVERAGE(OFFSET('2WBank'!$C$10,12*$A18,4*(PlotControl!$C$6-1),12,1))) -> 92075.25 | I18: =IF(PlotControl!$B$4 = "Annual Max",MAX(OFFSET('2WBank'!$D$10,12*$A18,4*(PlotControl!$C$6-1),12,1)),AVERAGE(OFFSET('2WBank'!$D$10,12*$A18,4*(PlotControl!$C$6-1),12,1))) -> 93254.41667 | J18: =IF(PlotControl!$B$4 = "Annual Max",MAX(OFFSET('2WBank'!$E$10,12*$A18,4*(PlotControl!$C$6-1),12,1)),AVERAGE(OFFSET('2WBank'!$E$10,12*$A18,4*(PlotControl!$C$6-1),12,1))) -> 94840.16667 | K18: =IF(PlotControl!$B$4 = "Annual Max",MAX(OFFSET('2EFines'!$C$10,12*$A18,4*(PlotControl!$C$6-1),12,1)),AVERAGE(OFFSET('2EFines'!$C$10,12*$A18,4*(PlotControl!$C$6-1),12,1))) -> 11219 | L18: =IF(PlotControl!$B$4 = "Annual Max",MAX(OFFSET('2EFines'!$D$10,12*$A18,4*(PlotControl!$C$6-1),12,1)),AVERAGE(OFFSET('2EFines'!$D$10,12*$A18,4*(PlotControl!$C$6-1),12,1))) -> 11225 | M18: =IF(PlotControl!$B$4 = "Annual Max",MAX(OFFSET('2EFines'!$E$10,12*$A18,4*(PlotControl!$C$6-1),12,1)),AVERAGE(OFFSET('2EFines'!$E$10,12*$A18,4*(PlotControl!$C$6-1),12,1))) -> 11232 | N18: =IF(PlotControl!$B$4 = "Annual Max",MAX(OFFSET('2ECoarse'!$C$10,12*$A18,4*(PlotControl!$C$6-1),12,1)),AVERAGE(OFFSET('2ECoarse'!$C$10,12*$A18,4*(PlotControl!$C$6-1),12,1))) -> 11217 | O18: =IF(PlotControl!$B$4 = "Annual Max",MAX(OFFSET('2ECoarse'!$D$10,12*$A18,4*(PlotControl!$C$6-1),12,1)),AVERAGE(OFFSET('2ECoarse'!$D$10,12*$A18,4*(PlotControl!$C$6-1),12,1))) -> 11219 | P18: =IF(PlotControl!$B$4 = "Annual Max",MAX(OFFSET('2ECoarse'!$E$10,12*$A18,4*(PlotControl!$C$6-1),12,1)),AVERAGE(OFFSET('2ECoarse'!$E$10,12*$A18,4*(PlotControl!$C$6-1),12,1))) -> 11221 | Q18: =IF(PlotControl!$B$4 = "Annual Max",MAX(OFFSET('2EBank'!$C$10,12*$A18,4*(PlotControl!$C$6-1),12,1)),AVERAGE(OFFSET('2EBank'!$C$10,12*$A18,4*(PlotControl!$C$6-1),12,1))) -> 7337.591667 | R18: =IF(PlotControl!$B$4 = "Annual Max",MAX(OFFSET('2EBank'!$D$10,12*$A18,4*(PlotControl!$C$6-1),12,1)),AVERAGE(OFFSET('2EBank'!$D$10,12*$A18,4*(PlotControl!$C$6-1),12,1))) -> 7426.15 | S18: =IF(PlotControl!$B$4 = "Annual Max",MAX(OFFSET('2EBank'!$E$10,12*$A18,4*(PlotControl!$C$6-1),12,1)),AVERAGE(OFFSET('2EBank'!$E$10,12*$A18,4*(PlotControl!$C$6-1),12,1))) -> 7543.858333 | T18: =IF(PlotControl!$B$4 = "Annual Max",MAX(OFFSET('1EFines'!$C$10,12*$A18,4*(PlotControl!$C$6-1),12,1)),AVERAGE(OFFSET('1EFines'!$C$10,12*$A18,4*(PlotControl!$C$6-1),12,1))) -> 13846 | U18: =IF(PlotControl!$B$4 = "Annual Max",MAX(OFFSET('1EFines'!$D$10,12*$A18,4*(PlotControl!$C$6-1),12,1)),AVERAGE(OFFSET('1EFines'!$D$10,12*$A18,4*(PlotControl!$C$6-1),12,1))) -> 13937 | V18: =IF(PlotControl!$B$4 = "Annual Max",MAX(OFFSET('1EFines'!$E$10,12*$A18,4*(PlotControl!$C$6-1),12,1)),AVERAGE(OFFSET('1EFines'!$E$10,12*$A18,4*(PlotControl!$C$6-1),12,1))) -> 14052 | W18: =IF(PlotControl!$B$4 = "Annual Max",MAX(OFFSET('1ECoarse'!$C$10,12*$A18,4*(PlotControl!$C$6-1),12,1)),AVERAGE(OFFSET('1ECoarse'!$C$10,12*$A18,4*(PlotControl!$C$6-1),12,1))) -> 66567.33333 | X18: =IF(PlotControl!$B$4 = "Annual Max",MAX(OFFSET('1ECoarse'!$D$10,12*$A18,4*(PlotControl!$C$6-1),12,1)),AVERAGE(OFFSET('1ECoarse'!$D$10,12*$A18,4*(PlotControl!$C$6-1),12,1))) -> 66768.91667 | Y18: =IF(PlotControl!$B$4 = "Annual Max",MAX(OFFSET('1ECoarse'!$E$10,12*$A18,4*(PlotControl!$C$6-1),12,1)),AVERAGE(OFFSET('1ECoarse'!$E$10,12*$A18,4*(PlotControl!$C$6-1),12,1))) -> 67020
A19: 14 | B19: =IF(PlotControl!$B$4 = "Annual Max",MAX(OFFSET('2WFines'!$C$10,12*$A19,4*(PlotControl!$C$6-1),12,1)),AVERAGE(OFFSET('2WFines'!$C$10,12*$A19,4*(PlotControl!$C$6-1),12,1))) -> 107461.6667 | C19: =IF(PlotControl!$B$4 = "Annual Max",MAX(OFFSET('2WFines'!$D$10,12*$A19,4*(PlotControl!$C$6-1),12,1)),AVERAGE(OFFSET('2WFines'!$D$10,12*$A19,4*(PlotControl!$C$6-1),12,1))) -> 108331.6667 | D19: =IF(PlotControl!$B$4 = "Annual Max",MAX(OFFSET('2WFines'!$E$10,12*$A19,4*(PlotControl!$C$6-1),12,1)),AVERAGE(OFFSET('2WFines'!$E$10,12*$A19,4*(PlotControl!$C$6-1),12,1))) -> 109689.1667 | E19: =IF(PlotControl!$B$4 = "Annual Max",MAX(OFFSET('2WCoarse'!$C$10,12*$A19,4*(PlotControl!$C$6-1),12,1)),AVERAGE(OFFSET('2WCoarse'!$C$10,12*$A19,4*(PlotControl!$C$6-1),12,1))) -> 63031.5 | F19: =IF(PlotControl!$B$4 = "Annual Max",MAX(OFFSET('2WCoarse'!$D$10,12*$A19,4*(PlotControl!$C$6-1),12,1)),AVERAGE(OFFSET('2WCoarse'!$D$10,12*$A19,4*(PlotControl!$C$6-1),12,1))) -> 63805.58333 | G19: =IF(PlotControl!$B$4 = "Annual Max",MAX(OFFSET('2WCoarse'!$E$10,12*$A19,4*(PlotControl!$C$6-1),12,1)),AVERAGE(OFFSET('2WCoarse'!$E$10,12*$A19,4*(PlotControl!$C$6-1),12,1))) -> 64833.66667 | H19: =IF(PlotControl!$B$4 = "Annual Max",MAX(OFFSET('2WBank'!$C$10,12*$A19,4*(PlotControl!$C$6-1),12,1)),AVERAGE(OFFSET('2WBank'!$C$10,12*$A19,4*(PlotControl!$C$6-1),12,1))) -> 91744.08333 | I19: =IF(PlotControl!$B$4 = "Annual Max",MAX(OFFSET('2WBank'!$D$10,12*$A19,4*(PlotControl!$C$6-1),12,1)),AVERAGE(OFFSET('2WBank'!$D$10,12*$A19,4*(PlotControl!$C$6-1),12,1))) -> 93021.16667 | J19: =IF(PlotControl!$B$4 = "Annual Max",MAX(OFFSET('2WBank'!$E$10,12*$A19,4*(PlotControl!$C$6-1),12,1)),AVERAGE(OFFSET('2WBank'!$E$10,12*$A19,4*(PlotControl!$C$6-1),12,1))) -> 94716.08333 | K19: =IF(PlotControl!$B$4 = "Annual Max",MAX(OFFSET('2EFines'!$C$10,12*$A19,4*(PlotControl!$C$6-1),12,1)),AVERAGE(OFFSET('2EFines'!$C$10,12*$A19,4*(PlotControl!$C$6-1),12,1))) -> 11219 | L19: =IF(PlotControl!$B$4 = "Annual Max",MAX(OFFSET('2EFines'!$D$10,12*$A19,4*(PlotControl!$C$6-1),12,1)),AVERAGE(OFFSET('2EFines'!$D$10,12*$A19,4*(PlotControl!$C$6-1),12,1))) -> 11225 | M19: =IF(PlotControl!$B$4 = "Annual Max",MAX(OFFSET('2EFines'!$E$10,12*$A19,4*(PlotControl!$C$6-1),12,1)),AVERAGE(OFFSET('2EFines'!$E$10,12*$A19,4*(PlotControl!$C$6-1),12,1))) -> 11232 | N19: =IF(PlotControl!$B$4 = "Annual Max",MAX(OFFSET('2ECoarse'!$C$10,12*$A19,4*(PlotControl!$C$6-1),12,1)),AVERAGE(OFFSET('2ECoarse'!$C$10,12*$A19,4*(PlotControl!$C$6-1),12,1))) -> 11217 | O19: =IF(PlotControl!$B$4 = "Annual Max",MAX(OFFSET('2ECoarse'!$D$10,12*$A19,4*(PlotControl!$C$6-1),12,1)),AVERAGE(OFFSET('2ECoarse'!$D$10,12*$A19,4*(PlotControl!$C$6-1),12,1))) -> 11219 | P19: =IF(PlotControl!$B$4 = "Annual Max",MAX(OFFSET('2ECoarse'!$E$10,12*$A19,4*(PlotControl!$C$6-1),12,1)),AVERAGE(OFFSET('2ECoarse'!$E$10,12*$A19,4*(PlotControl!$C$6-1),12,1))) -> 11221 | Q19: =IF(PlotControl!$B$4 = "Annual Max",MAX(OFFSET('2EBank'!$C$10,12*$A19,4*(PlotControl!$C$6-1),12,1)),AVERAGE(OFFSET('2EBank'!$C$10,12*$A19,4*(PlotControl!$C$6-1),12,1))) -> 7307.675 | R19: =IF(PlotControl!$B$4 = "Annual Max",MAX(OFFSET('2EBank'!$D$10,12*$A19,4*(PlotControl!$C$6-1),12,1)),AVERAGE(OFFSET('2EBank'!$D$10,12*$A19,4*(PlotControl!$C$6-1),12,1))) -> 7404.633333 | S19: =IF(PlotControl!$B$4 = "Annual Max",MAX(OFFSET('2EBank'!$E$10,12*$A19,4*(PlotControl!$C$6-1),12,1)),AVERAGE(OFFSET('2EBank'!$E$10,12*$A19,4*(PlotControl!$C$6-1),12,1))) -> 7532.45 | T19: =IF(PlotControl!$B$4 = "Annual Max",MAX(OFFSET('1EFines'!$C$10,12*$A19,4*(PlotControl!$C$6-1),12,1)),AVERAGE(OFFSET('1EFines'!$C$10,12*$A19,4*(PlotControl!$C$6-1),12,1))) -> 13846 | U19: =IF(PlotControl!$B$4 = "Annual Max",MAX(OFFSET('1EFines'!$D$10,12*$A19,4*(PlotControl!$C$6-1),12,1)),AVERAGE(OFFSET('1EFines'!$D$10,12*$A19,4*(PlotControl!$C$6-1),12,1))) -> 13937 | V19: =IF(PlotControl!$B$4 = "Annual Max",MAX(OFFSET('1EFines'!$E$10,12*$A19,4*(PlotControl!$C$6-1),12,1)),AVERAGE(OFFSET('1EFines'!$E$10,12*$A19,4*(PlotControl!$C$6-1),12,1))) -> 14052 | W19: =IF(PlotControl!$B$4 = "Annual Max",MAX(OFFSET('1ECoarse'!$C$10,12*$A19,4*(PlotControl!$C$6-1),12,1)),AVERAGE(OFFSET('1ECoarse'!$C$10,12*$A19,4*(PlotControl!$C$6-1),12,1))) -> 66565.66667 | X19: =IF(PlotControl!$B$4 = "Annual Max",MAX(OFFSET('1ECoarse'!$D$10,12*$A19,4*(PlotControl!$C$6-1),12,1)),AVERAGE(OFFSET('1ECoarse'!$D$10,12*$A19,4*(PlotControl!$C$6-1),12,1))) -> 66767.66667 | Y19: =IF(PlotControl!$B$4 = "Annual Max",MAX(OFFSET('1ECoarse'!$E$10,12*$A19,4*(PlotControl!$C$6-1),12,1)),AVERAGE(OFFSET('1ECoarse'!$E$10,12*$A19,4*(PlotControl!$C$6-1),12,1))) -> 67019.58333
A20: 15 | B20: =IF(PlotControl!$B$4 = "Annual Max",MAX(OFFSET('2WFines'!$C$10,12*$A20,4*(PlotControl!$C$6-1),12,1)),AVERAGE(OFFSET('2WFines'!$C$10,12*$A20,4*(PlotControl!$C$6-1),12,1))) -> 107042.5 | C20: =IF(PlotControl!$B$4 = "Annual Max",MAX(OFFSET('2WFines'!$D$10,12*$A20,4*(PlotControl!$C$6-1),12,1)),AVERAGE(OFFSET('2WFines'!$D$10,12*$A20,4*(PlotControl!$C$6-1),12,1))) -> 107971.6667 | D20: =IF(PlotControl!$B$4 = "Annual Max",MAX(OFFSET('2WFines'!$E$10,12*$A20,4*(PlotControl!$C$6-1),12,1)),AVERAGE(OFFSET('2WFines'!$E$10,12*$A20,4*(PlotControl!$C$6-1),12,1))) -> 109409.1667 | E20: =IF(PlotControl!$B$4 = "Annual Max",MAX(OFFSET('2WCoarse'!$C$10,12*$A20,4*(PlotControl!$C$6-1),12,1)),AVERAGE(OFFSET('2WCoarse'!$C$10,12*$A20,4*(PlotControl!$C$6-1),12,1))) -> 62839.91667 | F20: =IF(PlotControl!$B$4 = "Annual Max",MAX(OFFSET('2WCoarse'!$D$10,12*$A20,4*(PlotControl!$C$6-1),12,1)),AVERAGE(OFFSET('2WCoarse'!$D$10,12*$A20,4*(PlotControl!$C$6-1),12,1))) -> 63659.58333 | G20: =IF(PlotControl!$B$4 = "Annual Max",MAX(OFFSET('2WCoarse'!$E$10,12*$A20,4*(PlotControl!$C$6-1),12,1)),AVERAGE(OFFSET('2WCoarse'!$E$10,12*$A20,4*(PlotControl!$C$6-1),12,1))) -> 64754.66667 | H20: =IF(PlotControl!$B$4 = "Annual Max",MAX(OFFSET('2WBank'!$C$10,12*$A20,4*(PlotControl!$C$6-1),12,1)),AVERAGE(OFFSET('2WBank'!$C$10,12*$A20,4*(PlotControl!$C$6-1),12,1))) -> 91443.25 | I20: =IF(PlotControl!$B$4 = "Annual Max",MAX(OFFSET('2WBank'!$D$10,12*$A20,4*(PlotControl!$C$6-1),12,1)),AVERAGE(OFFSET('2WBank'!$D$10,12*$A20,4*(PlotControl!$C$6-1),12,1))) -> 92787.75 | J20: =IF(PlotControl!$B$4 = "Annual Max",MAX(OFFSET('2WBank'!$E$10,12*$A20,4*(PlotControl!$C$6-1),12,1)),AVERAGE(OFFSET('2WBank'!$E$10,12*$A20,4*(PlotControl!$C$6-1),12,1))) -> 94591.75 | K20: =IF(PlotControl!$B$4 = "Annual Max",MAX(OFFSET('2EFines'!$C$10,12*$A20,4*(PlotControl!$C$6-1),12,1)),AVERAGE(OFFSET('2EFines'!$C$10,12*$A20,4*(PlotControl!$C$6-1),12,1))) -> 11219 | L20: =IF(PlotControl!$B$4 = "Annual Max",MAX(OFFSET('2EFines'!$D$10,12*$A20,4*(PlotControl!$C$6-1),12,1)),AVERAGE(OFFSET('2EFines'!$D$10,12*$A20,4*(PlotControl!$C$6-1),12,1))) -> 11225 | M20: =IF(PlotControl!$B$4 = "Annual Max",MAX(OFFSET('2EFines'!$E$10,12*$A20,4*(PlotControl!$C$6-1),12,1)),AVERAGE(OFFSET('2EFines'!$E$10,12*$A20,4*(PlotControl!$C$6-1),12,1))) -> 11232 | N20: =IF(PlotControl!$B$4 = "Annual Max",MAX(OFFSET('2ECoarse'!$C$10,12*$A20,4*(PlotControl!$C$6-1),12,1)),AVERAGE(OFFSET('2ECoarse'!$C$10,12*$A20,4*(PlotControl!$C$6-1),12,1))) -> 11217 | O20: =IF(PlotControl!$B$4 = "Annual Max",MAX(OFFSET('2ECoarse'!$D$10,12*$A20,4*(PlotControl!$C$6-1),12,1)),AVERAGE(OFFSET('2ECoarse'!$D$10,12*$A20,4*(PlotControl!$C$6-1),12,1))) -> 11219 | P20: =IF(PlotControl!$B$4 = "Annual Max",MAX(OFFSET('2ECoarse'!$E$10,12*$A20,4*(PlotControl!$C$6-1),12,1)),AVERAGE(OFFSET('2ECoarse'!$E$10,12*$A20,4*(PlotControl!$C$6-1),12,1))) -> 11221 | Q20: =IF(PlotControl!$B$4 = "Annual Max",MAX(OFFSET('2EBank'!$C$10,12*$A20,4*(PlotControl!$C$6-1),12,1)),AVERAGE(OFFSET('2EBank'!$C$10,12*$A20,4*(PlotControl!$C$6-1),12,1))) -> 7278.425 | R20: =IF(PlotControl!$B$4 = "Annual Max",MAX(OFFSET('2EBank'!$D$10,12*$A20,4*(PlotControl!$C$6-1),12,1)),AVERAGE(OFFSET('2EBank'!$D$10,12*$A20,4*(PlotControl!$C$6-1),12,1))) -> 7383.116667 | S20: =IF(PlotControl!$B$4 = "Annual Max",MAX(OFFSET('2EBank'!$E$10,12*$A20,4*(PlotControl!$C$6-1),12,1)),AVERAGE(OFFSET('2EBank'!$E$10,12*$A20,4*(PlotControl!$C$6-1),12,1))) -> 7519.666667 | T20: =IF(PlotControl!$B$4 = "Annual Max",MAX(OFFSET('1EFines'!$C$10,12*$A20,4*(PlotControl!$C$6-1),12,1)),AVERAGE(OFFSET('1EFines'!$C$10,12*$A20,4*(PlotControl!$C$6-1),12,1))) -> 13846 | U20: =IF(PlotControl!$B$4 = "Annual Max",MAX(OFFSET('1EFines'!$D$10,12*$A20,4*(PlotControl!$C$6-1),12,1)),AVERAGE(OFFSET('1EFines'!$D$10,12*$A20,4*(PlotControl!$C$6-1),12,1))) -> 13937 | V20: =IF(PlotControl!$B$4 = "Annual Max",MAX(OFFSET('1EFines'!$E$10,12*$A20,4*(PlotControl!$C$6-1),12,1)),AVERAGE(OFFSET('1EFines'!$E$10,12*$A20,4*(PlotControl!$C$6-1),12,1))) -> 14052 | W20: =IF(PlotControl!$B$4 = "Annual Max",MAX(OFFSET('1ECoarse'!$C$10,12*$A20,4*(PlotControl!$C$6-1),12,1)),AVERAGE(OFFSET('1ECoarse'!$C$10,12*$A20,4*(PlotControl!$C$6-1),12,1))) -> 66564.33333 | X20: =IF(PlotControl!$B$4 = "Annual Max",MAX(OFFSET('1ECoarse'!$D$10,12*$A20,4*(PlotControl!$C$6-1),12,1)),AVERAGE(OFFSET('1ECoarse'!$D$10,12*$A20,4*(PlotControl!$C$6-1),12,1))) -> 66766.66667 | Y20: =IF(PlotControl!$B$4 = "Annual Max",MAX(OFFSET('1ECoarse'!$E$10,12*$A20,4*(PlotControl!$C$6-1),12,1)),AVERAGE(OFFSET('1ECoarse'!$E$10,12*$A20,4*(PlotControl!$C$6-1),12,1))) -> 67019
A21: 16 | B21: =IF(PlotControl!$B$4 = "Annual Max",MAX(OFFSET('2WFines'!$C$10,12*$A21,4*(PlotControl!$C$6-1),12,1)),AVERAGE(OFFSET('2WFines'!$C$10,12*$A21,4*(PlotControl!$C$6-1),12,1))) -> 106607.5 | C21: =IF(PlotControl!$B$4 = "Annual Max",MAX(OFFSET('2WFines'!$D$10,12*$A21,4*(PlotControl!$C$6-1),12,1)),AVERAGE(OFFSET('2WFines'!$D$10,12*$A21,4*(PlotControl!$C$6-1),12,1))) -> 107601.6667 | D21: =IF(PlotControl!$B$4 = "Annual Max",MAX(OFFSET('2WFines'!$E$10,12*$A21,4*(PlotControl!$C$6-1),12,1)),AVERAGE(OFFSET('2WFines'!$E$10,12*$A21,4*(PlotControl!$C$6-1),12,1))) -> 109145 | E21: =IF(PlotControl!$B$4 = "Annual Max",MAX(OFFSET('2WCoarse'!$C$10,12*$A21,4*(PlotControl!$C$6-1),12,1)),AVERAGE(OFFSET('2WCoarse'!$C$10,12*$A21,4*(PlotControl!$C$6-1),12,1))) -> 62638.25 | F21: =IF(PlotControl!$B$4 = "Annual Max",MAX(OFFSET('2WCoarse'!$D$10,12*$A21,4*(PlotControl!$C$6-1),12,1)),AVERAGE(OFFSET('2WCoarse'!$D$10,12*$A21,4*(PlotControl!$C$6-1),12,1))) -> 63519.25 | G21: =IF(PlotControl!$B$4 = "Annual Max",MAX(OFFSET('2WCoarse'!$E$10,12*$A21,4*(PlotControl!$C$6-1),12,1)),AVERAGE(OFFSET('2WCoarse'!$E$10,12*$A21,4*(PlotControl!$C$6-1),12,1))) -> 64669.25 | H21: =IF(PlotControl!$B$4 = "Annual Max",MAX(OFFSET('2WBank'!$C$10,12*$A21,4*(PlotControl!$C$6-1),12,1)),AVERAGE(OFFSET('2WBank'!$C$10,12*$A21,4*(PlotControl!$C$6-1),12,1))) -> 91123.08333 | I21: =IF(PlotControl!$B$4 = "Annual Max",MAX(OFFSET('2WBank'!$D$10,12*$A21,4*(PlotControl!$C$6-1),12,1)),AVERAGE(OFFSET('2WBank'!$D$10,12*$A21,4*(PlotControl!$C$6-1),12,1))) -> 92565.5 | J21: =IF(PlotControl!$B$4 = "Annual Max",MAX(OFFSET('2WBank'!$E$10,12*$A21,4*(PlotControl!$C$6-1),12,1)),AVERAGE(OFFSET('2WBank'!$E$10,12*$A21,4*(PlotControl!$C$6-1),12,1))) -> 94457.33333 | K21: =IF(PlotControl!$B$4 = "Annual Max",MAX(OFFSET('2EFines'!$C$10,12*$A21,4*(PlotControl!$C$6-1),12,1)),AVERAGE(OFFSET('2EFines'!$C$10,12*$A21,4*(PlotControl!$C$6-1),12,1))) -> 11219 | L21: =IF(PlotControl!$B$4 = "Annual Max",MAX(OFFSET('2EFines'!$D$10,12*$A21,4*(PlotControl!$C$6-1),12,1)),AVERAGE(OFFSET('2EFines'!$D$10,12*$A21,4*(PlotControl!$C$6-1),12,1))) -> 11225 | M21: =IF(PlotControl!$B$4 = "Annual Max",MAX(OFFSET('2EFines'!$E$10,12*$A21,4*(PlotControl!$C$6-1),12,1)),AVERAGE(OFFSET('2EFines'!$E$10,12*$A21,4*(PlotControl!$C$6-1),12,1))) -> 11232 | N21: =IF(PlotControl!$B$4 = "Annual Max",MAX(OFFSET('2ECoarse'!$C$10,12*$A21,4*(PlotControl!$C$6-1),12,1)),AVERAGE(OFFSET('2ECoarse'!$C$10,12*$A21,4*(PlotControl!$C$6-1),12,1))) -> 11217 | O21: =IF(PlotControl!$B$4 = "Annual Max",MAX(OFFSET('2ECoarse'!$D$10,12*$A21,4*(PlotControl!$C$6-1),12,1)),AVERAGE(OFFSET('2ECoarse'!$D$10,12*$A21,4*(PlotControl!$C$6-1),12,1))) -> 11219 | P21: =IF(PlotControl!$B$4 = "Annual Max",MAX(OFFSET('2ECoarse'!$E$10,12*$A21,4*(PlotControl!$C$6-1),12,1)),AVERAGE(OFFSET('2ECoarse'!$E$10,12*$A21,4*(PlotControl!$C$6-1),12,1))) -> 11221 | Q21: =IF(PlotControl!$B$4 = "Annual Max",MAX(OFFSET('2EBank'!$C$10,12*$A21,4*(PlotControl!$C$6-1),12,1)),AVERAGE(OFFSET('2EBank'!$C$10,12*$A21,4*(PlotControl!$C$6-1),12,1))) -> 7247.883333 | R21: =IF(PlotControl!$B$4 = "Annual Max",MAX(OFFSET('2EBank'!$D$10,12*$A21,4*(PlotControl!$C$6-1),12,1)),AVERAGE(OFFSET('2EBank'!$D$10,12*$A21,4*(PlotControl!$C$6-1),12,1))) -> 7362.033333 | S21: =IF(PlotControl!$B$4 = "Annual Max",MAX(OFFSET('2EBank'!$E$10,12*$A21,4*(PlotControl!$C$6-1),12,1)),AVERAGE(OFFSET('2EBank'!$E$10,12*$A21,4*(PlotControl!$C$6-1),12,1))) -> 7507.3 | T21: =IF(PlotControl!$B$4 = "Annual Max",MAX(OFFSET('1EFines'!$C$10,12*$A21,4*(PlotControl!$C$6-1),12,1)),AVERAGE(OFFSET('1EFines'!$C$10,12*$A21,4*(PlotControl!$C$6-1),12,1))) -> 13846 | U21: =IF(PlotControl!$B$4 = "Annual Max",MAX(OFFSET('1EFines'!$D$10,12*$A21,4*(PlotControl!$C$6-1),12,1)),AVERAGE(OFFSET('1EFines'!$D$10,12*$A21,4*(PlotControl!$C$6-1),12,1))) -> 13937 | V21: =IF(PlotControl!$B$4 = "Annual Max",MAX(OFFSET('1EFines'!$E$10,12*$A21,4*(PlotControl!$C$6-1),12,1)),AVERAGE(OFFSET('1EFines'!$E$10,12*$A21,4*(PlotControl!$C$6-1),12,1))) -> 14052 | W21: =IF(PlotControl!$B$4 = "Annual Max",MAX(OFFSET('1ECoarse'!$C$10,12*$A21,4*(PlotControl!$C$6-1),12,1)),AVERAGE(OFFSET('1ECoarse'!$C$10,12*$A21,4*(PlotControl!$C$6-1),12,1))) -> 66562.75 | X21: =IF(PlotControl!$B$4 = "Annual Max",MAX(OFFSET('1ECoarse'!$D$10,12*$A21,4*(PlotControl!$C$6-1),12,1)),AVERAGE(OFFSET('1ECoarse'!$D$10,12*$A21,4*(PlotControl!$C$6-1),12,1))) -> 66765.75 | Y21: =IF(PlotControl!$B$4 = "Annual Max",MAX(OFFSET('1ECoarse'!$E$10,12*$A21,4*(PlotControl!$C$6-1),12,1)),AVERAGE(OFFSET('1ECoarse'!$E$10,12*$A21,4*(PlotControl!$C$6-1),12,1))) -> 67018.33333
A22: 17 | B22: =IF(PlotControl!$B$4 = "Annual Max",MAX(OFFSET('2WFines'!$C$10,12*$A22,4*(PlotControl!$C$6-1),12,1)),AVERAGE(OFFSET('2WFines'!$C$10,12*$A22,4*(PlotControl!$C$6-1),12,1))) -> 106180 | C22: =IF(PlotControl!$B$4 = "Annual Max",MAX(OFFSET('2WFines'!$D$10,12*$A22,4*(PlotControl!$C$6-1),12,1)),AVERAGE(OFFSET('2WFines'!$D$10,12*$A22,4*(PlotControl!$C$6-1),12,1))) -> 107226.6667 | D22: =IF(PlotControl!$B$4 = "Annual Max",MAX(OFFSET('2WFines'!$E$10,12*$A22,4*(PlotControl!$C$6-1),12,1)),AVERAGE(OFFSET('2WFines'!$E$10,12*$A22,4*(PlotControl!$C$6-1),12,1))) -> 108864.1667 | E22: =IF(PlotControl!$B$4 = "Annual Max",MAX(OFFSET('2WCoarse'!$C$10,12*$A22,4*(PlotControl!$C$6-1),12,1)),AVERAGE(OFFSET('2WCoarse'!$C$10,12*$A22,4*(PlotControl!$C$6-1),12,1))) -> 62444 | F22: =IF(PlotControl!$B$4 = "Annual Max",MAX(OFFSET('2WCoarse'!$D$10,12*$A22,4*(PlotControl!$C$6-1),12,1)),AVERAGE(OFFSET('2WCoarse'!$D$10,12*$A22,4*(PlotControl!$C$6-1),12,1))) -> 63373.75 | G22: =IF(PlotControl!$B$4 = "Annual Max",MAX(OFFSET('2WCoarse'!$E$10,12*$A22,4*(PlotControl!$C$6-1),12,1)),AVERAGE(OFFSET('2WCoarse'!$E$10,12*$A22,4*(PlotControl!$C$6-1),12,1))) -> 64584.91667 | H22: =IF(PlotControl!$B$4 = "Annual Max",MAX(OFFSET('2WBank'!$C$10,12*$A22,4*(PlotControl!$C$6-1),12,1)),AVERAGE(OFFSET('2WBank'!$C$10,12*$A22,4*(PlotControl!$C$6-1),12,1))) -> 90817.58333 | I22: =IF(PlotControl!$B$4 = "Annual Max",MAX(OFFSET('2WBank'!$D$10,12*$A22,4*(PlotControl!$C$6-1),12,1)),AVERAGE(OFFSET('2WBank'!$D$10,12*$A22,4*(PlotControl!$C$6-1),12,1))) -> 92335.5 | J22: =IF(PlotControl!$B$4 = "Annual Max",MAX(OFFSET('2WBank'!$E$10,12*$A22,4*(PlotControl!$C$6-1),12,1)),AVERAGE(OFFSET('2WBank'!$E$10,12*$A22,4*(PlotControl!$C$6-1),12,1))) -> 94323.08333 | K22: =IF(PlotControl!$B$4 = "Annual Max",MAX(OFFSET('2EFines'!$C$10,12*$A22,4*(PlotControl!$C$6-1),12,1)),AVERAGE(OFFSET('2EFines'!$C$10,12*$A22,4*(PlotControl!$C$6-1),12,1))) -> 11219 | L22: =IF(PlotControl!$B$4 = "Annual Max",MAX(OFFSET('2EFines'!$D$10,12*$A22,4*(PlotControl!$C$6-1),12,1)),AVERAGE(OFFSET('2EFines'!$D$10,12*$A22,4*(PlotControl!$C$6-1),12,1))) -> 11225 | M22: =IF(PlotControl!$B$4 = "Annual Max",MAX(OFFSET('2EFines'!$E$10,12*$A22,4*(PlotControl!$C$6-1),12,1)),AVERAGE(OFFSET('2EFines'!$E$10,12*$A22,4*(PlotControl!$C$6-1),12,1))) -> 11232 | N22: =IF(PlotControl!$B$4 = "Annual Max",MAX(OFFSET('2ECoarse'!$C$10,12*$A22,4*(PlotControl!$C$6-1),12,1)),AVERAGE(OFFSET('2ECoarse'!$C$10,12*$A22,4*(PlotControl!$C$6-1),12,1))) -> 11217 | O22: =IF(PlotControl!$B$4 = "Annual Max",MAX(OFFSET('2ECoarse'!$D$10,12*$A22,4*(PlotControl!$C$6-1),12,1)),AVERAGE(OFFSET('2ECoarse'!$D$10,12*$A22,4*(PlotControl!$C$6-1),12,1))) -> 11219 | P22: =IF(PlotControl!$B$4 = "Annual Max",MAX(OFFSET('2ECoarse'!$E$10,12*$A22,4*(PlotControl!$C$6-1),12,1)),AVERAGE(OFFSET('2ECoarse'!$E$10,12*$A22,4*(PlotControl!$C$6-1),12,1))) -> 11221 | Q22: =IF(PlotControl!$B$4 = "Annual Max",MAX(OFFSET('2EBank'!$C$10,12*$A22,4*(PlotControl!$C$6-1),12,1)),AVERAGE(OFFSET('2EBank'!$C$10,12*$A22,4*(PlotControl!$C$6-1),12,1))) -> 7217.216667 | R22: =IF(PlotControl!$B$4 = "Annual Max",MAX(OFFSET('2EBank'!$D$10,12*$A22,4*(PlotControl!$C$6-1),12,1)),AVERAGE(OFFSET('2EBank'!$D$10,12*$A22,4*(PlotControl!$C$6-1),12,1))) -> 7339.283333 | S22: =IF(PlotControl!$B$4 = "Annual Max",MAX(OFFSET('2EBank'!$E$10,12*$A22,4*(PlotControl!$C$6-1),12,1)),AVERAGE(OFFSET('2EBank'!$E$10,12*$A22,4*(PlotControl!$C$6-1),12,1))) -> 7494.075 | T22: =IF(PlotControl!$B$4 = "Annual Max",MAX(OFFSET('1EFines'!$C$10,12*$A22,4*(PlotControl!$C$6-1),12,1)),AVERAGE(OFFSET('1EFines'!$C$10,12*$A22,4*(PlotControl!$C$6-1),12,1))) -> 13846 | U22: =IF(PlotControl!$B$4 = "Annual Max",MAX(OFFSET('1EFines'!$D$10,12*$A22,4*(PlotControl!$C$6-1),12,1)),AVERAGE(OFFSET('1EFines'!$D$10,12*$A22,4*(PlotControl!$C$6-1),12,1))) -> 13937 | V22: =IF(PlotControl!$B$4 = "Annual Max",MAX(OFFSET('1EFines'!$E$10,12*$A22,4*(PlotControl!$C$6-1),12,1)),AVERAGE(OFFSET('1EFines'!$E$10,12*$A22,4*(PlotControl!$C$6-1),12,1))) -> 14052 | W22: =IF(PlotControl!$B$4 = "Annual Max",MAX(OFFSET('1ECoarse'!$C$10,12*$A22,4*(PlotControl!$C$6-1),12,1)),AVERAGE(OFFSET('1ECoarse'!$C$10,12*$A22,4*(PlotControl!$C$6-1),12,1))) -> 66561.66667 | X22: =IF(PlotControl!$B$4 = "Annual Max",MAX(OFFSET('1ECoarse'!$D$10,12*$A22,4*(PlotControl!$C$6-1),12,1)),AVERAGE(OFFSET('1ECoarse'!$D$10,12*$A22,4*(PlotControl!$C$6-1),12,1))) -> 66765 | Y22: =IF(PlotControl!$B$4 = "Annual Max",MAX(OFFSET('1ECoarse'!$E$10,12*$A22,4*(PlotControl!$C$6-1),12,1)),AVERAGE(OFFSET('1ECoarse'!$E$10,12*$A22,4*(PlotControl!$C$6-1),12,1))) -> 67018
A23: 18 | B23: =IF(PlotControl!$B$4 = "Annual Max",MAX(OFFSET('2WFines'!$C$10,12*$A23,4*(PlotControl!$C$6-1),12,1)),AVERAGE(OFFSET('2WFines'!$C$10,12*$A23,4*(PlotControl!$C$6-1),12,1))) -> 105740.8333 | C23: =IF(PlotControl!$B$4 = "Annual Max",MAX(OFFSET('2WFines'!$D$10,12*$A23,4*(PlotControl!$C$6-1),12,1)),AVERAGE(OFFSET('2WFines'!$D$10,12*$A23,4*(PlotControl!$C$6-1),12,1))) -> 106882.5 | D23: =IF(PlotControl!$B$4 = "Annual Max",MAX(OFFSET('2WFines'!$E$10,12*$A23,4*(PlotControl!$C$6-1),12,1)),AVERAGE(OFFSET('2WFines'!$E$10,12*$A23,4*(PlotControl!$C$6-1),12,1))) -> 108592.5 | E23: =IF(PlotControl!$B$4 = "Annual Max",MAX(OFFSET('2WCoarse'!$C$10,12*$A23,4*(PlotControl!$C$6-1),12,1)),AVERAGE(OFFSET('2WCoarse'!$C$10,12*$A23,4*(PlotControl!$C$6-1),12,1))) -> 62249.08333 | F23: =IF(PlotControl!$B$4 = "Annual Max",MAX(OFFSET('2WCoarse'!$D$10,12*$A23,4*(PlotControl!$C$6-1),12,1)),AVERAGE(OFFSET('2WCoarse'!$D$10,12*$A23,4*(PlotControl!$C$6-1),12,1))) -> 63230 | G23: =IF(PlotControl!$B$4 = "Annual Max",MAX(OFFSET('2WCoarse'!$E$10,12*$A23,4*(PlotControl!$C$6-1),12,1)),AVERAGE(OFFSET('2WCoarse'!$E$10,12*$A23,4*(PlotControl!$C$6-1),12,1))) -> 64509.16667 | H23: =IF(PlotControl!$B$4 = "Annual Max",MAX(OFFSET('2WBank'!$C$10,12*$A23,4*(PlotControl!$C$6-1),12,1)),AVERAGE(OFFSET('2WBank'!$C$10,12*$A23,4*(PlotControl!$C$6-1),12,1))) -> 90508.75 | I23: =IF(PlotControl!$B$4 = "Annual Max",MAX(OFFSET('2WBank'!$D$10,12*$A23,4*(PlotControl!$C$6-1),12,1)),AVERAGE(OFFSET('2WBank'!$D$10,12*$A23,4*(PlotControl!$C$6-1),12,1))) -> 92109.83333 | J23: =IF(PlotControl!$B$4 = "Annual Max",MAX(OFFSET('2WBank'!$E$10,12*$A23,4*(PlotControl!$C$6-1),12,1)),AVERAGE(OFFSET('2WBank'!$E$10,12*$A23,4*(PlotControl!$C$6-1),12,1))) -> 94205.16667 | K23: =IF(PlotControl!$B$4 = "Annual Max",MAX(OFFSET('2EFines'!$C$10,12*$A23,4*(PlotControl!$C$6-1),12,1)),AVERAGE(OFFSET('2EFines'!$C$10,12*$A23,4*(PlotControl!$C$6-1),12,1))) -> 11219 | L23: =IF(PlotControl!$B$4 = "Annual Max",MAX(OFFSET('2EFines'!$D$10,12*$A23,4*(PlotControl!$C$6-1),12,1)),AVERAGE(OFFSET('2EFines'!$D$10,12*$A23,4*(PlotControl!$C$6-1),12,1))) -> 11225 | M23: =IF(PlotControl!$B$4 = "Annual Max",MAX(OFFSET('2EFines'!$E$10,12*$A23,4*(PlotControl!$C$6-1),12,1)),AVERAGE(OFFSET('2EFines'!$E$10,12*$A23,4*(PlotControl!$C$6-1),12,1))) -> 11232 | N23: =IF(PlotControl!$B$4 = "Annual Max",MAX(OFFSET('2ECoarse'!$C$10,12*$A23,4*(PlotControl!$C$6-1),12,1)),AVERAGE(OFFSET('2ECoarse'!$C$10,12*$A23,4*(PlotControl!$C$6-1),12,1))) -> 11217 | O23: =IF(PlotControl!$B$4 = "Annual Max",MAX(OFFSET('2ECoarse'!$D$10,12*$A23,4*(PlotControl!$C$6-1),12,1)),AVERAGE(OFFSET('2ECoarse'!$D$10,12*$A23,4*(PlotControl!$C$6-1),12,1))) -> 11219 | P23: =IF(PlotControl!$B$4 = "Annual Max",MAX(OFFSET('2ECoarse'!$E$10,12*$A23,4*(PlotControl!$C$6-1),12,1)),AVERAGE(OFFSET('2ECoarse'!$E$10,12*$A23,4*(PlotControl!$C$6-1),12,1))) -> 11221 | Q23: =IF(PlotControl!$B$4 = "Annual Max",MAX(OFFSET('2EBank'!$C$10,12*$A23,4*(PlotControl!$C$6-1),12,1)),AVERAGE(OFFSET('2EBank'!$C$10,12*$A23,4*(PlotControl!$C$6-1),12,1))) -> 7187.066667 | R23: =IF(PlotControl!$B$4 = "Annual Max",MAX(OFFSET('2EBank'!$D$10,12*$A23,4*(PlotControl!$C$6-1),12,1)),AVERAGE(OFFSET('2EBank'!$D$10,12*$A23,4*(PlotControl!$C$6-1),12,1))) -> 7316.258333 | S23: =IF(PlotControl!$B$4 = "Annual Max",MAX(OFFSET('2EBank'!$E$10,12*$A23,4*(PlotControl!$C$6-1),12,1)),AVERAGE(OFFSET('2EBank'!$E$10,12*$A23,4*(PlotControl!$C$6-1),12,1))) -> 7481.458333 | T23: =IF(PlotControl!$B$4 = "Annual Max",MAX(OFFSET('1EFines'!$C$10,12*$A23,4*(PlotControl!$C$6-1),12,1)),AVERAGE(OFFSET('1EFines'!$C$10,12*$A23,4*(PlotControl!$C$6-1),12,1))) -> 13846 | U23: =IF(PlotControl!$B$4 = "Annual Max",MAX(OFFSET('1EFines'!$D$10,12*$A23,4*(PlotControl!$C$6-1),12,1)),AVERAGE(OFFSET('1EFines'!$D$10,12*$A23,4*(PlotControl!$C$6-1),12,1))) -> 13937 | V23: =IF(PlotControl!$B$4 = "Annual Max",MAX(OFFSET('1EFines'!$E$10,12*$A23,4*(PlotControl!$C$6-1),12,1)),AVERAGE(OFFSET('1EFines'!$E$10,12*$A23,4*(PlotControl!$C$6-1),12,1))) -> 14052 | W23: =IF(PlotControl!$B$4 = "Annual Max",MAX(OFFSET('1ECoarse'!$C$10,12*$A23,4*(PlotControl!$C$6-1),12,1)),AVERAGE(OFFSET('1ECoarse'!$C$10,12*$A23,4*(PlotControl!$C$6-1),12,1))) -> 66560.58333 | X23: =IF(PlotControl!$B$4 = "Annual Max",MAX(OFFSET('1ECoarse'!$D$10,12*$A23,4*(PlotControl!$C$6-1),12,1)),AVERAGE(OFFSET('1ECoarse'!$D$10,12*$A23,4*(PlotControl!$C$6-1),12,1))) -> 66764 | Y23: =IF(PlotControl!$B$4 = "Annual Max",MAX(OFFSET('1ECoarse'!$E$10,12*$A23,4*(PlotControl!$C$6-1),12,1)),AVERAGE(OFFSET('1ECoarse'!$E$10,12*$A23,4*(PlotControl!$C$6-1),12,1))) -> 67017.33333
A24: 19 | B24: =IF(PlotControl!$B$4 = "Annual Max",MAX(OFFSET('2WFines'!$C$10,12*$A24,4*(PlotControl!$C$6-1),12,1)),AVERAGE(OFFSET('2WFines'!$C$10,12*$A24,4*(PlotControl!$C$6-1),12,1))) -> 105305.8333 | C24: =IF(PlotControl!$B$4 = "Annual Max",MAX(OFFSET('2WFines'!$D$10,12*$A24,4*(PlotControl!$C$6-1),12,1)),AVERAGE(OFFSET('2WFines'!$D$10,12*$A24,4*(PlotControl!$C$6-1),12,1))) -> 106516.6667 | D24: =IF(PlotControl!$B$4 = "Annual Max",MAX(OFFSET('2WFines'!$E$10,12*$A24,4*(PlotControl!$C$6-1),12,1)),AVERAGE(OFFSET('2WFines'!$E$10,12*$A24,4*(PlotControl!$C$6-1),12,1))) -> 108319.1667 | E24: =IF(PlotControl!$B$4 = "Annual Max",MAX(OFFSET('2WCoarse'!$C$10,12*$A24,4*(PlotControl!$C$6-1),12,1)),AVERAGE(OFFSET('2WCoarse'!$C$10,12*$A24,4*(PlotControl!$C$6-1),12,1))) -> 62051.66667 | F24: =IF(PlotControl!$B$4 = "Annual Max",MAX(OFFSET('2WCoarse'!$D$10,12*$A24,4*(PlotControl!$C$6-1),12,1)),AVERAGE(OFFSET('2WCoarse'!$D$10,12*$A24,4*(PlotControl!$C$6-1),12,1))) -> 63095.08333 | G24: =IF(PlotControl!$B$4 = "Annual Max",MAX(OFFSET('2WCoarse'!$E$10,12*$A24,4*(PlotControl!$C$6-1),12,1)),AVERAGE(OFFSET('2WCoarse'!$E$10,12*$A24,4*(PlotControl!$C$6-1),12,1))) -> 64428.33333 | H24: =IF(PlotControl!$B$4 = "Annual Max",MAX(OFFSET('2WBank'!$C$10,12*$A24,4*(PlotControl!$C$6-1),12,1)),AVERAGE(OFFSET('2WBank'!$C$10,12*$A24,4*(PlotControl!$C$6-1),12,1))) -> 90197.41667 | I24: =IF(PlotControl!$B$4 = "Annual Max",MAX(OFFSET('2WBank'!$D$10,12*$A24,4*(PlotControl!$C$6-1),12,1)),AVERAGE(OFFSET('2WBank'!$D$10,12*$A24,4*(PlotControl!$C$6-1),12,1))) -> 91896.75 | J24: =IF(PlotControl!$B$4 = "Annual Max",MAX(OFFSET('2WBank'!$E$10,12*$A24,4*(PlotControl!$C$6-1),12,1)),AVERAGE(OFFSET('2WBank'!$E$10,12*$A24,4*(PlotControl!$C$6-1),12,1))) -> 94080 | K24: =IF(PlotControl!$B$4 = "Annual Max",MAX(OFFSET('2EFines'!$C$10,12*$A24,4*(PlotControl!$C$6-1),12,1)),AVERAGE(OFFSET('2EFines'!$C$10,12*$A24,4*(PlotControl!$C$6-1),12,1))) -> 11219 | L24: =IF(PlotControl!$B$4 = "Annual Max",MAX(OFFSET('2EFines'!$D$10,12*$A24,4*(PlotControl!$C$6-1),12,1)),AVERAGE(OFFSET('2EFines'!$D$10,12*$A24,4*(PlotControl!$C$6-1),12,1))) -> 11225 | M24: =IF(PlotControl!$B$4 = "Annual Max",MAX(OFFSET('2EFines'!$E$10,12*$A24,4*(PlotControl!$C$6-1),12,1)),AVERAGE(OFFSET('2EFines'!$E$10,12*$A24,4*(PlotControl!$C$6-1),12,1))) -> 11232 | N24: =IF(PlotControl!$B$4 = "Annual Max",MAX(OFFSET('2ECoarse'!$C$10,12*$A24,4*(PlotControl!$C$6-1),12,1)),AVERAGE(OFFSET('2ECoarse'!$C$10,12*$A24,4*(PlotControl!$C$6-1),12,1))) -> 11217 | O24: =IF(PlotControl!$B$4 = "Annual Max",MAX(OFFSET('2ECoarse'!$D$10,12*$A24,4*(PlotControl!$C$6-1),12,1)),AVERAGE(OFFSET('2ECoarse'!$D$10,12*$A24,4*(PlotControl!$C$6-1),12,1))) -> 11219 | P24: =IF(PlotControl!$B$4 = "Annual Max",MAX(OFFSET('2ECoarse'!$E$10,12*$A24,4*(PlotControl!$C$6-1),12,1)),AVERAGE(OFFSET('2ECoarse'!$E$10,12*$A24,4*(PlotControl!$C$6-1),12,1))) -> 11221 | Q24: =IF(PlotControl!$B$4 = "Annual Max",MAX(OFFSET('2EBank'!$C$10,12*$A24,4*(PlotControl!$C$6-1),12,1)),AVERAGE(OFFSET('2EBank'!$C$10,12*$A24,4*(PlotControl!$C$6-1),12,1))) -> 7157.608333 | R24: =IF(PlotControl!$B$4 = "Annual Max",MAX(OFFSET('2EBank'!$D$10,12*$A24,4*(PlotControl!$C$6-1),12,1)),AVERAGE(OFFSET('2EBank'!$D$10,12*$A24,4*(PlotControl!$C$6-1),12,1))) -> 7293.825 | S24: =IF(PlotControl!$B$4 = "Annual Max",MAX(OFFSET('2EBank'!$E$10,12*$A24,4*(PlotControl!$C$6-1),12,1)),AVERAGE(OFFSET('2EBank'!$E$10,12*$A24,4*(PlotControl!$C$6-1),12,1))) -> 7468.341667 | T24: =IF(PlotControl!$B$4 = "Annual Max",MAX(OFFSET('1EFines'!$C$10,12*$A24,4*(PlotControl!$C$6-1),12,1)),AVERAGE(OFFSET('1EFines'!$C$10,12*$A24,4*(PlotControl!$C$6-1),12,1))) -> 13846 | U24: =IF(PlotControl!$B$4 = "Annual Max",MAX(OFFSET('1EFines'!$D$10,12*$A24,4*(PlotControl!$C$6-1),12,1)),AVERAGE(OFFSET('1EFines'!$D$10,12*$A24,4*(PlotControl!$C$6-1),12,1))) -> 13937 | V24: =IF(PlotControl!$B$4 = "Annual Max",MAX(OFFSET('1EFines'!$E$10,12*$A24,4*(PlotControl!$C$6-1),12,1)),AVERAGE(OFFSET('1EFines'!$E$10,12*$A24,4*(PlotControl!$C$6-1),12,1))) -> 14052 | W24: =IF(PlotControl!$B$4 = "Annual Max",MAX(OFFSET('1ECoarse'!$C$10,12*$A24,4*(PlotControl!$C$6-1),12,1)),AVERAGE(OFFSET('1ECoarse'!$C$10,12*$A24,4*(PlotControl!$C$6-1),12,1))) -> 66559.5 | X24: =IF(PlotControl!$B$4 = "Annual Max",MAX(OFFSET('1ECoarse'!$D$10,12*$A24,4*(PlotControl!$C$6-1),12,1)),AVERAGE(OFFSET('1ECoarse'!$D$10,12*$A24,4*(PlotControl!$C$6-1),12,1))) -> 66763.25 | Y24: =IF(PlotControl!$B$4 = "Annual Max",MAX(OFFSET('1ECoarse'!$E$10,12*$A24,4*(PlotControl!$C$6-1),12,1)),AVERAGE(OFFSET('1ECoarse'!$E$10,12*$A24,4*(PlotControl!$C$6-1),12,1))) -> 67017
A25: 20 | B25: =IF(PlotControl!$B$4 = "Annual Max",MAX(OFFSET('2WFines'!$C$10,12*$A25,4*(PlotControl!$C$6-1),12,1)),AVERAGE(OFFSET('2WFines'!$C$10,12*$A25,4*(PlotControl!$C$6-1),12,1))) -> 104868.3333 | C25: =IF(PlotControl!$B$4 = "Annual Max",MAX(OFFSET('2WFines'!$D$10,12*$A25,4*(PlotControl!$C$6-1),12,1)),AVERAGE(OFFSET('2WFines'!$D$10,12*$A25,4*(PlotControl!$C$6-1),12,1))) -> 106146.6667 | D25: =IF(PlotControl!$B$4 = "Annual Max",MAX(OFFSET('2WFines'!$E$10,12*$A25,4*(PlotControl!$C$6-1),12,1)),AVERAGE(OFFSET('2WFines'!$E$10,12*$A25,4*(PlotControl!$C$6-1),12,1))) -> 108060 | E25: =IF(PlotControl!$B$4 = "Annual Max",MAX(OFFSET('2WCoarse'!$C$10,12*$A25,4*(PlotControl!$C$6-1),12,1)),AVERAGE(OFFSET('2WCoarse'!$C$10,12*$A25,4*(PlotControl!$C$6-1),12,1))) -> 61860.41667 | F25: =IF(PlotControl!$B$4 = "Annual Max",MAX(OFFSET('2WCoarse'!$D$10,12*$A25,4*(PlotControl!$C$6-1),12,1)),AVERAGE(OFFSET('2WCoarse'!$D$10,12*$A25,4*(PlotControl!$C$6-1),12,1))) -> 62951.08333 | G25: =IF(PlotControl!$B$4 = "Annual Max",MAX(OFFSET('2WCoarse'!$E$10,12*$A25,4*(PlotControl!$C$6-1),12,1)),AVERAGE(OFFSET('2WCoarse'!$E$10,12*$A25,4*(PlotControl!$C$6-1),12,1))) -> 64347.66667 | H25: =IF(PlotControl!$B$4 = "Annual Max",MAX(OFFSET('2WBank'!$C$10,12*$A25,4*(PlotControl!$C$6-1),12,1)),AVERAGE(OFFSET('2WBank'!$C$10,12*$A25,4*(PlotControl!$C$6-1),12,1))) -> 89897.75 | I25: =IF(PlotControl!$B$4 = "Annual Max",MAX(OFFSET('2WBank'!$D$10,12*$A25,4*(PlotControl!$C$6-1),12,1)),AVERAGE(OFFSET('2WBank'!$D$10,12*$A25,4*(PlotControl!$C$6-1),12,1))) -> 91678.75 | J25: =IF(PlotControl!$B$4 = "Annual Max",MAX(OFFSET('2WBank'!$E$10,12*$A25,4*(PlotControl!$C$6-1),12,1)),AVERAGE(OFFSET('2WBank'!$E$10,12*$A25,4*(PlotControl!$C$6-1),12,1))) -> 93952.5 | K25: =IF(PlotControl!$B$4 = "Annual Max",MAX(OFFSET('2EFines'!$C$10,12*$A25,4*(PlotControl!$C$6-1),12,1)),AVERAGE(OFFSET('2EFines'!$C$10,12*$A25,4*(PlotControl!$C$6-1),12,1))) -> 11219 | L25: =IF(PlotControl!$B$4 = "Annual Max",MAX(OFFSET('2EFines'!$D$10,12*$A25,4*(PlotControl!$C$6-1),12,1)),AVERAGE(OFFSET('2EFines'!$D$10,12*$A25,4*(PlotControl!$C$6-1),12,1))) -> 11225 | M25: =IF(PlotControl!$B$4 = "Annual Max",MAX(OFFSET('2EFines'!$E$10,12*$A25,4*(PlotControl!$C$6-1),12,1)),AVERAGE(OFFSET('2EFines'!$E$10,12*$A25,4*(PlotControl!$C$6-1),12,1))) -> 11232 | N25: =IF(PlotControl!$B$4 = "Annual Max",MAX(OFFSET('2ECoarse'!$C$10,12*$A25,4*(PlotControl!$C$6-1),12,1)),AVERAGE(OFFSET('2ECoarse'!$C$10,12*$A25,4*(PlotControl!$C$6-1),12,1))) -> 11217 | O25: =IF(PlotControl!$B$4 = "Annual Max",MAX(OFFSET('2ECoarse'!$D$10,12*$A25,4*(PlotControl!$C$6-1),12,1)),AVERAGE(OFFSET('2ECoarse'!$D$10,12*$A25,4*(PlotControl!$C$6-1),12,1))) -> 11219 | P25: =IF(PlotControl!$B$4 = "Annual Max",MAX(OFFSET('2ECoarse'!$E$10,12*$A25,4*(PlotControl!$C$6-1),12,1)),AVERAGE(OFFSET('2ECoarse'!$E$10,12*$A25,4*(PlotControl!$C$6-1),12,1))) -> 11221 | Q25: =IF(PlotControl!$B$4 = "Annual Max",MAX(OFFSET('2EBank'!$C$10,12*$A25,4*(PlotControl!$C$6-1),12,1)),AVERAGE(OFFSET('2EBank'!$C$10,12*$A25,4*(PlotControl!$C$6-1),12,1))) -> 7128.05 | R25: =IF(PlotControl!$B$4 = "Annual Max",MAX(OFFSET('2EBank'!$D$10,12*$A25,4*(PlotControl!$C$6-1),12,1)),AVERAGE(OFFSET('2EBank'!$D$10,12*$A25,4*(PlotControl!$C$6-1),12,1))) -> 7273.066667 | S25: =IF(PlotControl!$B$4 = "Annual Max",MAX(OFFSET('2EBank'!$E$10,12*$A25,4*(PlotControl!$C$6-1),12,1)),AVERAGE(OFFSET('2EBank'!$E$10,12*$A25,4*(PlotControl!$C$6-1),12,1))) -> 7456.3 | T25: =IF(PlotControl!$B$4 = "Annual Max",MAX(OFFSET('1EFines'!$C$10,12*$A25,4*(PlotControl!$C$6-1),12,1)),AVERAGE(OFFSET('1EFines'!$C$10,12*$A25,4*(PlotControl!$C$6-1),12,1))) -> 13846 | U25: =IF(PlotControl!$B$4 = "Annual Max",MAX(OFFSET('1EFines'!$D$10,12*$A25,4*(PlotControl!$C$6-1),12,1)),AVERAGE(OFFSET('1EFines'!$D$10,12*$A25,4*(PlotControl!$C$6-1),12,1))) -> 13937 | V25: =IF(PlotControl!$B$4 = "Annual Max",MAX(OFFSET('1EFines'!$E$10,12*$A25,4*(PlotControl!$C$6-1),12,1)),AVERAGE(OFFSET('1EFines'!$E$10,12*$A25,4*(PlotControl!$C$6-1),12,1))) -> 14052 | W25: =IF(PlotControl!$B$4 = "Annual Max",MAX(OFFSET('1ECoarse'!$C$10,12*$A25,4*(PlotControl!$C$6-1),12,1)),AVERAGE(OFFSET('1ECoarse'!$C$10,12*$A25,4*(PlotControl!$C$6-1),12,1))) -> 66558.33333 | X25: =IF(PlotControl!$B$4 = "Annual Max",MAX(OFFSET('1ECoarse'!$D$10,12*$A25,4*(PlotControl!$C$6-1),12,1)),AVERAGE(OFFSET('1ECoarse'!$D$10,12*$A25,4*(PlotControl!$C$6-1),12,1))) -> 66762.25 | Y25: =IF(PlotControl!$B$4 = "Annual Max",MAX(OFFSET('1ECoarse'!$E$10,12*$A25,4*(PlotControl!$C$6-1),12,1)),AVERAGE(OFFSET('1ECoarse'!$E$10,12*$A25,4*(PlotControl!$C$6-1),12,1))) -> 67016.33333
A26: 21 | B26: =IF(PlotControl!$B$4 = "Annual Max",MAX(OFFSET('2WFines'!$C$10,12*$A26,4*(PlotControl!$C$6-1),12,1)),AVERAGE(OFFSET('2WFines'!$C$10,12*$A26,4*(PlotControl!$C$6-1),12,1))) -> 104442.5 | C26: =IF(PlotControl!$B$4 = "Annual Max",MAX(OFFSET('2WFines'!$D$10,12*$A26,4*(PlotControl!$C$6-1),12,1)),AVERAGE(OFFSET('2WFines'!$D$10,12*$A26,4*(PlotControl!$C$6-1),12,1))) -> 105782.5 | D26: =IF(PlotControl!$B$4 = "Annual Max",MAX(OFFSET('2WFines'!$E$10,12*$A26,4*(PlotControl!$C$6-1),12,1)),AVERAGE(OFFSET('2WFines'!$E$10,12*$A26,4*(PlotControl!$C$6-1),12,1))) -> 107799.1667 | E26: =IF(PlotControl!$B$4 = "Annual Max",MAX(OFFSET('2WCoarse'!$C$10,12*$A26,4*(PlotControl!$C$6-1),12,1)),AVERAGE(OFFSET('2WCoarse'!$C$10,12*$A26,4*(PlotControl!$C$6-1),12,1))) -> 61668.91667 | F26: =IF(PlotControl!$B$4 = "Annual Max",MAX(OFFSET('2WCoarse'!$D$10,12*$A26,4*(PlotControl!$C$6-1),12,1)),AVERAGE(OFFSET('2WCoarse'!$D$10,12*$A26,4*(PlotControl!$C$6-1),12,1))) -> 62808.41667 | G26: =IF(PlotControl!$B$4 = "Annual Max",MAX(OFFSET('2WCoarse'!$E$10,12*$A26,4*(PlotControl!$C$6-1),12,1)),AVERAGE(OFFSET('2WCoarse'!$E$10,12*$A26,4*(PlotControl!$C$6-1),12,1))) -> 64267.5 | H26: =IF(PlotControl!$B$4 = "Annual Max",MAX(OFFSET('2WBank'!$C$10,12*$A26,4*(PlotControl!$C$6-1),12,1)),AVERAGE(OFFSET('2WBank'!$C$10,12*$A26,4*(PlotControl!$C$6-1),12,1))) -> 89607.08333 | I26: =IF(PlotControl!$B$4 = "Annual Max",MAX(OFFSET('2WBank'!$D$10,12*$A26,4*(PlotControl!$C$6-1),12,1)),AVERAGE(OFFSET('2WBank'!$D$10,12*$A26,4*(PlotControl!$C$6-1),12,1))) -> 91458.5 | J26: =IF(PlotControl!$B$4 = "Annual Max",MAX(OFFSET('2WBank'!$E$10,12*$A26,4*(PlotControl!$C$6-1),12,1)),AVERAGE(OFFSET('2WBank'!$E$10,12*$A26,4*(PlotControl!$C$6-1),12,1))) -> 93829.5 | K26: =IF(PlotControl!$B$4 = "Annual Max",MAX(OFFSET('2EFines'!$C$10,12*$A26,4*(PlotControl!$C$6-1),12,1)),AVERAGE(OFFSET('2EFines'!$C$10,12*$A26,4*(PlotControl!$C$6-1),12,1))) -> 11219 | L26: =IF(PlotControl!$B$4 = "Annual Max",MAX(OFFSET('2EFines'!$D$10,12*$A26,4*(PlotControl!$C$6-1),12,1)),AVERAGE(OFFSET('2EFines'!$D$10,12*$A26,4*(PlotControl!$C$6-1),12,1))) -> 11225 | M26: =IF(PlotControl!$B$4 = "Annual Max",MAX(OFFSET('2EFines'!$E$10,12*$A26,4*(PlotControl!$C$6-1),12,1)),AVERAGE(OFFSET('2EFines'!$E$10,12*$A26,4*(PlotControl!$C$6-1),12,1))) -> 11232 | N26: =IF(PlotControl!$B$4 = "Annual Max",MAX(OFFSET('2ECoarse'!$C$10,12*$A26,4*(PlotControl!$C$6-1),12,1)),AVERAGE(OFFSET('2ECoarse'!$C$10,12*$A26,4*(PlotControl!$C$6-1),12,1))) -> 11217 | O26: =IF(PlotControl!$B$4 = "Annual Max",MAX(OFFSET('2ECoarse'!$D$10,12*$A26,4*(PlotControl!$C$6-1),12,1)),AVERAGE(OFFSET('2ECoarse'!$D$10,12*$A26,4*(PlotControl!$C$6-1),12,1))) -> 11219 | P26: =IF(PlotControl!$B$4 = "Annual Max",MAX(OFFSET('2ECoarse'!$E$10,12*$A26,4*(PlotControl!$C$6-1),12,1)),AVERAGE(OFFSET('2ECoarse'!$E$10,12*$A26,4*(PlotControl!$C$6-1),12,1))) -> 11221 | Q26: =IF(PlotControl!$B$4 = "Annual Max",MAX(OFFSET('2EBank'!$C$10,12*$A26,4*(PlotControl!$C$6-1),12,1)),AVERAGE(OFFSET('2EBank'!$C$10,12*$A26,4*(PlotControl!$C$6-1),12,1))) -> 7098.025 | R26: =IF(PlotControl!$B$4 = "Annual Max",MAX(OFFSET('2EBank'!$D$10,12*$A26,4*(PlotControl!$C$6-1),12,1)),AVERAGE(OFFSET('2EBank'!$D$10,12*$A26,4*(PlotControl!$C$6-1),12,1))) -> 7250.85 | S26: =IF(PlotControl!$B$4 = "Annual Max",MAX(OFFSET('2EBank'!$E$10,12*$A26,4*(PlotControl!$C$6-1),12,1)),AVERAGE(OFFSET('2EBank'!$E$10,12*$A26,4*(PlotControl!$C$6-1),12,1))) -> 7444.825 | T26: =IF(PlotControl!$B$4 = "Annual Max",MAX(OFFSET('1EFines'!$C$10,12*$A26,4*(PlotControl!$C$6-1),12,1)),AVERAGE(OFFSET('1EFines'!$C$10,12*$A26,4*(PlotControl!$C$6-1),12,1))) -> 13846 | U26: =IF(PlotControl!$B$4 = "Annual Max",MAX(OFFSET('1EFines'!$D$10,12*$A26,4*(PlotControl!$C$6-1),12,1)),AVERAGE(OFFSET('1EFines'!$D$10,12*$A26,4*(PlotControl!$C$6-1),12,1))) -> 13937 | V26: =IF(PlotControl!$B$4 = "Annual Max",MAX(OFFSET('1EFines'!$E$10,12*$A26,4*(PlotControl!$C$6-1),12,1)),AVERAGE(OFFSET('1EFines'!$E$10,12*$A26,4*(PlotControl!$C$6-1),12,1))) -> 14052 | W26: =IF(PlotControl!$B$4 = "Annual Max",MAX(OFFSET('1ECoarse'!$C$10,12*$A26,4*(PlotControl!$C$6-1),12,1)),AVERAGE(OFFSET('1ECoarse'!$C$10,12*$A26,4*(PlotControl!$C$6-1),12,1))) -> 66557 | X26: =IF(PlotControl!$B$4 = "Annual Max",MAX(OFFSET('1ECoarse'!$D$10,12*$A26,4*(PlotControl!$C$6-1),12,1)),AVERAGE(OFFSET('1ECoarse'!$D$10,12*$A26,4*(PlotControl!$C$6-1),12,1))) -> 66761.25 | Y26: =IF(PlotControl!$B$4 = "Annual Max",MAX(OFFSET('1ECoarse'!$E$10,12*$A26,4*(PlotControl!$C$6-1),12,1)),AVERAGE(OFFSET('1ECoarse'!$E$10,12*$A26,4*(PlotControl!$C$6-1),12,1))) -> 67016
A27: 22 | B27: =IF(PlotControl!$B$4 = "Annual Max",MAX(OFFSET('2WFines'!$C$10,12*$A27,4*(PlotControl!$C$6-1),12,1)),AVERAGE(OFFSET('2WFines'!$C$10,12*$A27,4*(PlotControl!$C$6-1),12,1))) -> 104025 | C27: =IF(PlotControl!$B$4 = "Annual Max",MAX(OFFSET('2WFines'!$D$10,12*$A27,4*(PlotControl!$C$6-1),12,1)),AVERAGE(OFFSET('2WFines'!$D$10,12*$A27,4*(PlotControl!$C$6-1),12,1))) -> 105407.5 | D27: =IF(PlotControl!$B$4 = "Annual Max",MAX(OFFSET('2WFines'!$E$10,12*$A27,4*(PlotControl!$C$6-1),12,1)),AVERAGE(OFFSET('2WFines'!$E$10,12*$A27,4*(PlotControl!$C$6-1),12,1))) -> 107532.5 | E27: =IF(PlotControl!$B$4 = "Annual Max",MAX(OFFSET('2WCoarse'!$C$10,12*$A27,4*(PlotControl!$C$6-1),12,1)),AVERAGE(OFFSET('2WCoarse'!$C$10,12*$A27,4*(PlotControl!$C$6-1),12,1))) -> 61464.91667 | F27: =IF(PlotControl!$B$4 = "Annual Max",MAX(OFFSET('2WCoarse'!$D$10,12*$A27,4*(PlotControl!$C$6-1),12,1)),AVERAGE(OFFSET('2WCoarse'!$D$10,12*$A27,4*(PlotControl!$C$6-1),12,1))) -> 62659.08333 | G27: =IF(PlotControl!$B$4 = "Annual Max",MAX(OFFSET('2WCoarse'!$E$10,12*$A27,4*(PlotControl!$C$6-1),12,1)),AVERAGE(OFFSET('2WCoarse'!$E$10,12*$A27,4*(PlotControl!$C$6-1),12,1))) -> 64187.41667 | H27: =IF(PlotControl!$B$4 = "Annual Max",MAX(OFFSET('2WBank'!$C$10,12*$A27,4*(PlotControl!$C$6-1),12,1)),AVERAGE(OFFSET('2WBank'!$C$10,12*$A27,4*(PlotControl!$C$6-1),12,1))) -> 89298.5 | I27: =IF(PlotControl!$B$4 = "Annual Max",MAX(OFFSET('2WBank'!$D$10,12*$A27,4*(PlotControl!$C$6-1),12,1)),AVERAGE(OFFSET('2WBank'!$D$10,12*$A27,4*(PlotControl!$C$6-1),12,1))) -> 91228.33333 | J27: =IF(PlotControl!$B$4 = "Annual Max",MAX(OFFSET('2WBank'!$E$10,12*$A27,4*(PlotControl!$C$6-1),12,1)),AVERAGE(OFFSET('2WBank'!$E$10,12*$A27,4*(PlotControl!$C$6-1),12,1))) -> 93703.33333 | K27: =IF(PlotControl!$B$4 = "Annual Max",MAX(OFFSET('2EFines'!$C$10,12*$A27,4*(PlotControl!$C$6-1),12,1)),AVERAGE(OFFSET('2EFines'!$C$10,12*$A27,4*(PlotControl!$C$6-1),12,1))) -> 11219 | L27: =IF(PlotControl!$B$4 = "Annual Max",MAX(OFFSET('2EFines'!$D$10,12*$A27,4*(PlotControl!$C$6-1),12,1)),AVERAGE(OFFSET('2EFines'!$D$10,12*$A27,4*(PlotControl!$C$6-1),12,1))) -> 11225 | M27: =IF(PlotControl!$B$4 = "Annual Max",MAX(OFFSET('2EFines'!$E$10,12*$A27,4*(PlotControl!$C$6-1),12,1)),AVERAGE(OFFSET('2EFines'!$E$10,12*$A27,4*(PlotControl!$C$6-1),12,1))) -> 11232 | N27: =IF(PlotControl!$B$4 = "Annual Max",MAX(OFFSET('2ECoarse'!$C$10,12*$A27,4*(PlotControl!$C$6-1),12,1)),AVERAGE(OFFSET('2ECoarse'!$C$10,12*$A27,4*(PlotControl!$C$6-1),12,1))) -> 11217 | O27: =IF(PlotControl!$B$4 = "Annual Max",MAX(OFFSET('2ECoarse'!$D$10,12*$A27,4*(PlotControl!$C$6-1),12,1)),AVERAGE(OFFSET('2ECoarse'!$D$10,12*$A27,4*(PlotControl!$C$6-1),12,1))) -> 11219 | P27: =IF(PlotControl!$B$4 = "Annual Max",MAX(OFFSET('2ECoarse'!$E$10,12*$A27,4*(PlotControl!$C$6-1),12,1)),AVERAGE(OFFSET('2ECoarse'!$E$10,12*$A27,4*(PlotControl!$C$6-1),12,1))) -> 11221 | Q27: =IF(PlotControl!$B$4 = "Annual Max",MAX(OFFSET('2EBank'!$C$10,12*$A27,4*(PlotControl!$C$6-1),12,1)),AVERAGE(OFFSET('2EBank'!$C$10,12*$A27,4*(PlotControl!$C$6-1),12,1))) -> 7065.883333 | R27: =IF(PlotControl!$B$4 = "Annual Max",MAX(OFFSET('2EBank'!$D$10,12*$A27,4*(PlotControl!$C$6-1),12,1)),AVERAGE(OFFSET('2EBank'!$D$10,12*$A27,4*(PlotControl!$C$6-1),12,1))) -> 7228.225 | S27: =IF(PlotControl!$B$4 = "Annual Max",MAX(OFFSET('2EBank'!$E$10,12*$A27,4*(PlotControl!$C$6-1),12,1)),AVERAGE(OFFSET('2EBank'!$E$10,12*$A27,4*(PlotControl!$C$6-1),12,1))) -> 7432.333333 | T27: =IF(PlotControl!$B$4 = "Annual Max",MAX(OFFSET('1EFines'!$C$10,12*$A27,4*(PlotControl!$C$6-1),12,1)),AVERAGE(OFFSET('1EFines'!$C$10,12*$A27,4*(PlotControl!$C$6-1),12,1))) -> 13846 | U27: =IF(PlotControl!$B$4 = "Annual Max",MAX(OFFSET('1EFines'!$D$10,12*$A27,4*(PlotControl!$C$6-1),12,1)),AVERAGE(OFFSET('1EFines'!$D$10,12*$A27,4*(PlotControl!$C$6-1),12,1))) -> 13937 | V27: =IF(PlotControl!$B$4 = "Annual Max",MAX(OFFSET('1EFines'!$E$10,12*$A27,4*(PlotControl!$C$6-1),12,1)),AVERAGE(OFFSET('1EFines'!$E$10,12*$A27,4*(PlotControl!$C$6-1),12,1))) -> 14052 | W27: =IF(PlotControl!$B$4 = "Annual Max",MAX(OFFSET('1ECoarse'!$C$10,12*$A27,4*(PlotControl!$C$6-1),12,1)),AVERAGE(OFFSET('1ECoarse'!$C$10,12*$A27,4*(PlotControl!$C$6-1),12,1))) -> 66555.66667 | X27: =IF(PlotControl!$B$4 = "Annual Max",MAX(OFFSET('1ECoarse'!$D$10,12*$A27,4*(PlotControl!$C$6-1),12,1)),AVERAGE(OFFSET('1ECoarse'!$D$10,12*$A27,4*(PlotControl!$C$6-1),12,1))) -> 66760.41667 | Y27: =IF(PlotControl!$B$4 = "Annual Max",MAX(OFFSET('1ECoarse'!$E$10,12*$A27,4*(PlotControl!$C$6-1),12,1)),AVERAGE(OFFSET('1ECoarse'!$E$10,12*$A27,4*(PlotControl!$C$6-1),12,1))) -> 67015.41667
A28: 23 | B28: =IF(PlotControl!$B$4 = "Annual Max",MAX(OFFSET('2WFines'!$C$10,12*$A28,4*(PlotControl!$C$6-1),12,1)),AVERAGE(OFFSET('2WFines'!$C$10,12*$A28,4*(PlotControl!$C$6-1),12,1))) -> 103596.6667 | C28: =IF(PlotControl!$B$4 = "Annual Max",MAX(OFFSET('2WFines'!$D$10,12*$A28,4*(PlotControl!$C$6-1),12,1)),AVERAGE(OFFSET('2WFines'!$D$10,12*$A28,4*(PlotControl!$C$6-1),12,1))) -> 105031.6667 | D28: =IF(PlotControl!$B$4 = "Annual Max",MAX(OFFSET('2WFines'!$E$10,12*$A28,4*(PlotControl!$C$6-1),12,1)),AVERAGE(OFFSET('2WFines'!$E$10,12*$A28,4*(PlotControl!$C$6-1),12,1))) -> 107247.5 | E28: =IF(PlotControl!$B$4 = "Annual Max",MAX(OFFSET('2WCoarse'!$C$10,12*$A28,4*(PlotControl!$C$6-1),12,1)),AVERAGE(OFFSET('2WCoarse'!$C$10,12*$A28,4*(PlotControl!$C$6-1),12,1))) -> 61266.58333 | F28: =IF(PlotControl!$B$4 = "Annual Max",MAX(OFFSET('2WCoarse'!$D$10,12*$A28,4*(PlotControl!$C$6-1),12,1)),AVERAGE(OFFSET('2WCoarse'!$D$10,12*$A28,4*(PlotControl!$C$6-1),12,1))) -> 62505.91667 | G28: =IF(PlotControl!$B$4 = "Annual Max",MAX(OFFSET('2WCoarse'!$E$10,12*$A28,4*(PlotControl!$C$6-1),12,1)),AVERAGE(OFFSET('2WCoarse'!$E$10,12*$A28,4*(PlotControl!$C$6-1),12,1))) -> 64107.66667 | H28: =IF(PlotControl!$B$4 = "Annual Max",MAX(OFFSET('2WBank'!$C$10,12*$A28,4*(PlotControl!$C$6-1),12,1)),AVERAGE(OFFSET('2WBank'!$C$10,12*$A28,4*(PlotControl!$C$6-1),12,1))) -> 88999.25 | I28: =IF(PlotControl!$B$4 = "Annual Max",MAX(OFFSET('2WBank'!$D$10,12*$A28,4*(PlotControl!$C$6-1),12,1)),AVERAGE(OFFSET('2WBank'!$D$10,12*$A28,4*(PlotControl!$C$6-1),12,1))) -> 90993.41667 | J28: =IF(PlotControl!$B$4 = "Annual Max",MAX(OFFSET('2WBank'!$E$10,12*$A28,4*(PlotControl!$C$6-1),12,1)),AVERAGE(OFFSET('2WBank'!$E$10,12*$A28,4*(PlotControl!$C$6-1),12,1))) -> 93581.33333 | K28: =IF(PlotControl!$B$4 = "Annual Max",MAX(OFFSET('2EFines'!$C$10,12*$A28,4*(PlotControl!$C$6-1),12,1)),AVERAGE(OFFSET('2EFines'!$C$10,12*$A28,4*(PlotControl!$C$6-1),12,1))) -> 11219 | L28: =IF(PlotControl!$B$4 = "Annual Max",MAX(OFFSET('2EFines'!$D$10,12*$A28,4*(PlotControl!$C$6-1),12,1)),AVERAGE(OFFSET('2EFines'!$D$10,12*$A28,4*(PlotControl!$C$6-1),12,1))) -> 11225 | M28: =IF(PlotControl!$B$4 = "Annual Max",MAX(OFFSET('2EFines'!$E$10,12*$A28,4*(PlotControl!$C$6-1),12,1)),AVERAGE(OFFSET('2EFines'!$E$10,12*$A28,4*(PlotControl!$C$6-1),12,1))) -> 11232 | N28: =IF(PlotControl!$B$4 = "Annual Max",MAX(OFFSET('2ECoarse'!$C$10,12*$A28,4*(PlotControl!$C$6-1),12,1)),AVERAGE(OFFSET('2ECoarse'!$C$10,12*$A28,4*(PlotControl!$C$6-1),12,1))) -> 11217 | O28: =IF(PlotControl!$B$4 = "Annual Max",MAX(OFFSET('2ECoarse'!$D$10,12*$A28,4*(PlotControl!$C$6-1),12,1)),AVERAGE(OFFSET('2ECoarse'!$D$10,12*$A28,4*(PlotControl!$C$6-1),12,1))) -> 11219 | P28: =IF(PlotControl!$B$4 = "Annual Max",MAX(OFFSET('2ECoarse'!$E$10,12*$A28,4*(PlotControl!$C$6-1),12,1)),AVERAGE(OFFSET('2ECoarse'!$E$10,12*$A28,4*(PlotControl!$C$6-1),12,1))) -> 11221 | Q28: =IF(PlotControl!$B$4 = "Annual Max",MAX(OFFSET('2EBank'!$C$10,12*$A28,4*(PlotControl!$C$6-1),12,1)),AVERAGE(OFFSET('2EBank'!$C$10,12*$A28,4*(PlotControl!$C$6-1),12,1))) -> 7035.308333 | R28: =IF(PlotControl!$B$4 = "Annual Max",MAX(OFFSET('2EBank'!$D$10,12*$A28,4*(PlotControl!$C$6-1),12,1)),AVERAGE(OFFSET('2EBank'!$D$10,12*$A28,4*(PlotControl!$C$6-1),12,1))) -> 7205 | S28: =IF(PlotControl!$B$4 = "Annual Max",MAX(OFFSET('2EBank'!$E$10,12*$A28,4*(PlotControl!$C$6-1),12,1)),AVERAGE(OFFSET('2EBank'!$E$10,12*$A28,4*(PlotControl!$C$6-1),12,1))) -> 7419.991667 | T28: =IF(PlotControl!$B$4 = "Annual Max",MAX(OFFSET('1EFines'!$C$10,12*$A28,4*(PlotControl!$C$6-1),12,1)),AVERAGE(OFFSET('1EFines'!$C$10,12*$A28,4*(PlotControl!$C$6-1),12,1))) -> 13846 | U28: =IF(PlotControl!$B$4 = "Annual Max",MAX(OFFSET('1EFines'!$D$10,12*$A28,4*(PlotControl!$C$6-1),12,1)),AVERAGE(OFFSET('1EFines'!$D$10,12*$A28,4*(PlotControl!$C$6-1),12,1))) -> 13937 | V28: =IF(PlotControl!$B$4 = "Annual Max",MAX(OFFSET('1EFines'!$E$10,12*$A28,4*(PlotControl!$C$6-1),12,1)),AVERAGE(OFFSET('1EFines'!$E$10,12*$A28,4*(PlotControl!$C$6-1),12,1))) -> 14052 | W28: =IF(PlotControl!$B$4 = "Annual Max",MAX(OFFSET('1ECoarse'!$C$10,12*$A28,4*(PlotControl!$C$6-1),12,1)),AVERAGE(OFFSET('1ECoarse'!$C$10,12*$A28,4*(PlotControl!$C$6-1),12,1))) -> 66554.5 | X28: =IF(PlotControl!$B$4 = "Annual Max",MAX(OFFSET('1ECoarse'!$D$10,12*$A28,4*(PlotControl!$C$6-1),12,1)),AVERAGE(OFFSET('1ECoarse'!$D$10,12*$A28,4*(PlotControl!$C$6-1),12,1))) -> 66759.41667 | Y28: =IF(PlotControl!$B$4 = "Annual Max",MAX(OFFSET('1ECoarse'!$E$10,12*$A28,4*(PlotControl!$C$6-1),12,1)),AVERAGE(OFFSET('1ECoarse'!$E$10,12*$A28,4*(PlotControl!$C$6-1),12,1))) -> 67015
A29: 24 | B29: =IF(PlotControl!$B$4 = "Annual Max",MAX(OFFSET('2WFines'!$C$10,12*$A29,4*(PlotControl!$C$6-1),12,1)),AVERAGE(OFFSET('2WFines'!$C$10,12*$A29,4*(PlotControl!$C$6-1),12,1))) -> 103153.3333 | C29: =IF(PlotControl!$B$4 = "Annual Max",MAX(OFFSET('2WFines'!$D$10,12*$A29,4*(PlotControl!$C$6-1),12,1)),AVERAGE(OFFSET('2WFines'!$D$10,12*$A29,4*(PlotControl!$C$6-1),12,1))) -> 104652.5 | D29: =IF(PlotControl!$B$4 = "Annual Max",MAX(OFFSET('2WFines'!$E$10,12*$A29,4*(PlotControl!$C$6-1),12,1)),AVERAGE(OFFSET('2WFines'!$E$10,12*$A29,4*(PlotControl!$C$6-1),12,1))) -> 106977.5 | E29: =IF(PlotControl!$B$4 = "Annual Max",MAX(OFFSET('2WCoarse'!$C$10,12*$A29,4*(PlotControl!$C$6-1),12,1)),AVERAGE(OFFSET('2WCoarse'!$C$10,12*$A29,4*(PlotControl!$C$6-1),12,1))) -> 61058.58333 | F29: =IF(PlotControl!$B$4 = "Annual Max",MAX(OFFSET('2WCoarse'!$D$10,12*$A29,4*(PlotControl!$C$6-1),12,1)),AVERAGE(OFFSET('2WCoarse'!$D$10,12*$A29,4*(PlotControl!$C$6-1),12,1))) -> 62346.25 | G29: =IF(PlotControl!$B$4 = "Annual Max",MAX(OFFSET('2WCoarse'!$E$10,12*$A29,4*(PlotControl!$C$6-1),12,1)),AVERAGE(OFFSET('2WCoarse'!$E$10,12*$A29,4*(PlotControl!$C$6-1),12,1))) -> 64030.08333 | H29: =IF(PlotControl!$B$4 = "Annual Max",MAX(OFFSET('2WBank'!$C$10,12*$A29,4*(PlotControl!$C$6-1),12,1)),AVERAGE(OFFSET('2WBank'!$C$10,12*$A29,4*(PlotControl!$C$6-1),12,1))) -> 88682.83333 | I29: =IF(PlotControl!$B$4 = "Annual Max",MAX(OFFSET('2WBank'!$D$10,12*$A29,4*(PlotControl!$C$6-1),12,1)),AVERAGE(OFFSET('2WBank'!$D$10,12*$A29,4*(PlotControl!$C$6-1),12,1))) -> 90752 | J29: =IF(PlotControl!$B$4 = "Annual Max",MAX(OFFSET('2WBank'!$E$10,12*$A29,4*(PlotControl!$C$6-1),12,1)),AVERAGE(OFFSET('2WBank'!$E$10,12*$A29,4*(PlotControl!$C$6-1),12,1))) -> 93464.75 | K29: =IF(PlotControl!$B$4 = "Annual Max",MAX(OFFSET('2EFines'!$C$10,12*$A29,4*(PlotControl!$C$6-1),12,1)),AVERAGE(OFFSET('2EFines'!$C$10,12*$A29,4*(PlotControl!$C$6-1),12,1))) -> 11219 | L29: =IF(PlotControl!$B$4 = "Annual Max",MAX(OFFSET('2EFines'!$D$10,12*$A29,4*(PlotControl!$C$6-1),12,1)),AVERAGE(OFFSET('2EFines'!$D$10,12*$A29,4*(PlotControl!$C$6-1),12,1))) -> 11225 | M29: =IF(PlotControl!$B$4 = "Annual Max",MAX(OFFSET('2EFines'!$E$10,12*$A29,4*(PlotControl!$C$6-1),12,1)),AVERAGE(OFFSET('2EFines'!$E$10,12*$A29,4*(PlotControl!$C$6-1),12,1))) -> 11232 | N29: =IF(PlotControl!$B$4 = "Annual Max",MAX(OFFSET('2ECoarse'!$C$10,12*$A29,4*(PlotControl!$C$6-1),12,1)),AVERAGE(OFFSET('2ECoarse'!$C$10,12*$A29,4*(PlotControl!$C$6-1),12,1))) -> 11217 | O29: =IF(PlotControl!$B$4 = "Annual Max",MAX(OFFSET('2ECoarse'!$D$10,12*$A29,4*(PlotControl!$C$6-1),12,1)),AVERAGE(OFFSET('2ECoarse'!$D$10,12*$A29,4*(PlotControl!$C$6-1),12,1))) -> 11219 | P29: =IF(PlotControl!$B$4 = "Annual Max",MAX(OFFSET('2ECoarse'!$E$10,12*$A29,4*(PlotControl!$C$6-1),12,1)),AVERAGE(OFFSET('2ECoarse'!$E$10,12*$A29,4*(PlotControl!$C$6-1),12,1))) -> 11221 | Q29: =IF(PlotControl!$B$4 = "Annual Max",MAX(OFFSET('2EBank'!$C$10,12*$A29,4*(PlotControl!$C$6-1),12,1)),AVERAGE(OFFSET('2EBank'!$C$10,12*$A29,4*(PlotControl!$C$6-1),12,1))) -> 7003.95 | R29: =IF(PlotControl!$B$4 = "Annual Max",MAX(OFFSET('2EBank'!$D$10,12*$A29,4*(PlotControl!$C$6-1),12,1)),AVERAGE(OFFSET('2EBank'!$D$10,12*$A29,4*(PlotControl!$C$6-1),12,1))) -> 7181.258333 | S29: =IF(PlotControl!$B$4 = "Annual Max",MAX(OFFSET('2EBank'!$E$10,12*$A29,4*(PlotControl!$C$6-1),12,1)),AVERAGE(OFFSET('2EBank'!$E$10,12*$A29,4*(PlotControl!$C$6-1),12,1))) -> 7408.116667 | T29: =IF(PlotControl!$B$4 = "Annual Max",MAX(OFFSET('1EFines'!$C$10,12*$A29,4*(PlotControl!$C$6-1),12,1)),AVERAGE(OFFSET('1EFines'!$C$10,12*$A29,4*(PlotControl!$C$6-1),12,1))) -> 13846 | U29: =IF(PlotControl!$B$4 = "Annual Max",MAX(OFFSET('1EFines'!$D$10,12*$A29,4*(PlotControl!$C$6-1),12,1)),AVERAGE(OFFSET('1EFines'!$D$10,12*$A29,4*(PlotControl!$C$6-1),12,1))) -> 13937 | V29: =IF(PlotControl!$B$4 = "Annual Max",MAX(OFFSET('1EFines'!$E$10,12*$A29,4*(PlotControl!$C$6-1),12,1)),AVERAGE(OFFSET('1EFines'!$E$10,12*$A29,4*(PlotControl!$C$6-1),12,1))) -> 14052 | W29: =IF(PlotControl!$B$4 = "Annual Max",MAX(OFFSET('1ECoarse'!$C$10,12*$A29,4*(PlotControl!$C$6-1),12,1)),AVERAGE(OFFSET('1ECoarse'!$C$10,12*$A29,4*(PlotControl!$C$6-1),12,1))) -> 66553.33333 | X29: =IF(PlotControl!$B$4 = "Annual Max",MAX(OFFSET('1ECoarse'!$D$10,12*$A29,4*(PlotControl!$C$6-1),12,1)),AVERAGE(OFFSET('1ECoarse'!$D$10,12*$A29,4*(PlotControl!$C$6-1),12,1))) -> 66758.33333 | Y29: =IF(PlotControl!$B$4 = "Annual Max",MAX(OFFSET('1ECoarse'!$E$10,12*$A29,4*(PlotControl!$C$6-1),12,1)),AVERAGE(OFFSET('1ECoarse'!$E$10,12*$A29,4*(PlotControl!$C$6-1),12,1))) -> 67014.41667
A30: 25 | B30: =IF(PlotControl!$B$4 = "Annual Max",MAX(OFFSET('2WFines'!$C$10,12*$A30,4*(PlotControl!$C$6-1),12,1)),AVERAGE(OFFSET('2WFines'!$C$10,12*$A30,4*(PlotControl!$C$6-1),12,1))) -> 102709.1667 | C30: =IF(PlotControl!$B$4 = "Annual Max",MAX(OFFSET('2WFines'!$D$10,12*$A30,4*(PlotControl!$C$6-1),12,1)),AVERAGE(OFFSET('2WFines'!$D$10,12*$A30,4*(PlotControl!$C$6-1),12,1))) -> 104270.8333 | D30: =IF(PlotControl!$B$4 = "Annual Max",MAX(OFFSET('2WFines'!$E$10,12*$A30,4*(PlotControl!$C$6-1),12,1)),AVERAGE(OFFSET('2WFines'!$E$10,12*$A30,4*(PlotControl!$C$6-1),12,1))) -> 106706.6667 | E30: =IF(PlotControl!$B$4 = "Annual Max",MAX(OFFSET('2WCoarse'!$C$10,12*$A30,4*(PlotControl!$C$6-1),12,1)),AVERAGE(OFFSET('2WCoarse'!$C$10,12*$A30,4*(PlotControl!$C$6-1),12,1))) -> 60849.58333 | F30: =IF(PlotControl!$B$4 = "Annual Max",MAX(OFFSET('2WCoarse'!$D$10,12*$A30,4*(PlotControl!$C$6-1),12,1)),AVERAGE(OFFSET('2WCoarse'!$D$10,12*$A30,4*(PlotControl!$C$6-1),12,1))) -> 62195.66667 | G30: =IF(PlotControl!$B$4 = "Annual Max",MAX(OFFSET('2WCoarse'!$E$10,12*$A30,4*(PlotControl!$C$6-1),12,1)),AVERAGE(OFFSET('2WCoarse'!$E$10,12*$A30,4*(PlotControl!$C$6-1),12,1))) -> 63951 | H30: =IF(PlotControl!$B$4 = "Annual Max",MAX(OFFSET('2WBank'!$C$10,12*$A30,4*(PlotControl!$C$6-1),12,1)),AVERAGE(OFFSET('2WBank'!$C$10,12*$A30,4*(PlotControl!$C$6-1),12,1))) -> 88369.41667 | I30: =IF(PlotControl!$B$4 = "Annual Max",MAX(OFFSET('2WBank'!$D$10,12*$A30,4*(PlotControl!$C$6-1),12,1)),AVERAGE(OFFSET('2WBank'!$D$10,12*$A30,4*(PlotControl!$C$6-1),12,1))) -> 90523.25 | J30: =IF(PlotControl!$B$4 = "Annual Max",MAX(OFFSET('2WBank'!$E$10,12*$A30,4*(PlotControl!$C$6-1),12,1)),AVERAGE(OFFSET('2WBank'!$E$10,12*$A30,4*(PlotControl!$C$6-1),12,1))) -> 93347.25 | K30: =IF(PlotControl!$B$4 = "Annual Max",MAX(OFFSET('2EFines'!$C$10,12*$A30,4*(PlotControl!$C$6-1),12,1)),AVERAGE(OFFSET('2EFines'!$C$10,12*$A30,4*(PlotControl!$C$6-1),12,1))) -> 11219 | L30: =IF(PlotControl!$B$4 = "Annual Max",MAX(OFFSET('2EFines'!$D$10,12*$A30,4*(PlotControl!$C$6-1),12,1)),AVERAGE(OFFSET('2EFines'!$D$10,12*$A30,4*(PlotControl!$C$6-1),12,1))) -> 11225 | M30: =IF(PlotControl!$B$4 = "Annual Max",MAX(OFFSET('2EFines'!$E$10,12*$A30,4*(PlotControl!$C$6-1),12,1)),AVERAGE(OFFSET('2EFines'!$E$10,12*$A30,4*(PlotControl!$C$6-1),12,1))) -> 11232 | N30: =IF(PlotControl!$B$4 = "Annual Max",MAX(OFFSET('2ECoarse'!$C$10,12*$A30,4*(PlotControl!$C$6-1),12,1)),AVERAGE(OFFSET('2ECoarse'!$C$10,12*$A30,4*(PlotControl!$C$6-1),12,1))) -> 11217 | O30: =IF(PlotControl!$B$4 = "Annual Max",MAX(OFFSET('2ECoarse'!$D$10,12*$A30,4*(PlotControl!$C$6-1),12,1)),AVERAGE(OFFSET('2ECoarse'!$D$10,12*$A30,4*(PlotControl!$C$6-1),12,1))) -> 11219 | P30: =IF(PlotControl!$B$4 = "Annual Max",MAX(OFFSET('2ECoarse'!$E$10,12*$A30,4*(PlotControl!$C$6-1),12,1)),AVERAGE(OFFSET('2ECoarse'!$E$10,12*$A30,4*(PlotControl!$C$6-1),12,1))) -> 11221 | Q30: =IF(PlotControl!$B$4 = "Annual Max",MAX(OFFSET('2EBank'!$C$10,12*$A30,4*(PlotControl!$C$6-1),12,1)),AVERAGE(OFFSET('2EBank'!$C$10,12*$A30,4*(PlotControl!$C$6-1),12,1))) -> 6971.225 | R30: =IF(PlotControl!$B$4 = "Annual Max",MAX(OFFSET('2EBank'!$D$10,12*$A30,4*(PlotControl!$C$6-1),12,1)),AVERAGE(OFFSET('2EBank'!$D$10,12*$A30,4*(PlotControl!$C$6-1),12,1))) -> 7158.158333 | S30: =IF(PlotControl!$B$4 = "Annual Max",MAX(OFFSET('2EBank'!$E$10,12*$A30,4*(PlotControl!$C$6-1),12,1)),AVERAGE(OFFSET('2EBank'!$E$10,12*$A30,4*(PlotControl!$C$6-1),12,1))) -> 7396.708333 | T30: =IF(PlotControl!$B$4 = "Annual Max",MAX(OFFSET('1EFines'!$C$10,12*$A30,4*(PlotControl!$C$6-1),12,1)),AVERAGE(OFFSET('1EFines'!$C$10,12*$A30,4*(PlotControl!$C$6-1),12,1))) -> 13846 | U30: =IF(PlotControl!$B$4 = "Annual Max",MAX(OFFSET('1EFines'!$D$10,12*$A30,4*(PlotControl!$C$6-1),12,1)),AVERAGE(OFFSET('1EFines'!$D$10,12*$A30,4*(PlotControl!$C$6-1),12,1))) -> 13937 | V30: =IF(PlotControl!$B$4 = "Annual Max",MAX(OFFSET('1EFines'!$E$10,12*$A30,4*(PlotControl!$C$6-1),12,1)),AVERAGE(OFFSET('1EFines'!$E$10,12*$A30,4*(PlotControl!$C$6-1),12,1))) -> 14052 | W30: =IF(PlotControl!$B$4 = "Annual Max",MAX(OFFSET('1ECoarse'!$C$10,12*$A30,4*(PlotControl!$C$6-1),12,1)),AVERAGE(OFFSET('1ECoarse'!$C$10,12*$A30,4*(PlotControl!$C$6-1),12,1))) -> 66552.16667 | X30: =IF(PlotControl!$B$4 = "Annual Max",MAX(OFFSET('1ECoarse'!$D$10,12*$A30,4*(PlotControl!$C$6-1),12,1)),AVERAGE(OFFSET('1ECoarse'!$D$10,12*$A30,4*(PlotControl!$C$6-1),12,1))) -> 66757.33333 | Y30: =IF(PlotControl!$B$4 = "Annual Max",MAX(OFFSET('1ECoarse'!$E$10,12*$A30,4*(PlotControl!$C$6-1),12,1)),AVERAGE(OFFSET('1ECoarse'!$E$10,12*$A30,4*(PlotControl!$C$6-1),12,1))) -> 67014
A31: 26 | B31: =IF(PlotControl!$B$4 = "Annual Max",MAX(OFFSET('2WFines'!$C$10,12*$A31,4*(PlotControl!$C$6-1),12,1)),AVERAGE(OFFSET('2WFines'!$C$10,12*$A31,4*(PlotControl!$C$6-1),12,1))) -> 102291.6667 | C31: =IF(PlotControl!$B$4 = "Annual Max",MAX(OFFSET('2WFines'!$D$10,12*$A31,4*(PlotControl!$C$6-1),12,1)),AVERAGE(OFFSET('2WFines'!$D$10,12*$A31,4*(PlotControl!$C$6-1),12,1))) -> 103900 | D31: =IF(PlotControl!$B$4 = "Annual Max",MAX(OFFSET('2WFines'!$E$10,12*$A31,4*(PlotControl!$C$6-1),12,1)),AVERAGE(OFFSET('2WFines'!$E$10,12*$A31,4*(PlotControl!$C$6-1),12,1))) -> 106432.5 | E31: =IF(PlotControl!$B$4 = "Annual Max",MAX(OFFSET('2WCoarse'!$C$10,12*$A31,4*(PlotControl!$C$6-1),12,1)),AVERAGE(OFFSET('2WCoarse'!$C$10,12*$A31,4*(PlotControl!$C$6-1),12,1))) -> 60628.25 | F31: =IF(PlotControl!$B$4 = "Annual Max",MAX(OFFSET('2WCoarse'!$D$10,12*$A31,4*(PlotControl!$C$6-1),12,1)),AVERAGE(OFFSET('2WCoarse'!$D$10,12*$A31,4*(PlotControl!$C$6-1),12,1))) -> 62047.91667 | G31: =IF(PlotControl!$B$4 = "Annual Max",MAX(OFFSET('2WCoarse'!$E$10,12*$A31,4*(PlotControl!$C$6-1),12,1)),AVERAGE(OFFSET('2WCoarse'!$E$10,12*$A31,4*(PlotControl!$C$6-1),12,1))) -> 63865.66667 | H31: =IF(PlotControl!$B$4 = "Annual Max",MAX(OFFSET('2WBank'!$C$10,12*$A31,4*(PlotControl!$C$6-1),12,1)),AVERAGE(OFFSET('2WBank'!$C$10,12*$A31,4*(PlotControl!$C$6-1),12,1))) -> 88040.58333 | I31: =IF(PlotControl!$B$4 = "Annual Max",MAX(OFFSET('2WBank'!$D$10,12*$A31,4*(PlotControl!$C$6-1),12,1)),AVERAGE(OFFSET('2WBank'!$D$10,12*$A31,4*(PlotControl!$C$6-1),12,1))) -> 90302.83333 | J31: =IF(PlotControl!$B$4 = "Annual Max",MAX(OFFSET('2WBank'!$E$10,12*$A31,4*(PlotControl!$C$6-1),12,1)),AVERAGE(OFFSET('2WBank'!$E$10,12*$A31,4*(PlotControl!$C$6-1),12,1))) -> 93221.66667 | K31: =IF(PlotControl!$B$4 = "Annual Max",MAX(OFFSET('2EFines'!$C$10,12*$A31,4*(PlotControl!$C$6-1),12,1)),AVERAGE(OFFSET('2EFines'!$C$10,12*$A31,4*(PlotControl!$C$6-1),12,1))) -> 11219 | L31: =IF(PlotControl!$B$4 = "Annual Max",MAX(OFFSET('2EFines'!$D$10,12*$A31,4*(PlotControl!$C$6-1),12,1)),AVERAGE(OFFSET('2EFines'!$D$10,12*$A31,4*(PlotControl!$C$6-1),12,1))) -> 11225 | M31: =IF(PlotControl!$B$4 = "Annual Max",MAX(OFFSET('2EFines'!$E$10,12*$A31,4*(PlotControl!$C$6-1),12,1)),AVERAGE(OFFSET('2EFines'!$E$10,12*$A31,4*(PlotControl!$C$6-1),12,1))) -> 11232 | N31: =IF(PlotControl!$B$4 = "Annual Max",MAX(OFFSET('2ECoarse'!$C$10,12*$A31,4*(PlotControl!$C$6-1),12,1)),AVERAGE(OFFSET('2ECoarse'!$C$10,12*$A31,4*(PlotControl!$C$6-1),12,1))) -> 11217 | O31: =IF(PlotControl!$B$4 = "Annual Max",MAX(OFFSET('2ECoarse'!$D$10,12*$A31,4*(PlotControl!$C$6-1),12,1)),AVERAGE(OFFSET('2ECoarse'!$D$10,12*$A31,4*(PlotControl!$C$6-1),12,1))) -> 11219 | P31: =IF(PlotControl!$B$4 = "Annual Max",MAX(OFFSET('2ECoarse'!$E$10,12*$A31,4*(PlotControl!$C$6-1),12,1)),AVERAGE(OFFSET('2ECoarse'!$E$10,12*$A31,4*(PlotControl!$C$6-1),12,1))) -> 11221 | Q31: =IF(PlotControl!$B$4 = "Annual Max",MAX(OFFSET('2EBank'!$C$10,12*$A31,4*(PlotControl!$C$6-1),12,1)),AVERAGE(OFFSET('2EBank'!$C$10,12*$A31,4*(PlotControl!$C$6-1),12,1))) -> 6938.566667 | R31: =IF(PlotControl!$B$4 = "Annual Max",MAX(OFFSET('2EBank'!$D$10,12*$A31,4*(PlotControl!$C$6-1),12,1)),AVERAGE(OFFSET('2EBank'!$D$10,12*$A31,4*(PlotControl!$C$6-1),12,1))) -> 7134.716667 | S31: =IF(PlotControl!$B$4 = "Annual Max",MAX(OFFSET('2EBank'!$E$10,12*$A31,4*(PlotControl!$C$6-1),12,1)),AVERAGE(OFFSET('2EBank'!$E$10,12*$A31,4*(PlotControl!$C$6-1),12,1))) -> 7384.941667 | T31: =IF(PlotControl!$B$4 = "Annual Max",MAX(OFFSET('1EFines'!$C$10,12*$A31,4*(PlotControl!$C$6-1),12,1)),AVERAGE(OFFSET('1EFines'!$C$10,12*$A31,4*(PlotControl!$C$6-1),12,1))) -> 13846 | U31: =IF(PlotControl!$B$4 = "Annual Max",MAX(OFFSET('1EFines'!$D$10,12*$A31,4*(PlotControl!$C$6-1),12,1)),AVERAGE(OFFSET('1EFines'!$D$10,12*$A31,4*(PlotControl!$C$6-1),12,1))) -> 13937 | V31: =IF(PlotControl!$B$4 = "Annual Max",MAX(OFFSET('1EFines'!$E$10,12*$A31,4*(PlotControl!$C$6-1),12,1)),AVERAGE(OFFSET('1EFines'!$E$10,12*$A31,4*(PlotControl!$C$6-1),12,1))) -> 14052 | W31: =IF(PlotControl!$B$4 = "Annual Max",MAX(OFFSET('1ECoarse'!$C$10,12*$A31,4*(PlotControl!$C$6-1),12,1)),AVERAGE(OFFSET('1ECoarse'!$C$10,12*$A31,4*(PlotControl!$C$6-1),12,1))) -> 66550.83333 | X31: =IF(PlotControl!$B$4 = "Annual Max",MAX(OFFSET('1ECoarse'!$D$10,12*$A31,4*(PlotControl!$C$6-1),12,1)),AVERAGE(OFFSET('1ECoarse'!$D$10,12*$A31,4*(PlotControl!$C$6-1),12,1))) -> 66756.25 | Y31: =IF(PlotControl!$B$4 = "Annual Max",MAX(OFFSET('1ECoarse'!$E$10,12*$A31,4*(PlotControl!$C$6-1),12,1)),AVERAGE(OFFSET('1ECoarse'!$E$10,12*$A31,4*(PlotControl!$C$6-1),12,1))) -> 67013.25
A32: 27 | B32: =IF(PlotControl!$B$4 = "Annual Max",MAX(OFFSET('2WFines'!$C$10,12*$A32,4*(PlotControl!$C$6-1),12,1)),AVERAGE(OFFSET('2WFines'!$C$10,12*$A32,4*(PlotControl!$C$6-1),12,1))) -> 101874.1667 | C32: =IF(PlotControl!$B$4 = "Annual Max",MAX(OFFSET('2WFines'!$D$10,12*$A32,4*(PlotControl!$C$6-1),12,1)),AVERAGE(OFFSET('2WFines'!$D$10,12*$A32,4*(PlotControl!$C$6-1),12,1))) -> 103516.6667 | D32: =IF(PlotControl!$B$4 = "Annual Max",MAX(OFFSET('2WFines'!$E$10,12*$A32,4*(PlotControl!$C$6-1),12,1)),AVERAGE(OFFSET('2WFines'!$E$10,12*$A32,4*(PlotControl!$C$6-1),12,1))) -> 106170 | E32: =IF(PlotControl!$B$4 = "Annual Max",MAX(OFFSET('2WCoarse'!$C$10,12*$A32,4*(PlotControl!$C$6-1),12,1)),AVERAGE(OFFSET('2WCoarse'!$C$10,12*$A32,4*(PlotControl!$C$6-1),12,1))) -> 60420.41667 | F32: =IF(PlotControl!$B$4 = "Annual Max",MAX(OFFSET('2WCoarse'!$D$10,12*$A32,4*(PlotControl!$C$6-1),12,1)),AVERAGE(OFFSET('2WCoarse'!$D$10,12*$A32,4*(PlotControl!$C$6-1),12,1))) -> 61898.91667 | G32: =IF(PlotControl!$B$4 = "Annual Max",MAX(OFFSET('2WCoarse'!$E$10,12*$A32,4*(PlotControl!$C$6-1),12,1)),AVERAGE(OFFSET('2WCoarse'!$E$10,12*$A32,4*(PlotControl!$C$6-1),12,1))) -> 63779.25 | H32: =IF(PlotControl!$B$4 = "Annual Max",MAX(OFFSET('2WBank'!$C$10,12*$A32,4*(PlotControl!$C$6-1),12,1)),AVERAGE(OFFSET('2WBank'!$C$10,12*$A32,4*(PlotControl!$C$6-1),12,1))) -> 87731.66667 | I32: =IF(PlotControl!$B$4 = "Annual Max",MAX(OFFSET('2WBank'!$D$10,12*$A32,4*(PlotControl!$C$6-1),12,1)),AVERAGE(OFFSET('2WBank'!$D$10,12*$A32,4*(PlotControl!$C$6-1),12,1))) -> 90083.41667 | J32: =IF(PlotControl!$B$4 = "Annual Max",MAX(OFFSET('2WBank'!$E$10,12*$A32,4*(PlotControl!$C$6-1),12,1)),AVERAGE(OFFSET('2WBank'!$E$10,12*$A32,4*(PlotControl!$C$6-1),12,1))) -> 93094.08333 | K32: =IF(PlotControl!$B$4 = "Annual Max",MAX(OFFSET('2EFines'!$C$10,12*$A32,4*(PlotControl!$C$6-1),12,1)),AVERAGE(OFFSET('2EFines'!$C$10,12*$A32,4*(PlotControl!$C$6-1),12,1))) -> 11219 | L32: =IF(PlotControl!$B$4 = "Annual Max",MAX(OFFSET('2EFines'!$D$10,12*$A32,4*(PlotControl!$C$6-1),12,1)),AVERAGE(OFFSET('2EFines'!$D$10,12*$A32,4*(PlotControl!$C$6-1),12,1))) -> 11225 | M32: =IF(PlotControl!$B$4 = "Annual Max",MAX(OFFSET('2EFines'!$E$10,12*$A32,4*(PlotControl!$C$6-1),12,1)),AVERAGE(OFFSET('2EFines'!$E$10,12*$A32,4*(PlotControl!$C$6-1),12,1))) -> 11232 | N32: =IF(PlotControl!$B$4 = "Annual Max",MAX(OFFSET('2ECoarse'!$C$10,12*$A32,4*(PlotControl!$C$6-1),12,1)),AVERAGE(OFFSET('2ECoarse'!$C$10,12*$A32,4*(PlotControl!$C$6-1),12,1))) -> 11217 | O32: =IF(PlotControl!$B$4 = "Annual Max",MAX(OFFSET('2ECoarse'!$D$10,12*$A32,4*(PlotControl!$C$6-1),12,1)),AVERAGE(OFFSET('2ECoarse'!$D$10,12*$A32,4*(PlotControl!$C$6-1),12,1))) -> 11219 | P32: =IF(PlotControl!$B$4 = "Annual Max",MAX(OFFSET('2ECoarse'!$E$10,12*$A32,4*(PlotControl!$C$6-1),12,1)),AVERAGE(OFFSET('2ECoarse'!$E$10,12*$A32,4*(PlotControl!$C$6-1),12,1))) -> 11221 | Q32: =IF(PlotControl!$B$4 = "Annual Max",MAX(OFFSET('2EBank'!$C$10,12*$A32,4*(PlotControl!$C$6-1),12,1)),AVERAGE(OFFSET('2EBank'!$C$10,12*$A32,4*(PlotControl!$C$6-1),12,1))) -> 6907.358333 | R32: =IF(PlotControl!$B$4 = "Annual Max",MAX(OFFSET('2EBank'!$D$10,12*$A32,4*(PlotControl!$C$6-1),12,1)),AVERAGE(OFFSET('2EBank'!$D$10,12*$A32,4*(PlotControl!$C$6-1),12,1))) -> 7112.091667 | S32: =IF(PlotControl!$B$4 = "Annual Max",MAX(OFFSET('2EBank'!$E$10,12*$A32,4*(PlotControl!$C$6-1),12,1)),AVERAGE(OFFSET('2EBank'!$E$10,12*$A32,4*(PlotControl!$C$6-1),12,1))) -> 7372.491667 | T32: =IF(PlotControl!$B$4 = "Annual Max",MAX(OFFSET('1EFines'!$C$10,12*$A32,4*(PlotControl!$C$6-1),12,1)),AVERAGE(OFFSET('1EFines'!$C$10,12*$A32,4*(PlotControl!$C$6-1),12,1))) -> 13846 | U32: =IF(PlotControl!$B$4 = "Annual Max",MAX(OFFSET('1EFines'!$D$10,12*$A32,4*(PlotControl!$C$6-1),12,1)),AVERAGE(OFFSET('1EFines'!$D$10,12*$A32,4*(PlotControl!$C$6-1),12,1))) -> 13937 | V32: =IF(PlotControl!$B$4 = "Annual Max",MAX(OFFSET('1EFines'!$E$10,12*$A32,4*(PlotControl!$C$6-1),12,1)),AVERAGE(OFFSET('1EFines'!$E$10,12*$A32,4*(PlotControl!$C$6-1),12,1))) -> 14052 | W32: =IF(PlotControl!$B$4 = "Annual Max",MAX(OFFSET('1ECoarse'!$C$10,12*$A32,4*(PlotControl!$C$6-1),12,1)),AVERAGE(OFFSET('1ECoarse'!$C$10,12*$A32,4*(PlotControl!$C$6-1),12,1))) -> 66549.66667 | X32: =IF(PlotControl!$B$4 = "Annual Max",MAX(OFFSET('1ECoarse'!$D$10,12*$A32,4*(PlotControl!$C$6-1),12,1)),AVERAGE(OFFSET('1ECoarse'!$D$10,12*$A32,4*(PlotControl!$C$6-1),12,1))) -> 66755.16667 | Y32: =IF(PlotControl!$B$4 = "Annual Max",MAX(OFFSET('1ECoarse'!$E$10,12*$A32,4*(PlotControl!$C$6-1),12,1)),AVERAGE(OFFSET('1ECoarse'!$E$10,12*$A32,4*(PlotControl!$C$6-1),12,1))) -> 67013
A33: 28 | B33: =IF(PlotControl!$B$4 = "Annual Max",MAX(OFFSET('2WFines'!$C$10,12*$A33,4*(PlotControl!$C$6-1),12,1)),AVERAGE(OFFSET('2WFines'!$C$10,12*$A33,4*(PlotControl!$C$6-1),12,1))) -> 101440 | C33: =IF(PlotControl!$B$4 = "Annual Max",MAX(OFFSET('2WFines'!$D$10,12*$A33,4*(PlotControl!$C$6-1),12,1)),AVERAGE(OFFSET('2WFines'!$D$10,12*$A33,4*(PlotControl!$C$6-1),12,1))) -> 103163.3333 | D33: =IF(PlotControl!$B$4 = "Annual Max",MAX(OFFSET('2WFines'!$E$10,12*$A33,4*(PlotControl!$C$6-1),12,1)),AVERAGE(OFFSET('2WFines'!$E$10,12*$A33,4*(PlotControl!$C$6-1),12,1))) -> 105908.3333 | E33: =IF(PlotControl!$B$4 = "Annual Max",MAX(OFFSET('2WCoarse'!$C$10,12*$A33,4*(PlotControl!$C$6-1),12,1)),AVERAGE(OFFSET('2WCoarse'!$C$10,12*$A33,4*(PlotControl!$C$6-1),12,1))) -> 60215.5 | F33: =IF(PlotControl!$B$4 = "Annual Max",MAX(OFFSET('2WCoarse'!$D$10,12*$A33,4*(PlotControl!$C$6-1),12,1)),AVERAGE(OFFSET('2WCoarse'!$D$10,12*$A33,4*(PlotControl!$C$6-1),12,1))) -> 61749.41667 | G33: =IF(PlotControl!$B$4 = "Annual Max",MAX(OFFSET('2WCoarse'!$E$10,12*$A33,4*(PlotControl!$C$6-1),12,1)),AVERAGE(OFFSET('2WCoarse'!$E$10,12*$A33,4*(PlotControl!$C$6-1),12,1))) -> 63690.91667 | H33: =IF(PlotControl!$B$4 = "Annual Max",MAX(OFFSET('2WBank'!$C$10,12*$A33,4*(PlotControl!$C$6-1),12,1)),AVERAGE(OFFSET('2WBank'!$C$10,12*$A33,4*(PlotControl!$C$6-1),12,1))) -> 87426.5 | I33: =IF(PlotControl!$B$4 = "Annual Max",MAX(OFFSET('2WBank'!$D$10,12*$A33,4*(PlotControl!$C$6-1),12,1)),AVERAGE(OFFSET('2WBank'!$D$10,12*$A33,4*(PlotControl!$C$6-1),12,1))) -> 89862.16667 | J33: =IF(PlotControl!$B$4 = "Annual Max",MAX(OFFSET('2WBank'!$E$10,12*$A33,4*(PlotControl!$C$6-1),12,1)),AVERAGE(OFFSET('2WBank'!$E$10,12*$A33,4*(PlotControl!$C$6-1),12,1))) -> 92965.08333 | K33: =IF(PlotControl!$B$4 = "Annual Max",MAX(OFFSET('2EFines'!$C$10,12*$A33,4*(PlotControl!$C$6-1),12,1)),AVERAGE(OFFSET('2EFines'!$C$10,12*$A33,4*(PlotControl!$C$6-1),12,1))) -> 11219 | L33: =IF(PlotControl!$B$4 = "Annual Max",MAX(OFFSET('2EFines'!$D$10,12*$A33,4*(PlotControl!$C$6-1),12,1)),AVERAGE(OFFSET('2EFines'!$D$10,12*$A33,4*(PlotControl!$C$6-1),12,1))) -> 11225 | M33: =IF(PlotControl!$B$4 = "Annual Max",MAX(OFFSET('2EFines'!$E$10,12*$A33,4*(PlotControl!$C$6-1),12,1)),AVERAGE(OFFSET('2EFines'!$E$10,12*$A33,4*(PlotControl!$C$6-1),12,1))) -> 11232 | N33: =IF(PlotControl!$B$4 = "Annual Max",MAX(OFFSET('2ECoarse'!$C$10,12*$A33,4*(PlotControl!$C$6-1),12,1)),AVERAGE(OFFSET('2ECoarse'!$C$10,12*$A33,4*(PlotControl!$C$6-1),12,1))) -> 11217 | O33: =IF(PlotControl!$B$4 = "Annual Max",MAX(OFFSET('2ECoarse'!$D$10,12*$A33,4*(PlotControl!$C$6-1),12,1)),AVERAGE(OFFSET('2ECoarse'!$D$10,12*$A33,4*(PlotControl!$C$6-1),12,1))) -> 11219 | P33: =IF(PlotControl!$B$4 = "Annual Max",MAX(OFFSET('2ECoarse'!$E$10,12*$A33,4*(PlotControl!$C$6-1),12,1)),AVERAGE(OFFSET('2ECoarse'!$E$10,12*$A33,4*(PlotControl!$C$6-1),12,1))) -> 11221 | Q33: =IF(PlotControl!$B$4 = "Annual Max",MAX(OFFSET('2EBank'!$C$10,12*$A33,4*(PlotControl!$C$6-1),12,1)),AVERAGE(OFFSET('2EBank'!$C$10,12*$A33,4*(PlotControl!$C$6-1),12,1))) -> 6876.525 | R33: =IF(PlotControl!$B$4 = "Annual Max",MAX(OFFSET('2EBank'!$D$10,12*$A33,4*(PlotControl!$C$6-1),12,1)),AVERAGE(OFFSET('2EBank'!$D$10,12*$A33,4*(PlotControl!$C$6-1),12,1))) -> 7090.258333 | S33: =IF(PlotControl!$B$4 = "Annual Max",MAX(OFFSET('2EBank'!$E$10,12*$A33,4*(PlotControl!$C$6-1),12,1)),AVERAGE(OFFSET('2EBank'!$E$10,12*$A33,4*(PlotControl!$C$6-1),12,1))) -> 7359.525 | T33: =IF(PlotControl!$B$4 = "Annual Max",MAX(OFFSET('1EFines'!$C$10,12*$A33,4*(PlotControl!$C$6-1),12,1)),AVERAGE(OFFSET('1EFines'!$C$10,12*$A33,4*(PlotControl!$C$6-1),12,1))) -> 13846 | U33: =IF(PlotControl!$B$4 = "Annual Max",MAX(OFFSET('1EFines'!$D$10,12*$A33,4*(PlotControl!$C$6-1),12,1)),AVERAGE(OFFSET('1EFines'!$D$10,12*$A33,4*(PlotControl!$C$6-1),12,1))) -> 13937 | V33: =IF(PlotControl!$B$4 = "Annual Max",MAX(OFFSET('1EFines'!$E$10,12*$A33,4*(PlotControl!$C$6-1),12,1)),AVERAGE(OFFSET('1EFines'!$E$10,12*$A33,4*(PlotControl!$C$6-1),12,1))) -> 14052 | W33: =IF(PlotControl!$B$4 = "Annual Max",MAX(OFFSET('1ECoarse'!$C$10,12*$A33,4*(PlotControl!$C$6-1),12,1)),AVERAGE(OFFSET('1ECoarse'!$C$10,12*$A33,4*(PlotControl!$C$6-1),12,1))) -> 66548.5 | X33: =IF(PlotControl!$B$4 = "Annual Max",MAX(OFFSET('1ECoarse'!$D$10,12*$A33,4*(PlotControl!$C$6-1),12,1)),AVERAGE(OFFSET('1ECoarse'!$D$10,12*$A33,4*(PlotControl!$C$6-1),12,1))) -> 66754.08333 | Y33: =IF(PlotControl!$B$4 = "Annual Max",MAX(OFFSET('1ECoarse'!$E$10,12*$A33,4*(PlotControl!$C$6-1),12,1)),AVERAGE(OFFSET('1ECoarse'!$E$10,12*$A33,4*(PlotControl!$C$6-1),12,1))) -> 67012
A34: 29 | B34: =IF(PlotControl!$B$4 = "Annual Max",MAX(OFFSET('2WFines'!$C$10,12*$A34,4*(PlotControl!$C$6-1),12,1)),AVERAGE(OFFSET('2WFines'!$C$10,12*$A34,4*(PlotControl!$C$6-1),12,1))) -> 101005 | C34: =IF(PlotControl!$B$4 = "Annual Max",MAX(OFFSET('2WFines'!$D$10,12*$A34,4*(PlotControl!$C$6-1),12,1)),AVERAGE(OFFSET('2WFines'!$D$10,12*$A34,4*(PlotControl!$C$6-1),12,1))) -> 102780 | D34: =IF(PlotControl!$B$4 = "Annual Max",MAX(OFFSET('2WFines'!$E$10,12*$A34,4*(PlotControl!$C$6-1),12,1)),AVERAGE(OFFSET('2WFines'!$E$10,12*$A34,4*(PlotControl!$C$6-1),12,1))) -> 105641.6667 | E34: =IF(PlotControl!$B$4 = "Annual Max",MAX(OFFSET('2WCoarse'!$C$10,12*$A34,4*(PlotControl!$C$6-1),12,1)),AVERAGE(OFFSET('2WCoarse'!$C$10,12*$A34,4*(PlotControl!$C$6-1),12,1))) -> 60001.33333 | F34: =IF(PlotControl!$B$4 = "Annual Max",MAX(OFFSET('2WCoarse'!$D$10,12*$A34,4*(PlotControl!$C$6-1),12,1)),AVERAGE(OFFSET('2WCoarse'!$D$10,12*$A34,4*(PlotControl!$C$6-1),12,1))) -> 61590.75 | G34: =IF(PlotControl!$B$4 = "Annual Max",MAX(OFFSET('2WCoarse'!$E$10,12*$A34,4*(PlotControl!$C$6-1),12,1)),AVERAGE(OFFSET('2WCoarse'!$E$10,12*$A34,4*(PlotControl!$C$6-1),12,1))) -> 63605.75 | H34: =IF(PlotControl!$B$4 = "Annual Max",MAX(OFFSET('2WBank'!$C$10,12*$A34,4*(PlotControl!$C$6-1),12,1)),AVERAGE(OFFSET('2WBank'!$C$10,12*$A34,4*(PlotControl!$C$6-1),12,1))) -> 87114.58333 | I34: =IF(PlotControl!$B$4 = "Annual Max",MAX(OFFSET('2WBank'!$D$10,12*$A34,4*(PlotControl!$C$6-1),12,1)),AVERAGE(OFFSET('2WBank'!$D$10,12*$A34,4*(PlotControl!$C$6-1),12,1))) -> 89638.5 | J34: =IF(PlotControl!$B$4 = "Annual Max",MAX(OFFSET('2WBank'!$E$10,12*$A34,4*(PlotControl!$C$6-1),12,1)),AVERAGE(OFFSET('2WBank'!$E$10,12*$A34,4*(PlotControl!$C$6-1),12,1))) -> 92832.83333 | K34: =IF(PlotControl!$B$4 = "Annual Max",MAX(OFFSET('2EFines'!$C$10,12*$A34,4*(PlotControl!$C$6-1),12,1)),AVERAGE(OFFSET('2EFines'!$C$10,12*$A34,4*(PlotControl!$C$6-1),12,1))) -> 11219 | L34: =IF(PlotControl!$B$4 = "Annual Max",MAX(OFFSET('2EFines'!$D$10,12*$A34,4*(PlotControl!$C$6-1),12,1)),AVERAGE(OFFSET('2EFines'!$D$10,12*$A34,4*(PlotControl!$C$6-1),12,1))) -> 11225 | M34: =IF(PlotControl!$B$4 = "Annual Max",MAX(OFFSET('2EFines'!$E$10,12*$A34,4*(PlotControl!$C$6-1),12,1)),AVERAGE(OFFSET('2EFines'!$E$10,12*$A34,4*(PlotControl!$C$6-1),12,1))) -> 11232 | N34: =IF(PlotControl!$B$4 = "Annual Max",MAX(OFFSET('2ECoarse'!$C$10,12*$A34,4*(PlotControl!$C$6-1),12,1)),AVERAGE(OFFSET('2ECoarse'!$C$10,12*$A34,4*(PlotControl!$C$6-1),12,1))) -> 11217 | O34: =IF(PlotControl!$B$4 = "Annual Max",MAX(OFFSET('2ECoarse'!$D$10,12*$A34,4*(PlotControl!$C$6-1),12,1)),AVERAGE(OFFSET('2ECoarse'!$D$10,12*$A34,4*(PlotControl!$C$6-1),12,1))) -> 11219 | P34: =IF(PlotControl!$B$4 = "Annual Max",MAX(OFFSET('2ECoarse'!$E$10,12*$A34,4*(PlotControl!$C$6-1),12,1)),AVERAGE(OFFSET('2ECoarse'!$E$10,12*$A34,4*(PlotControl!$C$6-1),12,1))) -> 11221 | Q34: =IF(PlotControl!$B$4 = "Annual Max",MAX(OFFSET('2EBank'!$C$10,12*$A34,4*(PlotControl!$C$6-1),12,1)),AVERAGE(OFFSET('2EBank'!$C$10,12*$A34,4*(PlotControl!$C$6-1),12,1))) -> 6845.308333 | R34: =IF(PlotControl!$B$4 = "Annual Max",MAX(OFFSET('2EBank'!$D$10,12*$A34,4*(PlotControl!$C$6-1),12,1)),AVERAGE(OFFSET('2EBank'!$D$10,12*$A34,4*(PlotControl!$C$6-1),12,1))) -> 7066.216667 | S34: =IF(PlotControl!$B$4 = "Annual Max",MAX(OFFSET('2EBank'!$E$10,12*$A34,4*(PlotControl!$C$6-1),12,1)),AVERAGE(OFFSET('2EBank'!$E$10,12*$A34,4*(PlotControl!$C$6-1),12,1))) -> 7347.216667 | T34: =IF(PlotControl!$B$4 = "Annual Max",MAX(OFFSET('1EFines'!$C$10,12*$A34,4*(PlotControl!$C$6-1),12,1)),AVERAGE(OFFSET('1EFines'!$C$10,12*$A34,4*(PlotControl!$C$6-1),12,1))) -> 13846 | U34: =IF(PlotControl!$B$4 = "Annual Max",MAX(OFFSET('1EFines'!$D$10,12*$A34,4*(PlotControl!$C$6-1),12,1)),AVERAGE(OFFSET('1EFines'!$D$10,12*$A34,4*(PlotControl!$C$6-1),12,1))) -> 13937 | V34: =IF(PlotControl!$B$4 = "Annual Max",MAX(OFFSET('1EFines'!$E$10,12*$A34,4*(PlotControl!$C$6-1),12,1)),AVERAGE(OFFSET('1EFines'!$E$10,12*$A34,4*(PlotControl!$C$6-1),12,1))) -> 14052 | W34: =IF(PlotControl!$B$4 = "Annual Max",MAX(OFFSET('1ECoarse'!$C$10,12*$A34,4*(PlotControl!$C$6-1),12,1)),AVERAGE(OFFSET('1ECoarse'!$C$10,12*$A34,4*(PlotControl!$C$6-1),12,1))) -> 66547.33333 | X34: =IF(PlotControl!$B$4 = "Annual Max",MAX(OFFSET('1ECoarse'!$D$10,12*$A34,4*(PlotControl!$C$6-1),12,1)),AVERAGE(OFFSET('1ECoarse'!$D$10,12*$A34,4*(PlotControl!$C$6-1),12,1))) -> 66752.83333 | Y34: =IF(PlotControl!$B$4 = "Annual Max",MAX(OFFSET('1ECoarse'!$E$10,12*$A34,4*(PlotControl!$C$6-1),12,1)),AVERAGE(OFFSET('1ECoarse'!$E$10,12*$A34,4*(PlotControl!$C$6-1),12,1))) -> 67011.83333
A35: 30 | B35: =IF(PlotControl!$B$4 = "Annual Max",MAX(OFFSET('2WFines'!$C$10,12*$A35,4*(PlotControl!$C$6-1),12,1)),AVERAGE(OFFSET('2WFines'!$C$10,12*$A35,4*(PlotControl!$C$6-1),12,1))) -> 100571.6667 | C35: =IF(PlotControl!$B$4 = "Annual Max",MAX(OFFSET('2WFines'!$D$10,12*$A35,4*(PlotControl!$C$6-1),12,1)),AVERAGE(OFFSET('2WFines'!$D$10,12*$A35,4*(PlotControl!$C$6-1),12,1))) -> 102395 | D35: =IF(PlotControl!$B$4 = "Annual Max",MAX(OFFSET('2WFines'!$E$10,12*$A35,4*(PlotControl!$C$6-1),12,1)),AVERAGE(OFFSET('2WFines'!$E$10,12*$A35,4*(PlotControl!$C$6-1),12,1))) -> 105367.5 | E35: =IF(PlotControl!$B$4 = "Annual Max",MAX(OFFSET('2WCoarse'!$C$10,12*$A35,4*(PlotControl!$C$6-1),12,1)),AVERAGE(OFFSET('2WCoarse'!$C$10,12*$A35,4*(PlotControl!$C$6-1),12,1))) -> 59775.25 | F35: =IF(PlotControl!$B$4 = "Annual Max",MAX(OFFSET('2WCoarse'!$D$10,12*$A35,4*(PlotControl!$C$6-1),12,1)),AVERAGE(OFFSET('2WCoarse'!$D$10,12*$A35,4*(PlotControl!$C$6-1),12,1))) -> 61425.5 | G35: =IF(PlotControl!$B$4 = "Annual Max",MAX(OFFSET('2WCoarse'!$E$10,12*$A35,4*(PlotControl!$C$6-1),12,1)),AVERAGE(OFFSET('2WCoarse'!$E$10,12*$A35,4*(PlotControl!$C$6-1),12,1))) -> 63516.25 | H35: =IF(PlotControl!$B$4 = "Annual Max",MAX(OFFSET('2WBank'!$C$10,12*$A35,4*(PlotControl!$C$6-1),12,1)),AVERAGE(OFFSET('2WBank'!$C$10,12*$A35,4*(PlotControl!$C$6-1),12,1))) -> 86783 | I35: =IF(PlotControl!$B$4 = "Annual Max",MAX(OFFSET('2WBank'!$D$10,12*$A35,4*(PlotControl!$C$6-1),12,1)),AVERAGE(OFFSET('2WBank'!$D$10,12*$A35,4*(PlotControl!$C$6-1),12,1))) -> 89396.08333 | J35: =IF(PlotControl!$B$4 = "Annual Max",MAX(OFFSET('2WBank'!$E$10,12*$A35,4*(PlotControl!$C$6-1),12,1)),AVERAGE(OFFSET('2WBank'!$E$10,12*$A35,4*(PlotControl!$C$6-1),12,1))) -> 92705.5 | K35: =IF(PlotControl!$B$4 = "Annual Max",MAX(OFFSET('2EFines'!$C$10,12*$A35,4*(PlotControl!$C$6-1),12,1)),AVERAGE(OFFSET('2EFines'!$C$10,12*$A35,4*(PlotControl!$C$6-1),12,1))) -> 11219 | L35: =IF(PlotControl!$B$4 = "Annual Max",MAX(OFFSET('2EFines'!$D$10,12*$A35,4*(PlotControl!$C$6-1),12,1)),AVERAGE(OFFSET('2EFines'!$D$10,12*$A35,4*(PlotControl!$C$6-1),12,1))) -> 11225 | M35: =IF(PlotControl!$B$4 = "Annual Max",MAX(OFFSET('2EFines'!$E$10,12*$A35,4*(PlotControl!$C$6-1),12,1)),AVERAGE(OFFSET('2EFines'!$E$10,12*$A35,4*(PlotControl!$C$6-1),12,1))) -> 11232 | N35: =IF(PlotControl!$B$4 = "Annual Max",MAX(OFFSET('2ECoarse'!$C$10,12*$A35,4*(PlotControl!$C$6-1),12,1)),AVERAGE(OFFSET('2ECoarse'!$C$10,12*$A35,4*(PlotControl!$C$6-1),12,1))) -> 11217 | O35: =IF(PlotControl!$B$4 = "Annual Max",MAX(OFFSET('2ECoarse'!$D$10,12*$A35,4*(PlotControl!$C$6-1),12,1)),AVERAGE(OFFSET('2ECoarse'!$D$10,12*$A35,4*(PlotControl!$C$6-1),12,1))) -> 11219 | P35: =IF(PlotControl!$B$4 = "Annual Max",MAX(OFFSET('2ECoarse'!$E$10,12*$A35,4*(PlotControl!$C$6-1),12,1)),AVERAGE(OFFSET('2ECoarse'!$E$10,12*$A35,4*(PlotControl!$C$6-1),12,1))) -> 11221 | Q35: =IF(PlotControl!$B$4 = "Annual Max",MAX(OFFSET('2EBank'!$C$10,12*$A35,4*(PlotControl!$C$6-1),12,1)),AVERAGE(OFFSET('2EBank'!$C$10,12*$A35,4*(PlotControl!$C$6-1),12,1))) -> 6812.25 | R35: =IF(PlotControl!$B$4 = "Annual Max",MAX(OFFSET('2EBank'!$D$10,12*$A35,4*(PlotControl!$C$6-1),12,1)),AVERAGE(OFFSET('2EBank'!$D$10,12*$A35,4*(PlotControl!$C$6-1),12,1))) -> 7041.908333 | S35: =IF(PlotControl!$B$4 = "Annual Max",MAX(OFFSET('2EBank'!$E$10,12*$A35,4*(PlotControl!$C$6-1),12,1)),AVERAGE(OFFSET('2EBank'!$E$10,12*$A35,4*(PlotControl!$C$6-1),12,1))) -> 7334.183333 | T35: =IF(PlotControl!$B$4 = "Annual Max",MAX(OFFSET('1EFines'!$C$10,12*$A35,4*(PlotControl!$C$6-1),12,1)),AVERAGE(OFFSET('1EFines'!$C$10,12*$A35,4*(PlotControl!$C$6-1),12,1))) -> 13846 | U35: =IF(PlotControl!$B$4 = "Annual Max",MAX(OFFSET('1EFines'!$D$10,12*$A35,4*(PlotControl!$C$6-1),12,1)),AVERAGE(OFFSET('1EFines'!$D$10,12*$A35,4*(PlotControl!$C$6-1),12,1))) -> 13937 | V35: =IF(PlotControl!$B$4 = "Annual Max",MAX(OFFSET('1EFines'!$E$10,12*$A35,4*(PlotControl!$C$6-1),12,1)),AVERAGE(OFFSET('1EFines'!$E$10,12*$A35,4*(PlotControl!$C$6-1),12,1))) -> 14052 | W35: =IF(PlotControl!$B$4 = "Annual Max",MAX(OFFSET('1ECoarse'!$C$10,12*$A35,4*(PlotControl!$C$6-1),12,1)),AVERAGE(OFFSET('1ECoarse'!$C$10,12*$A35,4*(PlotControl!$C$6-1),12,1))) -> 66546 | X35: =IF(PlotControl!$B$4 = "Annual Max",MAX(OFFSET('1ECoarse'!$D$10,12*$A35,4*(PlotControl!$C$6-1),12,1)),AVERAGE(OFFSET('1ECoarse'!$D$10,12*$A35,4*(PlotControl!$C$6-1),12,1))) -> 66751.66667 | Y35: =IF(PlotControl!$B$4 = "Annual Max",MAX(OFFSET('1ECoarse'!$E$10,12*$A35,4*(PlotControl!$C$6-1),12,1)),AVERAGE(OFFSET('1ECoarse'!$E$10,12*$A35,4*(PlotControl!$C$6-1),12,1))) -> 67011
A36: 31 | B36: =IF(PlotControl!$B$4 = "Annual Max",MAX(OFFSET('2WFines'!$C$10,12*$A36,4*(PlotControl!$C$6-1),12,1)),AVERAGE(OFFSET('2WFines'!$C$10,12*$A36,4*(PlotControl!$C$6-1),12,1))) -> 100143.75 | C36: =IF(PlotControl!$B$4 = "Annual Max",MAX(OFFSET('2WFines'!$D$10,12*$A36,4*(PlotControl!$C$6-1),12,1)),AVERAGE(OFFSET('2WFines'!$D$10,12*$A36,4*(PlotControl!$C$6-1),12,1))) -> 102034.1667 | D36: =IF(PlotControl!$B$4 = "Annual Max",MAX(OFFSET('2WFines'!$E$10,12*$A36,4*(PlotControl!$C$6-1),12,1)),AVERAGE(OFFSET('2WFines'!$E$10,12*$A36,4*(PlotControl!$C$6-1),12,1))) -> 105090 | E36: =IF(PlotControl!$B$4 = "Annual Max",MAX(OFFSET('2WCoarse'!$C$10,12*$A36,4*(PlotControl!$C$6-1),12,1)),AVERAGE(OFFSET('2WCoarse'!$C$10,12*$A36,4*(PlotControl!$C$6-1),12,1))) -> 59554.41667 | F36: =IF(PlotControl!$B$4 = "Annual Max",MAX(OFFSET('2WCoarse'!$D$10,12*$A36,4*(PlotControl!$C$6-1),12,1)),AVERAGE(OFFSET('2WCoarse'!$D$10,12*$A36,4*(PlotControl!$C$6-1),12,1))) -> 61261.75 | G36: =IF(PlotControl!$B$4 = "Annual Max",MAX(OFFSET('2WCoarse'!$E$10,12*$A36,4*(PlotControl!$C$6-1),12,1)),AVERAGE(OFFSET('2WCoarse'!$E$10,12*$A36,4*(PlotControl!$C$6-1),12,1))) -> 63429.08333 | H36: =IF(PlotControl!$B$4 = "Annual Max",MAX(OFFSET('2WBank'!$C$10,12*$A36,4*(PlotControl!$C$6-1),12,1)),AVERAGE(OFFSET('2WBank'!$C$10,12*$A36,4*(PlotControl!$C$6-1),12,1))) -> 86462.75 | I36: =IF(PlotControl!$B$4 = "Annual Max",MAX(OFFSET('2WBank'!$D$10,12*$A36,4*(PlotControl!$C$6-1),12,1)),AVERAGE(OFFSET('2WBank'!$D$10,12*$A36,4*(PlotControl!$C$6-1),12,1))) -> 89159.25 | J36: =IF(PlotControl!$B$4 = "Annual Max",MAX(OFFSET('2WBank'!$E$10,12*$A36,4*(PlotControl!$C$6-1),12,1)),AVERAGE(OFFSET('2WBank'!$E$10,12*$A36,4*(PlotControl!$C$6-1),12,1))) -> 92583.08333 | K36: =IF(PlotControl!$B$4 = "Annual Max",MAX(OFFSET('2EFines'!$C$10,12*$A36,4*(PlotControl!$C$6-1),12,1)),AVERAGE(OFFSET('2EFines'!$C$10,12*$A36,4*(PlotControl!$C$6-1),12,1))) -> 11219 | L36: =IF(PlotControl!$B$4 = "Annual Max",MAX(OFFSET('2EFines'!$D$10,12*$A36,4*(PlotControl!$C$6-1),12,1)),AVERAGE(OFFSET('2EFines'!$D$10,12*$A36,4*(PlotControl!$C$6-1),12,1))) -> 11225 | M36: =IF(PlotControl!$B$4 = "Annual Max",MAX(OFFSET('2EFines'!$E$10,12*$A36,4*(PlotControl!$C$6-1),12,1)),AVERAGE(OFFSET('2EFines'!$E$10,12*$A36,4*(PlotControl!$C$6-1),12,1))) -> 11232 | N36: =IF(PlotControl!$B$4 = "Annual Max",MAX(OFFSET('2ECoarse'!$C$10,12*$A36,4*(PlotControl!$C$6-1),12,1)),AVERAGE(OFFSET('2ECoarse'!$C$10,12*$A36,4*(PlotControl!$C$6-1),12,1))) -> 11217 | O36: =IF(PlotControl!$B$4 = "Annual Max",MAX(OFFSET('2ECoarse'!$D$10,12*$A36,4*(PlotControl!$C$6-1),12,1)),AVERAGE(OFFSET('2ECoarse'!$D$10,12*$A36,4*(PlotControl!$C$6-1),12,1))) -> 11219 | P36: =IF(PlotControl!$B$4 = "Annual Max",MAX(OFFSET('2ECoarse'!$E$10,12*$A36,4*(PlotControl!$C$6-1),12,1)),AVERAGE(OFFSET('2ECoarse'!$E$10,12*$A36,4*(PlotControl!$C$6-1),12,1))) -> 11221 | Q36: =IF(PlotControl!$B$4 = "Annual Max",MAX(OFFSET('2EBank'!$C$10,12*$A36,4*(PlotControl!$C$6-1),12,1)),AVERAGE(OFFSET('2EBank'!$C$10,12*$A36,4*(PlotControl!$C$6-1),12,1))) -> 6781.1 | R36: =IF(PlotControl!$B$4 = "Annual Max",MAX(OFFSET('2EBank'!$D$10,12*$A36,4*(PlotControl!$C$6-1),12,1)),AVERAGE(OFFSET('2EBank'!$D$10,12*$A36,4*(PlotControl!$C$6-1),12,1))) -> 7017.283333 | S36: =IF(PlotControl!$B$4 = "Annual Max",MAX(OFFSET('2EBank'!$E$10,12*$A36,4*(PlotControl!$C$6-1),12,1)),AVERAGE(OFFSET('2EBank'!$E$10,12*$A36,4*(PlotControl!$C$6-1),12,1))) -> 7319.75 | T36: =IF(PlotControl!$B$4 = "Annual Max",MAX(OFFSET('1EFines'!$C$10,12*$A36,4*(PlotControl!$C$6-1),12,1)),AVERAGE(OFFSET('1EFines'!$C$10,12*$A36,4*(PlotControl!$C$6-1),12,1))) -> 13846 | U36: =IF(PlotControl!$B$4 = "Annual Max",MAX(OFFSET('1EFines'!$D$10,12*$A36,4*(PlotControl!$C$6-1),12,1)),AVERAGE(OFFSET('1EFines'!$D$10,12*$A36,4*(PlotControl!$C$6-1),12,1))) -> 13937 | V36: =IF(PlotControl!$B$4 = "Annual Max",MAX(OFFSET('1EFines'!$E$10,12*$A36,4*(PlotControl!$C$6-1),12,1)),AVERAGE(OFFSET('1EFines'!$E$10,12*$A36,4*(PlotControl!$C$6-1),12,1))) -> 14052 | W36: =IF(PlotControl!$B$4 = "Annual Max",MAX(OFFSET('1ECoarse'!$C$10,12*$A36,4*(PlotControl!$C$6-1),12,1)),AVERAGE(OFFSET('1ECoarse'!$C$10,12*$A36,4*(PlotControl!$C$6-1),12,1))) -> 66544.41667 | X36: =IF(PlotControl!$B$4 = "Annual Max",MAX(OFFSET('1ECoarse'!$D$10,12*$A36,4*(PlotControl!$C$6-1),12,1)),AVERAGE(OFFSET('1ECoarse'!$D$10,12*$A36,4*(PlotControl!$C$6-1),12,1))) -> 66750.58333 | Y36: =IF(PlotControl!$B$4 = "Annual Max",MAX(OFFSET('1ECoarse'!$E$10,12*$A36,4*(PlotControl!$C$6-1),12,1)),AVERAGE(OFFSET('1ECoarse'!$E$10,12*$A36,4*(PlotControl!$C$6-1),12,1))) -> 67010.75
A37: 32 | B37: =IF(PlotControl!$B$4 = "Annual Max",MAX(OFFSET('2WFines'!$C$10,12*$A37,4*(PlotControl!$C$6-1),12,1)),AVERAGE(OFFSET('2WFines'!$C$10,12*$A37,4*(PlotControl!$C$6-1),12,1))) -> 99714.75 | C37: =IF(PlotControl!$B$4 = "Annual Max",MAX(OFFSET('2WFines'!$D$10,12*$A37,4*(PlotControl!$C$6-1),12,1)),AVERAGE(OFFSET('2WFines'!$D$10,12*$A37,4*(PlotControl!$C$6-1),12,1))) -> 101656.6667 | D37: =IF(PlotControl!$B$4 = "Annual Max",MAX(OFFSET('2WFines'!$E$10,12*$A37,4*(PlotControl!$C$6-1),12,1)),AVERAGE(OFFSET('2WFines'!$E$10,12*$A37,4*(PlotControl!$C$6-1),12,1))) -> 104812.5 | E37: =IF(PlotControl!$B$4 = "Annual Max",MAX(OFFSET('2WCoarse'!$C$10,12*$A37,4*(PlotControl!$C$6-1),12,1)),AVERAGE(OFFSET('2WCoarse'!$C$10,12*$A37,4*(PlotControl!$C$6-1),12,1))) -> 59347.41667 | F37: =IF(PlotControl!$B$4 = "Annual Max",MAX(OFFSET('2WCoarse'!$D$10,12*$A37,4*(PlotControl!$C$6-1),12,1)),AVERAGE(OFFSET('2WCoarse'!$D$10,12*$A37,4*(PlotControl!$C$6-1),12,1))) -> 61095.5 | G37: =IF(PlotControl!$B$4 = "Annual Max",MAX(OFFSET('2WCoarse'!$E$10,12*$A37,4*(PlotControl!$C$6-1),12,1)),AVERAGE(OFFSET('2WCoarse'!$E$10,12*$A37,4*(PlotControl!$C$6-1),12,1))) -> 63341.75 | H37: =IF(PlotControl!$B$4 = "Annual Max",MAX(OFFSET('2WBank'!$C$10,12*$A37,4*(PlotControl!$C$6-1),12,1)),AVERAGE(OFFSET('2WBank'!$C$10,12*$A37,4*(PlotControl!$C$6-1),12,1))) -> 86160.66667 | I37: =IF(PlotControl!$B$4 = "Annual Max",MAX(OFFSET('2WBank'!$D$10,12*$A37,4*(PlotControl!$C$6-1),12,1)),AVERAGE(OFFSET('2WBank'!$D$10,12*$A37,4*(PlotControl!$C$6-1),12,1))) -> 88921.5 | J37: =IF(PlotControl!$B$4 = "Annual Max",MAX(OFFSET('2WBank'!$E$10,12*$A37,4*(PlotControl!$C$6-1),12,1)),AVERAGE(OFFSET('2WBank'!$E$10,12*$A37,4*(PlotControl!$C$6-1),12,1))) -> 92456.66667 | K37: =IF(PlotControl!$B$4 = "Annual Max",MAX(OFFSET('2EFines'!$C$10,12*$A37,4*(PlotControl!$C$6-1),12,1)),AVERAGE(OFFSET('2EFines'!$C$10,12*$A37,4*(PlotControl!$C$6-1),12,1))) -> 11219 | L37: =IF(PlotControl!$B$4 = "Annual Max",MAX(OFFSET('2EFines'!$D$10,12*$A37,4*(PlotControl!$C$6-1),12,1)),AVERAGE(OFFSET('2EFines'!$D$10,12*$A37,4*(PlotControl!$C$6-1),12,1))) -> 11225 | M37: =IF(PlotControl!$B$4 = "Annual Max",MAX(OFFSET('2EFines'!$E$10,12*$A37,4*(PlotControl!$C$6-1),12,1)),AVERAGE(OFFSET('2EFines'!$E$10,12*$A37,4*(PlotControl!$C$6-1),12,1))) -> 11232 | N37: =IF(PlotControl!$B$4 = "Annual Max",MAX(OFFSET('2ECoarse'!$C$10,12*$A37,4*(PlotControl!$C$6-1),12,1)),AVERAGE(OFFSET('2ECoarse'!$C$10,12*$A37,4*(PlotControl!$C$6-1),12,1))) -> 11217 | O37: =IF(PlotControl!$B$4 = "Annual Max",MAX(OFFSET('2ECoarse'!$D$10,12*$A37,4*(PlotControl!$C$6-1),12,1)),AVERAGE(OFFSET('2ECoarse'!$D$10,12*$A37,4*(PlotControl!$C$6-1),12,1))) -> 11219 | P37: =IF(PlotControl!$B$4 = "Annual Max",MAX(OFFSET('2ECoarse'!$E$10,12*$A37,4*(PlotControl!$C$6-1),12,1)),AVERAGE(OFFSET('2ECoarse'!$E$10,12*$A37,4*(PlotControl!$C$6-1),12,1))) -> 11221 | Q37: =IF(PlotControl!$B$4 = "Annual Max",MAX(OFFSET('2EBank'!$C$10,12*$A37,4*(PlotControl!$C$6-1),12,1)),AVERAGE(OFFSET('2EBank'!$C$10,12*$A37,4*(PlotControl!$C$6-1),12,1))) -> 6750.416667 | R37: =IF(PlotControl!$B$4 = "Annual Max",MAX(OFFSET('2EBank'!$D$10,12*$A37,4*(PlotControl!$C$6-1),12,1)),AVERAGE(OFFSET('2EBank'!$D$10,12*$A37,4*(PlotControl!$C$6-1),12,1))) -> 6992.333333 | S37: =IF(PlotControl!$B$4 = "Annual Max",MAX(OFFSET('2EBank'!$E$10,12*$A37,4*(PlotControl!$C$6-1),12,1)),AVERAGE(OFFSET('2EBank'!$E$10,12*$A37,4*(PlotControl!$C$6-1),12,1))) -> 7306.625 | T37: =IF(PlotControl!$B$4 = "Annual Max",MAX(OFFSET('1EFines'!$C$10,12*$A37,4*(PlotControl!$C$6-1),12,1)),AVERAGE(OFFSET('1EFines'!$C$10,12*$A37,4*(PlotControl!$C$6-1),12,1))) -> 13846 | U37: =IF(PlotControl!$B$4 = "Annual Max",MAX(OFFSET('1EFines'!$D$10,12*$A37,4*(PlotControl!$C$6-1),12,1)),AVERAGE(OFFSET('1EFines'!$D$10,12*$A37,4*(PlotControl!$C$6-1),12,1))) -> 13937 | V37: =IF(PlotControl!$B$4 = "Annual Max",MAX(OFFSET('1EFines'!$E$10,12*$A37,4*(PlotControl!$C$6-1),12,1)),AVERAGE(OFFSET('1EFines'!$E$10,12*$A37,4*(PlotControl!$C$6-1),12,1))) -> 14052 | W37: =IF(PlotControl!$B$4 = "Annual Max",MAX(OFFSET('1ECoarse'!$C$10,12*$A37,4*(PlotControl!$C$6-1),12,1)),AVERAGE(OFFSET('1ECoarse'!$C$10,12*$A37,4*(PlotControl!$C$6-1),12,1))) -> 66543 | X37: =IF(PlotControl!$B$4 = "Annual Max",MAX(OFFSET('1ECoarse'!$D$10,12*$A37,4*(PlotControl!$C$6-1),12,1)),AVERAGE(OFFSET('1ECoarse'!$D$10,12*$A37,4*(PlotControl!$C$6-1),12,1))) -> 66749.41667 | Y37: =IF(PlotControl!$B$4 = "Annual Max",MAX(OFFSET('1ECoarse'!$E$10,12*$A37,4*(PlotControl!$C$6-1),12,1)),AVERAGE(OFFSET('1ECoarse'!$E$10,12*$A37,4*(PlotControl!$C$6-1),12,1))) -> 67010
A38: 33 | B38: =IF(PlotControl!$B$4 = "Annual Max",MAX(OFFSET('2WFines'!$C$10,12*$A38,4*(PlotControl!$C$6-1),12,1)),AVERAGE(OFFSET('2WFines'!$C$10,12*$A38,4*(PlotControl!$C$6-1),12,1))) -> 99305.33333 | C38: =IF(PlotControl!$B$4 = "Annual Max",MAX(OFFSET('2WFines'!$D$10,12*$A38,4*(PlotControl!$C$6-1),12,1)),AVERAGE(OFFSET('2WFines'!$D$10,12*$A38,4*(PlotControl!$C$6-1),12,1))) -> 101289.1667 | D38: =IF(PlotControl!$B$4 = "Annual Max",MAX(OFFSET('2WFines'!$E$10,12*$A38,4*(PlotControl!$C$6-1),12,1)),AVERAGE(OFFSET('2WFines'!$E$10,12*$A38,4*(PlotControl!$C$6-1),12,1))) -> 104535 | E38: =IF(PlotControl!$B$4 = "Annual Max",MAX(OFFSET('2WCoarse'!$C$10,12*$A38,4*(PlotControl!$C$6-1),12,1)),AVERAGE(OFFSET('2WCoarse'!$C$10,12*$A38,4*(PlotControl!$C$6-1),12,1))) -> 59134.25 | F38: =IF(PlotControl!$B$4 = "Annual Max",MAX(OFFSET('2WCoarse'!$D$10,12*$A38,4*(PlotControl!$C$6-1),12,1)),AVERAGE(OFFSET('2WCoarse'!$D$10,12*$A38,4*(PlotControl!$C$6-1),12,1))) -> 60917.83333 | G38: =IF(PlotControl!$B$4 = "Annual Max",MAX(OFFSET('2WCoarse'!$E$10,12*$A38,4*(PlotControl!$C$6-1),12,1)),AVERAGE(OFFSET('2WCoarse'!$E$10,12*$A38,4*(PlotControl!$C$6-1),12,1))) -> 63251.41667 | H38: =IF(PlotControl!$B$4 = "Annual Max",MAX(OFFSET('2WBank'!$C$10,12*$A38,4*(PlotControl!$C$6-1),12,1)),AVERAGE(OFFSET('2WBank'!$C$10,12*$A38,4*(PlotControl!$C$6-1),12,1))) -> 85856.41667 | I38: =IF(PlotControl!$B$4 = "Annual Max",MAX(OFFSET('2WBank'!$D$10,12*$A38,4*(PlotControl!$C$6-1),12,1)),AVERAGE(OFFSET('2WBank'!$D$10,12*$A38,4*(PlotControl!$C$6-1),12,1))) -> 88666.08333 | J38: =IF(PlotControl!$B$4 = "Annual Max",MAX(OFFSET('2WBank'!$E$10,12*$A38,4*(PlotControl!$C$6-1),12,1)),AVERAGE(OFFSET('2WBank'!$E$10,12*$A38,4*(PlotControl!$C$6-1),12,1))) -> 92324.83333 | K38: =IF(PlotControl!$B$4 = "Annual Max",MAX(OFFSET('2EFines'!$C$10,12*$A38,4*(PlotControl!$C$6-1),12,1)),AVERAGE(OFFSET('2EFines'!$C$10,12*$A38,4*(PlotControl!$C$6-1),12,1))) -> 11219 | L38: =IF(PlotControl!$B$4 = "Annual Max",MAX(OFFSET('2EFines'!$D$10,12*$A38,4*(PlotControl!$C$6-1),12,1)),AVERAGE(OFFSET('2EFines'!$D$10,12*$A38,4*(PlotControl!$C$6-1),12,1))) -> 11225 | M38: =IF(PlotControl!$B$4 = "Annual Max",MAX(OFFSET('2EFines'!$E$10,12*$A38,4*(PlotControl!$C$6-1),12,1)),AVERAGE(OFFSET('2EFines'!$E$10,12*$A38,4*(PlotControl!$C$6-1),12,1))) -> 11232 | N38: =IF(PlotControl!$B$4 = "Annual Max",MAX(OFFSET('2ECoarse'!$C$10,12*$A38,4*(PlotControl!$C$6-1),12,1)),AVERAGE(OFFSET('2ECoarse'!$C$10,12*$A38,4*(PlotControl!$C$6-1),12,1))) -> 11217 | O38: =IF(PlotControl!$B$4 = "Annual Max",MAX(OFFSET('2ECoarse'!$D$10,12*$A38,4*(PlotControl!$C$6-1),12,1)),AVERAGE(OFFSET('2ECoarse'!$D$10,12*$A38,4*(PlotControl!$C$6-1),12,1))) -> 11219 | P38: =IF(PlotControl!$B$4 = "Annual Max",MAX(OFFSET('2ECoarse'!$E$10,12*$A38,4*(PlotControl!$C$6-1),12,1)),AVERAGE(OFFSET('2ECoarse'!$E$10,12*$A38,4*(PlotControl!$C$6-1),12,1))) -> 11221 | Q38: =IF(PlotControl!$B$4 = "Annual Max",MAX(OFFSET('2EBank'!$C$10,12*$A38,4*(PlotControl!$C$6-1),12,1)),AVERAGE(OFFSET('2EBank'!$C$10,12*$A38,4*(PlotControl!$C$6-1),12,1))) -> 6716.425 | R38: =IF(PlotControl!$B$4 = "Annual Max",MAX(OFFSET('2EBank'!$D$10,12*$A38,4*(PlotControl!$C$6-1),12,1)),AVERAGE(OFFSET('2EBank'!$D$10,12*$A38,4*(PlotControl!$C$6-1),12,1))) -> 6967.275 | S38: =IF(PlotControl!$B$4 = "Annual Max",MAX(OFFSET('2EBank'!$E$10,12*$A38,4*(PlotControl!$C$6-1),12,1)),AVERAGE(OFFSET('2EBank'!$E$10,12*$A38,4*(PlotControl!$C$6-1),12,1))) -> 7293.475 | T38: =IF(PlotControl!$B$4 = "Annual Max",MAX(OFFSET('1EFines'!$C$10,12*$A38,4*(PlotControl!$C$6-1),12,1)),AVERAGE(OFFSET('1EFines'!$C$10,12*$A38,4*(PlotControl!$C$6-1),12,1))) -> 13846 | U38: =IF(PlotControl!$B$4 = "Annual Max",MAX(OFFSET('1EFines'!$D$10,12*$A38,4*(PlotControl!$C$6-1),12,1)),AVERAGE(OFFSET('1EFines'!$D$10,12*$A38,4*(PlotControl!$C$6-1),12,1))) -> 13937 | V38: =IF(PlotControl!$B$4 = "Annual Max",MAX(OFFSET('1EFines'!$E$10,12*$A38,4*(PlotControl!$C$6-1),12,1)),AVERAGE(OFFSET('1EFines'!$E$10,12*$A38,4*(PlotControl!$C$6-1),12,1))) -> 14052 | W38: =IF(PlotControl!$B$4 = "Annual Max",MAX(OFFSET('1ECoarse'!$C$10,12*$A38,4*(PlotControl!$C$6-1),12,1)),AVERAGE(OFFSET('1ECoarse'!$C$10,12*$A38,4*(PlotControl!$C$6-1),12,1))) -> 66541.41667 | X38: =IF(PlotControl!$B$4 = "Annual Max",MAX(OFFSET('1ECoarse'!$D$10,12*$A38,4*(PlotControl!$C$6-1),12,1)),AVERAGE(OFFSET('1ECoarse'!$D$10,12*$A38,4*(PlotControl!$C$6-1),12,1))) -> 66747.91667 | Y38: =IF(PlotControl!$B$4 = "Annual Max",MAX(OFFSET('1ECoarse'!$E$10,12*$A38,4*(PlotControl!$C$6-1),12,1)),AVERAGE(OFFSET('1ECoarse'!$E$10,12*$A38,4*(PlotControl!$C$6-1),12,1))) -> 67009.33333
A39: 34 | B39: =IF(PlotControl!$B$4 = "Annual Max",MAX(OFFSET('2WFines'!$C$10,12*$A39,4*(PlotControl!$C$6-1),12,1)),AVERAGE(OFFSET('2WFines'!$C$10,12*$A39,4*(PlotControl!$C$6-1),12,1))) -> 98886.5 | C39: =IF(PlotControl!$B$4 = "Annual Max",MAX(OFFSET('2WFines'!$D$10,12*$A39,4*(PlotControl!$C$6-1),12,1)),AVERAGE(OFFSET('2WFines'!$D$10,12*$A39,4*(PlotControl!$C$6-1),12,1))) -> 100916.6667 | D39: =IF(PlotControl!$B$4 = "Annual Max",MAX(OFFSET('2WFines'!$E$10,12*$A39,4*(PlotControl!$C$6-1),12,1)),AVERAGE(OFFSET('2WFines'!$E$10,12*$A39,4*(PlotControl!$C$6-1),12,1))) -> 104245.8333 | E39: =IF(PlotControl!$B$4 = "Annual Max",MAX(OFFSET('2WCoarse'!$C$10,12*$A39,4*(PlotControl!$C$6-1),12,1)),AVERAGE(OFFSET('2WCoarse'!$C$10,12*$A39,4*(PlotControl!$C$6-1),12,1))) -> 58910.33333 | F39: =IF(PlotControl!$B$4 = "Annual Max",MAX(OFFSET('2WCoarse'!$D$10,12*$A39,4*(PlotControl!$C$6-1),12,1)),AVERAGE(OFFSET('2WCoarse'!$D$10,12*$A39,4*(PlotControl!$C$6-1),12,1))) -> 60752.66667 | G39: =IF(PlotControl!$B$4 = "Annual Max",MAX(OFFSET('2WCoarse'!$E$10,12*$A39,4*(PlotControl!$C$6-1),12,1)),AVERAGE(OFFSET('2WCoarse'!$E$10,12*$A39,4*(PlotControl!$C$6-1),12,1))) -> 63164.16667 | H39: =IF(PlotControl!$B$4 = "Annual Max",MAX(OFFSET('2WBank'!$C$10,12*$A39,4*(PlotControl!$C$6-1),12,1)),AVERAGE(OFFSET('2WBank'!$C$10,12*$A39,4*(PlotControl!$C$6-1),12,1))) -> 85549.75 | I39: =IF(PlotControl!$B$4 = "Annual Max",MAX(OFFSET('2WBank'!$D$10,12*$A39,4*(PlotControl!$C$6-1),12,1)),AVERAGE(OFFSET('2WBank'!$D$10,12*$A39,4*(PlotControl!$C$6-1),12,1))) -> 88430.08333 | J39: =IF(PlotControl!$B$4 = "Annual Max",MAX(OFFSET('2WBank'!$E$10,12*$A39,4*(PlotControl!$C$6-1),12,1)),AVERAGE(OFFSET('2WBank'!$E$10,12*$A39,4*(PlotControl!$C$6-1),12,1))) -> 92204.33333 | K39: =IF(PlotControl!$B$4 = "Annual Max",MAX(OFFSET('2EFines'!$C$10,12*$A39,4*(PlotControl!$C$6-1),12,1)),AVERAGE(OFFSET('2EFines'!$C$10,12*$A39,4*(PlotControl!$C$6-1),12,1))) -> 11219 | L39: =IF(PlotControl!$B$4 = "Annual Max",MAX(OFFSET('2EFines'!$D$10,12*$A39,4*(PlotControl!$C$6-1),12,1)),AVERAGE(OFFSET('2EFines'!$D$10,12*$A39,4*(PlotControl!$C$6-1),12,1))) -> 11225 | M39: =IF(PlotControl!$B$4 = "Annual Max",MAX(OFFSET('2EFines'!$E$10,12*$A39,4*(PlotControl!$C$6-1),12,1)),AVERAGE(OFFSET('2EFines'!$E$10,12*$A39,4*(PlotControl!$C$6-1),12,1))) -> 11232 | N39: =IF(PlotControl!$B$4 = "Annual Max",MAX(OFFSET('2ECoarse'!$C$10,12*$A39,4*(PlotControl!$C$6-1),12,1)),AVERAGE(OFFSET('2ECoarse'!$C$10,12*$A39,4*(PlotControl!$C$6-1),12,1))) -> 11217 | O39: =IF(PlotControl!$B$4 = "Annual Max",MAX(OFFSET('2ECoarse'!$D$10,12*$A39,4*(PlotControl!$C$6-1),12,1)),AVERAGE(OFFSET('2ECoarse'!$D$10,12*$A39,4*(PlotControl!$C$6-1),12,1))) -> 11219 | P39: =IF(PlotControl!$B$4 = "Annual Max",MAX(OFFSET('2ECoarse'!$E$10,12*$A39,4*(PlotControl!$C$6-1),12,1)),AVERAGE(OFFSET('2ECoarse'!$E$10,12*$A39,4*(PlotControl!$C$6-1),12,1))) -> 11221 | Q39: =IF(PlotControl!$B$4 = "Annual Max",MAX(OFFSET('2EBank'!$C$10,12*$A39,4*(PlotControl!$C$6-1),12,1)),AVERAGE(OFFSET('2EBank'!$C$10,12*$A39,4*(PlotControl!$C$6-1),12,1))) -> 6683.475 | R39: =IF(PlotControl!$B$4 = "Annual Max",MAX(OFFSET('2EBank'!$D$10,12*$A39,4*(PlotControl!$C$6-1),12,1)),AVERAGE(OFFSET('2EBank'!$D$10,12*$A39,4*(PlotControl!$C$6-1),12,1))) -> 6944.033333 | S39: =IF(PlotControl!$B$4 = "Annual Max",MAX(OFFSET('2EBank'!$E$10,12*$A39,4*(PlotControl!$C$6-1),12,1)),AVERAGE(OFFSET('2EBank'!$E$10,12*$A39,4*(PlotControl!$C$6-1),12,1))) -> 7279.741667 | T39: =IF(PlotControl!$B$4 = "Annual Max",MAX(OFFSET('1EFines'!$C$10,12*$A39,4*(PlotControl!$C$6-1),12,1)),AVERAGE(OFFSET('1EFines'!$C$10,12*$A39,4*(PlotControl!$C$6-1),12,1))) -> 13846 | U39: =IF(PlotControl!$B$4 = "Annual Max",MAX(OFFSET('1EFines'!$D$10,12*$A39,4*(PlotControl!$C$6-1),12,1)),AVERAGE(OFFSET('1EFines'!$D$10,12*$A39,4*(PlotControl!$C$6-1),12,1))) -> 13937 | V39: =IF(PlotControl!$B$4 = "Annual Max",MAX(OFFSET('1EFines'!$E$10,12*$A39,4*(PlotControl!$C$6-1),12,1)),AVERAGE(OFFSET('1EFines'!$E$10,12*$A39,4*(PlotControl!$C$6-1),12,1))) -> 14052 | W39: =IF(PlotControl!$B$4 = "Annual Max",MAX(OFFSET('1ECoarse'!$C$10,12*$A39,4*(PlotControl!$C$6-1),12,1)),AVERAGE(OFFSET('1ECoarse'!$C$10,12*$A39,4*(PlotControl!$C$6-1),12,1))) -> 66539.75 | X39: =IF(PlotControl!$B$4 = "Annual Max",MAX(OFFSET('1ECoarse'!$D$10,12*$A39,4*(PlotControl!$C$6-1),12,1)),AVERAGE(OFFSET('1ECoarse'!$D$10,12*$A39,4*(PlotControl!$C$6-1),12,1))) -> 66746.75 | Y39: =IF(PlotControl!$B$4 = "Annual Max",MAX(OFFSET('1ECoarse'!$E$10,12*$A39,4*(PlotControl!$C$6-1),12,1)),AVERAGE(OFFSET('1ECoarse'!$E$10,12*$A39,4*(PlotControl!$C$6-1),12,1))) -> 67009
A40: 35 | B40: =IF(PlotControl!$B$4 = "Annual Max",MAX(OFFSET('2WFines'!$C$10,12*$A40,4*(PlotControl!$C$6-1),12,1)),AVERAGE(OFFSET('2WFines'!$C$10,12*$A40,4*(PlotControl!$C$6-1),12,1))) -> 98453.58333 | C40: =IF(PlotControl!$B$4 = "Annual Max",MAX(OFFSET('2WFines'!$D$10,12*$A40,4*(PlotControl!$C$6-1),12,1)),AVERAGE(OFFSET('2WFines'!$D$10,12*$A40,4*(PlotControl!$C$6-1),12,1))) -> 100550 | D40: =IF(PlotControl!$B$4 = "Annual Max",MAX(OFFSET('2WFines'!$E$10,12*$A40,4*(PlotControl!$C$6-1),12,1)),AVERAGE(OFFSET('2WFines'!$E$10,12*$A40,4*(PlotControl!$C$6-1),12,1))) -> 103995.8333 | E40: =IF(PlotControl!$B$4 = "Annual Max",MAX(OFFSET('2WCoarse'!$C$10,12*$A40,4*(PlotControl!$C$6-1),12,1)),AVERAGE(OFFSET('2WCoarse'!$C$10,12*$A40,4*(PlotControl!$C$6-1),12,1))) -> 58699.66667 | F40: =IF(PlotControl!$B$4 = "Annual Max",MAX(OFFSET('2WCoarse'!$D$10,12*$A40,4*(PlotControl!$C$6-1),12,1)),AVERAGE(OFFSET('2WCoarse'!$D$10,12*$A40,4*(PlotControl!$C$6-1),12,1))) -> 60590.41667 | G40: =IF(PlotControl!$B$4 = "Annual Max",MAX(OFFSET('2WCoarse'!$E$10,12*$A40,4*(PlotControl!$C$6-1),12,1)),AVERAGE(OFFSET('2WCoarse'!$E$10,12*$A40,4*(PlotControl!$C$6-1),12,1))) -> 63064.16667 | H40: =IF(PlotControl!$B$4 = "Annual Max",MAX(OFFSET('2WBank'!$C$10,12*$A40,4*(PlotControl!$C$6-1),12,1)),AVERAGE(OFFSET('2WBank'!$C$10,12*$A40,4*(PlotControl!$C$6-1),12,1))) -> 85259.58333 | I40: =IF(PlotControl!$B$4 = "Annual Max",MAX(OFFSET('2WBank'!$D$10,12*$A40,4*(PlotControl!$C$6-1),12,1)),AVERAGE(OFFSET('2WBank'!$D$10,12*$A40,4*(PlotControl!$C$6-1),12,1))) -> 88197.16667 | J40: =IF(PlotControl!$B$4 = "Annual Max",MAX(OFFSET('2WBank'!$E$10,12*$A40,4*(PlotControl!$C$6-1),12,1)),AVERAGE(OFFSET('2WBank'!$E$10,12*$A40,4*(PlotControl!$C$6-1),12,1))) -> 92071.5 | K40: =IF(PlotControl!$B$4 = "Annual Max",MAX(OFFSET('2EFines'!$C$10,12*$A40,4*(PlotControl!$C$6-1),12,1)),AVERAGE(OFFSET('2EFines'!$C$10,12*$A40,4*(PlotControl!$C$6-1),12,1))) -> 11219 | L40: =IF(PlotControl!$B$4 = "Annual Max",MAX(OFFSET('2EFines'!$D$10,12*$A40,4*(PlotControl!$C$6-1),12,1)),AVERAGE(OFFSET('2EFines'!$D$10,12*$A40,4*(PlotControl!$C$6-1),12,1))) -> 11225 | M40: =IF(PlotControl!$B$4 = "Annual Max",MAX(OFFSET('2EFines'!$E$10,12*$A40,4*(PlotControl!$C$6-1),12,1)),AVERAGE(OFFSET('2EFines'!$E$10,12*$A40,4*(PlotControl!$C$6-1),12,1))) -> 11232 | N40: =IF(PlotControl!$B$4 = "Annual Max",MAX(OFFSET('2ECoarse'!$C$10,12*$A40,4*(PlotControl!$C$6-1),12,1)),AVERAGE(OFFSET('2ECoarse'!$C$10,12*$A40,4*(PlotControl!$C$6-1),12,1))) -> 11217 | O40: =IF(PlotControl!$B$4 = "Annual Max",MAX(OFFSET('2ECoarse'!$D$10,12*$A40,4*(PlotControl!$C$6-1),12,1)),AVERAGE(OFFSET('2ECoarse'!$D$10,12*$A40,4*(PlotControl!$C$6-1),12,1))) -> 11219 | P40: =IF(PlotControl!$B$4 = "Annual Max",MAX(OFFSET('2ECoarse'!$E$10,12*$A40,4*(PlotControl!$C$6-1),12,1)),AVERAGE(OFFSET('2ECoarse'!$E$10,12*$A40,4*(PlotControl!$C$6-1),12,1))) -> 11221 | Q40: =IF(PlotControl!$B$4 = "Annual Max",MAX(OFFSET('2EBank'!$C$10,12*$A40,4*(PlotControl!$C$6-1),12,1)),AVERAGE(OFFSET('2EBank'!$C$10,12*$A40,4*(PlotControl!$C$6-1),12,1))) -> 6652.891667 | R40: =IF(PlotControl!$B$4 = "Annual Max",MAX(OFFSET('2EBank'!$D$10,12*$A40,4*(PlotControl!$C$6-1),12,1)),AVERAGE(OFFSET('2EBank'!$D$10,12*$A40,4*(PlotControl!$C$6-1),12,1))) -> 6921.541667 | S40: =IF(PlotControl!$B$4 = "Annual Max",MAX(OFFSET('2EBank'!$E$10,12*$A40,4*(PlotControl!$C$6-1),12,1)),AVERAGE(OFFSET('2EBank'!$E$10,12*$A40,4*(PlotControl!$C$6-1),12,1))) -> 7265.75 | T40: =IF(PlotControl!$B$4 = "Annual Max",MAX(OFFSET('1EFines'!$C$10,12*$A40,4*(PlotControl!$C$6-1),12,1)),AVERAGE(OFFSET('1EFines'!$C$10,12*$A40,4*(PlotControl!$C$6-1),12,1))) -> 13846 | U40: =IF(PlotControl!$B$4 = "Annual Max",MAX(OFFSET('1EFines'!$D$10,12*$A40,4*(PlotControl!$C$6-1),12,1)),AVERAGE(OFFSET('1EFines'!$D$10,12*$A40,4*(PlotControl!$C$6-1),12,1))) -> 13937 | V40: =IF(PlotControl!$B$4 = "Annual Max",MAX(OFFSET('1EFines'!$E$10,12*$A40,4*(PlotControl!$C$6-1),12,1)),AVERAGE(OFFSET('1EFines'!$E$10,12*$A40,4*(PlotControl!$C$6-1),12,1))) -> 14052 | W40: =IF(PlotControl!$B$4 = "Annual Max",MAX(OFFSET('1ECoarse'!$C$10,12*$A40,4*(PlotControl!$C$6-1),12,1)),AVERAGE(OFFSET('1ECoarse'!$C$10,12*$A40,4*(PlotControl!$C$6-1),12,1))) -> 66538.08333 | X40: =IF(PlotControl!$B$4 = "Annual Max",MAX(OFFSET('1ECoarse'!$D$10,12*$A40,4*(PlotControl!$C$6-1),12,1)),AVERAGE(OFFSET('1ECoarse'!$D$10,12*$A40,4*(PlotControl!$C$6-1),12,1))) -> 66745.66667 | Y40: =IF(PlotControl!$B$4 = "Annual Max",MAX(OFFSET('1ECoarse'!$E$10,12*$A40,4*(PlotControl!$C$6-1),12,1)),AVERAGE(OFFSET('1ECoarse'!$E$10,12*$A40,4*(PlotControl!$C$6-1),12,1))) -> 67008.16667
A41: 36 | B41: =IF(PlotControl!$B$4 = "Annual Max",MAX(OFFSET('2WFines'!$C$10,12*$A41,4*(PlotControl!$C$6-1),12,1)),AVERAGE(OFFSET('2WFines'!$C$10,12*$A41,4*(PlotControl!$C$6-1),12,1))) -> 98036.33333 | C41: =IF(PlotControl!$B$4 = "Annual Max",MAX(OFFSET('2WFines'!$D$10,12*$A41,4*(PlotControl!$C$6-1),12,1)),AVERAGE(OFFSET('2WFines'!$D$10,12*$A41,4*(PlotControl!$C$6-1),12,1))) -> 100172.9167 | D41: =IF(PlotControl!$B$4 = "Annual Max",MAX(OFFSET('2WFines'!$E$10,12*$A41,4*(PlotControl!$C$6-1),12,1)),AVERAGE(OFFSET('2WFines'!$E$10,12*$A41,4*(PlotControl!$C$6-1),12,1))) -> 103728.3333 | E41: =IF(PlotControl!$B$4 = "Annual Max",MAX(OFFSET('2WCoarse'!$C$10,12*$A41,4*(PlotControl!$C$6-1),12,1)),AVERAGE(OFFSET('2WCoarse'!$C$10,12*$A41,4*(PlotControl!$C$6-1),12,1))) -> 58471.75 | F41: =IF(PlotControl!$B$4 = "Annual Max",MAX(OFFSET('2WCoarse'!$D$10,12*$A41,4*(PlotControl!$C$6-1),12,1)),AVERAGE(OFFSET('2WCoarse'!$D$10,12*$A41,4*(PlotControl!$C$6-1),12,1))) -> 60418.66667 | G41: =IF(PlotControl!$B$4 = "Annual Max",MAX(OFFSET('2WCoarse'!$E$10,12*$A41,4*(PlotControl!$C$6-1),12,1)),AVERAGE(OFFSET('2WCoarse'!$E$10,12*$A41,4*(PlotControl!$C$6-1),12,1))) -> 62965.25 | H41: =IF(PlotControl!$B$4 = "Annual Max",MAX(OFFSET('2WBank'!$C$10,12*$A41,4*(PlotControl!$C$6-1),12,1)),AVERAGE(OFFSET('2WBank'!$C$10,12*$A41,4*(PlotControl!$C$6-1),12,1))) -> 84945.58333 | I41: =IF(PlotControl!$B$4 = "Annual Max",MAX(OFFSET('2WBank'!$D$10,12*$A41,4*(PlotControl!$C$6-1),12,1)),AVERAGE(OFFSET('2WBank'!$D$10,12*$A41,4*(PlotControl!$C$6-1),12,1))) -> 87952.83333 | J41: =IF(PlotControl!$B$4 = "Annual Max",MAX(OFFSET('2WBank'!$E$10,12*$A41,4*(PlotControl!$C$6-1),12,1)),AVERAGE(OFFSET('2WBank'!$E$10,12*$A41,4*(PlotControl!$C$6-1),12,1))) -> 91931.83333 | K41: =IF(PlotControl!$B$4 = "Annual Max",MAX(OFFSET('2EFines'!$C$10,12*$A41,4*(PlotControl!$C$6-1),12,1)),AVERAGE(OFFSET('2EFines'!$C$10,12*$A41,4*(PlotControl!$C$6-1),12,1))) -> 11219 | L41: =IF(PlotControl!$B$4 = "Annual Max",MAX(OFFSET('2EFines'!$D$10,12*$A41,4*(PlotControl!$C$6-1),12,1)),AVERAGE(OFFSET('2EFines'!$D$10,12*$A41,4*(PlotControl!$C$6-1),12,1))) -> 11225 | M41: =IF(PlotControl!$B$4 = "Annual Max",MAX(OFFSET('2EFines'!$E$10,12*$A41,4*(PlotControl!$C$6-1),12,1)),AVERAGE(OFFSET('2EFines'!$E$10,12*$A41,4*(PlotControl!$C$6-1),12,1))) -> 11232 | N41: =IF(PlotControl!$B$4 = "Annual Max",MAX(OFFSET('2ECoarse'!$C$10,12*$A41,4*(PlotControl!$C$6-1),12,1)),AVERAGE(OFFSET('2ECoarse'!$C$10,12*$A41,4*(PlotControl!$C$6-1),12,1))) -> 11217 | O41: =IF(PlotControl!$B$4 = "Annual Max",MAX(OFFSET('2ECoarse'!$D$10,12*$A41,4*(PlotControl!$C$6-1),12,1)),AVERAGE(OFFSET('2ECoarse'!$D$10,12*$A41,4*(PlotControl!$C$6-1),12,1))) -> 11219 | P41: =IF(PlotControl!$B$4 = "Annual Max",MAX(OFFSET('2ECoarse'!$E$10,12*$A41,4*(PlotControl!$C$6-1),12,1)),AVERAGE(OFFSET('2ECoarse'!$E$10,12*$A41,4*(PlotControl!$C$6-1),12,1))) -> 11221 | Q41: =IF(PlotControl!$B$4 = "Annual Max",MAX(OFFSET('2EBank'!$C$10,12*$A41,4*(PlotControl!$C$6-1),12,1)),AVERAGE(OFFSET('2EBank'!$C$10,12*$A41,4*(PlotControl!$C$6-1),12,1))) -> 6620.408333 | R41: =IF(PlotControl!$B$4 = "Annual Max",MAX(OFFSET('2EBank'!$D$10,12*$A41,4*(PlotControl!$C$6-1),12,1)),AVERAGE(OFFSET('2EBank'!$D$10,12*$A41,4*(PlotControl!$C$6-1),12,1))) -> 6897.016667 | S41: =IF(PlotControl!$B$4 = "Annual Max",MAX(OFFSET('2EBank'!$E$10,12*$A41,4*(PlotControl!$C$6-1),12,1)),AVERAGE(OFFSET('2EBank'!$E$10,12*$A41,4*(PlotControl!$C$6-1),12,1))) -> 7251.958333 | T41: =IF(PlotControl!$B$4 = "Annual Max",MAX(OFFSET('1EFines'!$C$10,12*$A41,4*(PlotControl!$C$6-1),12,1)),AVERAGE(OFFSET('1EFines'!$C$10,12*$A41,4*(PlotControl!$C$6-1),12,1))) -> 13846 | U41: =IF(PlotControl!$B$4 = "Annual Max",MAX(OFFSET('1EFines'!$D$10,12*$A41,4*(PlotControl!$C$6-1),12,1)),AVERAGE(OFFSET('1EFines'!$D$10,12*$A41,4*(PlotControl!$C$6-1),12,1))) -> 13937 | V41: =IF(PlotControl!$B$4 = "Annual Max",MAX(OFFSET('1EFines'!$E$10,12*$A41,4*(PlotControl!$C$6-1),12,1)),AVERAGE(OFFSET('1EFines'!$E$10,12*$A41,4*(PlotControl!$C$6-1),12,1))) -> 14052 | W41: =IF(PlotControl!$B$4 = "Annual Max",MAX(OFFSET('1ECoarse'!$C$10,12*$A41,4*(PlotControl!$C$6-1),12,1)),AVERAGE(OFFSET('1ECoarse'!$C$10,12*$A41,4*(PlotControl!$C$6-1),12,1))) -> 66536.5 | X41: =IF(PlotControl!$B$4 = "Annual Max",MAX(OFFSET('1ECoarse'!$D$10,12*$A41,4*(PlotControl!$C$6-1),12,1)),AVERAGE(OFFSET('1ECoarse'!$D$10,12*$A41,4*(PlotControl!$C$6-1),12,1))) -> 66744.5 | Y41: =IF(PlotControl!$B$4 = "Annual Max",MAX(OFFSET('1ECoarse'!$E$10,12*$A41,4*(PlotControl!$C$6-1),12,1)),AVERAGE(OFFSET('1ECoarse'!$E$10,12*$A41,4*(PlotControl!$C$6-1),12,1))) -> 67007.66667
A42: 37 | B42: =IF(PlotControl!$B$4 = "Annual Max",MAX(OFFSET('2WFines'!$C$10,12*$A42,4*(PlotControl!$C$6-1),12,1)),AVERAGE(OFFSET('2WFines'!$C$10,12*$A42,4*(PlotControl!$C$6-1),12,1))) -> 97603.91667 | C42: =IF(PlotControl!$B$4 = "Annual Max",MAX(OFFSET('2WFines'!$D$10,12*$A42,4*(PlotControl!$C$6-1),12,1)),AVERAGE(OFFSET('2WFines'!$D$10,12*$A42,4*(PlotControl!$C$6-1),12,1))) -> 99776.91667 | D42: =IF(PlotControl!$B$4 = "Annual Max",MAX(OFFSET('2WFines'!$E$10,12*$A42,4*(PlotControl!$C$6-1),12,1)),AVERAGE(OFFSET('2WFines'!$E$10,12*$A42,4*(PlotControl!$C$6-1),12,1))) -> 103459.1667 | E42: =IF(PlotControl!$B$4 = "Annual Max",MAX(OFFSET('2WCoarse'!$C$10,12*$A42,4*(PlotControl!$C$6-1),12,1)),AVERAGE(OFFSET('2WCoarse'!$C$10,12*$A42,4*(PlotControl!$C$6-1),12,1))) -> 58240.25 | F42: =IF(PlotControl!$B$4 = "Annual Max",MAX(OFFSET('2WCoarse'!$D$10,12*$A42,4*(PlotControl!$C$6-1),12,1)),AVERAGE(OFFSET('2WCoarse'!$D$10,12*$A42,4*(PlotControl!$C$6-1),12,1))) -> 60248.75 | G42: =IF(PlotControl!$B$4 = "Annual Max",MAX(OFFSET('2WCoarse'!$E$10,12*$A42,4*(PlotControl!$C$6-1),12,1)),AVERAGE(OFFSET('2WCoarse'!$E$10,12*$A42,4*(PlotControl!$C$6-1),12,1))) -> 62872.75 | H42: =IF(PlotControl!$B$4 = "Annual Max",MAX(OFFSET('2WBank'!$C$10,12*$A42,4*(PlotControl!$C$6-1),12,1)),AVERAGE(OFFSET('2WBank'!$C$10,12*$A42,4*(PlotControl!$C$6-1),12,1))) -> 84613.91667 | I42: =IF(PlotControl!$B$4 = "Annual Max",MAX(OFFSET('2WBank'!$D$10,12*$A42,4*(PlotControl!$C$6-1),12,1)),AVERAGE(OFFSET('2WBank'!$D$10,12*$A42,4*(PlotControl!$C$6-1),12,1))) -> 87722 | J42: =IF(PlotControl!$B$4 = "Annual Max",MAX(OFFSET('2WBank'!$E$10,12*$A42,4*(PlotControl!$C$6-1),12,1)),AVERAGE(OFFSET('2WBank'!$E$10,12*$A42,4*(PlotControl!$C$6-1),12,1))) -> 91798 | K42: =IF(PlotControl!$B$4 = "Annual Max",MAX(OFFSET('2EFines'!$C$10,12*$A42,4*(PlotControl!$C$6-1),12,1)),AVERAGE(OFFSET('2EFines'!$C$10,12*$A42,4*(PlotControl!$C$6-1),12,1))) -> 11219 | L42: =IF(PlotControl!$B$4 = "Annual Max",MAX(OFFSET('2EFines'!$D$10,12*$A42,4*(PlotControl!$C$6-1),12,1)),AVERAGE(OFFSET('2EFines'!$D$10,12*$A42,4*(PlotControl!$C$6-1),12,1))) -> 11225 | M42: =IF(PlotControl!$B$4 = "Annual Max",MAX(OFFSET('2EFines'!$E$10,12*$A42,4*(PlotControl!$C$6-1),12,1)),AVERAGE(OFFSET('2EFines'!$E$10,12*$A42,4*(PlotControl!$C$6-1),12,1))) -> 11232 | N42: =IF(PlotControl!$B$4 = "Annual Max",MAX(OFFSET('2ECoarse'!$C$10,12*$A42,4*(PlotControl!$C$6-1),12,1)),AVERAGE(OFFSET('2ECoarse'!$C$10,12*$A42,4*(PlotControl!$C$6-1),12,1))) -> 11217 | O42: =IF(PlotControl!$B$4 = "Annual Max",MAX(OFFSET('2ECoarse'!$D$10,12*$A42,4*(PlotControl!$C$6-1),12,1)),AVERAGE(OFFSET('2ECoarse'!$D$10,12*$A42,4*(PlotControl!$C$6-1),12,1))) -> 11219 | P42: =IF(PlotControl!$B$4 = "Annual Max",MAX(OFFSET('2ECoarse'!$E$10,12*$A42,4*(PlotControl!$C$6-1),12,1)),AVERAGE(OFFSET('2ECoarse'!$E$10,12*$A42,4*(PlotControl!$C$6-1),12,1))) -> 11221 | Q42: =IF(PlotControl!$B$4 = "Annual Max",MAX(OFFSET('2EBank'!$C$10,12*$A42,4*(PlotControl!$C$6-1),12,1)),AVERAGE(OFFSET('2EBank'!$C$10,12*$A42,4*(PlotControl!$C$6-1),12,1))) -> 6587.525 | R42: =IF(PlotControl!$B$4 = "Annual Max",MAX(OFFSET('2EBank'!$D$10,12*$A42,4*(PlotControl!$C$6-1),12,1)),AVERAGE(OFFSET('2EBank'!$D$10,12*$A42,4*(PlotControl!$C$6-1),12,1))) -> 6872.608333 | S42: =IF(PlotControl!$B$4 = "Annual Max",MAX(OFFSET('2EBank'!$E$10,12*$A42,4*(PlotControl!$C$6-1),12,1)),AVERAGE(OFFSET('2EBank'!$E$10,12*$A42,4*(PlotControl!$C$6-1),12,1))) -> 7238.066667 | T42: =IF(PlotControl!$B$4 = "Annual Max",MAX(OFFSET('1EFines'!$C$10,12*$A42,4*(PlotControl!$C$6-1),12,1)),AVERAGE(OFFSET('1EFines'!$C$10,12*$A42,4*(PlotControl!$C$6-1),12,1))) -> 13846 | U42: =IF(PlotControl!$B$4 = "Annual Max",MAX(OFFSET('1EFines'!$D$10,12*$A42,4*(PlotControl!$C$6-1),12,1)),AVERAGE(OFFSET('1EFines'!$D$10,12*$A42,4*(PlotControl!$C$6-1),12,1))) -> 13937 | V42: =IF(PlotControl!$B$4 = "Annual Max",MAX(OFFSET('1EFines'!$E$10,12*$A42,4*(PlotControl!$C$6-1),12,1)),AVERAGE(OFFSET('1EFines'!$E$10,12*$A42,4*(PlotControl!$C$6-1),12,1))) -> 14052 | W42: =IF(PlotControl!$B$4 = "Annual Max",MAX(OFFSET('1ECoarse'!$C$10,12*$A42,4*(PlotControl!$C$6-1),12,1)),AVERAGE(OFFSET('1ECoarse'!$C$10,12*$A42,4*(PlotControl!$C$6-1),12,1))) -> 66535 | X42: =IF(PlotControl!$B$4 = "Annual Max",MAX(OFFSET('1ECoarse'!$D$10,12*$A42,4*(PlotControl!$C$6-1),12,1)),AVERAGE(OFFSET('1ECoarse'!$D$10,12*$A42,4*(PlotControl!$C$6-1),12,1))) -> 66743.33333 | Y42: =IF(PlotControl!$B$4 = "Annual Max",MAX(OFFSET('1ECoarse'!$E$10,12*$A42,4*(PlotControl!$C$6-1),12,1)),AVERAGE(OFFSET('1ECoarse'!$E$10,12*$A42,4*(PlotControl!$C$6-1),12,1))) -> 67007
A43: 38 | B43: =IF(PlotControl!$B$4 = "Annual Max",MAX(OFFSET('2WFines'!$C$10,12*$A43,4*(PlotControl!$C$6-1),12,1)),AVERAGE(OFFSET('2WFines'!$C$10,12*$A43,4*(PlotControl!$C$6-1),12,1))) -> 97167.75 | C43: =IF(PlotControl!$B$4 = "Annual Max",MAX(OFFSET('2WFines'!$D$10,12*$A43,4*(PlotControl!$C$6-1),12,1)),AVERAGE(OFFSET('2WFines'!$D$10,12*$A43,4*(PlotControl!$C$6-1),12,1))) -> 99410.25 | D43: =IF(PlotControl!$B$4 = "Annual Max",MAX(OFFSET('2WFines'!$E$10,12*$A43,4*(PlotControl!$C$6-1),12,1)),AVERAGE(OFFSET('2WFines'!$E$10,12*$A43,4*(PlotControl!$C$6-1),12,1))) -> 103180 | E43: =IF(PlotControl!$B$4 = "Annual Max",MAX(OFFSET('2WCoarse'!$C$10,12*$A43,4*(PlotControl!$C$6-1),12,1)),AVERAGE(OFFSET('2WCoarse'!$C$10,12*$A43,4*(PlotControl!$C$6-1),12,1))) -> 58010.08333 | F43: =IF(PlotControl!$B$4 = "Annual Max",MAX(OFFSET('2WCoarse'!$D$10,12*$A43,4*(PlotControl!$C$6-1),12,1)),AVERAGE(OFFSET('2WCoarse'!$D$10,12*$A43,4*(PlotControl!$C$6-1),12,1))) -> 60096.58333 | G43: =IF(PlotControl!$B$4 = "Annual Max",MAX(OFFSET('2WCoarse'!$E$10,12*$A43,4*(PlotControl!$C$6-1),12,1)),AVERAGE(OFFSET('2WCoarse'!$E$10,12*$A43,4*(PlotControl!$C$6-1),12,1))) -> 62786.08333 | H43: =IF(PlotControl!$B$4 = "Annual Max",MAX(OFFSET('2WBank'!$C$10,12*$A43,4*(PlotControl!$C$6-1),12,1)),AVERAGE(OFFSET('2WBank'!$C$10,12*$A43,4*(PlotControl!$C$6-1),12,1))) -> 84293.08333 | I43: =IF(PlotControl!$B$4 = "Annual Max",MAX(OFFSET('2WBank'!$D$10,12*$A43,4*(PlotControl!$C$6-1),12,1)),AVERAGE(OFFSET('2WBank'!$D$10,12*$A43,4*(PlotControl!$C$6-1),12,1))) -> 87508.66667 | J43: =IF(PlotControl!$B$4 = "Annual Max",MAX(OFFSET('2WBank'!$E$10,12*$A43,4*(PlotControl!$C$6-1),12,1)),AVERAGE(OFFSET('2WBank'!$E$10,12*$A43,4*(PlotControl!$C$6-1),12,1))) -> 91678.83333 | K43: =IF(PlotControl!$B$4 = "Annual Max",MAX(OFFSET('2EFines'!$C$10,12*$A43,4*(PlotControl!$C$6-1),12,1)),AVERAGE(OFFSET('2EFines'!$C$10,12*$A43,4*(PlotControl!$C$6-1),12,1))) -> 11219 | L43: =IF(PlotControl!$B$4 = "Annual Max",MAX(OFFSET('2EFines'!$D$10,12*$A43,4*(PlotControl!$C$6-1),12,1)),AVERAGE(OFFSET('2EFines'!$D$10,12*$A43,4*(PlotControl!$C$6-1),12,1))) -> 11225 | M43: =IF(PlotControl!$B$4 = "Annual Max",MAX(OFFSET('2EFines'!$E$10,12*$A43,4*(PlotControl!$C$6-1),12,1)),AVERAGE(OFFSET('2EFines'!$E$10,12*$A43,4*(PlotControl!$C$6-1),12,1))) -> 11232 | N43: =IF(PlotControl!$B$4 = "Annual Max",MAX(OFFSET('2ECoarse'!$C$10,12*$A43,4*(PlotControl!$C$6-1),12,1)),AVERAGE(OFFSET('2ECoarse'!$C$10,12*$A43,4*(PlotControl!$C$6-1),12,1))) -> 11217 | O43: =IF(PlotControl!$B$4 = "Annual Max",MAX(OFFSET('2ECoarse'!$D$10,12*$A43,4*(PlotControl!$C$6-1),12,1)),AVERAGE(OFFSET('2ECoarse'!$D$10,12*$A43,4*(PlotControl!$C$6-1),12,1))) -> 11219 | P43: =IF(PlotControl!$B$4 = "Annual Max",MAX(OFFSET('2ECoarse'!$E$10,12*$A43,4*(PlotControl!$C$6-1),12,1)),AVERAGE(OFFSET('2ECoarse'!$E$10,12*$A43,4*(PlotControl!$C$6-1),12,1))) -> 11221 | Q43: =IF(PlotControl!$B$4 = "Annual Max",MAX(OFFSET('2EBank'!$C$10,12*$A43,4*(PlotControl!$C$6-1),12,1)),AVERAGE(OFFSET('2EBank'!$C$10,12*$A43,4*(PlotControl!$C$6-1),12,1))) -> 6555.716667 | R43: =IF(PlotControl!$B$4 = "Annual Max",MAX(OFFSET('2EBank'!$D$10,12*$A43,4*(PlotControl!$C$6-1),12,1)),AVERAGE(OFFSET('2EBank'!$D$10,12*$A43,4*(PlotControl!$C$6-1),12,1))) -> 6850.416667 | S43: =IF(PlotControl!$B$4 = "Annual Max",MAX(OFFSET('2EBank'!$E$10,12*$A43,4*(PlotControl!$C$6-1),12,1)),AVERAGE(OFFSET('2EBank'!$E$10,12*$A43,4*(PlotControl!$C$6-1),12,1))) -> 7225.208333 | T43: =IF(PlotControl!$B$4 = "Annual Max",MAX(OFFSET('1EFines'!$C$10,12*$A43,4*(PlotControl!$C$6-1),12,1)),AVERAGE(OFFSET('1EFines'!$C$10,12*$A43,4*(PlotControl!$C$6-1),12,1))) -> 13846 | U43: =IF(PlotControl!$B$4 = "Annual Max",MAX(OFFSET('1EFines'!$D$10,12*$A43,4*(PlotControl!$C$6-1),12,1)),AVERAGE(OFFSET('1EFines'!$D$10,12*$A43,4*(PlotControl!$C$6-1),12,1))) -> 13937 | V43: =IF(PlotControl!$B$4 = "Annual Max",MAX(OFFSET('1EFines'!$E$10,12*$A43,4*(PlotControl!$C$6-1),12,1)),AVERAGE(OFFSET('1EFines'!$E$10,12*$A43,4*(PlotControl!$C$6-1),12,1))) -> 14052 | W43: =IF(PlotControl!$B$4 = "Annual Max",MAX(OFFSET('1ECoarse'!$C$10,12*$A43,4*(PlotControl!$C$6-1),12,1)),AVERAGE(OFFSET('1ECoarse'!$C$10,12*$A43,4*(PlotControl!$C$6-1),12,1))) -> 66533.33333 | X43: =IF(PlotControl!$B$4 = "Annual Max",MAX(OFFSET('1ECoarse'!$D$10,12*$A43,4*(PlotControl!$C$6-1),12,1)),AVERAGE(OFFSET('1ECoarse'!$D$10,12*$A43,4*(PlotControl!$C$6-1),12,1))) -> 66742.25 | Y43: =IF(PlotControl!$B$4 = "Annual Max",MAX(OFFSET('1ECoarse'!$E$10,12*$A43,4*(PlotControl!$C$6-1),12,1)),AVERAGE(OFFSET('1ECoarse'!$E$10,12*$A43,4*(PlotControl!$C$6-1),12,1))) -> 67006.16667
A44: 39 | B44: =IF(PlotControl!$B$4 = "Annual Max",MAX(OFFSET('2WFines'!$C$10,12*$A44,4*(PlotControl!$C$6-1),12,1)),AVERAGE(OFFSET('2WFines'!$C$10,12*$A44,4*(PlotControl!$C$6-1),12,1))) -> 96733.5 | C44: =IF(PlotControl!$B$4 = "Annual Max",MAX(OFFSET('2WFines'!$D$10,12*$A44,4*(PlotControl!$C$6-1),12,1)),AVERAGE(OFFSET('2WFines'!$D$10,12*$A44,4*(PlotControl!$C$6-1),12,1))) -> 99055.58333 | D44: =IF(PlotControl!$B$4 = "Annual Max",MAX(OFFSET('2WFines'!$E$10,12*$A44,4*(PlotControl!$C$6-1),12,1)),AVERAGE(OFFSET('2WFines'!$E$10,12*$A44,4*(PlotControl!$C$6-1),12,1))) -> 102904.1667 | E44: =IF(PlotControl!$B$4 = "Annual Max",MAX(OFFSET('2WCoarse'!$C$10,12*$A44,4*(PlotControl!$C$6-1),12,1)),AVERAGE(OFFSET('2WCoarse'!$C$10,12*$A44,4*(PlotControl!$C$6-1),12,1))) -> 57793.25 | F44: =IF(PlotControl!$B$4 = "Annual Max",MAX(OFFSET('2WCoarse'!$D$10,12*$A44,4*(PlotControl!$C$6-1),12,1)),AVERAGE(OFFSET('2WCoarse'!$D$10,12*$A44,4*(PlotControl!$C$6-1),12,1))) -> 59931.91667 | G44: =IF(PlotControl!$B$4 = "Annual Max",MAX(OFFSET('2WCoarse'!$E$10,12*$A44,4*(PlotControl!$C$6-1),12,1)),AVERAGE(OFFSET('2WCoarse'!$E$10,12*$A44,4*(PlotControl!$C$6-1),12,1))) -> 62694.5 | H44: =IF(PlotControl!$B$4 = "Annual Max",MAX(OFFSET('2WBank'!$C$10,12*$A44,4*(PlotControl!$C$6-1),12,1)),AVERAGE(OFFSET('2WBank'!$C$10,12*$A44,4*(PlotControl!$C$6-1),12,1))) -> 83994.75 | I44: =IF(PlotControl!$B$4 = "Annual Max",MAX(OFFSET('2WBank'!$D$10,12*$A44,4*(PlotControl!$C$6-1),12,1)),AVERAGE(OFFSET('2WBank'!$D$10,12*$A44,4*(PlotControl!$C$6-1),12,1))) -> 87280.91667 | J44: =IF(PlotControl!$B$4 = "Annual Max",MAX(OFFSET('2WBank'!$E$10,12*$A44,4*(PlotControl!$C$6-1),12,1)),AVERAGE(OFFSET('2WBank'!$E$10,12*$A44,4*(PlotControl!$C$6-1),12,1))) -> 91557.16667 | K44: =IF(PlotControl!$B$4 = "Annual Max",MAX(OFFSET('2EFines'!$C$10,12*$A44,4*(PlotControl!$C$6-1),12,1)),AVERAGE(OFFSET('2EFines'!$C$10,12*$A44,4*(PlotControl!$C$6-1),12,1))) -> 11219 | L44: =IF(PlotControl!$B$4 = "Annual Max",MAX(OFFSET('2EFines'!$D$10,12*$A44,4*(PlotControl!$C$6-1),12,1)),AVERAGE(OFFSET('2EFines'!$D$10,12*$A44,4*(PlotControl!$C$6-1),12,1))) -> 11225 | M44: =IF(PlotControl!$B$4 = "Annual Max",MAX(OFFSET('2EFines'!$E$10,12*$A44,4*(PlotControl!$C$6-1),12,1)),AVERAGE(OFFSET('2EFines'!$E$10,12*$A44,4*(PlotControl!$C$6-1),12,1))) -> 11232 | N44: =IF(PlotControl!$B$4 = "Annual Max",MAX(OFFSET('2ECoarse'!$C$10,12*$A44,4*(PlotControl!$C$6-1),12,1)),AVERAGE(OFFSET('2ECoarse'!$C$10,12*$A44,4*(PlotControl!$C$6-1),12,1))) -> 11217 | O44: =IF(PlotControl!$B$4 = "Annual Max",MAX(OFFSET('2ECoarse'!$D$10,12*$A44,4*(PlotControl!$C$6-1),12,1)),AVERAGE(OFFSET('2ECoarse'!$D$10,12*$A44,4*(PlotControl!$C$6-1),12,1))) -> 11219 | P44: =IF(PlotControl!$B$4 = "Annual Max",MAX(OFFSET('2ECoarse'!$E$10,12*$A44,4*(PlotControl!$C$6-1),12,1)),AVERAGE(OFFSET('2ECoarse'!$E$10,12*$A44,4*(PlotControl!$C$6-1),12,1))) -> 11221 | Q44: =IF(PlotControl!$B$4 = "Annual Max",MAX(OFFSET('2EBank'!$C$10,12*$A44,4*(PlotControl!$C$6-1),12,1)),AVERAGE(OFFSET('2EBank'!$C$10,12*$A44,4*(PlotControl!$C$6-1),12,1))) -> 6525.925 | R44: =IF(PlotControl!$B$4 = "Annual Max",MAX(OFFSET('2EBank'!$D$10,12*$A44,4*(PlotControl!$C$6-1),12,1)),AVERAGE(OFFSET('2EBank'!$D$10,12*$A44,4*(PlotControl!$C$6-1),12,1))) -> 6827.466667 | S44: =IF(PlotControl!$B$4 = "Annual Max",MAX(OFFSET('2EBank'!$E$10,12*$A44,4*(PlotControl!$C$6-1),12,1)),AVERAGE(OFFSET('2EBank'!$E$10,12*$A44,4*(PlotControl!$C$6-1),12,1))) -> 7212.733333 | T44: =IF(PlotControl!$B$4 = "Annual Max",MAX(OFFSET('1EFines'!$C$10,12*$A44,4*(PlotControl!$C$6-1),12,1)),AVERAGE(OFFSET('1EFines'!$C$10,12*$A44,4*(PlotControl!$C$6-1),12,1))) -> 13846 | U44: =IF(PlotControl!$B$4 = "Annual Max",MAX(OFFSET('1EFines'!$D$10,12*$A44,4*(PlotControl!$C$6-1),12,1)),AVERAGE(OFFSET('1EFines'!$D$10,12*$A44,4*(PlotControl!$C$6-1),12,1))) -> 13937 | V44: =IF(PlotControl!$B$4 = "Annual Max",MAX(OFFSET('1EFines'!$E$10,12*$A44,4*(PlotControl!$C$6-1),12,1)),AVERAGE(OFFSET('1EFines'!$E$10,12*$A44,4*(PlotControl!$C$6-1),12,1))) -> 14052 | W44: =IF(PlotControl!$B$4 = "Annual Max",MAX(OFFSET('1ECoarse'!$C$10,12*$A44,4*(PlotControl!$C$6-1),12,1)),AVERAGE(OFFSET('1ECoarse'!$C$10,12*$A44,4*(PlotControl!$C$6-1),12,1))) -> 66531.5 | X44: =IF(PlotControl!$B$4 = "Annual Max",MAX(OFFSET('1ECoarse'!$D$10,12*$A44,4*(PlotControl!$C$6-1),12,1)),AVERAGE(OFFSET('1ECoarse'!$D$10,12*$A44,4*(PlotControl!$C$6-1),12,1))) -> 66741.16667 | Y44: =IF(PlotControl!$B$4 = "Annual Max",MAX(OFFSET('1ECoarse'!$E$10,12*$A44,4*(PlotControl!$C$6-1),12,1)),AVERAGE(OFFSET('1ECoarse'!$E$10,12*$A44,4*(PlotControl!$C$6-1),12,1))) -> 67005.66667
A45: 40 | B45: =IF(PlotControl!$B$4 = "Annual Max",MAX(OFFSET('2WFines'!$C$10,12*$A45,4*(PlotControl!$C$6-1),12,1)),AVERAGE(OFFSET('2WFines'!$C$10,12*$A45,4*(PlotControl!$C$6-1),12,1))) -> 96309 | C45: =IF(PlotControl!$B$4 = "Annual Max",MAX(OFFSET('2WFines'!$D$10,12*$A45,4*(PlotControl!$C$6-1),12,1)),AVERAGE(OFFSET('2WFines'!$D$10,12*$A45,4*(PlotControl!$C$6-1),12,1))) -> 98680.08333 | D45: =IF(PlotControl!$B$4 = "Annual Max",MAX(OFFSET('2WFines'!$E$10,12*$A45,4*(PlotControl!$C$6-1),12,1)),AVERAGE(OFFSET('2WFines'!$E$10,12*$A45,4*(PlotControl!$C$6-1),12,1))) -> 102635.8333 | E45: =IF(PlotControl!$B$4 = "Annual Max",MAX(OFFSET('2WCoarse'!$C$10,12*$A45,4*(PlotControl!$C$6-1),12,1)),AVERAGE(OFFSET('2WCoarse'!$C$10,12*$A45,4*(PlotControl!$C$6-1),12,1))) -> 57556.41667 | F45: =IF(PlotControl!$B$4 = "Annual Max",MAX(OFFSET('2WCoarse'!$D$10,12*$A45,4*(PlotControl!$C$6-1),12,1)),AVERAGE(OFFSET('2WCoarse'!$D$10,12*$A45,4*(PlotControl!$C$6-1),12,1))) -> 59762.83333 | G45: =IF(PlotControl!$B$4 = "Annual Max",MAX(OFFSET('2WCoarse'!$E$10,12*$A45,4*(PlotControl!$C$6-1),12,1)),AVERAGE(OFFSET('2WCoarse'!$E$10,12*$A45,4*(PlotControl!$C$6-1),12,1))) -> 62599.58333 | H45: =IF(PlotControl!$B$4 = "Annual Max",MAX(OFFSET('2WBank'!$C$10,12*$A45,4*(PlotControl!$C$6-1),12,1)),AVERAGE(OFFSET('2WBank'!$C$10,12*$A45,4*(PlotControl!$C$6-1),12,1))) -> 83671.75 | I45: =IF(PlotControl!$B$4 = "Annual Max",MAX(OFFSET('2WBank'!$D$10,12*$A45,4*(PlotControl!$C$6-1),12,1)),AVERAGE(OFFSET('2WBank'!$D$10,12*$A45,4*(PlotControl!$C$6-1),12,1))) -> 87043.08333 | J45: =IF(PlotControl!$B$4 = "Annual Max",MAX(OFFSET('2WBank'!$E$10,12*$A45,4*(PlotControl!$C$6-1),12,1)),AVERAGE(OFFSET('2WBank'!$E$10,12*$A45,4*(PlotControl!$C$6-1),12,1))) -> 91427.16667 | K45: =IF(PlotControl!$B$4 = "Annual Max",MAX(OFFSET('2EFines'!$C$10,12*$A45,4*(PlotControl!$C$6-1),12,1)),AVERAGE(OFFSET('2EFines'!$C$10,12*$A45,4*(PlotControl!$C$6-1),12,1))) -> 11219 | L45: =IF(PlotControl!$B$4 = "Annual Max",MAX(OFFSET('2EFines'!$D$10,12*$A45,4*(PlotControl!$C$6-1),12,1)),AVERAGE(OFFSET('2EFines'!$D$10,12*$A45,4*(PlotControl!$C$6-1),12,1))) -> 11225 | M45: =IF(PlotControl!$B$4 = "Annual Max",MAX(OFFSET('2EFines'!$E$10,12*$A45,4*(PlotControl!$C$6-1),12,1)),AVERAGE(OFFSET('2EFines'!$E$10,12*$A45,4*(PlotControl!$C$6-1),12,1))) -> 11232 | N45: =IF(PlotControl!$B$4 = "Annual Max",MAX(OFFSET('2ECoarse'!$C$10,12*$A45,4*(PlotControl!$C$6-1),12,1)),AVERAGE(OFFSET('2ECoarse'!$C$10,12*$A45,4*(PlotControl!$C$6-1),12,1))) -> 11217 | O45: =IF(PlotControl!$B$4 = "Annual Max",MAX(OFFSET('2ECoarse'!$D$10,12*$A45,4*(PlotControl!$C$6-1),12,1)),AVERAGE(OFFSET('2ECoarse'!$D$10,12*$A45,4*(PlotControl!$C$6-1),12,1))) -> 11219 | P45: =IF(PlotControl!$B$4 = "Annual Max",MAX(OFFSET('2ECoarse'!$E$10,12*$A45,4*(PlotControl!$C$6-1),12,1)),AVERAGE(OFFSET('2ECoarse'!$E$10,12*$A45,4*(PlotControl!$C$6-1),12,1))) -> 11221 | Q45: =IF(PlotControl!$B$4 = "Annual Max",MAX(OFFSET('2EBank'!$C$10,12*$A45,4*(PlotControl!$C$6-1),12,1)),AVERAGE(OFFSET('2EBank'!$C$10,12*$A45,4*(PlotControl!$C$6-1),12,1))) -> 6491.758333 | R45: =IF(PlotControl!$B$4 = "Annual Max",MAX(OFFSET('2EBank'!$D$10,12*$A45,4*(PlotControl!$C$6-1),12,1)),AVERAGE(OFFSET('2EBank'!$D$10,12*$A45,4*(PlotControl!$C$6-1),12,1))) -> 6803.291667 | S45: =IF(PlotControl!$B$4 = "Annual Max",MAX(OFFSET('2EBank'!$E$10,12*$A45,4*(PlotControl!$C$6-1),12,1)),AVERAGE(OFFSET('2EBank'!$E$10,12*$A45,4*(PlotControl!$C$6-1),12,1))) -> 7198.833333 | T45: =IF(PlotControl!$B$4 = "Annual Max",MAX(OFFSET('1EFines'!$C$10,12*$A45,4*(PlotControl!$C$6-1),12,1)),AVERAGE(OFFSET('1EFines'!$C$10,12*$A45,4*(PlotControl!$C$6-1),12,1))) -> 13846 | U45: =IF(PlotControl!$B$4 = "Annual Max",MAX(OFFSET('1EFines'!$D$10,12*$A45,4*(PlotControl!$C$6-1),12,1)),AVERAGE(OFFSET('1EFines'!$D$10,12*$A45,4*(PlotControl!$C$6-1),12,1))) -> 13937 | V45: =IF(PlotControl!$B$4 = "Annual Max",MAX(OFFSET('1EFines'!$E$10,12*$A45,4*(PlotControl!$C$6-1),12,1)),AVERAGE(OFFSET('1EFines'!$E$10,12*$A45,4*(PlotControl!$C$6-1),12,1))) -> 14052 | W45: =IF(PlotControl!$B$4 = "Annual Max",MAX(OFFSET('1ECoarse'!$C$10,12*$A45,4*(PlotControl!$C$6-1),12,1)),AVERAGE(OFFSET('1ECoarse'!$C$10,12*$A45,4*(PlotControl!$C$6-1),12,1))) -> 66529.75 | X45: =IF(PlotControl!$B$4 = "Annual Max",MAX(OFFSET('1ECoarse'!$D$10,12*$A45,4*(PlotControl!$C$6-1),12,1)),AVERAGE(OFFSET('1ECoarse'!$D$10,12*$A45,4*(PlotControl!$C$6-1),12,1))) -> 66740.16667 | Y45: =IF(PlotControl!$B$4 = "Annual Max",MAX(OFFSET('1ECoarse'!$E$10,12*$A45,4*(PlotControl!$C$6-1),12,1)),AVERAGE(OFFSET('1ECoarse'!$E$10,12*$A45,4*(PlotControl!$C$6-1),12,1))) -> 67004.91667
A46: 41 | B46: =IF(PlotControl!$B$4 = "Annual Max",MAX(OFFSET('2WFines'!$C$10,12*$A46,4*(PlotControl!$C$6-1),12,1)),AVERAGE(OFFSET('2WFines'!$C$10,12*$A46,4*(PlotControl!$C$6-1),12,1))) -> 95900.08333 | C46: =IF(PlotControl!$B$4 = "Annual Max",MAX(OFFSET('2WFines'!$D$10,12*$A46,4*(PlotControl!$C$6-1),12,1)),AVERAGE(OFFSET('2WFines'!$D$10,12*$A46,4*(PlotControl!$C$6-1),12,1))) -> 98317.91667 | D46: =IF(PlotControl!$B$4 = "Annual Max",MAX(OFFSET('2WFines'!$E$10,12*$A46,4*(PlotControl!$C$6-1),12,1)),AVERAGE(OFFSET('2WFines'!$E$10,12*$A46,4*(PlotControl!$C$6-1),12,1))) -> 102350.8333 | E46: =IF(PlotControl!$B$4 = "Annual Max",MAX(OFFSET('2WCoarse'!$C$10,12*$A46,4*(PlotControl!$C$6-1),12,1)),AVERAGE(OFFSET('2WCoarse'!$C$10,12*$A46,4*(PlotControl!$C$6-1),12,1))) -> 57322.75 | F46: =IF(PlotControl!$B$4 = "Annual Max",MAX(OFFSET('2WCoarse'!$D$10,12*$A46,4*(PlotControl!$C$6-1),12,1)),AVERAGE(OFFSET('2WCoarse'!$D$10,12*$A46,4*(PlotControl!$C$6-1),12,1))) -> 59590.33333 | G46: =IF(PlotControl!$B$4 = "Annual Max",MAX(OFFSET('2WCoarse'!$E$10,12*$A46,4*(PlotControl!$C$6-1),12,1)),AVERAGE(OFFSET('2WCoarse'!$E$10,12*$A46,4*(PlotControl!$C$6-1),12,1))) -> 62502 | H46: =IF(PlotControl!$B$4 = "Annual Max",MAX(OFFSET('2WBank'!$C$10,12*$A46,4*(PlotControl!$C$6-1),12,1)),AVERAGE(OFFSET('2WBank'!$C$10,12*$A46,4*(PlotControl!$C$6-1),12,1))) -> 83346.75 | I46: =IF(PlotControl!$B$4 = "Annual Max",MAX(OFFSET('2WBank'!$D$10,12*$A46,4*(PlotControl!$C$6-1),12,1)),AVERAGE(OFFSET('2WBank'!$D$10,12*$A46,4*(PlotControl!$C$6-1),12,1))) -> 86806.25 | J46: =IF(PlotControl!$B$4 = "Annual Max",MAX(OFFSET('2WBank'!$E$10,12*$A46,4*(PlotControl!$C$6-1),12,1)),AVERAGE(OFFSET('2WBank'!$E$10,12*$A46,4*(PlotControl!$C$6-1),12,1))) -> 91293 | K46: =IF(PlotControl!$B$4 = "Annual Max",MAX(OFFSET('2EFines'!$C$10,12*$A46,4*(PlotControl!$C$6-1),12,1)),AVERAGE(OFFSET('2EFines'!$C$10,12*$A46,4*(PlotControl!$C$6-1),12,1))) -> 11219 | L46: =IF(PlotControl!$B$4 = "Annual Max",MAX(OFFSET('2EFines'!$D$10,12*$A46,4*(PlotControl!$C$6-1),12,1)),AVERAGE(OFFSET('2EFines'!$D$10,12*$A46,4*(PlotControl!$C$6-1),12,1))) -> 11225 | M46: =IF(PlotControl!$B$4 = "Annual Max",MAX(OFFSET('2EFines'!$E$10,12*$A46,4*(PlotControl!$C$6-1),12,1)),AVERAGE(OFFSET('2EFines'!$E$10,12*$A46,4*(PlotControl!$C$6-1),12,1))) -> 11232 | N46: =IF(PlotControl!$B$4 = "Annual Max",MAX(OFFSET('2ECoarse'!$C$10,12*$A46,4*(PlotControl!$C$6-1),12,1)),AVERAGE(OFFSET('2ECoarse'!$C$10,12*$A46,4*(PlotControl!$C$6-1),12,1))) -> 11217 | O46: =IF(PlotControl!$B$4 = "Annual Max",MAX(OFFSET('2ECoarse'!$D$10,12*$A46,4*(PlotControl!$C$6-1),12,1)),AVERAGE(OFFSET('2ECoarse'!$D$10,12*$A46,4*(PlotControl!$C$6-1),12,1))) -> 11219 | P46: =IF(PlotControl!$B$4 = "Annual Max",MAX(OFFSET('2ECoarse'!$E$10,12*$A46,4*(PlotControl!$C$6-1),12,1)),AVERAGE(OFFSET('2ECoarse'!$E$10,12*$A46,4*(PlotControl!$C$6-1),12,1))) -> 11221 | Q46: =IF(PlotControl!$B$4 = "Annual Max",MAX(OFFSET('2EBank'!$C$10,12*$A46,4*(PlotControl!$C$6-1),12,1)),AVERAGE(OFFSET('2EBank'!$C$10,12*$A46,4*(PlotControl!$C$6-1),12,1))) -> 6459.416667 | R46: =IF(PlotControl!$B$4 = "Annual Max",MAX(OFFSET('2EBank'!$D$10,12*$A46,4*(PlotControl!$C$6-1),12,1)),AVERAGE(OFFSET('2EBank'!$D$10,12*$A46,4*(PlotControl!$C$6-1),12,1))) -> 6779.9 | S46: =IF(PlotControl!$B$4 = "Annual Max",MAX(OFFSET('2EBank'!$E$10,12*$A46,4*(PlotControl!$C$6-1),12,1)),AVERAGE(OFFSET('2EBank'!$E$10,12*$A46,4*(PlotControl!$C$6-1),12,1))) -> 7185.2 | T46: =IF(PlotControl!$B$4 = "Annual Max",MAX(OFFSET('1EFines'!$C$10,12*$A46,4*(PlotControl!$C$6-1),12,1)),AVERAGE(OFFSET('1EFines'!$C$10,12*$A46,4*(PlotControl!$C$6-1),12,1))) -> 13846 | U46: =IF(PlotControl!$B$4 = "Annual Max",MAX(OFFSET('1EFines'!$D$10,12*$A46,4*(PlotControl!$C$6-1),12,1)),AVERAGE(OFFSET('1EFines'!$D$10,12*$A46,4*(PlotControl!$C$6-1),12,1))) -> 13937 | V46: =IF(PlotControl!$B$4 = "Annual Max",MAX(OFFSET('1EFines'!$E$10,12*$A46,4*(PlotControl!$C$6-1),12,1)),AVERAGE(OFFSET('1EFines'!$E$10,12*$A46,4*(PlotControl!$C$6-1),12,1))) -> 14052 | W46: =IF(PlotControl!$B$4 = "Annual Max",MAX(OFFSET('1ECoarse'!$C$10,12*$A46,4*(PlotControl!$C$6-1),12,1)),AVERAGE(OFFSET('1ECoarse'!$C$10,12*$A46,4*(PlotControl!$C$6-1),12,1))) -> 66527.83333 | X46: =IF(PlotControl!$B$4 = "Annual Max",MAX(OFFSET('1ECoarse'!$D$10,12*$A46,4*(PlotControl!$C$6-1),12,1)),AVERAGE(OFFSET('1ECoarse'!$D$10,12*$A46,4*(PlotControl!$C$6-1),12,1))) -> 66738.75 | Y46: =IF(PlotControl!$B$4 = "Annual Max",MAX(OFFSET('1ECoarse'!$E$10,12*$A46,4*(PlotControl!$C$6-1),12,1)),AVERAGE(OFFSET('1ECoarse'!$E$10,12*$A46,4*(PlotControl!$C$6-1),12,1))) -> 67004
A47: 42 | B47: =IF(PlotControl!$B$4 = "Annual Max",MAX(OFFSET('2WFines'!$C$10,12*$A47,4*(PlotControl!$C$6-1),12,1)),AVERAGE(OFFSET('2WFines'!$C$10,12*$A47,4*(PlotControl!$C$6-1),12,1))) -> 95453.91667 | C47: =IF(PlotControl!$B$4 = "Annual Max",MAX(OFFSET('2WFines'!$D$10,12*$A47,4*(PlotControl!$C$6-1),12,1)),AVERAGE(OFFSET('2WFines'!$D$10,12*$A47,4*(PlotControl!$C$6-1),12,1))) -> 97949.91667 | D47: =IF(PlotControl!$B$4 = "Annual Max",MAX(OFFSET('2WFines'!$E$10,12*$A47,4*(PlotControl!$C$6-1),12,1)),AVERAGE(OFFSET('2WFines'!$E$10,12*$A47,4*(PlotControl!$C$6-1),12,1))) -> 102076.6667 | E47: =IF(PlotControl!$B$4 = "Annual Max",MAX(OFFSET('2WCoarse'!$C$10,12*$A47,4*(PlotControl!$C$6-1),12,1)),AVERAGE(OFFSET('2WCoarse'!$C$10,12*$A47,4*(PlotControl!$C$6-1),12,1))) -> 57089.66667 | F47: =IF(PlotControl!$B$4 = "Annual Max",MAX(OFFSET('2WCoarse'!$D$10,12*$A47,4*(PlotControl!$C$6-1),12,1)),AVERAGE(OFFSET('2WCoarse'!$D$10,12*$A47,4*(PlotControl!$C$6-1),12,1))) -> 59405.25 | G47: =IF(PlotControl!$B$4 = "Annual Max",MAX(OFFSET('2WCoarse'!$E$10,12*$A47,4*(PlotControl!$C$6-1),12,1)),AVERAGE(OFFSET('2WCoarse'!$E$10,12*$A47,4*(PlotControl!$C$6-1),12,1))) -> 62398.16667 | H47: =IF(PlotControl!$B$4 = "Annual Max",MAX(OFFSET('2WBank'!$C$10,12*$A47,4*(PlotControl!$C$6-1),12,1)),AVERAGE(OFFSET('2WBank'!$C$10,12*$A47,4*(PlotControl!$C$6-1),12,1))) -> 83026.75 | I47: =IF(PlotControl!$B$4 = "Annual Max",MAX(OFFSET('2WBank'!$D$10,12*$A47,4*(PlotControl!$C$6-1),12,1)),AVERAGE(OFFSET('2WBank'!$D$10,12*$A47,4*(PlotControl!$C$6-1),12,1))) -> 86560.33333 | J47: =IF(PlotControl!$B$4 = "Annual Max",MAX(OFFSET('2WBank'!$E$10,12*$A47,4*(PlotControl!$C$6-1),12,1)),AVERAGE(OFFSET('2WBank'!$E$10,12*$A47,4*(PlotControl!$C$6-1),12,1))) -> 91147.91667 | K47: =IF(PlotControl!$B$4 = "Annual Max",MAX(OFFSET('2EFines'!$C$10,12*$A47,4*(PlotControl!$C$6-1),12,1)),AVERAGE(OFFSET('2EFines'!$C$10,12*$A47,4*(PlotControl!$C$6-1),12,1))) -> 11219 | L47: =IF(PlotControl!$B$4 = "Annual Max",MAX(OFFSET('2EFines'!$D$10,12*$A47,4*(PlotControl!$C$6-1),12,1)),AVERAGE(OFFSET('2EFines'!$D$10,12*$A47,4*(PlotControl!$C$6-1),12,1))) -> 11225 | M47: =IF(PlotControl!$B$4 = "Annual Max",MAX(OFFSET('2EFines'!$E$10,12*$A47,4*(PlotControl!$C$6-1),12,1)),AVERAGE(OFFSET('2EFines'!$E$10,12*$A47,4*(PlotControl!$C$6-1),12,1))) -> 11232 | N47: =IF(PlotControl!$B$4 = "Annual Max",MAX(OFFSET('2ECoarse'!$C$10,12*$A47,4*(PlotControl!$C$6-1),12,1)),AVERAGE(OFFSET('2ECoarse'!$C$10,12*$A47,4*(PlotControl!$C$6-1),12,1))) -> 11217 | O47: =IF(PlotControl!$B$4 = "Annual Max",MAX(OFFSET('2ECoarse'!$D$10,12*$A47,4*(PlotControl!$C$6-1),12,1)),AVERAGE(OFFSET('2ECoarse'!$D$10,12*$A47,4*(PlotControl!$C$6-1),12,1))) -> 11219 | P47: =IF(PlotControl!$B$4 = "Annual Max",MAX(OFFSET('2ECoarse'!$E$10,12*$A47,4*(PlotControl!$C$6-1),12,1)),AVERAGE(OFFSET('2ECoarse'!$E$10,12*$A47,4*(PlotControl!$C$6-1),12,1))) -> 11221 | Q47: =IF(PlotControl!$B$4 = "Annual Max",MAX(OFFSET('2EBank'!$C$10,12*$A47,4*(PlotControl!$C$6-1),12,1)),AVERAGE(OFFSET('2EBank'!$C$10,12*$A47,4*(PlotControl!$C$6-1),12,1))) -> 6426.575 | R47: =IF(PlotControl!$B$4 = "Annual Max",MAX(OFFSET('2EBank'!$D$10,12*$A47,4*(PlotControl!$C$6-1),12,1)),AVERAGE(OFFSET('2EBank'!$D$10,12*$A47,4*(PlotControl!$C$6-1),12,1))) -> 6753.566667 | S47: =IF(PlotControl!$B$4 = "Annual Max",MAX(OFFSET('2EBank'!$E$10,12*$A47,4*(PlotControl!$C$6-1),12,1)),AVERAGE(OFFSET('2EBank'!$E$10,12*$A47,4*(PlotControl!$C$6-1),12,1))) -> 7172.425 | T47: =IF(PlotControl!$B$4 = "Annual Max",MAX(OFFSET('1EFines'!$C$10,12*$A47,4*(PlotControl!$C$6-1),12,1)),AVERAGE(OFFSET('1EFines'!$C$10,12*$A47,4*(PlotControl!$C$6-1),12,1))) -> 13846 | U47: =IF(PlotControl!$B$4 = "Annual Max",MAX(OFFSET('1EFines'!$D$10,12*$A47,4*(PlotControl!$C$6-1),12,1)),AVERAGE(OFFSET('1EFines'!$D$10,12*$A47,4*(PlotControl!$C$6-1),12,1))) -> 13937 | V47: =IF(PlotControl!$B$4 = "Annual Max",MAX(OFFSET('1EFines'!$E$10,12*$A47,4*(PlotControl!$C$6-1),12,1)),AVERAGE(OFFSET('1EFines'!$E$10,12*$A47,4*(PlotControl!$C$6-1),12,1))) -> 14052 | W47: =IF(PlotControl!$B$4 = "Annual Max",MAX(OFFSET('1ECoarse'!$C$10,12*$A47,4*(PlotControl!$C$6-1),12,1)),AVERAGE(OFFSET('1ECoarse'!$C$10,12*$A47,4*(PlotControl!$C$6-1),12,1))) -> 66526.16667 | X47: =IF(PlotControl!$B$4 = "Annual Max",MAX(OFFSET('1ECoarse'!$D$10,12*$A47,4*(PlotControl!$C$6-1),12,1)),AVERAGE(OFFSET('1ECoarse'!$D$10,12*$A47,4*(PlotControl!$C$6-1),12,1))) -> 66737.5 | Y47: =IF(PlotControl!$B$4 = "Annual Max",MAX(OFFSET('1ECoarse'!$E$10,12*$A47,4*(PlotControl!$C$6-1),12,1)),AVERAGE(OFFSET('1ECoarse'!$E$10,12*$A47,4*(PlotControl!$C$6-1),12,1))) -> 67003.25
A48: 43 | B48: =IF(PlotControl!$B$4 = "Annual Max",MAX(OFFSET('2WFines'!$C$10,12*$A48,4*(PlotControl!$C$6-1),12,1)),AVERAGE(OFFSET('2WFines'!$C$10,12*$A48,4*(PlotControl!$C$6-1),12,1))) -> 95023.66667 | C48: =IF(PlotControl!$B$4 = "Annual Max",MAX(OFFSET('2WFines'!$D$10,12*$A48,4*(PlotControl!$C$6-1),12,1)),AVERAGE(OFFSET('2WFines'!$D$10,12*$A48,4*(PlotControl!$C$6-1),12,1))) -> 97597.08333 | D48: =IF(PlotControl!$B$4 = "Annual Max",MAX(OFFSET('2WFines'!$E$10,12*$A48,4*(PlotControl!$C$6-1),12,1)),AVERAGE(OFFSET('2WFines'!$E$10,12*$A48,4*(PlotControl!$C$6-1),12,1))) -> 101783.3333 | E48: =IF(PlotControl!$B$4 = "Annual Max",MAX(OFFSET('2WCoarse'!$C$10,12*$A48,4*(PlotControl!$C$6-1),12,1)),AVERAGE(OFFSET('2WCoarse'!$C$10,12*$A48,4*(PlotControl!$C$6-1),12,1))) -> 56845.25 | F48: =IF(PlotControl!$B$4 = "Annual Max",MAX(OFFSET('2WCoarse'!$D$10,12*$A48,4*(PlotControl!$C$6-1),12,1)),AVERAGE(OFFSET('2WCoarse'!$D$10,12*$A48,4*(PlotControl!$C$6-1),12,1))) -> 59231.08333 | G48: =IF(PlotControl!$B$4 = "Annual Max",MAX(OFFSET('2WCoarse'!$E$10,12*$A48,4*(PlotControl!$C$6-1),12,1)),AVERAGE(OFFSET('2WCoarse'!$E$10,12*$A48,4*(PlotControl!$C$6-1),12,1))) -> 62292.16667 | H48: =IF(PlotControl!$B$4 = "Annual Max",MAX(OFFSET('2WBank'!$C$10,12*$A48,4*(PlotControl!$C$6-1),12,1)),AVERAGE(OFFSET('2WBank'!$C$10,12*$A48,4*(PlotControl!$C$6-1),12,1))) -> 82694.91667 | I48: =IF(PlotControl!$B$4 = "Annual Max",MAX(OFFSET('2WBank'!$D$10,12*$A48,4*(PlotControl!$C$6-1),12,1)),AVERAGE(OFFSET('2WBank'!$D$10,12*$A48,4*(PlotControl!$C$6-1),12,1))) -> 86321.75 | J48: =IF(PlotControl!$B$4 = "Annual Max",MAX(OFFSET('2WBank'!$E$10,12*$A48,4*(PlotControl!$C$6-1),12,1)),AVERAGE(OFFSET('2WBank'!$E$10,12*$A48,4*(PlotControl!$C$6-1),12,1))) -> 90997.25 | K48: =IF(PlotControl!$B$4 = "Annual Max",MAX(OFFSET('2EFines'!$C$10,12*$A48,4*(PlotControl!$C$6-1),12,1)),AVERAGE(OFFSET('2EFines'!$C$10,12*$A48,4*(PlotControl!$C$6-1),12,1))) -> 11219 | L48: =IF(PlotControl!$B$4 = "Annual Max",MAX(OFFSET('2EFines'!$D$10,12*$A48,4*(PlotControl!$C$6-1),12,1)),AVERAGE(OFFSET('2EFines'!$D$10,12*$A48,4*(PlotControl!$C$6-1),12,1))) -> 11225 | M48: =IF(PlotControl!$B$4 = "Annual Max",MAX(OFFSET('2EFines'!$E$10,12*$A48,4*(PlotControl!$C$6-1),12,1)),AVERAGE(OFFSET('2EFines'!$E$10,12*$A48,4*(PlotControl!$C$6-1),12,1))) -> 11232 | N48: =IF(PlotControl!$B$4 = "Annual Max",MAX(OFFSET('2ECoarse'!$C$10,12*$A48,4*(PlotControl!$C$6-1),12,1)),AVERAGE(OFFSET('2ECoarse'!$C$10,12*$A48,4*(PlotControl!$C$6-1),12,1))) -> 11217 | O48: =IF(PlotControl!$B$4 = "Annual Max",MAX(OFFSET('2ECoarse'!$D$10,12*$A48,4*(PlotControl!$C$6-1),12,1)),AVERAGE(OFFSET('2ECoarse'!$D$10,12*$A48,4*(PlotControl!$C$6-1),12,1))) -> 11219 | P48: =IF(PlotControl!$B$4 = "Annual Max",MAX(OFFSET('2ECoarse'!$E$10,12*$A48,4*(PlotControl!$C$6-1),12,1)),AVERAGE(OFFSET('2ECoarse'!$E$10,12*$A48,4*(PlotControl!$C$6-1),12,1))) -> 11221 | Q48: =IF(PlotControl!$B$4 = "Annual Max",MAX(OFFSET('2EBank'!$C$10,12*$A48,4*(PlotControl!$C$6-1),12,1)),AVERAGE(OFFSET('2EBank'!$C$10,12*$A48,4*(PlotControl!$C$6-1),12,1))) -> 6393.75 | R48: =IF(PlotControl!$B$4 = "Annual Max",MAX(OFFSET('2EBank'!$D$10,12*$A48,4*(PlotControl!$C$6-1),12,1)),AVERAGE(OFFSET('2EBank'!$D$10,12*$A48,4*(PlotControl!$C$6-1),12,1))) -> 6728.883333 | S48: =IF(PlotControl!$B$4 = "Annual Max",MAX(OFFSET('2EBank'!$E$10,12*$A48,4*(PlotControl!$C$6-1),12,1)),AVERAGE(OFFSET('2EBank'!$E$10,12*$A48,4*(PlotControl!$C$6-1),12,1))) -> 7157.9 | T48: =IF(PlotControl!$B$4 = "Annual Max",MAX(OFFSET('1EFines'!$C$10,12*$A48,4*(PlotControl!$C$6-1),12,1)),AVERAGE(OFFSET('1EFines'!$C$10,12*$A48,4*(PlotControl!$C$6-1),12,1))) -> 13846 | U48: =IF(PlotControl!$B$4 = "Annual Max",MAX(OFFSET('1EFines'!$D$10,12*$A48,4*(PlotControl!$C$6-1),12,1)),AVERAGE(OFFSET('1EFines'!$D$10,12*$A48,4*(PlotControl!$C$6-1),12,1))) -> 13937 | V48: =IF(PlotControl!$B$4 = "Annual Max",MAX(OFFSET('1EFines'!$E$10,12*$A48,4*(PlotControl!$C$6-1),12,1)),AVERAGE(OFFSET('1EFines'!$E$10,12*$A48,4*(PlotControl!$C$6-1),12,1))) -> 14052 | W48: =IF(PlotControl!$B$4 = "Annual Max",MAX(OFFSET('1ECoarse'!$C$10,12*$A48,4*(PlotControl!$C$6-1),12,1)),AVERAGE(OFFSET('1ECoarse'!$C$10,12*$A48,4*(PlotControl!$C$6-1),12,1))) -> 66524.5 | X48: =IF(PlotControl!$B$4 = "Annual Max",MAX(OFFSET('1ECoarse'!$D$10,12*$A48,4*(PlotControl!$C$6-1),12,1)),AVERAGE(OFFSET('1ECoarse'!$D$10,12*$A48,4*(PlotControl!$C$6-1),12,1))) -> 66736.25 | Y48: =IF(PlotControl!$B$4 = "Annual Max",MAX(OFFSET('1ECoarse'!$E$10,12*$A48,4*(PlotControl!$C$6-1),12,1)),AVERAGE(OFFSET('1ECoarse'!$E$10,12*$A48,4*(PlotControl!$C$6-1),12,1))) -> 67002.66667
A49: 44 | B49: =IF(PlotControl!$B$4 = "Annual Max",MAX(OFFSET('2WFines'!$C$10,12*$A49,4*(PlotControl!$C$6-1),12,1)),AVERAGE(OFFSET('2WFines'!$C$10,12*$A49,4*(PlotControl!$C$6-1),12,1))) -> 94570.25 | C49: =IF(PlotControl!$B$4 = "Annual Max",MAX(OFFSET('2WFines'!$D$10,12*$A49,4*(PlotControl!$C$6-1),12,1)),AVERAGE(OFFSET('2WFines'!$D$10,12*$A49,4*(PlotControl!$C$6-1),12,1))) -> 97240 | D49: =IF(PlotControl!$B$4 = "Annual Max",MAX(OFFSET('2WFines'!$E$10,12*$A49,4*(PlotControl!$C$6-1),12,1)),AVERAGE(OFFSET('2WFines'!$E$10,12*$A49,4*(PlotControl!$C$6-1),12,1))) -> 101501.6667 | E49: =IF(PlotControl!$B$4 = "Annual Max",MAX(OFFSET('2WCoarse'!$C$10,12*$A49,4*(PlotControl!$C$6-1),12,1)),AVERAGE(OFFSET('2WCoarse'!$C$10,12*$A49,4*(PlotControl!$C$6-1),12,1))) -> 56600.25 | F49: =IF(PlotControl!$B$4 = "Annual Max",MAX(OFFSET('2WCoarse'!$D$10,12*$A49,4*(PlotControl!$C$6-1),12,1)),AVERAGE(OFFSET('2WCoarse'!$D$10,12*$A49,4*(PlotControl!$C$6-1),12,1))) -> 59057.91667 | G49: =IF(PlotControl!$B$4 = "Annual Max",MAX(OFFSET('2WCoarse'!$E$10,12*$A49,4*(PlotControl!$C$6-1),12,1)),AVERAGE(OFFSET('2WCoarse'!$E$10,12*$A49,4*(PlotControl!$C$6-1),12,1))) -> 62182.5 | H49: =IF(PlotControl!$B$4 = "Annual Max",MAX(OFFSET('2WBank'!$C$10,12*$A49,4*(PlotControl!$C$6-1),12,1)),AVERAGE(OFFSET('2WBank'!$C$10,12*$A49,4*(PlotControl!$C$6-1),12,1))) -> 82338.75 | I49: =IF(PlotControl!$B$4 = "Annual Max",MAX(OFFSET('2WBank'!$D$10,12*$A49,4*(PlotControl!$C$6-1),12,1)),AVERAGE(OFFSET('2WBank'!$D$10,12*$A49,4*(PlotControl!$C$6-1),12,1))) -> 86090.33333 | J49: =IF(PlotControl!$B$4 = "Annual Max",MAX(OFFSET('2WBank'!$E$10,12*$A49,4*(PlotControl!$C$6-1),12,1)),AVERAGE(OFFSET('2WBank'!$E$10,12*$A49,4*(PlotControl!$C$6-1),12,1))) -> 90851 | K49: =IF(PlotControl!$B$4 = "Annual Max",MAX(OFFSET('2EFines'!$C$10,12*$A49,4*(PlotControl!$C$6-1),12,1)),AVERAGE(OFFSET('2EFines'!$C$10,12*$A49,4*(PlotControl!$C$6-1),12,1))) -> 11219 | L49: =IF(PlotControl!$B$4 = "Annual Max",MAX(OFFSET('2EFines'!$D$10,12*$A49,4*(PlotControl!$C$6-1),12,1)),AVERAGE(OFFSET('2EFines'!$D$10,12*$A49,4*(PlotControl!$C$6-1),12,1))) -> 11225 | M49: =IF(PlotControl!$B$4 = "Annual Max",MAX(OFFSET('2EFines'!$E$10,12*$A49,4*(PlotControl!$C$6-1),12,1)),AVERAGE(OFFSET('2EFines'!$E$10,12*$A49,4*(PlotControl!$C$6-1),12,1))) -> 11232 | N49: =IF(PlotControl!$B$4 = "Annual Max",MAX(OFFSET('2ECoarse'!$C$10,12*$A49,4*(PlotControl!$C$6-1),12,1)),AVERAGE(OFFSET('2ECoarse'!$C$10,12*$A49,4*(PlotControl!$C$6-1),12,1))) -> 11217 | O49: =IF(PlotControl!$B$4 = "Annual Max",MAX(OFFSET('2ECoarse'!$D$10,12*$A49,4*(PlotControl!$C$6-1),12,1)),AVERAGE(OFFSET('2ECoarse'!$D$10,12*$A49,4*(PlotControl!$C$6-1),12,1))) -> 11219 | P49: =IF(PlotControl!$B$4 = "Annual Max",MAX(OFFSET('2ECoarse'!$E$10,12*$A49,4*(PlotControl!$C$6-1),12,1)),AVERAGE(OFFSET('2ECoarse'!$E$10,12*$A49,4*(PlotControl!$C$6-1),12,1))) -> 11221 | Q49: =IF(PlotControl!$B$4 = "Annual Max",MAX(OFFSET('2EBank'!$C$10,12*$A49,4*(PlotControl!$C$6-1),12,1)),AVERAGE(OFFSET('2EBank'!$C$10,12*$A49,4*(PlotControl!$C$6-1),12,1))) -> 6361.416667 | R49: =IF(PlotControl!$B$4 = "Annual Max",MAX(OFFSET('2EBank'!$D$10,12*$A49,4*(PlotControl!$C$6-1),12,1)),AVERAGE(OFFSET('2EBank'!$D$10,12*$A49,4*(PlotControl!$C$6-1),12,1))) -> 6704.475 | S49: =IF(PlotControl!$B$4 = "Annual Max",MAX(OFFSET('2EBank'!$E$10,12*$A49,4*(PlotControl!$C$6-1),12,1)),AVERAGE(OFFSET('2EBank'!$E$10,12*$A49,4*(PlotControl!$C$6-1),12,1))) -> 7143.525 | T49: =IF(PlotControl!$B$4 = "Annual Max",MAX(OFFSET('1EFines'!$C$10,12*$A49,4*(PlotControl!$C$6-1),12,1)),AVERAGE(OFFSET('1EFines'!$C$10,12*$A49,4*(PlotControl!$C$6-1),12,1))) -> 13846 | U49: =IF(PlotControl!$B$4 = "Annual Max",MAX(OFFSET('1EFines'!$D$10,12*$A49,4*(PlotControl!$C$6-1),12,1)),AVERAGE(OFFSET('1EFines'!$D$10,12*$A49,4*(PlotControl!$C$6-1),12,1))) -> 13937 | V49: =IF(PlotControl!$B$4 = "Annual Max",MAX(OFFSET('1EFines'!$E$10,12*$A49,4*(PlotControl!$C$6-1),12,1)),AVERAGE(OFFSET('1EFines'!$E$10,12*$A49,4*(PlotControl!$C$6-1),12,1))) -> 14052 | W49: =IF(PlotControl!$B$4 = "Annual Max",MAX(OFFSET('1ECoarse'!$C$10,12*$A49,4*(PlotControl!$C$6-1),12,1)),AVERAGE(OFFSET('1ECoarse'!$C$10,12*$A49,4*(PlotControl!$C$6-1),12,1))) -> 66522.5 | X49: =IF(PlotControl!$B$4 = "Annual Max",MAX(OFFSET('1ECoarse'!$D$10,12*$A49,4*(PlotControl!$C$6-1),12,1)),AVERAGE(OFFSET('1ECoarse'!$D$10,12*$A49,4*(PlotControl!$C$6-1),12,1))) -> 66734.66667 | Y49: =IF(PlotControl!$B$4 = "Annual Max",MAX(OFFSET('1ECoarse'!$E$10,12*$A49,4*(PlotControl!$C$6-1),12,1)),AVERAGE(OFFSET('1ECoarse'!$E$10,12*$A49,4*(PlotControl!$C$6-1),12,1))) -> 67002
A50: 45 | B50: =IF(PlotControl!$B$4 = "Annual Max",MAX(OFFSET('2WFines'!$C$10,12*$A50,4*(PlotControl!$C$6-1),12,1)),AVERAGE(OFFSET('2WFines'!$C$10,12*$A50,4*(PlotControl!$C$6-1),12,1))) -> 94132.83333 | C50: =IF(PlotControl!$B$4 = "Annual Max",MAX(OFFSET('2WFines'!$D$10,12*$A50,4*(PlotControl!$C$6-1),12,1)),AVERAGE(OFFSET('2WFines'!$D$10,12*$A50,4*(PlotControl!$C$6-1),12,1))) -> 96861.66667 | D50: =IF(PlotControl!$B$4 = "Annual Max",MAX(OFFSET('2WFines'!$E$10,12*$A50,4*(PlotControl!$C$6-1),12,1)),AVERAGE(OFFSET('2WFines'!$E$10,12*$A50,4*(PlotControl!$C$6-1),12,1))) -> 101220 | E50: =IF(PlotControl!$B$4 = "Annual Max",MAX(OFFSET('2WCoarse'!$C$10,12*$A50,4*(PlotControl!$C$6-1),12,1)),AVERAGE(OFFSET('2WCoarse'!$C$10,12*$A50,4*(PlotControl!$C$6-1),12,1))) -> 56356.41667 | F50: =IF(PlotControl!$B$4 = "Annual Max",MAX(OFFSET('2WCoarse'!$D$10,12*$A50,4*(PlotControl!$C$6-1),12,1)),AVERAGE(OFFSET('2WCoarse'!$D$10,12*$A50,4*(PlotControl!$C$6-1),12,1))) -> 58877.41667 | G50: =IF(PlotControl!$B$4 = "Annual Max",MAX(OFFSET('2WCoarse'!$E$10,12*$A50,4*(PlotControl!$C$6-1),12,1)),AVERAGE(OFFSET('2WCoarse'!$E$10,12*$A50,4*(PlotControl!$C$6-1),12,1))) -> 62091.16667 | H50: =IF(PlotControl!$B$4 = "Annual Max",MAX(OFFSET('2WBank'!$C$10,12*$A50,4*(PlotControl!$C$6-1),12,1)),AVERAGE(OFFSET('2WBank'!$C$10,12*$A50,4*(PlotControl!$C$6-1),12,1))) -> 82007.5 | I50: =IF(PlotControl!$B$4 = "Annual Max",MAX(OFFSET('2WBank'!$D$10,12*$A50,4*(PlotControl!$C$6-1),12,1)),AVERAGE(OFFSET('2WBank'!$D$10,12*$A50,4*(PlotControl!$C$6-1),12,1))) -> 85851.33333 | J50: =IF(PlotControl!$B$4 = "Annual Max",MAX(OFFSET('2WBank'!$E$10,12*$A50,4*(PlotControl!$C$6-1),12,1)),AVERAGE(OFFSET('2WBank'!$E$10,12*$A50,4*(PlotControl!$C$6-1),12,1))) -> 90723.33333 | K50: =IF(PlotControl!$B$4 = "Annual Max",MAX(OFFSET('2EFines'!$C$10,12*$A50,4*(PlotControl!$C$6-1),12,1)),AVERAGE(OFFSET('2EFines'!$C$10,12*$A50,4*(PlotControl!$C$6-1),12,1))) -> 11219 | L50: =IF(PlotControl!$B$4 = "Annual Max",MAX(OFFSET('2EFines'!$D$10,12*$A50,4*(PlotControl!$C$6-1),12,1)),AVERAGE(OFFSET('2EFines'!$D$10,12*$A50,4*(PlotControl!$C$6-1),12,1))) -> 11225 | M50: =IF(PlotControl!$B$4 = "Annual Max",MAX(OFFSET('2EFines'!$E$10,12*$A50,4*(PlotControl!$C$6-1),12,1)),AVERAGE(OFFSET('2EFines'!$E$10,12*$A50,4*(PlotControl!$C$6-1),12,1))) -> 11232 | N50: =IF(PlotControl!$B$4 = "Annual Max",MAX(OFFSET('2ECoarse'!$C$10,12*$A50,4*(PlotControl!$C$6-1),12,1)),AVERAGE(OFFSET('2ECoarse'!$C$10,12*$A50,4*(PlotControl!$C$6-1),12,1))) -> 11217 | O50: =IF(PlotControl!$B$4 = "Annual Max",MAX(OFFSET('2ECoarse'!$D$10,12*$A50,4*(PlotControl!$C$6-1),12,1)),AVERAGE(OFFSET('2ECoarse'!$D$10,12*$A50,4*(PlotControl!$C$6-1),12,1))) -> 11219 | P50: =IF(PlotControl!$B$4 = "Annual Max",MAX(OFFSET('2ECoarse'!$E$10,12*$A50,4*(PlotControl!$C$6-1),12,1)),AVERAGE(OFFSET('2ECoarse'!$E$10,12*$A50,4*(PlotControl!$C$6-1),12,1))) -> 11221 | Q50: =IF(PlotControl!$B$4 = "Annual Max",MAX(OFFSET('2EBank'!$C$10,12*$A50,4*(PlotControl!$C$6-1),12,1)),AVERAGE(OFFSET('2EBank'!$C$10,12*$A50,4*(PlotControl!$C$6-1),12,1))) -> 6327.55 | R50: =IF(PlotControl!$B$4 = "Annual Max",MAX(OFFSET('2EBank'!$D$10,12*$A50,4*(PlotControl!$C$6-1),12,1)),AVERAGE(OFFSET('2EBank'!$D$10,12*$A50,4*(PlotControl!$C$6-1),12,1))) -> 6680.858333 | S50: =IF(PlotControl!$B$4 = "Annual Max",MAX(OFFSET('2EBank'!$E$10,12*$A50,4*(PlotControl!$C$6-1),12,1)),AVERAGE(OFFSET('2EBank'!$E$10,12*$A50,4*(PlotControl!$C$6-1),12,1))) -> 7130.55 | T50: =IF(PlotControl!$B$4 = "Annual Max",MAX(OFFSET('1EFines'!$C$10,12*$A50,4*(PlotControl!$C$6-1),12,1)),AVERAGE(OFFSET('1EFines'!$C$10,12*$A50,4*(PlotControl!$C$6-1),12,1))) -> 13846 | U50: =IF(PlotControl!$B$4 = "Annual Max",MAX(OFFSET('1EFines'!$D$10,12*$A50,4*(PlotControl!$C$6-1),12,1)),AVERAGE(OFFSET('1EFines'!$D$10,12*$A50,4*(PlotControl!$C$6-1),12,1))) -> 13937 | V50: =IF(PlotControl!$B$4 = "Annual Max",MAX(OFFSET('1EFines'!$E$10,12*$A50,4*(PlotControl!$C$6-1),12,1)),AVERAGE(OFFSET('1EFines'!$E$10,12*$A50,4*(PlotControl!$C$6-1),12,1))) -> 14052 | W50: =IF(PlotControl!$B$4 = "Annual Max",MAX(OFFSET('1ECoarse'!$C$10,12*$A50,4*(PlotControl!$C$6-1),12,1)),AVERAGE(OFFSET('1ECoarse'!$C$10,12*$A50,4*(PlotControl!$C$6-1),12,1))) -> 66520.5 | X50: =IF(PlotControl!$B$4 = "Annual Max",MAX(OFFSET('1ECoarse'!$D$10,12*$A50,4*(PlotControl!$C$6-1),12,1)),AVERAGE(OFFSET('1ECoarse'!$D$10,12*$A50,4*(PlotControl!$C$6-1),12,1))) -> 66733.33333 | Y50: =IF(PlotControl!$B$4 = "Annual Max",MAX(OFFSET('1ECoarse'!$E$10,12*$A50,4*(PlotControl!$C$6-1),12,1)),AVERAGE(OFFSET('1ECoarse'!$E$10,12*$A50,4*(PlotControl!$C$6-1),12,1))) -> 67001.08333
A51: 46 | B51: =IF(PlotControl!$B$4 = "Annual Max",MAX(OFFSET('2WFines'!$C$10,12*$A51,4*(PlotControl!$C$6-1),12,1)),AVERAGE(OFFSET('2WFines'!$C$10,12*$A51,4*(PlotControl!$C$6-1),12,1))) -> 93712.33333 | C51: =IF(PlotControl!$B$4 = "Annual Max",MAX(OFFSET('2WFines'!$D$10,12*$A51,4*(PlotControl!$C$6-1),12,1)),AVERAGE(OFFSET('2WFines'!$D$10,12*$A51,4*(PlotControl!$C$6-1),12,1))) -> 96488 | D51: =IF(PlotControl!$B$4 = "Annual Max",MAX(OFFSET('2WFines'!$E$10,12*$A51,4*(PlotControl!$C$6-1),12,1)),AVERAGE(OFFSET('2WFines'!$E$10,12*$A51,4*(PlotControl!$C$6-1),12,1))) -> 100945 | E51: =IF(PlotControl!$B$4 = "Annual Max",MAX(OFFSET('2WCoarse'!$C$10,12*$A51,4*(PlotControl!$C$6-1),12,1)),AVERAGE(OFFSET('2WCoarse'!$C$10,12*$A51,4*(PlotControl!$C$6-1),12,1))) -> 56111.83333 | F51: =IF(PlotControl!$B$4 = "Annual Max",MAX(OFFSET('2WCoarse'!$D$10,12*$A51,4*(PlotControl!$C$6-1),12,1)),AVERAGE(OFFSET('2WCoarse'!$D$10,12*$A51,4*(PlotControl!$C$6-1),12,1))) -> 58693.66667 | G51: =IF(PlotControl!$B$4 = "Annual Max",MAX(OFFSET('2WCoarse'!$E$10,12*$A51,4*(PlotControl!$C$6-1),12,1)),AVERAGE(OFFSET('2WCoarse'!$E$10,12*$A51,4*(PlotControl!$C$6-1),12,1))) -> 61996.83333 | H51: =IF(PlotControl!$B$4 = "Annual Max",MAX(OFFSET('2WBank'!$C$10,12*$A51,4*(PlotControl!$C$6-1),12,1)),AVERAGE(OFFSET('2WBank'!$C$10,12*$A51,4*(PlotControl!$C$6-1),12,1))) -> 81671.91667 | I51: =IF(PlotControl!$B$4 = "Annual Max",MAX(OFFSET('2WBank'!$D$10,12*$A51,4*(PlotControl!$C$6-1),12,1)),AVERAGE(OFFSET('2WBank'!$D$10,12*$A51,4*(PlotControl!$C$6-1),12,1))) -> 85605.16667 | J51: =IF(PlotControl!$B$4 = "Annual Max",MAX(OFFSET('2WBank'!$E$10,12*$A51,4*(PlotControl!$C$6-1),12,1)),AVERAGE(OFFSET('2WBank'!$E$10,12*$A51,4*(PlotControl!$C$6-1),12,1))) -> 90597.16667 | K51: =IF(PlotControl!$B$4 = "Annual Max",MAX(OFFSET('2EFines'!$C$10,12*$A51,4*(PlotControl!$C$6-1),12,1)),AVERAGE(OFFSET('2EFines'!$C$10,12*$A51,4*(PlotControl!$C$6-1),12,1))) -> 11219 | L51: =IF(PlotControl!$B$4 = "Annual Max",MAX(OFFSET('2EFines'!$D$10,12*$A51,4*(PlotControl!$C$6-1),12,1)),AVERAGE(OFFSET('2EFines'!$D$10,12*$A51,4*(PlotControl!$C$6-1),12,1))) -> 11225 | M51: =IF(PlotControl!$B$4 = "Annual Max",MAX(OFFSET('2EFines'!$E$10,12*$A51,4*(PlotControl!$C$6-1),12,1)),AVERAGE(OFFSET('2EFines'!$E$10,12*$A51,4*(PlotControl!$C$6-1),12,1))) -> 11232 | N51: =IF(PlotControl!$B$4 = "Annual Max",MAX(OFFSET('2ECoarse'!$C$10,12*$A51,4*(PlotControl!$C$6-1),12,1)),AVERAGE(OFFSET('2ECoarse'!$C$10,12*$A51,4*(PlotControl!$C$6-1),12,1))) -> 11217 | O51: =IF(PlotControl!$B$4 = "Annual Max",MAX(OFFSET('2ECoarse'!$D$10,12*$A51,4*(PlotControl!$C$6-1),12,1)),AVERAGE(OFFSET('2ECoarse'!$D$10,12*$A51,4*(PlotControl!$C$6-1),12,1))) -> 11219 | P51: =IF(PlotControl!$B$4 = "Annual Max",MAX(OFFSET('2ECoarse'!$E$10,12*$A51,4*(PlotControl!$C$6-1),12,1)),AVERAGE(OFFSET('2ECoarse'!$E$10,12*$A51,4*(PlotControl!$C$6-1),12,1))) -> 11221 | Q51: =IF(PlotControl!$B$4 = "Annual Max",MAX(OFFSET('2EBank'!$C$10,12*$A51,4*(PlotControl!$C$6-1),12,1)),AVERAGE(OFFSET('2EBank'!$C$10,12*$A51,4*(PlotControl!$C$6-1),12,1))) -> 6290.908333 | R51: =IF(PlotControl!$B$4 = "Annual Max",MAX(OFFSET('2EBank'!$D$10,12*$A51,4*(PlotControl!$C$6-1),12,1)),AVERAGE(OFFSET('2EBank'!$D$10,12*$A51,4*(PlotControl!$C$6-1),12,1))) -> 6656.441667 | S51: =IF(PlotControl!$B$4 = "Annual Max",MAX(OFFSET('2EBank'!$E$10,12*$A51,4*(PlotControl!$C$6-1),12,1)),AVERAGE(OFFSET('2EBank'!$E$10,12*$A51,4*(PlotControl!$C$6-1),12,1))) -> 7116.4 | T51: =IF(PlotControl!$B$4 = "Annual Max",MAX(OFFSET('1EFines'!$C$10,12*$A51,4*(PlotControl!$C$6-1),12,1)),AVERAGE(OFFSET('1EFines'!$C$10,12*$A51,4*(PlotControl!$C$6-1),12,1))) -> 13846 | U51: =IF(PlotControl!$B$4 = "Annual Max",MAX(OFFSET('1EFines'!$D$10,12*$A51,4*(PlotControl!$C$6-1),12,1)),AVERAGE(OFFSET('1EFines'!$D$10,12*$A51,4*(PlotControl!$C$6-1),12,1))) -> 13937 | V51: =IF(PlotControl!$B$4 = "Annual Max",MAX(OFFSET('1EFines'!$E$10,12*$A51,4*(PlotControl!$C$6-1),12,1)),AVERAGE(OFFSET('1EFines'!$E$10,12*$A51,4*(PlotControl!$C$6-1),12,1))) -> 14052 | W51: =IF(PlotControl!$B$4 = "Annual Max",MAX(OFFSET('1ECoarse'!$C$10,12*$A51,4*(PlotControl!$C$6-1),12,1)),AVERAGE(OFFSET('1ECoarse'!$C$10,12*$A51,4*(PlotControl!$C$6-1),12,1))) -> 66518.58333 | X51: =IF(PlotControl!$B$4 = "Annual Max",MAX(OFFSET('1ECoarse'!$D$10,12*$A51,4*(PlotControl!$C$6-1),12,1)),AVERAGE(OFFSET('1ECoarse'!$D$10,12*$A51,4*(PlotControl!$C$6-1),12,1))) -> 66731.58333 | Y51: =IF(PlotControl!$B$4 = "Annual Max",MAX(OFFSET('1ECoarse'!$E$10,12*$A51,4*(PlotControl!$C$6-1),12,1)),AVERAGE(OFFSET('1ECoarse'!$E$10,12*$A51,4*(PlotControl!$C$6-1),12,1))) -> 67000.33333
A52: 47 | B52: =IF(PlotControl!$B$4 = "Annual Max",MAX(OFFSET('2WFines'!$C$10,12*$A52,4*(PlotControl!$C$6-1),12,1)),AVERAGE(OFFSET('2WFines'!$C$10,12*$A52,4*(PlotControl!$C$6-1),12,1))) -> 93288 | C52: =IF(PlotControl!$B$4 = "Annual Max",MAX(OFFSET('2WFines'!$D$10,12*$A52,4*(PlotControl!$C$6-1),12,1)),AVERAGE(OFFSET('2WFines'!$D$10,12*$A52,4*(PlotControl!$C$6-1),12,1))) -> 96134.16667 | D52: =IF(PlotControl!$B$4 = "Annual Max",MAX(OFFSET('2WFines'!$E$10,12*$A52,4*(PlotControl!$C$6-1),12,1)),AVERAGE(OFFSET('2WFines'!$E$10,12*$A52,4*(PlotControl!$C$6-1),12,1))) -> 100677.5 | E52: =IF(PlotControl!$B$4 = "Annual Max",MAX(OFFSET('2WCoarse'!$C$10,12*$A52,4*(PlotControl!$C$6-1),12,1)),AVERAGE(OFFSET('2WCoarse'!$C$10,12*$A52,4*(PlotControl!$C$6-1),12,1))) -> 55843.16667 | F52: =IF(PlotControl!$B$4 = "Annual Max",MAX(OFFSET('2WCoarse'!$D$10,12*$A52,4*(PlotControl!$C$6-1),12,1)),AVERAGE(OFFSET('2WCoarse'!$D$10,12*$A52,4*(PlotControl!$C$6-1),12,1))) -> 58527.5 | G52: =IF(PlotControl!$B$4 = "Annual Max",MAX(OFFSET('2WCoarse'!$E$10,12*$A52,4*(PlotControl!$C$6-1),12,1)),AVERAGE(OFFSET('2WCoarse'!$E$10,12*$A52,4*(PlotControl!$C$6-1),12,1))) -> 61895.75 | H52: =IF(PlotControl!$B$4 = "Annual Max",MAX(OFFSET('2WBank'!$C$10,12*$A52,4*(PlotControl!$C$6-1),12,1)),AVERAGE(OFFSET('2WBank'!$C$10,12*$A52,4*(PlotControl!$C$6-1),12,1))) -> 81332.5 | I52: =IF(PlotControl!$B$4 = "Annual Max",MAX(OFFSET('2WBank'!$D$10,12*$A52,4*(PlotControl!$C$6-1),12,1)),AVERAGE(OFFSET('2WBank'!$D$10,12*$A52,4*(PlotControl!$C$6-1),12,1))) -> 85375.91667 | J52: =IF(PlotControl!$B$4 = "Annual Max",MAX(OFFSET('2WBank'!$E$10,12*$A52,4*(PlotControl!$C$6-1),12,1)),AVERAGE(OFFSET('2WBank'!$E$10,12*$A52,4*(PlotControl!$C$6-1),12,1))) -> 90465.16667 | K52: =IF(PlotControl!$B$4 = "Annual Max",MAX(OFFSET('2EFines'!$C$10,12*$A52,4*(PlotControl!$C$6-1),12,1)),AVERAGE(OFFSET('2EFines'!$C$10,12*$A52,4*(PlotControl!$C$6-1),12,1))) -> 11219 | L52: =IF(PlotControl!$B$4 = "Annual Max",MAX(OFFSET('2EFines'!$D$10,12*$A52,4*(PlotControl!$C$6-1),12,1)),AVERAGE(OFFSET('2EFines'!$D$10,12*$A52,4*(PlotControl!$C$6-1),12,1))) -> 11225 | M52: =IF(PlotControl!$B$4 = "Annual Max",MAX(OFFSET('2EFines'!$E$10,12*$A52,4*(PlotControl!$C$6-1),12,1)),AVERAGE(OFFSET('2EFines'!$E$10,12*$A52,4*(PlotControl!$C$6-1),12,1))) -> 11232 | N52: =IF(PlotControl!$B$4 = "Annual Max",MAX(OFFSET('2ECoarse'!$C$10,12*$A52,4*(PlotControl!$C$6-1),12,1)),AVERAGE(OFFSET('2ECoarse'!$C$10,12*$A52,4*(PlotControl!$C$6-1),12,1))) -> 11217 | O52: =IF(PlotControl!$B$4 = "Annual Max",MAX(OFFSET('2ECoarse'!$D$10,12*$A52,4*(PlotControl!$C$6-1),12,1)),AVERAGE(OFFSET('2ECoarse'!$D$10,12*$A52,4*(PlotControl!$C$6-1),12,1))) -> 11219 | P52: =IF(PlotControl!$B$4 = "Annual Max",MAX(OFFSET('2ECoarse'!$E$10,12*$A52,4*(PlotControl!$C$6-1),12,1)),AVERAGE(OFFSET('2ECoarse'!$E$10,12*$A52,4*(PlotControl!$C$6-1),12,1))) -> 11221 | Q52: =IF(PlotControl!$B$4 = "Annual Max",MAX(OFFSET('2EBank'!$C$10,12*$A52,4*(PlotControl!$C$6-1),12,1)),AVERAGE(OFFSET('2EBank'!$C$10,12*$A52,4*(PlotControl!$C$6-1),12,1))) -> 6254.116667 | R52: =IF(PlotControl!$B$4 = "Annual Max",MAX(OFFSET('2EBank'!$D$10,12*$A52,4*(PlotControl!$C$6-1),12,1)),AVERAGE(OFFSET('2EBank'!$D$10,12*$A52,4*(PlotControl!$C$6-1),12,1))) -> 6633.983333 | S52: =IF(PlotControl!$B$4 = "Annual Max",MAX(OFFSET('2EBank'!$E$10,12*$A52,4*(PlotControl!$C$6-1),12,1)),AVERAGE(OFFSET('2EBank'!$E$10,12*$A52,4*(PlotControl!$C$6-1),12,1))) -> 7102.383333 | T52: =IF(PlotControl!$B$4 = "Annual Max",MAX(OFFSET('1EFines'!$C$10,12*$A52,4*(PlotControl!$C$6-1),12,1)),AVERAGE(OFFSET('1EFines'!$C$10,12*$A52,4*(PlotControl!$C$6-1),12,1))) -> 13846 | U52: =IF(PlotControl!$B$4 = "Annual Max",MAX(OFFSET('1EFines'!$D$10,12*$A52,4*(PlotControl!$C$6-1),12,1)),AVERAGE(OFFSET('1EFines'!$D$10,12*$A52,4*(PlotControl!$C$6-1),12,1))) -> 13937 | V52: =IF(PlotControl!$B$4 = "Annual Max",MAX(OFFSET('1EFines'!$E$10,12*$A52,4*(PlotControl!$C$6-1),12,1)),AVERAGE(OFFSET('1EFines'!$E$10,12*$A52,4*(PlotControl!$C$6-1),12,1))) -> 14052 | W52: =IF(PlotControl!$B$4 = "Annual Max",MAX(OFFSET('1ECoarse'!$C$10,12*$A52,4*(PlotControl!$C$6-1),12,1)),AVERAGE(OFFSET('1ECoarse'!$C$10,12*$A52,4*(PlotControl!$C$6-1),12,1))) -> 66516.66667 | X52: =IF(PlotControl!$B$4 = "Annual Max",MAX(OFFSET('1ECoarse'!$D$10,12*$A52,4*(PlotControl!$C$6-1),12,1)),AVERAGE(OFFSET('1ECoarse'!$D$10,12*$A52,4*(PlotControl!$C$6-1),12,1))) -> 66730.08333 | Y52: =IF(PlotControl!$B$4 = "Annual Max",MAX(OFFSET('1ECoarse'!$E$10,12*$A52,4*(PlotControl!$C$6-1),12,1)),AVERAGE(OFFSET('1ECoarse'!$E$10,12*$A52,4*(PlotControl!$C$6-1),12,1))) -> 66999.75
A53: 48 | B53: =IF(PlotControl!$B$4 = "Annual Max",MAX(OFFSET('2WFines'!$C$10,12*$A53,4*(PlotControl!$C$6-1),12,1)),AVERAGE(OFFSET('2WFines'!$C$10,12*$A53,4*(PlotControl!$C$6-1),12,1))) -> 92819.08333 | C53: =IF(PlotControl!$B$4 = "Annual Max",MAX(OFFSET('2WFines'!$D$10,12*$A53,4*(PlotControl!$C$6-1),12,1)),AVERAGE(OFFSET('2WFines'!$D$10,12*$A53,4*(PlotControl!$C$6-1),12,1))) -> 95775.83333 | D53: =IF(PlotControl!$B$4 = "Annual Max",MAX(OFFSET('2WFines'!$E$10,12*$A53,4*(PlotControl!$C$6-1),12,1)),AVERAGE(OFFSET('2WFines'!$E$10,12*$A53,4*(PlotControl!$C$6-1),12,1))) -> 100405 | E53: =IF(PlotControl!$B$4 = "Annual Max",MAX(OFFSET('2WCoarse'!$C$10,12*$A53,4*(PlotControl!$C$6-1),12,1)),AVERAGE(OFFSET('2WCoarse'!$C$10,12*$A53,4*(PlotControl!$C$6-1),12,1))) -> 55597.08333 | F53: =IF(PlotControl!$B$4 = "Annual Max",MAX(OFFSET('2WCoarse'!$D$10,12*$A53,4*(PlotControl!$C$6-1),12,1)),AVERAGE(OFFSET('2WCoarse'!$D$10,12*$A53,4*(PlotControl!$C$6-1),12,1))) -> 58347.58333 | G53: =IF(PlotControl!$B$4 = "Annual Max",MAX(OFFSET('2WCoarse'!$E$10,12*$A53,4*(PlotControl!$C$6-1),12,1)),AVERAGE(OFFSET('2WCoarse'!$E$10,12*$A53,4*(PlotControl!$C$6-1),12,1))) -> 61790.25 | H53: =IF(PlotControl!$B$4 = "Annual Max",MAX(OFFSET('2WBank'!$C$10,12*$A53,4*(PlotControl!$C$6-1),12,1)),AVERAGE(OFFSET('2WBank'!$C$10,12*$A53,4*(PlotControl!$C$6-1),12,1))) -> 80986.5 | I53: =IF(PlotControl!$B$4 = "Annual Max",MAX(OFFSET('2WBank'!$D$10,12*$A53,4*(PlotControl!$C$6-1),12,1)),AVERAGE(OFFSET('2WBank'!$D$10,12*$A53,4*(PlotControl!$C$6-1),12,1))) -> 85133 | J53: =IF(PlotControl!$B$4 = "Annual Max",MAX(OFFSET('2WBank'!$E$10,12*$A53,4*(PlotControl!$C$6-1),12,1)),AVERAGE(OFFSET('2WBank'!$E$10,12*$A53,4*(PlotControl!$C$6-1),12,1))) -> 90336.58333 | K53: =IF(PlotControl!$B$4 = "Annual Max",MAX(OFFSET('2EFines'!$C$10,12*$A53,4*(PlotControl!$C$6-1),12,1)),AVERAGE(OFFSET('2EFines'!$C$10,12*$A53,4*(PlotControl!$C$6-1),12,1))) -> 11219 | L53: =IF(PlotControl!$B$4 = "Annual Max",MAX(OFFSET('2EFines'!$D$10,12*$A53,4*(PlotControl!$C$6-1),12,1)),AVERAGE(OFFSET('2EFines'!$D$10,12*$A53,4*(PlotControl!$C$6-1),12,1))) -> 11225 | M53: =IF(PlotControl!$B$4 = "Annual Max",MAX(OFFSET('2EFines'!$E$10,12*$A53,4*(PlotControl!$C$6-1),12,1)),AVERAGE(OFFSET('2EFines'!$E$10,12*$A53,4*(PlotControl!$C$6-1),12,1))) -> 11232 | N53: =IF(PlotControl!$B$4 = "Annual Max",MAX(OFFSET('2ECoarse'!$C$10,12*$A53,4*(PlotControl!$C$6-1),12,1)),AVERAGE(OFFSET('2ECoarse'!$C$10,12*$A53,4*(PlotControl!$C$6-1),12,1))) -> 11217 | O53: =IF(PlotControl!$B$4 = "Annual Max",MAX(OFFSET('2ECoarse'!$D$10,12*$A53,4*(PlotControl!$C$6-1),12,1)),AVERAGE(OFFSET('2ECoarse'!$D$10,12*$A53,4*(PlotControl!$C$6-1),12,1))) -> 11219 | P53: =IF(PlotControl!$B$4 = "Annual Max",MAX(OFFSET('2ECoarse'!$E$10,12*$A53,4*(PlotControl!$C$6-1),12,1)),AVERAGE(OFFSET('2ECoarse'!$E$10,12*$A53,4*(PlotControl!$C$6-1),12,1))) -> 11221 | Q53: =IF(PlotControl!$B$4 = "Annual Max",MAX(OFFSET('2EBank'!$C$10,12*$A53,4*(PlotControl!$C$6-1),12,1)),AVERAGE(OFFSET('2EBank'!$C$10,12*$A53,4*(PlotControl!$C$6-1),12,1))) -> 6219.641667 | R53: =IF(PlotControl!$B$4 = "Annual Max",MAX(OFFSET('2EBank'!$D$10,12*$A53,4*(PlotControl!$C$6-1),12,1)),AVERAGE(OFFSET('2EBank'!$D$10,12*$A53,4*(PlotControl!$C$6-1),12,1))) -> 6609.925 | S53: =IF(PlotControl!$B$4 = "Annual Max",MAX(OFFSET('2EBank'!$E$10,12*$A53,4*(PlotControl!$C$6-1),12,1)),AVERAGE(OFFSET('2EBank'!$E$10,12*$A53,4*(PlotControl!$C$6-1),12,1))) -> 7087.6 | T53: =IF(PlotControl!$B$4 = "Annual Max",MAX(OFFSET('1EFines'!$C$10,12*$A53,4*(PlotControl!$C$6-1),12,1)),AVERAGE(OFFSET('1EFines'!$C$10,12*$A53,4*(PlotControl!$C$6-1),12,1))) -> 13846 | U53: =IF(PlotControl!$B$4 = "Annual Max",MAX(OFFSET('1EFines'!$D$10,12*$A53,4*(PlotControl!$C$6-1),12,1)),AVERAGE(OFFSET('1EFines'!$D$10,12*$A53,4*(PlotControl!$C$6-1),12,1))) -> 13937 | V53: =IF(PlotControl!$B$4 = "Annual Max",MAX(OFFSET('1EFines'!$E$10,12*$A53,4*(PlotControl!$C$6-1),12,1)),AVERAGE(OFFSET('1EFines'!$E$10,12*$A53,4*(PlotControl!$C$6-1),12,1))) -> 14052 | W53: =IF(PlotControl!$B$4 = "Annual Max",MAX(OFFSET('1ECoarse'!$C$10,12*$A53,4*(PlotControl!$C$6-1),12,1)),AVERAGE(OFFSET('1ECoarse'!$C$10,12*$A53,4*(PlotControl!$C$6-1),12,1))) -> 66514.66667 | X53: =IF(PlotControl!$B$4 = "Annual Max",MAX(OFFSET('1ECoarse'!$D$10,12*$A53,4*(PlotControl!$C$6-1),12,1)),AVERAGE(OFFSET('1ECoarse'!$D$10,12*$A53,4*(PlotControl!$C$6-1),12,1))) -> 66728.5 | Y53: =IF(PlotControl!$B$4 = "Annual Max",MAX(OFFSET('1ECoarse'!$E$10,12*$A53,4*(PlotControl!$C$6-1),12,1)),AVERAGE(OFFSET('1ECoarse'!$E$10,12*$A53,4*(PlotControl!$C$6-1),12,1))) -> 66998.91667
A54: 49 | B54: =IF(PlotControl!$B$4 = "Annual Max",MAX(OFFSET('2WFines'!$C$10,12*$A54,4*(PlotControl!$C$6-1),12,1)),AVERAGE(OFFSET('2WFines'!$C$10,12*$A54,4*(PlotControl!$C$6-1),12,1))) -> 92376.5 | C54: =IF(PlotControl!$B$4 = "Annual Max",MAX(OFFSET('2WFines'!$D$10,12*$A54,4*(PlotControl!$C$6-1),12,1)),AVERAGE(OFFSET('2WFines'!$D$10,12*$A54,4*(PlotControl!$C$6-1),12,1))) -> 95398.75 | D54: =IF(PlotControl!$B$4 = "Annual Max",MAX(OFFSET('2WFines'!$E$10,12*$A54,4*(PlotControl!$C$6-1),12,1)),AVERAGE(OFFSET('2WFines'!$E$10,12*$A54,4*(PlotControl!$C$6-1),12,1))) -> 100146.6667 | E54: =IF(PlotControl!$B$4 = "Annual Max",MAX(OFFSET('2WCoarse'!$C$10,12*$A54,4*(PlotControl!$C$6-1),12,1)),AVERAGE(OFFSET('2WCoarse'!$C$10,12*$A54,4*(PlotControl!$C$6-1),12,1))) -> 55377.16667 | F54: =IF(PlotControl!$B$4 = "Annual Max",MAX(OFFSET('2WCoarse'!$D$10,12*$A54,4*(PlotControl!$C$6-1),12,1)),AVERAGE(OFFSET('2WCoarse'!$D$10,12*$A54,4*(PlotControl!$C$6-1),12,1))) -> 58160 | G54: =IF(PlotControl!$B$4 = "Annual Max",MAX(OFFSET('2WCoarse'!$E$10,12*$A54,4*(PlotControl!$C$6-1),12,1)),AVERAGE(OFFSET('2WCoarse'!$E$10,12*$A54,4*(PlotControl!$C$6-1),12,1))) -> 61689.41667 | H54: =IF(PlotControl!$B$4 = "Annual Max",MAX(OFFSET('2WBank'!$C$10,12*$A54,4*(PlotControl!$C$6-1),12,1)),AVERAGE(OFFSET('2WBank'!$C$10,12*$A54,4*(PlotControl!$C$6-1),12,1))) -> 80663.91667 | I54: =IF(PlotControl!$B$4 = "Annual Max",MAX(OFFSET('2WBank'!$D$10,12*$A54,4*(PlotControl!$C$6-1),12,1)),AVERAGE(OFFSET('2WBank'!$D$10,12*$A54,4*(PlotControl!$C$6-1),12,1))) -> 84894.5 | J54: =IF(PlotControl!$B$4 = "Annual Max",MAX(OFFSET('2WBank'!$E$10,12*$A54,4*(PlotControl!$C$6-1),12,1)),AVERAGE(OFFSET('2WBank'!$E$10,12*$A54,4*(PlotControl!$C$6-1),12,1))) -> 90201.33333 | K54: =IF(PlotControl!$B$4 = "Annual Max",MAX(OFFSET('2EFines'!$C$10,12*$A54,4*(PlotControl!$C$6-1),12,1)),AVERAGE(OFFSET('2EFines'!$C$10,12*$A54,4*(PlotControl!$C$6-1),12,1))) -> 11219 | L54: =IF(PlotControl!$B$4 = "Annual Max",MAX(OFFSET('2EFines'!$D$10,12*$A54,4*(PlotControl!$C$6-1),12,1)),AVERAGE(OFFSET('2EFines'!$D$10,12*$A54,4*(PlotControl!$C$6-1),12,1))) -> 11225 | M54: =IF(PlotControl!$B$4 = "Annual Max",MAX(OFFSET('2EFines'!$E$10,12*$A54,4*(PlotControl!$C$6-1),12,1)),AVERAGE(OFFSET('2EFines'!$E$10,12*$A54,4*(PlotControl!$C$6-1),12,1))) -> 11232 | N54: =IF(PlotControl!$B$4 = "Annual Max",MAX(OFFSET('2ECoarse'!$C$10,12*$A54,4*(PlotControl!$C$6-1),12,1)),AVERAGE(OFFSET('2ECoarse'!$C$10,12*$A54,4*(PlotControl!$C$6-1),12,1))) -> 11217 | O54: =IF(PlotControl!$B$4 = "Annual Max",MAX(OFFSET('2ECoarse'!$D$10,12*$A54,4*(PlotControl!$C$6-1),12,1)),AVERAGE(OFFSET('2ECoarse'!$D$10,12*$A54,4*(PlotControl!$C$6-1),12,1))) -> 11219 | P54: =IF(PlotControl!$B$4 = "Annual Max",MAX(OFFSET('2ECoarse'!$E$10,12*$A54,4*(PlotControl!$C$6-1),12,1)),AVERAGE(OFFSET('2ECoarse'!$E$10,12*$A54,4*(PlotControl!$C$6-1),12,1))) -> 11221 | Q54: =IF(PlotControl!$B$4 = "Annual Max",MAX(OFFSET('2EBank'!$C$10,12*$A54,4*(PlotControl!$C$6-1),12,1)),AVERAGE(OFFSET('2EBank'!$C$10,12*$A54,4*(PlotControl!$C$6-1),12,1))) -> 6186.158333 | R54: =IF(PlotControl!$B$4 = "Annual Max",MAX(OFFSET('2EBank'!$D$10,12*$A54,4*(PlotControl!$C$6-1),12,1)),AVERAGE(OFFSET('2EBank'!$D$10,12*$A54,4*(PlotControl!$C$6-1),12,1))) -> 6583.233333 | S54: =IF(PlotControl!$B$4 = "Annual Max",MAX(OFFSET('2EBank'!$E$10,12*$A54,4*(PlotControl!$C$6-1),12,1)),AVERAGE(OFFSET('2EBank'!$E$10,12*$A54,4*(PlotControl!$C$6-1),12,1))) -> 7074.366667 | T54: =IF(PlotControl!$B$4 = "Annual Max",MAX(OFFSET('1EFines'!$C$10,12*$A54,4*(PlotControl!$C$6-1),12,1)),AVERAGE(OFFSET('1EFines'!$C$10,12*$A54,4*(PlotControl!$C$6-1),12,1))) -> 13846 | U54: =IF(PlotControl!$B$4 = "Annual Max",MAX(OFFSET('1EFines'!$D$10,12*$A54,4*(PlotControl!$C$6-1),12,1)),AVERAGE(OFFSET('1EFines'!$D$10,12*$A54,4*(PlotControl!$C$6-1),12,1))) -> 13937 | V54: =IF(PlotControl!$B$4 = "Annual Max",MAX(OFFSET('1EFines'!$E$10,12*$A54,4*(PlotControl!$C$6-1),12,1)),AVERAGE(OFFSET('1EFines'!$E$10,12*$A54,4*(PlotControl!$C$6-1),12,1))) -> 14052 | W54: =IF(PlotControl!$B$4 = "Annual Max",MAX(OFFSET('1ECoarse'!$C$10,12*$A54,4*(PlotControl!$C$6-1),12,1)),AVERAGE(OFFSET('1ECoarse'!$C$10,12*$A54,4*(PlotControl!$C$6-1),12,1))) -> 66512.75 | X54: =IF(PlotControl!$B$4 = "Annual Max",MAX(OFFSET('1ECoarse'!$D$10,12*$A54,4*(PlotControl!$C$6-1),12,1)),AVERAGE(OFFSET('1ECoarse'!$D$10,12*$A54,4*(PlotControl!$C$6-1),12,1))) -> 66727 | Y54: =IF(PlotControl!$B$4 = "Annual Max",MAX(OFFSET('1ECoarse'!$E$10,12*$A54,4*(PlotControl!$C$6-1),12,1)),AVERAGE(OFFSET('1ECoarse'!$E$10,12*$A54,4*(PlotControl!$C$6-1),12,1))) -> 66998
A55: 50 | B55: =IF(PlotControl!$B$4 = "Annual Max",MAX(OFFSET('2WFines'!$C$10,12*$A55,4*(PlotControl!$C$6-1),12,1)),AVERAGE(OFFSET('2WFines'!$C$10,12*$A55,4*(PlotControl!$C$6-1),12,1))) -> 91929.66667 | C55: =IF(PlotControl!$B$4 = "Annual Max",MAX(OFFSET('2WFines'!$D$10,12*$A55,4*(PlotControl!$C$6-1),12,1)),AVERAGE(OFFSET('2WFines'!$D$10,12*$A55,4*(PlotControl!$C$6-1),12,1))) -> 95044.16667 | D55: =IF(PlotControl!$B$4 = "Annual Max",MAX(OFFSET('2WFines'!$E$10,12*$A55,4*(PlotControl!$C$6-1),12,1)),AVERAGE(OFFSET('2WFines'!$E$10,12*$A55,4*(PlotControl!$C$6-1),12,1))) -> 99868.91667 | E55: =IF(PlotControl!$B$4 = "Annual Max",MAX(OFFSET('2WCoarse'!$C$10,12*$A55,4*(PlotControl!$C$6-1),12,1)),AVERAGE(OFFSET('2WCoarse'!$C$10,12*$A55,4*(PlotControl!$C$6-1),12,1))) -> 55131.33333 | F55: =IF(PlotControl!$B$4 = "Annual Max",MAX(OFFSET('2WCoarse'!$D$10,12*$A55,4*(PlotControl!$C$6-1),12,1)),AVERAGE(OFFSET('2WCoarse'!$D$10,12*$A55,4*(PlotControl!$C$6-1),12,1))) -> 57954.16667 | G55: =IF(PlotControl!$B$4 = "Annual Max",MAX(OFFSET('2WCoarse'!$E$10,12*$A55,4*(PlotControl!$C$6-1),12,1)),AVERAGE(OFFSET('2WCoarse'!$E$10,12*$A55,4*(PlotControl!$C$6-1),12,1))) -> 61582.91667 | H55: =IF(PlotControl!$B$4 = "Annual Max",MAX(OFFSET('2WBank'!$C$10,12*$A55,4*(PlotControl!$C$6-1),12,1)),AVERAGE(OFFSET('2WBank'!$C$10,12*$A55,4*(PlotControl!$C$6-1),12,1))) -> 80334.66667 | I55: =IF(PlotControl!$B$4 = "Annual Max",MAX(OFFSET('2WBank'!$D$10,12*$A55,4*(PlotControl!$C$6-1),12,1)),AVERAGE(OFFSET('2WBank'!$D$10,12*$A55,4*(PlotControl!$C$6-1),12,1))) -> 84628.08333 | J55: =IF(PlotControl!$B$4 = "Annual Max",MAX(OFFSET('2WBank'!$E$10,12*$A55,4*(PlotControl!$C$6-1),12,1)),AVERAGE(OFFSET('2WBank'!$E$10,12*$A55,4*(PlotControl!$C$6-1),12,1))) -> 90063.75 | K55: =IF(PlotControl!$B$4 = "Annual Max",MAX(OFFSET('2EFines'!$C$10,12*$A55,4*(PlotControl!$C$6-1),12,1)),AVERAGE(OFFSET('2EFines'!$C$10,12*$A55,4*(PlotControl!$C$6-1),12,1))) -> 11219 | L55: =IF(PlotControl!$B$4 = "Annual Max",MAX(OFFSET('2EFines'!$D$10,12*$A55,4*(PlotControl!$C$6-1),12,1)),AVERAGE(OFFSET('2EFines'!$D$10,12*$A55,4*(PlotControl!$C$6-1),12,1))) -> 11225 | M55: =IF(PlotControl!$B$4 = "Annual Max",MAX(OFFSET('2EFines'!$E$10,12*$A55,4*(PlotControl!$C$6-1),12,1)),AVERAGE(OFFSET('2EFines'!$E$10,12*$A55,4*(PlotControl!$C$6-1),12,1))) -> 11232 | N55: =IF(PlotControl!$B$4 = "Annual Max",MAX(OFFSET('2ECoarse'!$C$10,12*$A55,4*(PlotControl!$C$6-1),12,1)),AVERAGE(OFFSET('2ECoarse'!$C$10,12*$A55,4*(PlotControl!$C$6-1),12,1))) -> 11217 | O55: =IF(PlotControl!$B$4 = "Annual Max",MAX(OFFSET('2ECoarse'!$D$10,12*$A55,4*(PlotControl!$C$6-1),12,1)),AVERAGE(OFFSET('2ECoarse'!$D$10,12*$A55,4*(PlotControl!$C$6-1),12,1))) -> 11219 | P55: =IF(PlotControl!$B$4 = "Annual Max",MAX(OFFSET('2ECoarse'!$E$10,12*$A55,4*(PlotControl!$C$6-1),12,1)),AVERAGE(OFFSET('2ECoarse'!$E$10,12*$A55,4*(PlotControl!$C$6-1),12,1))) -> 11221 | Q55: =IF(PlotControl!$B$4 = "Annual Max",MAX(OFFSET('2EBank'!$C$10,12*$A55,4*(PlotControl!$C$6-1),12,1)),AVERAGE(OFFSET('2EBank'!$C$10,12*$A55,4*(PlotControl!$C$6-1),12,1))) -> 6153.325 | R55: =IF(PlotControl!$B$4 = "Annual Max",MAX(OFFSET('2EBank'!$D$10,12*$A55,4*(PlotControl!$C$6-1),12,1)),AVERAGE(OFFSET('2EBank'!$D$10,12*$A55,4*(PlotControl!$C$6-1),12,1))) -> 6555.758333 | S55: =IF(PlotControl!$B$4 = "Annual Max",MAX(OFFSET('2EBank'!$E$10,12*$A55,4*(PlotControl!$C$6-1),12,1)),AVERAGE(OFFSET('2EBank'!$E$10,12*$A55,4*(PlotControl!$C$6-1),12,1))) -> 7060.25 | T55: =IF(PlotControl!$B$4 = "Annual Max",MAX(OFFSET('1EFines'!$C$10,12*$A55,4*(PlotControl!$C$6-1),12,1)),AVERAGE(OFFSET('1EFines'!$C$10,12*$A55,4*(PlotControl!$C$6-1),12,1))) -> 13846 | U55: =IF(PlotControl!$B$4 = "Annual Max",MAX(OFFSET('1EFines'!$D$10,12*$A55,4*(PlotControl!$C$6-1),12,1)),AVERAGE(OFFSET('1EFines'!$D$10,12*$A55,4*(PlotControl!$C$6-1),12,1))) -> 13937 | V55: =IF(PlotControl!$B$4 = "Annual Max",MAX(OFFSET('1EFines'!$E$10,12*$A55,4*(PlotControl!$C$6-1),12,1)),AVERAGE(OFFSET('1EFines'!$E$10,12*$A55,4*(PlotControl!$C$6-1),12,1))) -> 14052 | W55: =IF(PlotControl!$B$4 = "Annual Max",MAX(OFFSET('1ECoarse'!$C$10,12*$A55,4*(PlotControl!$C$6-1),12,1)),AVERAGE(OFFSET('1ECoarse'!$C$10,12*$A55,4*(PlotControl!$C$6-1),12,1))) -> 66510.83333 | X55: =IF(PlotControl!$B$4 = "Annual Max",MAX(OFFSET('1ECoarse'!$D$10,12*$A55,4*(PlotControl!$C$6-1),12,1)),AVERAGE(OFFSET('1ECoarse'!$D$10,12*$A55,4*(PlotControl!$C$6-1),12,1))) -> 66725.5 | Y55: =IF(PlotControl!$B$4 = "Annual Max",MAX(OFFSET('1ECoarse'!$E$10,12*$A55,4*(PlotControl!$C$6-1),12,1)),AVERAGE(OFFSET('1ECoarse'!$E$10,12*$A55,4*(PlotControl!$C$6-1),12,1))) -> 66997.25
A56: 51 | B56: =IF(PlotControl!$B$4 = "Annual Max",MAX(OFFSET('2WFines'!$C$10,12*$A56,4*(PlotControl!$C$6-1),12,1)),AVERAGE(OFFSET('2WFines'!$C$10,12*$A56,4*(PlotControl!$C$6-1),12,1))) -> 91519.66667 | C56: =IF(PlotControl!$B$4 = "Annual Max",MAX(OFFSET('2WFines'!$D$10,12*$A56,4*(PlotControl!$C$6-1),12,1)),AVERAGE(OFFSET('2WFines'!$D$10,12*$A56,4*(PlotControl!$C$6-1),12,1))) -> 94687.25 | D56: =IF(PlotControl!$B$4 = "Annual Max",MAX(OFFSET('2WFines'!$E$10,12*$A56,4*(PlotControl!$C$6-1),12,1)),AVERAGE(OFFSET('2WFines'!$E$10,12*$A56,4*(PlotControl!$C$6-1),12,1))) -> 99583.5 | E56: =IF(PlotControl!$B$4 = "Annual Max",MAX(OFFSET('2WCoarse'!$C$10,12*$A56,4*(PlotControl!$C$6-1),12,1)),AVERAGE(OFFSET('2WCoarse'!$C$10,12*$A56,4*(PlotControl!$C$6-1),12,1))) -> 54868.91667 | F56: =IF(PlotControl!$B$4 = "Annual Max",MAX(OFFSET('2WCoarse'!$D$10,12*$A56,4*(PlotControl!$C$6-1),12,1)),AVERAGE(OFFSET('2WCoarse'!$D$10,12*$A56,4*(PlotControl!$C$6-1),12,1))) -> 57764.91667 | G56: =IF(PlotControl!$B$4 = "Annual Max",MAX(OFFSET('2WCoarse'!$E$10,12*$A56,4*(PlotControl!$C$6-1),12,1)),AVERAGE(OFFSET('2WCoarse'!$E$10,12*$A56,4*(PlotControl!$C$6-1),12,1))) -> 61473.41667 | H56: =IF(PlotControl!$B$4 = "Annual Max",MAX(OFFSET('2WBank'!$C$10,12*$A56,4*(PlotControl!$C$6-1),12,1)),AVERAGE(OFFSET('2WBank'!$C$10,12*$A56,4*(PlotControl!$C$6-1),12,1))) -> 79989.91667 | I56: =IF(PlotControl!$B$4 = "Annual Max",MAX(OFFSET('2WBank'!$D$10,12*$A56,4*(PlotControl!$C$6-1),12,1)),AVERAGE(OFFSET('2WBank'!$D$10,12*$A56,4*(PlotControl!$C$6-1),12,1))) -> 84374.25 | J56: =IF(PlotControl!$B$4 = "Annual Max",MAX(OFFSET('2WBank'!$E$10,12*$A56,4*(PlotControl!$C$6-1),12,1)),AVERAGE(OFFSET('2WBank'!$E$10,12*$A56,4*(PlotControl!$C$6-1),12,1))) -> 89919.33333 | K56: =IF(PlotControl!$B$4 = "Annual Max",MAX(OFFSET('2EFines'!$C$10,12*$A56,4*(PlotControl!$C$6-1),12,1)),AVERAGE(OFFSET('2EFines'!$C$10,12*$A56,4*(PlotControl!$C$6-1),12,1))) -> 11219 | L56: =IF(PlotControl!$B$4 = "Annual Max",MAX(OFFSET('2EFines'!$D$10,12*$A56,4*(PlotControl!$C$6-1),12,1)),AVERAGE(OFFSET('2EFines'!$D$10,12*$A56,4*(PlotControl!$C$6-1),12,1))) -> 11225 | M56: =IF(PlotControl!$B$4 = "Annual Max",MAX(OFFSET('2EFines'!$E$10,12*$A56,4*(PlotControl!$C$6-1),12,1)),AVERAGE(OFFSET('2EFines'!$E$10,12*$A56,4*(PlotControl!$C$6-1),12,1))) -> 11232 | N56: =IF(PlotControl!$B$4 = "Annual Max",MAX(OFFSET('2ECoarse'!$C$10,12*$A56,4*(PlotControl!$C$6-1),12,1)),AVERAGE(OFFSET('2ECoarse'!$C$10,12*$A56,4*(PlotControl!$C$6-1),12,1))) -> 11217 | O56: =IF(PlotControl!$B$4 = "Annual Max",MAX(OFFSET('2ECoarse'!$D$10,12*$A56,4*(PlotControl!$C$6-1),12,1)),AVERAGE(OFFSET('2ECoarse'!$D$10,12*$A56,4*(PlotControl!$C$6-1),12,1))) -> 11219 | P56: =IF(PlotControl!$B$4 = "Annual Max",MAX(OFFSET('2ECoarse'!$E$10,12*$A56,4*(PlotControl!$C$6-1),12,1)),AVERAGE(OFFSET('2ECoarse'!$E$10,12*$A56,4*(PlotControl!$C$6-1),12,1))) -> 11221 | Q56: =IF(PlotControl!$B$4 = "Annual Max",MAX(OFFSET('2EBank'!$C$10,12*$A56,4*(PlotControl!$C$6-1),12,1)),AVERAGE(OFFSET('2EBank'!$C$10,12*$A56,4*(PlotControl!$C$6-1),12,1))) -> 6118.791667 | R56: =IF(PlotControl!$B$4 = "Annual Max",MAX(OFFSET('2EBank'!$D$10,12*$A56,4*(PlotControl!$C$6-1),12,1)),AVERAGE(OFFSET('2EBank'!$D$10,12*$A56,4*(PlotControl!$C$6-1),12,1))) -> 6531.133333 | S56: =IF(PlotControl!$B$4 = "Annual Max",MAX(OFFSET('2EBank'!$E$10,12*$A56,4*(PlotControl!$C$6-1),12,1)),AVERAGE(OFFSET('2EBank'!$E$10,12*$A56,4*(PlotControl!$C$6-1),12,1))) -> 7045.441667 | T56: =IF(PlotControl!$B$4 = "Annual Max",MAX(OFFSET('1EFines'!$C$10,12*$A56,4*(PlotControl!$C$6-1),12,1)),AVERAGE(OFFSET('1EFines'!$C$10,12*$A56,4*(PlotControl!$C$6-1),12,1))) -> 13846 | U56: =IF(PlotControl!$B$4 = "Annual Max",MAX(OFFSET('1EFines'!$D$10,12*$A56,4*(PlotControl!$C$6-1),12,1)),AVERAGE(OFFSET('1EFines'!$D$10,12*$A56,4*(PlotControl!$C$6-1),12,1))) -> 13937 | V56: =IF(PlotControl!$B$4 = "Annual Max",MAX(OFFSET('1EFines'!$E$10,12*$A56,4*(PlotControl!$C$6-1),12,1)),AVERAGE(OFFSET('1EFines'!$E$10,12*$A56,4*(PlotControl!$C$6-1),12,1))) -> 14052 | W56: =IF(PlotControl!$B$4 = "Annual Max",MAX(OFFSET('1ECoarse'!$C$10,12*$A56,4*(PlotControl!$C$6-1),12,1)),AVERAGE(OFFSET('1ECoarse'!$C$10,12*$A56,4*(PlotControl!$C$6-1),12,1))) -> 66509.08333 | X56: =IF(PlotControl!$B$4 = "Annual Max",MAX(OFFSET('1ECoarse'!$D$10,12*$A56,4*(PlotControl!$C$6-1),12,1)),AVERAGE(OFFSET('1ECoarse'!$D$10,12*$A56,4*(PlotControl!$C$6-1),12,1))) -> 66724.16667 | Y56: =IF(PlotControl!$B$4 = "Annual Max",MAX(OFFSET('1ECoarse'!$E$10,12*$A56,4*(PlotControl!$C$6-1),12,1)),AVERAGE(OFFSET('1ECoarse'!$E$10,12*$A56,4*(PlotControl!$C$6-1),12,1))) -> 66996.5
A57: 52 | B57: =IF(PlotControl!$B$4 = "Annual Max",MAX(OFFSET('2WFines'!$C$10,12*$A57,4*(PlotControl!$C$6-1),12,1)),AVERAGE(OFFSET('2WFines'!$C$10,12*$A57,4*(PlotControl!$C$6-1),12,1))) -> 91115.75 | C57: =IF(PlotControl!$B$4 = "Annual Max",MAX(OFFSET('2WFines'!$D$10,12*$A57,4*(PlotControl!$C$6-1),12,1)),AVERAGE(OFFSET('2WFines'!$D$10,12*$A57,4*(PlotControl!$C$6-1),12,1))) -> 94306.83333 | D57: =IF(PlotControl!$B$4 = "Annual Max",MAX(OFFSET('2WFines'!$E$10,12*$A57,4*(PlotControl!$C$6-1),12,1)),AVERAGE(OFFSET('2WFines'!$E$10,12*$A57,4*(PlotControl!$C$6-1),12,1))) -> 99321.5 | E57: =IF(PlotControl!$B$4 = "Annual Max",MAX(OFFSET('2WCoarse'!$C$10,12*$A57,4*(PlotControl!$C$6-1),12,1)),AVERAGE(OFFSET('2WCoarse'!$C$10,12*$A57,4*(PlotControl!$C$6-1),12,1))) -> 54612.83333 | F57: =IF(PlotControl!$B$4 = "Annual Max",MAX(OFFSET('2WCoarse'!$D$10,12*$A57,4*(PlotControl!$C$6-1),12,1)),AVERAGE(OFFSET('2WCoarse'!$D$10,12*$A57,4*(PlotControl!$C$6-1),12,1))) -> 57585.33333 | G57: =IF(PlotControl!$B$4 = "Annual Max",MAX(OFFSET('2WCoarse'!$E$10,12*$A57,4*(PlotControl!$C$6-1),12,1)),AVERAGE(OFFSET('2WCoarse'!$E$10,12*$A57,4*(PlotControl!$C$6-1),12,1))) -> 61368.25 | H57: =IF(PlotControl!$B$4 = "Annual Max",MAX(OFFSET('2WBank'!$C$10,12*$A57,4*(PlotControl!$C$6-1),12,1)),AVERAGE(OFFSET('2WBank'!$C$10,12*$A57,4*(PlotControl!$C$6-1),12,1))) -> 79655 | I57: =IF(PlotControl!$B$4 = "Annual Max",MAX(OFFSET('2WBank'!$D$10,12*$A57,4*(PlotControl!$C$6-1),12,1)),AVERAGE(OFFSET('2WBank'!$D$10,12*$A57,4*(PlotControl!$C$6-1),12,1))) -> 84135.16667 | J57: =IF(PlotControl!$B$4 = "Annual Max",MAX(OFFSET('2WBank'!$E$10,12*$A57,4*(PlotControl!$C$6-1),12,1)),AVERAGE(OFFSET('2WBank'!$E$10,12*$A57,4*(PlotControl!$C$6-1),12,1))) -> 89779.41667 | K57: =IF(PlotControl!$B$4 = "Annual Max",MAX(OFFSET('2EFines'!$C$10,12*$A57,4*(PlotControl!$C$6-1),12,1)),AVERAGE(OFFSET('2EFines'!$C$10,12*$A57,4*(PlotControl!$C$6-1),12,1))) -> 11219 | L57: =IF(PlotControl!$B$4 = "Annual Max",MAX(OFFSET('2EFines'!$D$10,12*$A57,4*(PlotControl!$C$6-1),12,1)),AVERAGE(OFFSET('2EFines'!$D$10,12*$A57,4*(PlotControl!$C$6-1),12,1))) -> 11225 | M57: =IF(PlotControl!$B$4 = "Annual Max",MAX(OFFSET('2EFines'!$E$10,12*$A57,4*(PlotControl!$C$6-1),12,1)),AVERAGE(OFFSET('2EFines'!$E$10,12*$A57,4*(PlotControl!$C$6-1),12,1))) -> 11232 | N57: =IF(PlotControl!$B$4 = "Annual Max",MAX(OFFSET('2ECoarse'!$C$10,12*$A57,4*(PlotControl!$C$6-1),12,1)),AVERAGE(OFFSET('2ECoarse'!$C$10,12*$A57,4*(PlotControl!$C$6-1),12,1))) -> 11217 | O57: =IF(PlotControl!$B$4 = "Annual Max",MAX(OFFSET('2ECoarse'!$D$10,12*$A57,4*(PlotControl!$C$6-1),12,1)),AVERAGE(OFFSET('2ECoarse'!$D$10,12*$A57,4*(PlotControl!$C$6-1),12,1))) -> 11219 | P57: =IF(PlotControl!$B$4 = "Annual Max",MAX(OFFSET('2ECoarse'!$E$10,12*$A57,4*(PlotControl!$C$6-1),12,1)),AVERAGE(OFFSET('2ECoarse'!$E$10,12*$A57,4*(PlotControl!$C$6-1),12,1))) -> 11221 | Q57: =IF(PlotControl!$B$4 = "Annual Max",MAX(OFFSET('2EBank'!$C$10,12*$A57,4*(PlotControl!$C$6-1),12,1)),AVERAGE(OFFSET('2EBank'!$C$10,12*$A57,4*(PlotControl!$C$6-1),12,1))) -> 6085.65 | R57: =IF(PlotControl!$B$4 = "Annual Max",MAX(OFFSET('2EBank'!$D$10,12*$A57,4*(PlotControl!$C$6-1),12,1)),AVERAGE(OFFSET('2EBank'!$D$10,12*$A57,4*(PlotControl!$C$6-1),12,1))) -> 6506.683333 | S57: =IF(PlotControl!$B$4 = "Annual Max",MAX(OFFSET('2EBank'!$E$10,12*$A57,4*(PlotControl!$C$6-1),12,1)),AVERAGE(OFFSET('2EBank'!$E$10,12*$A57,4*(PlotControl!$C$6-1),12,1))) -> 7032.35 | T57: =IF(PlotControl!$B$4 = "Annual Max",MAX(OFFSET('1EFines'!$C$10,12*$A57,4*(PlotControl!$C$6-1),12,1)),AVERAGE(OFFSET('1EFines'!$C$10,12*$A57,4*(PlotControl!$C$6-1),12,1))) -> 13846 | U57: =IF(PlotControl!$B$4 = "Annual Max",MAX(OFFSET('1EFines'!$D$10,12*$A57,4*(PlotControl!$C$6-1),12,1)),AVERAGE(OFFSET('1EFines'!$D$10,12*$A57,4*(PlotControl!$C$6-1),12,1))) -> 13937 | V57: =IF(PlotControl!$B$4 = "Annual Max",MAX(OFFSET('1EFines'!$E$10,12*$A57,4*(PlotControl!$C$6-1),12,1)),AVERAGE(OFFSET('1EFines'!$E$10,12*$A57,4*(PlotControl!$C$6-1),12,1))) -> 14052 | W57: =IF(PlotControl!$B$4 = "Annual Max",MAX(OFFSET('1ECoarse'!$C$10,12*$A57,4*(PlotControl!$C$6-1),12,1)),AVERAGE(OFFSET('1ECoarse'!$C$10,12*$A57,4*(PlotControl!$C$6-1),12,1))) -> 66507.33333 | X57: =IF(PlotControl!$B$4 = "Annual Max",MAX(OFFSET('1ECoarse'!$D$10,12*$A57,4*(PlotControl!$C$6-1),12,1)),AVERAGE(OFFSET('1ECoarse'!$D$10,12*$A57,4*(PlotControl!$C$6-1),12,1))) -> 66722.58333 | Y57: =IF(PlotControl!$B$4 = "Annual Max",MAX(OFFSET('1ECoarse'!$E$10,12*$A57,4*(PlotControl!$C$6-1),12,1)),AVERAGE(OFFSET('1ECoarse'!$E$10,12*$A57,4*(PlotControl!$C$6-1),12,1))) -> 66995.66667
A58: 53 | B58: =IF(PlotControl!$B$4 = "Annual Max",MAX(OFFSET('2WFines'!$C$10,12*$A58,4*(PlotControl!$C$6-1),12,1)),AVERAGE(OFFSET('2WFines'!$C$10,12*$A58,4*(PlotControl!$C$6-1),12,1))) -> 90683.5 | C58: =IF(PlotControl!$B$4 = "Annual Max",MAX(OFFSET('2WFines'!$D$10,12*$A58,4*(PlotControl!$C$6-1),12,1)),AVERAGE(OFFSET('2WFines'!$D$10,12*$A58,4*(PlotControl!$C$6-1),12,1))) -> 93929.83333 | D58: =IF(PlotControl!$B$4 = "Annual Max",MAX(OFFSET('2WFines'!$E$10,12*$A58,4*(PlotControl!$C$6-1),12,1)),AVERAGE(OFFSET('2WFines'!$E$10,12*$A58,4*(PlotControl!$C$6-1),12,1))) -> 99044.5 | E58: =IF(PlotControl!$B$4 = "Annual Max",MAX(OFFSET('2WCoarse'!$C$10,12*$A58,4*(PlotControl!$C$6-1),12,1)),AVERAGE(OFFSET('2WCoarse'!$C$10,12*$A58,4*(PlotControl!$C$6-1),12,1))) -> 54365.25 | F58: =IF(PlotControl!$B$4 = "Annual Max",MAX(OFFSET('2WCoarse'!$D$10,12*$A58,4*(PlotControl!$C$6-1),12,1)),AVERAGE(OFFSET('2WCoarse'!$D$10,12*$A58,4*(PlotControl!$C$6-1),12,1))) -> 57397.25 | G58: =IF(PlotControl!$B$4 = "Annual Max",MAX(OFFSET('2WCoarse'!$E$10,12*$A58,4*(PlotControl!$C$6-1),12,1)),AVERAGE(OFFSET('2WCoarse'!$E$10,12*$A58,4*(PlotControl!$C$6-1),12,1))) -> 61260.41667 | H58: =IF(PlotControl!$B$4 = "Annual Max",MAX(OFFSET('2WBank'!$C$10,12*$A58,4*(PlotControl!$C$6-1),12,1)),AVERAGE(OFFSET('2WBank'!$C$10,12*$A58,4*(PlotControl!$C$6-1),12,1))) -> 79326.75 | I58: =IF(PlotControl!$B$4 = "Annual Max",MAX(OFFSET('2WBank'!$D$10,12*$A58,4*(PlotControl!$C$6-1),12,1)),AVERAGE(OFFSET('2WBank'!$D$10,12*$A58,4*(PlotControl!$C$6-1),12,1))) -> 83887.08333 | J58: =IF(PlotControl!$B$4 = "Annual Max",MAX(OFFSET('2WBank'!$E$10,12*$A58,4*(PlotControl!$C$6-1),12,1)),AVERAGE(OFFSET('2WBank'!$E$10,12*$A58,4*(PlotControl!$C$6-1),12,1))) -> 89636.91667 | K58: =IF(PlotControl!$B$4 = "Annual Max",MAX(OFFSET('2EFines'!$C$10,12*$A58,4*(PlotControl!$C$6-1),12,1)),AVERAGE(OFFSET('2EFines'!$C$10,12*$A58,4*(PlotControl!$C$6-1),12,1))) -> 11219 | L58: =IF(PlotControl!$B$4 = "Annual Max",MAX(OFFSET('2EFines'!$D$10,12*$A58,4*(PlotControl!$C$6-1),12,1)),AVERAGE(OFFSET('2EFines'!$D$10,12*$A58,4*(PlotControl!$C$6-1),12,1))) -> 11225 | M58: =IF(PlotControl!$B$4 = "Annual Max",MAX(OFFSET('2EFines'!$E$10,12*$A58,4*(PlotControl!$C$6-1),12,1)),AVERAGE(OFFSET('2EFines'!$E$10,12*$A58,4*(PlotControl!$C$6-1),12,1))) -> 11232 | N58: =IF(PlotControl!$B$4 = "Annual Max",MAX(OFFSET('2ECoarse'!$C$10,12*$A58,4*(PlotControl!$C$6-1),12,1)),AVERAGE(OFFSET('2ECoarse'!$C$10,12*$A58,4*(PlotControl!$C$6-1),12,1))) -> 11217 | O58: =IF(PlotControl!$B$4 = "Annual Max",MAX(OFFSET('2ECoarse'!$D$10,12*$A58,4*(PlotControl!$C$6-1),12,1)),AVERAGE(OFFSET('2ECoarse'!$D$10,12*$A58,4*(PlotControl!$C$6-1),12,1))) -> 11219 | P58: =IF(PlotControl!$B$4 = "Annual Max",MAX(OFFSET('2ECoarse'!$E$10,12*$A58,4*(PlotControl!$C$6-1),12,1)),AVERAGE(OFFSET('2ECoarse'!$E$10,12*$A58,4*(PlotControl!$C$6-1),12,1))) -> 11221 | Q58: =IF(PlotControl!$B$4 = "Annual Max",MAX(OFFSET('2EBank'!$C$10,12*$A58,4*(PlotControl!$C$6-1),12,1)),AVERAGE(OFFSET('2EBank'!$C$10,12*$A58,4*(PlotControl!$C$6-1),12,1))) -> 6051.716667 | R58: =IF(PlotControl!$B$4 = "Annual Max",MAX(OFFSET('2EBank'!$D$10,12*$A58,4*(PlotControl!$C$6-1),12,1)),AVERAGE(OFFSET('2EBank'!$D$10,12*$A58,4*(PlotControl!$C$6-1),12,1))) -> 6481.525 | S58: =IF(PlotControl!$B$4 = "Annual Max",MAX(OFFSET('2EBank'!$E$10,12*$A58,4*(PlotControl!$C$6-1),12,1)),AVERAGE(OFFSET('2EBank'!$E$10,12*$A58,4*(PlotControl!$C$6-1),12,1))) -> 7019.291667 | T58: =IF(PlotControl!$B$4 = "Annual Max",MAX(OFFSET('1EFines'!$C$10,12*$A58,4*(PlotControl!$C$6-1),12,1)),AVERAGE(OFFSET('1EFines'!$C$10,12*$A58,4*(PlotControl!$C$6-1),12,1))) -> 13846 | U58: =IF(PlotControl!$B$4 = "Annual Max",MAX(OFFSET('1EFines'!$D$10,12*$A58,4*(PlotControl!$C$6-1),12,1)),AVERAGE(OFFSET('1EFines'!$D$10,12*$A58,4*(PlotControl!$C$6-1),12,1))) -> 13937 | V58: =IF(PlotControl!$B$4 = "Annual Max",MAX(OFFSET('1EFines'!$E$10,12*$A58,4*(PlotControl!$C$6-1),12,1)),AVERAGE(OFFSET('1EFines'!$E$10,12*$A58,4*(PlotControl!$C$6-1),12,1))) -> 14052 | W58: =IF(PlotControl!$B$4 = "Annual Max",MAX(OFFSET('1ECoarse'!$C$10,12*$A58,4*(PlotControl!$C$6-1),12,1)),AVERAGE(OFFSET('1ECoarse'!$C$10,12*$A58,4*(PlotControl!$C$6-1),12,1))) -> 66505.33333 | X58: =IF(PlotControl!$B$4 = "Annual Max",MAX(OFFSET('1ECoarse'!$D$10,12*$A58,4*(PlotControl!$C$6-1),12,1)),AVERAGE(OFFSET('1ECoarse'!$D$10,12*$A58,4*(PlotControl!$C$6-1),12,1))) -> 66721.25 | Y58: =IF(PlotControl!$B$4 = "Annual Max",MAX(OFFSET('1ECoarse'!$E$10,12*$A58,4*(PlotControl!$C$6-1),12,1)),AVERAGE(OFFSET('1ECoarse'!$E$10,12*$A58,4*(PlotControl!$C$6-1),12,1))) -> 66995
A59: 54 | B59: =IF(PlotControl!$B$4 = "Annual Max",MAX(OFFSET('2WFines'!$C$10,12*$A59,4*(PlotControl!$C$6-1),12,1)),AVERAGE(OFFSET('2WFines'!$C$10,12*$A59,4*(PlotControl!$C$6-1),12,1))) -> 90213.58333 | C59: =IF(PlotControl!$B$4 = "Annual Max",MAX(OFFSET('2WFines'!$D$10,12*$A59,4*(PlotControl!$C$6-1),12,1)),AVERAGE(OFFSET('2WFines'!$D$10,12*$A59,4*(PlotControl!$C$6-1),12,1))) -> 93552.58333 | D59: =IF(PlotControl!$B$4 = "Annual Max",MAX(OFFSET('2WFines'!$E$10,12*$A59,4*(PlotControl!$C$6-1),12,1)),AVERAGE(OFFSET('2WFines'!$E$10,12*$A59,4*(PlotControl!$C$6-1),12,1))) -> 98771.66667 | E59: =IF(PlotControl!$B$4 = "Annual Max",MAX(OFFSET('2WCoarse'!$C$10,12*$A59,4*(PlotControl!$C$6-1),12,1)),AVERAGE(OFFSET('2WCoarse'!$C$10,12*$A59,4*(PlotControl!$C$6-1),12,1))) -> 54122.08333 | F59: =IF(PlotControl!$B$4 = "Annual Max",MAX(OFFSET('2WCoarse'!$D$10,12*$A59,4*(PlotControl!$C$6-1),12,1)),AVERAGE(OFFSET('2WCoarse'!$D$10,12*$A59,4*(PlotControl!$C$6-1),12,1))) -> 57216.66667 | G59: =IF(PlotControl!$B$4 = "Annual Max",MAX(OFFSET('2WCoarse'!$E$10,12*$A59,4*(PlotControl!$C$6-1),12,1)),AVERAGE(OFFSET('2WCoarse'!$E$10,12*$A59,4*(PlotControl!$C$6-1),12,1))) -> 61157.83333 | H59: =IF(PlotControl!$B$4 = "Annual Max",MAX(OFFSET('2WBank'!$C$10,12*$A59,4*(PlotControl!$C$6-1),12,1)),AVERAGE(OFFSET('2WBank'!$C$10,12*$A59,4*(PlotControl!$C$6-1),12,1))) -> 79002.75 | I59: =IF(PlotControl!$B$4 = "Annual Max",MAX(OFFSET('2WBank'!$D$10,12*$A59,4*(PlotControl!$C$6-1),12,1)),AVERAGE(OFFSET('2WBank'!$D$10,12*$A59,4*(PlotControl!$C$6-1),12,1))) -> 83654.66667 | J59: =IF(PlotControl!$B$4 = "Annual Max",MAX(OFFSET('2WBank'!$E$10,12*$A59,4*(PlotControl!$C$6-1),12,1)),AVERAGE(OFFSET('2WBank'!$E$10,12*$A59,4*(PlotControl!$C$6-1),12,1))) -> 89502.5 | K59: =IF(PlotControl!$B$4 = "Annual Max",MAX(OFFSET('2EFines'!$C$10,12*$A59,4*(PlotControl!$C$6-1),12,1)),AVERAGE(OFFSET('2EFines'!$C$10,12*$A59,4*(PlotControl!$C$6-1),12,1))) -> 11219 | L59: =IF(PlotControl!$B$4 = "Annual Max",MAX(OFFSET('2EFines'!$D$10,12*$A59,4*(PlotControl!$C$6-1),12,1)),AVERAGE(OFFSET('2EFines'!$D$10,12*$A59,4*(PlotControl!$C$6-1),12,1))) -> 11225 | M59: =IF(PlotControl!$B$4 = "Annual Max",MAX(OFFSET('2EFines'!$E$10,12*$A59,4*(PlotControl!$C$6-1),12,1)),AVERAGE(OFFSET('2EFines'!$E$10,12*$A59,4*(PlotControl!$C$6-1),12,1))) -> 11232 | N59: =IF(PlotControl!$B$4 = "Annual Max",MAX(OFFSET('2ECoarse'!$C$10,12*$A59,4*(PlotControl!$C$6-1),12,1)),AVERAGE(OFFSET('2ECoarse'!$C$10,12*$A59,4*(PlotControl!$C$6-1),12,1))) -> 11217 | O59: =IF(PlotControl!$B$4 = "Annual Max",MAX(OFFSET('2ECoarse'!$D$10,12*$A59,4*(PlotControl!$C$6-1),12,1)),AVERAGE(OFFSET('2ECoarse'!$D$10,12*$A59,4*(PlotControl!$C$6-1),12,1))) -> 11219 | P59: =IF(PlotControl!$B$4 = "Annual Max",MAX(OFFSET('2ECoarse'!$E$10,12*$A59,4*(PlotControl!$C$6-1),12,1)),AVERAGE(OFFSET('2ECoarse'!$E$10,12*$A59,4*(PlotControl!$C$6-1),12,1))) -> 11221 | Q59: =IF(PlotControl!$B$4 = "Annual Max",MAX(OFFSET('2EBank'!$C$10,12*$A59,4*(PlotControl!$C$6-1),12,1)),AVERAGE(OFFSET('2EBank'!$C$10,12*$A59,4*(PlotControl!$C$6-1),12,1))) -> 6018.491667 | R59: =IF(PlotControl!$B$4 = "Annual Max",MAX(OFFSET('2EBank'!$D$10,12*$A59,4*(PlotControl!$C$6-1),12,1)),AVERAGE(OFFSET('2EBank'!$D$10,12*$A59,4*(PlotControl!$C$6-1),12,1))) -> 6457.366667 | S59: =IF(PlotControl!$B$4 = "Annual Max",MAX(OFFSET('2EBank'!$E$10,12*$A59,4*(PlotControl!$C$6-1),12,1)),AVERAGE(OFFSET('2EBank'!$E$10,12*$A59,4*(PlotControl!$C$6-1),12,1))) -> 7005.066667 | T59: =IF(PlotControl!$B$4 = "Annual Max",MAX(OFFSET('1EFines'!$C$10,12*$A59,4*(PlotControl!$C$6-1),12,1)),AVERAGE(OFFSET('1EFines'!$C$10,12*$A59,4*(PlotControl!$C$6-1),12,1))) -> 13846 | U59: =IF(PlotControl!$B$4 = "Annual Max",MAX(OFFSET('1EFines'!$D$10,12*$A59,4*(PlotControl!$C$6-1),12,1)),AVERAGE(OFFSET('1EFines'!$D$10,12*$A59,4*(PlotControl!$C$6-1),12,1))) -> 13937 | V59: =IF(PlotControl!$B$4 = "Annual Max",MAX(OFFSET('1EFines'!$E$10,12*$A59,4*(PlotControl!$C$6-1),12,1)),AVERAGE(OFFSET('1EFines'!$E$10,12*$A59,4*(PlotControl!$C$6-1),12,1))) -> 14052 | W59: =IF(PlotControl!$B$4 = "Annual Max",MAX(OFFSET('1ECoarse'!$C$10,12*$A59,4*(PlotControl!$C$6-1),12,1)),AVERAGE(OFFSET('1ECoarse'!$C$10,12*$A59,4*(PlotControl!$C$6-1),12,1))) -> 66503.33333 | X59: =IF(PlotControl!$B$4 = "Annual Max",MAX(OFFSET('1ECoarse'!$D$10,12*$A59,4*(PlotControl!$C$6-1),12,1)),AVERAGE(OFFSET('1ECoarse'!$D$10,12*$A59,4*(PlotControl!$C$6-1),12,1))) -> 66719.58333 | Y59: =IF(PlotControl!$B$4 = "Annual Max",MAX(OFFSET('1ECoarse'!$E$10,12*$A59,4*(PlotControl!$C$6-1),12,1)),AVERAGE(OFFSET('1ECoarse'!$E$10,12*$A59,4*(PlotControl!$C$6-1),12,1))) -> 66994
A60: 55 | B60: =IF(PlotControl!$B$4 = "Annual Max",MAX(OFFSET('2WFines'!$C$10,12*$A60,4*(PlotControl!$C$6-1),12,1)),AVERAGE(OFFSET('2WFines'!$C$10,12*$A60,4*(PlotControl!$C$6-1),12,1))) -> 89781.16667 | C60: =IF(PlotControl!$B$4 = "Annual Max",MAX(OFFSET('2WFines'!$D$10,12*$A60,4*(PlotControl!$C$6-1),12,1)),AVERAGE(OFFSET('2WFines'!$D$10,12*$A60,4*(PlotControl!$C$6-1),12,1))) -> 93186.08333 | D60: =IF(PlotControl!$B$4 = "Annual Max",MAX(OFFSET('2WFines'!$E$10,12*$A60,4*(PlotControl!$C$6-1),12,1)),AVERAGE(OFFSET('2WFines'!$E$10,12*$A60,4*(PlotControl!$C$6-1),12,1))) -> 98500 | E60: =IF(PlotControl!$B$4 = "Annual Max",MAX(OFFSET('2WCoarse'!$C$10,12*$A60,4*(PlotControl!$C$6-1),12,1)),AVERAGE(OFFSET('2WCoarse'!$C$10,12*$A60,4*(PlotControl!$C$6-1),12,1))) -> 53887.41667 | F60: =IF(PlotControl!$B$4 = "Annual Max",MAX(OFFSET('2WCoarse'!$D$10,12*$A60,4*(PlotControl!$C$6-1),12,1)),AVERAGE(OFFSET('2WCoarse'!$D$10,12*$A60,4*(PlotControl!$C$6-1),12,1))) -> 57029 | G60: =IF(PlotControl!$B$4 = "Annual Max",MAX(OFFSET('2WCoarse'!$E$10,12*$A60,4*(PlotControl!$C$6-1),12,1)),AVERAGE(OFFSET('2WCoarse'!$E$10,12*$A60,4*(PlotControl!$C$6-1),12,1))) -> 61070.41667 | H60: =IF(PlotControl!$B$4 = "Annual Max",MAX(OFFSET('2WBank'!$C$10,12*$A60,4*(PlotControl!$C$6-1),12,1)),AVERAGE(OFFSET('2WBank'!$C$10,12*$A60,4*(PlotControl!$C$6-1),12,1))) -> 78679.5 | I60: =IF(PlotControl!$B$4 = "Annual Max",MAX(OFFSET('2WBank'!$D$10,12*$A60,4*(PlotControl!$C$6-1),12,1)),AVERAGE(OFFSET('2WBank'!$D$10,12*$A60,4*(PlotControl!$C$6-1),12,1))) -> 83412.16667 | J60: =IF(PlotControl!$B$4 = "Annual Max",MAX(OFFSET('2WBank'!$E$10,12*$A60,4*(PlotControl!$C$6-1),12,1)),AVERAGE(OFFSET('2WBank'!$E$10,12*$A60,4*(PlotControl!$C$6-1),12,1))) -> 89387.75 | K60: =IF(PlotControl!$B$4 = "Annual Max",MAX(OFFSET('2EFines'!$C$10,12*$A60,4*(PlotControl!$C$6-1),12,1)),AVERAGE(OFFSET('2EFines'!$C$10,12*$A60,4*(PlotControl!$C$6-1),12,1))) -> 11219 | L60: =IF(PlotControl!$B$4 = "Annual Max",MAX(OFFSET('2EFines'!$D$10,12*$A60,4*(PlotControl!$C$6-1),12,1)),AVERAGE(OFFSET('2EFines'!$D$10,12*$A60,4*(PlotControl!$C$6-1),12,1))) -> 11225 | M60: =IF(PlotControl!$B$4 = "Annual Max",MAX(OFFSET('2EFines'!$E$10,12*$A60,4*(PlotControl!$C$6-1),12,1)),AVERAGE(OFFSET('2EFines'!$E$10,12*$A60,4*(PlotControl!$C$6-1),12,1))) -> 11232 | N60: =IF(PlotControl!$B$4 = "Annual Max",MAX(OFFSET('2ECoarse'!$C$10,12*$A60,4*(PlotControl!$C$6-1),12,1)),AVERAGE(OFFSET('2ECoarse'!$C$10,12*$A60,4*(PlotControl!$C$6-1),12,1))) -> 11217 | O60: =IF(PlotControl!$B$4 = "Annual Max",MAX(OFFSET('2ECoarse'!$D$10,12*$A60,4*(PlotControl!$C$6-1),12,1)),AVERAGE(OFFSET('2ECoarse'!$D$10,12*$A60,4*(PlotControl!$C$6-1),12,1))) -> 11219 | P60: =IF(PlotControl!$B$4 = "Annual Max",MAX(OFFSET('2ECoarse'!$E$10,12*$A60,4*(PlotControl!$C$6-1),12,1)),AVERAGE(OFFSET('2ECoarse'!$E$10,12*$A60,4*(PlotControl!$C$6-1),12,1))) -> 11221 | Q60: =IF(PlotControl!$B$4 = "Annual Max",MAX(OFFSET('2EBank'!$C$10,12*$A60,4*(PlotControl!$C$6-1),12,1)),AVERAGE(OFFSET('2EBank'!$C$10,12*$A60,4*(PlotControl!$C$6-1),12,1))) -> 5983.608333 | R60: =IF(PlotControl!$B$4 = "Annual Max",MAX(OFFSET('2EBank'!$D$10,12*$A60,4*(PlotControl!$C$6-1),12,1)),AVERAGE(OFFSET('2EBank'!$D$10,12*$A60,4*(PlotControl!$C$6-1),12,1))) -> 6431.325 | S60: =IF(PlotControl!$B$4 = "Annual Max",MAX(OFFSET('2EBank'!$E$10,12*$A60,4*(PlotControl!$C$6-1),12,1)),AVERAGE(OFFSET('2EBank'!$E$10,12*$A60,4*(PlotControl!$C$6-1),12,1))) -> 6990.95 | T60: =IF(PlotControl!$B$4 = "Annual Max",MAX(OFFSET('1EFines'!$C$10,12*$A60,4*(PlotControl!$C$6-1),12,1)),AVERAGE(OFFSET('1EFines'!$C$10,12*$A60,4*(PlotControl!$C$6-1),12,1))) -> 13846 | U60: =IF(PlotControl!$B$4 = "Annual Max",MAX(OFFSET('1EFines'!$D$10,12*$A60,4*(PlotControl!$C$6-1),12,1)),AVERAGE(OFFSET('1EFines'!$D$10,12*$A60,4*(PlotControl!$C$6-1),12,1))) -> 13937 | V60: =IF(PlotControl!$B$4 = "Annual Max",MAX(OFFSET('1EFines'!$E$10,12*$A60,4*(PlotControl!$C$6-1),12,1)),AVERAGE(OFFSET('1EFines'!$E$10,12*$A60,4*(PlotControl!$C$6-1),12,1))) -> 14052 | W60: =IF(PlotControl!$B$4 = "Annual Max",MAX(OFFSET('1ECoarse'!$C$10,12*$A60,4*(PlotControl!$C$6-1),12,1)),AVERAGE(OFFSET('1ECoarse'!$C$10,12*$A60,4*(PlotControl!$C$6-1),12,1))) -> 66501.33333 | X60: =IF(PlotControl!$B$4 = "Annual Max",MAX(OFFSET('1ECoarse'!$D$10,12*$A60,4*(PlotControl!$C$6-1),12,1)),AVERAGE(OFFSET('1ECoarse'!$D$10,12*$A60,4*(PlotControl!$C$6-1),12,1))) -> 66718 | Y60: =IF(PlotControl!$B$4 = "Annual Max",MAX(OFFSET('1ECoarse'!$E$10,12*$A60,4*(PlotControl!$C$6-1),12,1)),AVERAGE(OFFSET('1ECoarse'!$E$10,12*$A60,4*(PlotControl!$C$6-1),12,1))) -> 66993.25
